Workbook

Sheet Capa (hidden)
A26: Check | C26: TKU | D26: =IFERROR(IF(OR((SUM(Check!G15,Check!L15)/2)/10^6>1,(SUM(Check!G15,Check!L15)/2)/10^6<-1),(SUM(Check!G15,Check!L15)/2)/10^6,"OK"),"Erro - TM1") -> OK | E26: TU | F26: =IFERROR(IF(OR((SUM(Check!G18,Check!L18)/2)/10^3>1,(SUM(Check!G18,Check!L18)/2)/10^3<-1),(SUM(Check!G18,Check!L18)/2)/10^3,"OK"),"Erro - TM1") -> OK | G26: Norte-Sul | H26: =IFERROR(IF(OR((SUM(Check!G22:G23,Check!L22:L23)/2)/10^3>1,(SUM(Check!G22:G23,Check!L22:L23)/2)/10^3<-1),(SUM(Check!G22:G23,Check!L22:L23)/2)/10^3,"OK"),"Erro - TM1") -> OK | I26: Rumo | J26: =IFERROR(IF(OR((SUM(Check!G25:G26,Check!L25:L26)/2)/10^3>1,(SUM(Check!G25:G26,Check!L25:L26)/2)/10^3<-1),(SUM(Check!G25:G26,Check!L25:L26)/2)/10^3,"OK"),"Erro - TM1") -> OK

Sheet CTRL (hidden)
A1: Janeiro | B1: 2016 | C1: Mês | D1: Nome do arquivo | E1: TKU | G1: TU | I1: RUMO
A2: Fevereiro | B2: 2017 | C2: 5 | D2: ="Volumetria RI - "&PROPER(TEXT(DATE(INDEX(B:B,$C$4),$C$2,10),"mmm.aa")) -> Volumetria RI - Mai.22 | E2: CUBE: | F2: =_xll.VIEW("Cosan_Logistica:CLOG.ACO.116.VOLUMETRIA.FLUXO",$F$3,"!","!",$F$4,$F$5,$F$6,$F$7,$F$8,$F$9,"!",$F$10,"!",$F$11) ->  | G2: CUBE: | H2: =_xll.VIEW("Cosan_Logistica:CLOG.ACO.116.VOLUMETRIA.FLUXO",$F$3,"!","!",$F$4,$F$5,$F$6,$F$7,$F$8,$F$9,"!",$F$10,"!",$F$11) ->  | I2: CUBE: | J2: =_xll.VIEW("Cosan_Logistica:CLOG.ACO.130.MARGEM.RUMO",$J$3,"!","!",$J$5,"!",$J$6,$J$4) -> 
A3: Março | B3: 2018 | C3: Ano | E3: CLOG.D.ACO.VERSAO | F3: =_xll.SUBNM("Cosan_Logistica:CLOG.D.ACO.VERSAO","Padrão","R","Descrição") ->  | G3: CLOG.D.ACO.VERSAO | H3: =_xll.SUBNM("Cosan_Logistica:CLOG.D.ACO.VERSAO","Padrão","R","Descrição") ->  | I3: ALL.D.VERSAO | J3: =_xll.SUBNM("Cosan_Logistica:ALL.D.VERSAO","","Realizado") -> 
A4: Abril | B4: 2019 | C4: 7 | E4: CLOG.D.ACO.MODAL | F4: =_xll.SUBNM("Cosan_Logistica:CLOG.D.ACO.MODAL","","Total Modal") ->  | G4: CLOG.D.ACO.MODAL | H4: =_xll.SUBNM("Cosan_Logistica:CLOG.D.ACO.MODAL","","Total Modal") ->  | I4: CLOG.M.ACO.MARGEM.RUMO | J4: =_xll.SUBNM("Cosan_Logistica:CLOG.M.ACO.MARGEM.RUMO","","Valor Total") -> 
A5: Maio | B5: 2020 | C5: COLUNA (Ferro) | E5: CLOG.D.ALL.CORREDOR | F5: =_xll.SUBNM("Cosan_Logistica:CLOG.D.ALL.CORREDOR","Padrão","Total Corredor") ->  | G5: CLOG.D.ALL.CORREDOR | H5: =_xll.SUBNM("Cosan_Logistica:CLOG.D.ALL.CORREDOR","Padrão","Total Corredor") ->  | I5: ALL.D.MENSAL.YTD | J5: =_xll.SUBNM("Cosan_Logistica:ALL.D.MENSAL.YTD","","Mensal") -> 
A6: Junho | B6: 2021 | C6: =((C4-1)*13)+4+C2 -> 87 | E6: CLOG.D.ACO.GERENCIA | F6: =_xll.SUBNM("Cosan_Logistica:CLOG.D.ACO.GERENCIA","Padrão","Total Gerencia") ->  | G6: CLOG.D.ACO.GERENCIA | H6: =_xll.SUBNM("Cosan_Logistica:CLOG.D.ACO.GERENCIA","Padrão","Total Gerencia") ->  | I6: CLOG.D.ACO.GRUPO.MARGEM.RUMO | J6: =_xll.SUBNM("Cosan_Logistica:CLOG.D.ACO.GRUPO.MARGEM.RUMO","","Volume (Ton)") -> 
A7: Julho | B7: 2022 | C7: COLUNA (Rumo) | E7: CLOG.D.ALL.EMPRESA | F7: =_xll.SUBNM("Cosan_Logistica:CLOG.D.ALL.EMPRESA","Padrão","Total Empresa","Cod. + Desc.") ->  | G7: CLOG.D.ALL.EMPRESA | H7: =_xll.SUBNM("Cosan_Logistica:CLOG.D.ALL.EMPRESA","Padrão","Total Empresa","Cod. + Desc.") -> 
A8: Agosto | B8: 2023 | C8: =((C4-1)*13)+2+C2 -> 85 | E8: CLOG.D.ACO.ORIGEM | F8: =_xll.SUBNM("Cosan_Logistica:CLOG.D.ACO.ORIGEM","Padrão","Total Origem","Descrição") ->  | G8: CLOG.D.ACO.ORIGEM | H8: =_xll.SUBNM("Cosan_Logistica:CLOG.D.ACO.ORIGEM","Padrão","Total Origem","Descrição") -> 
A9: Setembro | B9: 2024 | C9: Linha inicial (Ferro) | E9: CLOG.D.ACO.DESTINO | F9: =_xll.SUBNM("Cosan_Logistica:CLOG.D.ACO.DESTINO","Padrão","Total Destino","Descrição") ->  | G9: CLOG.D.ACO.DESTINO | H9: =_xll.SUBNM("Cosan_Logistica:CLOG.D.ACO.DESTINO","Padrão","Total Destino","Descrição") -> 
A10: Outubro | B10: 2025 | C10: 15 | E10: CLOG.D.ALL.CLIENTE.HIERARQUIA | F10: =_xll.SUBNM("Cosan_Logistica:CLOG.D.ALL.CLIENTE.HIERARQUIA","Padrão","Total Clientes") ->  | G10: CLOG.D.ALL.CLIENTE.HIERARQUIA | H10: =_xll.SUBNM("Cosan_Logistica:CLOG.D.ALL.CLIENTE.HIERARQUIA","Padrão","Total Clientes") -> 
A11: Novembro | B11: 2026 | C11: Linha Final (Ferro) | E11: CLOG.M.ACO.VOLUMETRIA.FLUXO | F11: =_xll.SUBNM("Cosan_Logistica:CLOG.M.ACO.VOLUMETRIA.FLUXO","","ITKU","Cod.Descrição") ->  | G11: CLOG.M.ACO.VOLUMETRIA.FLUXO | H11: =_xll.SUBNM("Cosan_Logistica:CLOG.M.ACO.VOLUMETRIA.FLUXO","","ITONUT","Cod.Descrição") -> 
A12: Dezembro | B12: 2027 | C12: 100
B13: 2028 | C13: Linha inicial (Rumo)
B14: 2029 | C14: 10
B15: 2030 | C15: Linha inicial (Rumo)
C16: 11

Sheet Base TKU (hidden)
B1: CUBE: | C1: Cosan_Logistica:CLOG.ACO.116.VOLUMETRIA.FLUXO
B2: CLOG.D.ACO.VERSAO | C2: R
B3: ALL.D.TEMPO.ANO | C3: 2019
B4: CLOG.M.ACO.VOLUMETRIA.FLUXO | C4: Toneladas Km Útil
B5: CLOG.D.ACO.MODAL | C5: Total Modal
B6: CLOG.D.ALL.CORREDOR | C6: Total Corredor
B7: CLOG.D.ACO.GERENCIA | C7: Total Gerencia
B8: CLOG.D.ALL.EMPRESA | C8: Total Empresa
B9: CLOG.D.ACO.ORIGEM | C9: Total Origem
B10: CLOG.D.ACO.DESTINO | C10: Total Destino
B11: CLOG.D.ALL.CLIENTE.HIERARQUIA | C11: Total Clientes
D13: 2016 | E13: 2016 | F13: 2016 | G13: 2016 | H13: 2016 | I13: 2016 | J13: 2016 | K13: 2016 | L13: 2016 | M13: 2016 | N13: 2016 | O13: 2016 | P13: 2016 | Q13: 2017 | R13: 2017 | S13: 2017 | T13: 2017 | U13: 2017 | V13: 2017 | W13: 2017 | X13: 2017 | Y13: 2017 | Z13: 2017 | AA13: 2017 | AB13: 2017 | AC13: 2017 | AD13: 2018 | AE13: 2018 | AF13: 2018 | AG13: 2018 | AH13: 2018 | AI13: 2018 | AJ13: 2018 | AK13: 2018 | AL13: 2018 | AM13: 2018 | AN13: 2018 | AO13: 2018 | AP13: 2018 | AQ13: 2019 | AR13: 2019 | AS13: 2019 | AT13: 2019 | AU13: 2019 | AV13: 2019 | AW13: 2019 | AX13: 2019 | AY13: 2019 | AZ13: 2019 | BA13: 2019 | BB13: 2019 | BC13: 2019 | BE13: 2020 | BF13: 2020 | BG13: 2020 | BH13: 2020 | BI13: 2020 | BJ13: 2020 | BK13: 2020 | BL13: 2020 | BM13: 2020 | BN13: 2020 | BO13: 2020 | BP13: 2020 | BR13: 2021 | BS13: 2021 | BT13: 2021 | BU13: 2021 | BV13: 2021 | BW13: 2021 | BX13: 2021 | BY13: 2021 | BZ13: 2021 | CA13: 2021 | CB13: 2021 | CC13: 2021 | CE13: 2022 | CF13: 2022 | CG13: 2022 | CH13: 2022 | CI13: 2022 | CJ13: 2022 | CK13: 2022 | CL13: 2022 | CM13: 2022 | CN13: 2022 | CO13: 2022 | CP13: 2022
A14: Classificação RI | B14: Operação | C14: Produto | D14: Total Ano | E14: Janeiro | F14: Fevereiro | G14: Março | H14: Abril | I14: Maio | J14: Junho | K14: Julho | L14: Agosto | M14: Setembro | N14: Outubro | O14: Novembro | P14: Dezembro | Q14: Total Ano | R14: Janeiro | S14: Fevereiro | T14: Março | U14: Abril | V14: Maio | W14: Junho | X14: Julho | Y14: Agosto | Z14: Setembro | AA14: Outubro | AB14: Novembro | AC14: Dezembro | AD14: Total Ano | AE14: Janeiro | AF14: Fevereiro | AG14: Março | AH14: Abril | AI14: Maio | AJ14: Junho | AK14: Julho | AL14: Agosto | AM14: Setembro | AN14: Outubro | AO14: Novembro | AP14: Dezembro | AQ14: Total Ano | AR14: Janeiro | AS14: Fevereiro | AT14: Março | AU14: Abril | AV14: Maio | AW14: Junho | AX14: Julho | AY14: Agosto | AZ14: Setembro | BA14: Outubro | BB14: Novembro | BC14: Dezembro | BD14: Total 2020 | BE14: Janeiro | BF14: Fevereiro | BG14: Março | BH14: Abril | BI14: Maio | BJ14: Junho | BK14: Julho | BL14: Agosto | BM14: Setembro | BN14: Outubro | BO14: Novembro | BP14: Dezembro | BQ14: Total 2021 | BR14: Janeiro | BS14: Fevereiro | BT14: Março | BU14: Abril | BV14: Maio | BW14: Junho | BX14: Julho | BY14: Agosto | BZ14: Setembro | CA14: Outubro | CB14: Novembro | CC14: Dezembro | CD14: Total 2022 | CE14: Janeiro | CF14: Fevereiro | CG14: Março | CH14: Abril | CI14: Maio | CJ14: Junho | CK14: Julho | CL14: Agosto | CM14: Setembro | CN14: Outubro | CO14: Novembro | CP14: Dezembro
B15: Total Operação | C15: Total Produto | D15: =SUM(D16:D19,D28,D39) -> 40269274785 | E15: 2935859903 | F15: 3206215552 | G15: 3934263149 | H15: 4019427284 | I15: 3717579416 | J15: 3098303462 | K15: 3991928450 | L15: 4101131995 | M15: 3805228688 | N15: 2657968599 | O15: 2333336596 | P15: 2468031691 | Q15: 49687534138 | R15: 2400694247 | S15: 3457325086 | T15: 4163179347 | U15: 3979012076 | V15: 4230460382 | W15: 4104771401 | X15: 4584238928 | Y15: 4833114222 | Z15: 4584363564 | AA15: 4796737135 | AB15: 4404518043 | AC15: 4149119707 | AD15: 5.636585557e+10 | AE15: 3024619551 | AF15: 4076401446 | AG15: 4726180173 | AH15: 4577654180 | AI15: 4138350614 | AJ15: =SUM(AJ16:AJ19,AJ28,AJ39) -> 4748781097 | AK15: 5299339127 | AL15: 5546486360 | AM15: 5284907798 | AN15: 4891203035 | AO15: 5224852231 | AP15: 4827079955 | AQ15: 60096159678 | AR15: 4113877853 | AS15: 4077830912 | AT15: 5114060523 | AU15: 4578383160 | AV15: 4283034713 | AW15: 5554706542 | AX15: 6176665240 | AY15: 5846945066 | AZ15: 5353300654 | BA15: 5592950155 | BB15: 5573179594 | BC15: 3831225266 | BD15: 62458411884 | BE15: 3567796821 | BF15: 4909247069 | BG15: 3820431784 | BH15: 5230196623 | BI15: 5744285903 | BJ15: 5442092770 | BK15: 6156971912 | BL15: 5782032590 | BM15: 5607934850 | BN15: 5735395980 | BO15: 5388710038 | BP15: 5073315548 | BQ15: =SUM(BR15:CC15) -> 64027605861 | BR15: 2703592947 | BS15: 5048896966 | BT15: 6120824128 | BU15: 5970771174 | BV15: 6233856237 | BW15: 5700197168 | BX15: 6337071154 | BY15: 5355656782 | BZ15: 4673938132 | CA15: 5046461204 | CB15: 5392385150 | CC15: 5443954819 | CD15: =SUM(CE15:CP15) -> 30355201456 | CE15: 5210909753 | CF15: 6170890794 | CG15: 6725736123 | CH15: 6012630351 | CI15: 6235034435
A16: Açúcar | B16: Total Operação | C16: GRUPO - AÇÚCAR | D16: 5272723853 | E16: 234456127 | F16: 157457807 | G16: 178380923 | H16: 207666213 | I16: 435861989 | J16: 586082991 | K16: 506293778 | L16: 574426665 | M16: 585802120 | N16: 682569854 | O16: 588722783 | P16: 535002603 | Q16: 3953951221 | R16: 282027679 | S16: 118958041 | T16: 104334820 | U16: 214854646 | V16: 531045332 | W16: 422409931 | X16: 385769440 | Y16: 407300956 | Z16: 420547076 | AA16: 385730898 | AB16: 379151472 | AC16: 301820930 | AD16: 3529189508 | AE16: 294655220 | AF16: 193819178 | AG16: 140573881 | AH16: 165996269 | AI16: 412855333 | AJ16: 435275749 | AK16: 322824073 | AL16: 326510975 | AM16: 356321626 | AN16: 400664258 | AO16: 229239340 | AP16: 250453606 | AQ16: =SUM(AR16:BC16) -> 2847097185 | AR16: 154011202 | AS16: 86190192 | AT16: 142319921 | AU16: 225747978 | AV16: 317024881 | AW16: 262381096 | AX16: 295557980 | AY16: 238205073 | AZ16: 262978241 | BA16: 239161723 | BB16: 267346364 | BC16: 356172534 | BD16: =SUM(BE16:BP16) -> 5010561601 | BE16: 237738464 | BF16: 175342797 | BG16: 147830554 | BH16: 249287130 | BI16: 436874687 | BJ16: 365364448 | BK16: 337393157 | BL16: 494165516 | BM16: 664780826 | BN16: 735318079 | BO16: 660154195 | BP16: 506311748 | BQ16: 4667644429 | BR16: 369388573 | BS16: 87318869 | BT16: 143548775 | BU16: 233179737 | BV16: 544244105 | BW16: 621577452 | BX16: 340389104 | BY16: 416021704 | BZ16: 643319239 | CA16: 538254724 | CB16: 468241965 | CC16: 262160182 | CD16: 887134452 | CE16: 201508290 | CF16: 65138876 | CG16: 114729904 | CH16: 112160448 | CI16: 393596934
A17: Contêiner | B17: Total Operação | C17: GRUPO - BRADO | D17: 1638372032 | E17: 130967792 | F17: 148674379 | G17: 165831386 | H17: 156251329 | I17: 155735935 | J17: 145132120 | K17: 137973975 | L17: 123861135 | M17: 117616418 | N17: 122481666 | O17: 123082850 | P17: 110763047 | Q17: 1764622143 | R17: 130928520 | S17: 102663992 | T17: 114834939 | U17: 127973428 | V17: 157626899 | W17: 166338509 | X17: 168299872 | Y17: 190253514 | Z17: 165768720 | AA17: 169785212 | AB17: 139966732 | AC17: 130181806 | AD17: 2305426125 | AE17: 73832041 | AF17: 203242721 | AG17: 201001869 | AH17: 211056270 | AI17: 167602482 | AJ17: 179181716 | AK17: 228942881 | AL17: 234107430 | AM17: 214036905 | AN17: 203000901 | AO17: 191951165 | AP17: 197469744 | AQ17: =SUM(AR17:BC17) -> 2766297634 | AR17: 184379005 | AS17: 170016947 | AT17: 236750341 | AU17: 231422933 | AV17: 228749626 | AW17: 208663527 | AX17: 240803420 | AY17: 259778024 | AZ17: 257763296 | BA17: 243628384 | BB17: 261913998 | BC17: 242428133 | BD17: =SUM(BE17:BP17) -> 2956498561 | BE17: 228107072 | BF17: 226052541 | BG17: 232818475 | BH17: 199005432 | BI17: 189002920 | BJ17: 252885049 | BK17: 265497537 | BL17: 257950276 | BM17: 272916521 | BN17: 272503055 | BO17: 291262425 | BP17: 268497258 | BQ17: 3309454011 | BR17: 244131778 | BS17: 241929942 | BT17: 241431957 | BU17: 284646377 | BV17: 276343617 | BW17: 289859025 | BX17: 296143242 | BY17: 320650825 | BZ17: 282428528 | CA17: 271114870 | CB17: 269726344 | CC17: 291047506 | CD17: 1501004556 | CE17: 266845995 | CF17: 295396426 | CG17: 317146865 | CH17: 305382677 | CI17: 316232593
A18: Fertilizantes | B18: Total Operação | C18: GRUPO - FERTILIZANTES | D18: 814939100 | E18: 28277886 | F18: 17986273 | G18: 20430346 | H18: 22496891 | I18: 61922969 | J18: 79419138 | K18: 91515181 | L18: 95034592 | M18: 123820635 | N18: 98535259 | O18: 98943488 | P18: 76556442 | Q18: 683653693 | R18: 67081150 | S18: 37347427 | T18: 30187374 | U18: 69954742 | V18: 69651088 | W18: 49094098 | X18: 51279952 | Y18: 55388520 | Z18: 60182641 | AA18: 70693725 | AB18: 63823446 | AC18: 58969530 | AD18: 1861603051 | AE18: 67919034 | AF18: 48889296 | AG18: 34909110 | AH18: 48651351 | AI18: 111770289 | AJ18: 137895092 | AK18: 249050670 | AL18: 250780489 | AM18: 151730932 | AN18: 172935569 | AO18: 249323062 | AP18: 337748157 | AQ18: 3537113771 | AR18: 264335857 | AS18: 166741201 | AT18: 194926232 | AU18: 248118763 | AV18: 368948113 | AW18: 352127685 | AX18: 400542858 | AY18: 327778933 | AZ18: 181152004 | BA18: 281218724 | BB18: 331257013 | BC18: 419966388 | BD18: 4464529843 | BE18: 367050116 | BF18: 296982213 | BG18: 135626534 | BH18: 339998024 | BI18: 442256234 | BJ18: 408841668 | BK18: 441870999 | BL18: 308394735 | BM18: 335131549 | BN18: 472406176 | BO18: 464465745 | BP18: 451505850 | BQ18: 5008296854 | BR18: 485666343 | BS18: 411296596 | BT18: 248293627 | BU18: 272282472 | BV18: 295951034 | BW18: 313744948 | BX18: 600443859 | BY18: 609640683 | BZ18: 461649368 | CA18: 493868744 | CB18: 411021704 | CC18: 404437476 | CD18: 1840354755 | CE18: 344794062 | CF18: 436281847 | CG18: 389611369 | CH18: 185731561 | CI18: 483935916
B19: Total Operação | C19: GRUPO - GRÃOS | D19: =SUM(D20:D27) -> 26522594640 | E19: =SUM(E20:E27) -> 2136398149 | F19: 2454697287 | G19: 3107888033 | H19: 3185144987 | I19: 2582137849 | J19: 1763734218 | K19: 2693741792 | L19: 2729740010 | M19: 2397744718 | N19: 1180188781 | O19: 1021505151 | P19: 1269673665 | Q19: 36801524106 | R19: 1416734136 | S19: 2753269754 | T19: 3409909657 | U19: 3103438712 | V19: 2941591951 | W19: 2945152403 | X19: 3396920876 | Y19: 3593436283 | Z19: 3384126955 | AA19: 3525864709 | AB19: 3255078757 | AC19: 3075999913 | AD19: 4.10592664e+10 | AE19: 2008684993 | AF19: 3053637437 | AG19: 3755394426 | AH19: 3633108996 | AI19: 2904375685 | AJ19: 3310282915 | AK19: 3817003917 | AL19: 4024439668 | AM19: 3868614116 | AN19: 3415565891 | AO19: 3888256423 | AP19: 3379901937 | AQ19: 42948445350 | AR19: 2849315590 | AS19: 3057062505 | AT19: 3905476332 | AU19: 3265170777 | AV19: 2712228217 | AW19: 4058312360 | AX19: 4527509422 | AY19: 4290426631 | AZ19: 3939351262 | BA19: 4090685906 | BB19: 4058735503 | BC19: 2194170845 | BD19: 42354801120 | BE19: 2089616257 | BF19: 3611014226 | BG19: 2807206531 | BH19: 4000523005 | BI19: 4057838302 | BJ19: 3815358783 | BK19: 4429094221 | BL19: 4028421230 | BM19: 3590367246 | BN19: 3482112106 | BO19: 3229488056 | BP19: 3213761157 | BQ19: 42124444378 | BR19: 908295914 | BS19: 3616791575 | BT19: 4747560898 | BU19: 4456254910 | BV19: 4345303613 | BW19: 3728509759 | BX19: 4329002802 | BY19: 3196696132 | BZ19: 2522380026 | CA19: 2958765555 | CB19: 3534620693 | CC19: 3780262501 | CD19: 22339801239 | CE19: 3676942251 | CF19: 4665042766 | CG19: 5106279286 | CH19: 4668583976 | CI19: 4222952960
B20: Total Operação | C20: ARROZ (GRANEL) | AQ20: 0 | AR20: 0 | AS20: 0 | AT20: 0 | AU20: 0 | AV20: 0 | AW20: 0 | AX20: 0 | AY20: 0 | AZ20: 0 | BA20: 0 | BB20: 0 | BC20: 0 | BD20: 0 | BE20: 0 | BF20: 0 | BG20: 0 | BH20: 0 | BI20: 0 | BJ20: 0 | BK20: 0 | BL20: 0 | BM20: 0 | BN20: 0 | BO20: 0 | BP20: 0 | BQ20: 0 | BR20: - | BS20: - | BT20: 0 | BU20: 0 | BV20: 0 | BW20: 0 | BX20: 0 | BY20: 0 | BZ20: 0 | CA20: 0 | CB20: 0 | CC20: 0 | CD20: 0 | CE20: 0 | CF20: 0 | CG20: 0 | CH20: 0 | CI20: 0
A21: Farelo de Soja | B21: Total Operação | C21: FARELO | D21: 4848739945 | E21: 216263516 | F21: 395037005 | G21: 487856197 | H21: 535266493 | I21: 526415615 | J21: 472965977 | K21: 354226749 | L21: 316308402 | M21: 322786465 | N21: 377761324 | O21: 438987529 | P21: 404864673 | Q21: 5823144957 | R21: 402662255 | S21: 407247514 | T21: 517989061 | U21: 588470390 | V21: 519955254 | W21: 437873199 | X21: 520803951 | Y21: 428816672 | Z21: 434419046 | AA21: 529768690 | AB21: 506082882 | AC21: 529056043 | AD21: 6371569461 | AE21: 446265116 | AF21: 515199178 | AG21: 578462202 | AH21: 632174250 | AI21: 499679316 | AJ21: 584672441 | AK21: 509672392 | AL21: 486213891 | AM21: 524420464 | AN21: 475608570 | AO21: 515806161 | AP21: 603395480 | AQ21: 6861034753 | AR21: 461211560 | AS21: 446229709 | AT21: 622222881 | AU21: 631900652 | AV21: 579339018 | AW21: 629968674 | AX21: 597870303 | AY21: 494529032 | AZ21: 542620092 | BA21: 593321554 | BB21: 664736418 | BC21: 597084860 | BD21: 7529970646 | BE21: 402380851 | BF21: 540976483 | BG21: 561960584 | BH21: 663534438 | BI21: 631765018 | BJ21: 649359743 | BK21: 707366512 | BL21: 710348971 | BM21: 661590839 | BN21: 712141676 | BO21: 614376469 | BP21: 674169062 | BQ21: 8511802822 | BR21: 444990608 | BS21: 602947558 | BT21: 704474780 | BU21: 786668571 | BV21: 755986114 | BW21: 826858764 | BX21: 840958480 | BY21: 744792682 | BZ21: 687938843 | CA21: 587364704 | CB21: 766371924 | CC21: 762449794 | CD21: 4163272614 | CE21: 660249575 | CF21: 723767017 | CG21: 921808474 | CH21: 968329402 | CI21: 889118146
A22: Farelo de Milho | B22: Total Operação | C22: FARELO DE MILHO | AQ22: 20738520 | AR22: 0 | AS22: 0 | AT22: 0 | AU22: 0 | AV22: 0 | AW22: 0 | AX22: 0 | AY22: 0 | AZ22: 0 | BA22: 0 | BB22: 0 | BC22: 20738520 | BD22: 18105539 | BE22: 18105539 | BF22: 0 | BG22: 0 | BH22: 0 | BI22: 0 | BJ22: 0 | BK22: 0 | BL22: 0 | BM22: 0 | BN22: 0 | BO22: 0 | BP22: 0 | BQ22: 0 | BR22: - | BS22: - | BT22: 0 | BU22: 0 | BV22: 0 | BW22: 0 | BX22: 0 | BY22: 0 | BZ22: 0 | CA22: 0 | CB22: 0 | CC22: 0 | CD22: 0 | CE22: 0 | CF22: 0 | CG22: 0 | CH22: 0 | CI22: 0
A23: Malte | B23: Total Operação | C23: MALTE | D23: 1118223 | E23: 0 | F23: 0 | G23: 0 | H23: 0 | I23: 0 | J23: 0 | K23: 0 | L23: 0 | M23: 0 | N23: 1118223 | O23: 0 | P23: 0 | Q23: 0 | R23: 0 | S23: 0 | T23: 0 | U23: 0 | V23: 0 | W23: 0 | X23: 0 | Y23: 0 | Z23: 0 | AA23: 0 | AB23: 0 | AC23: 0 | AD23: 0 | AE23: 0 | AF23: 0 | AG23: 0 | AH23: 0 | AI23: 0 | AJ23: 0 | AK23: 0 | AL23: 0 | AM23: 0 | AN23: 0 | AO23: 0 | AP23: 0 | AQ23: 0 | AR23: 0 | AS23: 0 | AT23: 0 | AU23: 0 | AV23: 0 | AW23: 0 | AX23: 0 | AY23: 0 | AZ23: 0 | BA23: 0 | BB23: 0 | BC23: 0 | BD23: 0 | BE23: 0 | BF23: 0 | BG23: 0 | BH23: 0 | BI23: 0 | BJ23: 0 | BK23: 0 | BL23: 0 | BM23: 0 | BN23: 0 | BO23: 0 | BP23: 0 | BQ23: 0 | BR23: - | BS23: - | BT23: 0 | BU23: 0 | BV23: 0 | BW23: 0 | BX23: 0 | BY23: 0 | BZ23: 0 | CA23: 0 | CB23: 0 | CC23: 0 | CD23: 0 | CE23: 0 | CF23: 0 | CG23: 0 | CH23: 0 | CI23: 0
A24: Milho | B24: Total Operação | C24: MILHO | D24: 10215397331 | E24: 1708525340 | F24: 147133150 | G24: 1444443 | H24: 0 | I24: 0 | J24: 343225995 | K24: 1978457048 | L24: 2230650957 | M24: 1944839001 | N24: 705937169 | O24: 482401835 | P24: 672782393 | Q24: 16414826967 | R24: 113381199 | S24: 6805808 | T24: 0 | U24: 0 | V24: 8610801 | W24: 1234812654 | X24: 2256657775 | Y24: 2716620059 | Z24: 2771581220 | AA24: 2787873497 | AB24: 2379400827 | AC24: 2139083127 | AD24: 16433036304 | AE24: 609522875 | AF24: 73753831 | AG24: 0 | AH24: 0 | AI24: 33737178 | AJ24: 327834185 | AK24: 2341412361 | AL24: 2803528227 | AM24: 2731437557 | AN24: 2248798138 | AO24: 2798098022 | AP24: 2464913930 | AQ24: 19545827914 | AR24: 415344145 | AS24: 74140707 | AT24: 15008298 | AU24: 34903503 | AV24: 111762523 | AW24: 2575904658 | AX24: 3444661429 | AY24: 3342463779 | AZ24: 2963385093 | BA24: 2757652164 | BB24: 2568912783 | BC24: 1241688832 | BD24: 17173456822 | BE24: 60468750 | BF24: 73095562 | BG24: 14966994 | BH24: 0 | BI24: 30471 | BJ24: 1431483015 | BK24: 2707269495 | BL24: 2787612289 | BM24: 2601258773 | BN24: 2608081080 | BO24: 2469402636 | BP24: 2419787757 | BQ24: 12538628055 | BR24: 124970308 | BS24: 73279588 | BT24: 6976461 | BU24: 0 | BV24: 0 | BW24: 507616840 | BX24: 2759041096 | BY24: 1944864604 | BZ24: 1287869615 | CA24: 1691445213 | CB24: 1802043570 | CC24: 2340520760 | CD24: 1506369998 | CE24: 963649780 | CF24: 68267675 | CG24: 46083473 | CH24: 320263102 | CI24: 108105968
A25: Soja | B25: Total Operação | C25: SOJA | D25: 11364153908 | E25: 169291606 | F25: 1910194661 | G25: 2614075535 | H25: 2648204562 | I25: 2054071595 | J25: 945775688 | K25: 359209924 | L25: 180625179 | M25: 129292939 | N25: 94551349 | O25: 84632489 | P25: 174228381 | Q25: 14400891554 | R25: 850038717 | S25: 2270692543 | T25: 2876176624 | U25: 2512529925 | V25: 2410849338 | W25: 1270572663 | X25: 616729111 | Y25: 446697778 | Z25: 177885711 | AA25: 207324380 | AB25: 364243137 | AC25: 397151627 | AD25: 18123088513 | AE25: 933152470 | AF25: 2458559789 | AG25: 3176387751 | AH25: 3000272386 | AI25: 2369348905 | AJ25: 2396205432 | AK25: 964269442 | AL25: 733456745 | AM25: 610131958 | AN25: 688905131 | AO25: 537752205 | AP25: 254646299 | AQ25: 16440317363 | AR25: 1940144274 | AS25: 2532959259 | AT25: 3267423347 | AU25: 2597566063 | AV25: 2021126676 | AW25: 852439028 | AX25: 484977690 | AY25: 453433820 | AZ25: 432861137 | BA25: 739333550 | BB25: 819156360 | BC25: 298896159 | BD25: 17453074969 | BE25: 1585000395 | BF25: 2995142025 | BG25: 2230278953 | BH25: 3336988567 | BI25: 3426042813 | BJ25: 1734516025 | BK25: 1014458214 | BL25: 530459970 | BM25: 327517634 | BN25: 149427977 | BO25: 69608678 | BP25: 53633718 | BQ25: 20892392104 | BR25: 334677827 | BS25: 2940564429 | BT25: 4036109657 | BU25: 3669586339 | BV25: 3589317499 | BW25: 2394034155 | BX25: 729003226 | BY25: 507038846 | BZ25: 546571568 | CA25: 678860034 | CB25: 892350744 | CC25: 574277780 | CD25: 16396885796 | CE25: 1955022219 | CF25: 3750232320 | CG25: 4092793376 | CH25: 3374035729 | CI25: 3224802152
A26: Trigo | B26: Total Operação | C26: TRIGO | D26: 76524334 | E26: 41988754 | F26: 1379574 | G26: 2484418 | H26: 0 | I26: 0 | J26: 0 | K26: 0 | L26: 0 | M26: 0 | N26: 0 | O26: 14076225 | P26: 16595363 | Q26: 144137874 | R26: 49240961 | S26: 66897076 | T26: 13417951 | U26: 0 | V26: 0 | W26: 0 | X26: 0 | Y26: 0 | Z26: 0 | AA26: 0 | AB26: 4788405 | AC26: 9793481 | AD26: 116573659 | AE26: 18765000 | AF26: 5009209 | AG26: 0 | AH26: 0 | AI26: 0 | AJ26: 0 | AK26: 0 | AL26: 0 | AM26: 0 | AN26: 0 | AO26: 36464420 | AP26: 56335030 | AQ26: 75718645 | AR26: 30577094 | AS26: 3732830 | AT26: 0 | AU26: 0 | AV26: 0 | AW26: 0 | AX26: 0 | AY26: 0 | AZ26: 0 | BA26: 0 | BB26: 5788090 | BC26: 35620631 | BD26: 180193144 | BE26: 23660722 | BF26: 1800156 | BG26: 0 | BH26: 0 | BI26: 0 | BJ26: 0 | BK26: 0 | BL26: 0 | BM26: 0 | BN26: 12461373 | BO26: 76100273 | BP26: 66170620 | BQ26: 181621397 | BR26: 3657171 | BS26: - | BT26: 0 | BU26: 0 | BV26: 0 | BW26: 0 | BX26: 0 | BY26: 0 | BZ26: 0 | CA26: 1095604 | CB26: 73854455 | CC26: 103014167 | CD26: 273272831 | CE26: 98020677 | CF26: 122775754 | CG26: 45593963 | CH26: 5955743 | CI26: 926694
A27: Soja | B27: Total Operação | C27: ÓLEO VEGETAL | D27: 16660899 | E27: 328933 | F27: 952897 | G27: 2027440 | H27: 1673932 | I27: 1650639 | J27: 1766558 | K27: 1848071 | L27: 2155472 | M27: 826313 | N27: 820716 | O27: 1407073 | P27: 1202855 | Q27: 18522754 | R27: 1411004 | S27: 1626813 | T27: 2326021 | U27: 2438397 | V27: 2176558 | W27: 1893887 | X27: 2730039 | Y27: 1301774 | Z27: 240978 | AA27: 898142 | AB27: 563506 | AC27: 915635 | AD27: 14998467 | AE27: 979532 | AF27: 1115430 | AG27: 544473 | AH27: 662360 | AI27: 1610286 | AJ27: 1570857 | AK27: 1649722 | AL27: 1240805 | AM27: 2624137 | AN27: 2254052 | AO27: 135615 | AP27: 611198 | AQ27: 4808155 | AR27: 2038517 | AS27: 0 | AT27: 821806 | AU27: 800559 | AV27: 0 | AW27: 0 | AX27: 0 | AY27: 0 | AZ27: 484940 | BA27: 378638 | BB27: 141852 | BC27: 141843 | BD27: 0 | BE27: 0 | BF27: 0 | BG27: 0 | BH27: 0 | BI27: 0 | BJ27: 0 | BK27: 0 | BL27: 0 | BM27: 0 | BN27: 0 | BO27: 0 | BP27: 0 | BQ27: 0 | BR27: - | BS27: - | BT27: 0 | BU27: 0 | BV27: 0 | BW27: 0 | BX27: 0 | BY27: 0 | BZ27: 0 | CA27: 0 | CB27: 0 | CC27: 0 | CD27: 0 | CE27: 0 | CF27: 0 | CG27: 0 | CH27: 0 | CI27: 0
B28: Total Operação | C28: GRUPO - INDUSTRIAL | D28: 1690647492 | E28: 101231757 | F28: 113726166 | G28: 116824008 | H28: 121254898 | I28: 129418789 | J28: 140842872 | K28: 172400540 | L28: 175132225 | M28: 161253546 | N28: 163644056 | O28: 154733873 | P28: 140184762 | Q28: 2119488606 | R28: 143950006 | S28: 111904479 | T28: 149819310 | U28: 152267058 | V28: 179305408 | W28: 162524672 | X28: 176861648 | Y28: 181297448 | Z28: 180508581 | AA28: 208742141 | AB28: 223193208 | AC28: 249114647 | AD28: 3070579325 | AE28: 236260744 | AF28: 218505087 | AG28: 228159889 | AH28: 201821058 | AI28: 218718236 | AJ28: 266527866 | AK28: 256645481 | AL28: 296450973 | AM28: 273725845 | AN28: 303173209 | AO28: 290202901 | AP28: 280388036 | AQ28: 3308856023 | AR28: 276690453 | AS28: 229714860 | AT28: 270376133 | AU28: 260237665 | AV28: 272755128 | AW28: 276657976 | AX28: 273545578 | AY28: 287685130 | AZ28: 289890716 | BA28: 310638776 | BB28: 283700041 | BC28: 276963567 | BD28: 3304746783 | BE28: 287850932 | BF28: 241363440 | BG28: 220726487 | BH28: 238851139 | BI28: 275399437 | BJ28: 264071820 | BK28: 296966479 | BL28: 308409531 | BM28: 316691294 | BN28: 316627039 | BO28: 314457929 | BP28: 223331256 | BQ28: 3619376464 | BR28: 282662711 | BS28: 276440928 | BT28: 320931373 | BU28: 313908178 | BV28: 325065146 | BW28: 297863622 | BX28: 305899693 | BY28: 334423813 | BZ28: 293218575 | CA28: 305753057 | CB28: 290495995 | CC28: 272713373 | CD28: 1435257136 | CE28: 265858431 | CF28: 250885791 | CG28: 326070488 | CH28: 287086142 | CI28: 305356284
A29: Madeira, Papel e Celulose | B29: Total Operação | C29: ARROZ (ENSACADO) | D29: 2949823 | E29: 2867029 | F29: 82794 | G29: 0 | H29: 0 | I29: 0 | J29: 0 | K29: 0 | L29: 0 | M29: 0 | N29: 0 | O29: 0 | P29: 0 | Q29: 0 | R29: 0 | S29: 0 | T29: 0 | U29: 0 | V29: 0 | W29: 0 | X29: 0 | Y29: 0 | Z29: 0 | AA29: 0 | AB29: 0 | AC29: 0 | AD29: 0 | AE29: 0 | AF29: 0 | AG29: 0 | AH29: 0 | AI29: 0 | AJ29: 0 | AK29: 0 | AL29: 0 | AM29: 0 | AN29: 0 | AO29: 0 | AP29: 0 | AQ29: 0 | AR29: 0 | AS29: 0 | AT29: 0 | AU29: 0 | AV29: 0 | AW29: 0 | AX29: 0 | AY29: 0 | AZ29: 0 | BA29: 0 | BB29: 0 | BC29: 0 | BD29: 0 | BE29: 0 | BF29: 0 | BG29: 0 | BH29: 0 | BI29: 0 | BJ29: 0 | BK29: 0 | BL29: 0 | BM29: 0 | BN29: 0 | BO29: 0 | BP29: 0 | BQ29: 0 | BR29: - | BS29: - | BT29: 0 | BU29: 0 | BV29: 0 | BW29: 0 | BX29: 0 | BY29: 0 | BZ29: 0 | CA29: 0 | CB29: 0 | CC29: 0 | CD29: 0 | CE29: 0 | CF29: 0 | CG29: 0 | CH29: 0 | CI29: 0
A30: Madeira, Papel e Celulose | B30: Total Operação | C30: CALCÁREO (IND) | D30: 6322851 | E30: 518815 | F30: 415052 | G30: 793481 | H30: 389493 | I30: 377690 | J30: 188845 | K30: 678662 | L30: 389493 | M30: 1003240 | N30: 1078263 | O30: 489817 | P30: 0 | Q30: 3316593 | R30: 495719 | S30: 483916 | T30: 631451 | U30: 507521 | V30: 489817 | W30: 177042 | X30: 177042 | Y30: 354085 | Z30: 0 | AA30: 0 | AB30: 0 | AC30: 0 | AD30: 0 | AE30: 0 | AF30: 0 | AG30: 0 | AH30: 0 | AI30: 0 | AJ30: 0 | AK30: 0 | AL30: 0 | AM30: 0 | AN30: 0 | AO30: 0 | AP30: 0 | AQ30: 0 | AR30: 0 | AS30: 0 | AT30: 0 | AU30: 0 | AV30: 0 | AW30: 0 | AX30: 0 | AY30: 0 | AZ30: 0 | BA30: 0 | BB30: 0 | BC30: 0 | BD30: 0 | BE30: 0 | BF30: 0 | BG30: 0 | BH30: 0 | BI30: 0 | BJ30: 0 | BK30: 0 | BL30: 0 | BM30: 0 | BN30: 0 | BO30: 0 | BP30: 0 | BQ30: 0 | BR30: - | BS30: - | BT30: 0 | BU30: 0 | BV30: 0 | BW30: 0 | BX30: 0 | BY30: 0 | BZ30: 0 | CA30: 0 | CB30: 0 | CC30: 0 | CD30: 0 | CE30: 0 | CF30: 0 | CG30: 0 | CH30: 0 | CI30: 0
A31: Madeira, Papel e Celulose | B31: Total Operação | C31: CELULOSE | D31: 844231566 | E31: 49640262 | F31: 53374024 | G31: 52726968 | H31: 53897960 | I31: 67886981 | J31: 68516859 | K31: 90106159 | L31: 88751216 | M31: 81277483 | N31: 85430901 | O31: 81173089 | P31: 71449664 | Q31: 1167203736 | R31: 66184266 | S31: 42196771 | T31: 73607079 | U31: 77942519 | V31: 91665532 | W31: 88958897 | X31: 90708861 | Y31: 94651136 | Z31: 96334750 | AA31: 121526374 | AB31: 150155622 | AC31: 173271929 | AD31: 2178928383 | AE31: 162081105 | AF31: 153469856 | AG31: 151655644 | AH31: 130458531 | AI31: 140731363 | AJ31: 190287606 | AK31: 179959534 | AL31: 223767418 | AM31: 199135618 | AN31: 221557066 | AO31: 209922064 | AP31: 215902578 | AQ31: 2440985098 | AR31: 205204474 | AS31: 162200545 | AT31: 204809718 | AU31: 198715056 | AV31: 199981946 | AW31: 194433325 | AX31: 192615176 | AY31: 200060725 | AZ31: 211585503 | BA31: 227075549 | BB31: 218874407 | BC31: 225428674 | BD31: 2488397639 | BE31: 221465242 | BF31: 175575279 | BG31: 162755064 | BH31: 165610028 | BI31: 201265267 | BJ31: 198208550 | BK31: 229472146 | BL31: 236640351 | BM31: 246489080 | BN31: 244847483 | BO31: 247883782 | BP31: 158185367 | BQ31: 2674158494 | BR31: 215921055 | BS31: 212101781 | BT31: 236648794 | BU31: 230591333 | BV31: 237406111 | BW31: 216306697 | BX31: 219195010 | BY31: 255046608 | BZ31: 216508740 | CA31: 225371813 | CB31: 209930160 | CC31: 199130392 | CD31: 1067425572 | CE31: 193009855 | CF31: 183304432 | CG31: 245907736 | CH31: 218184243 | CI31: 227019306
A32: Construção Civil | B32: Total Operação | C32: CIMENTO | D32: 406012747 | E32: 25021266 | F32: 31096223 | G32: 29058565 | H32: 30832058 | I32: 29756097 | J32: 34507802 | K32: 41185458 | L32: 38898023 | M32: 38650417 | N32: 37674924 | O32: 36084035 | P32: 33247879 | Q32: 400515925 | R32: 37076222 | S32: 31980842 | T32: 34680656 | U32: 32850063 | V32: 33627611 | W32: 31870072 | X32: 37261484 | Y32: 37759830 | Z32: 34472653 | AA32: 36542385 | AB32: 22153808 | AC32: 30240299 | AD32: 369321166 | AE32: 23693006 | AF32: 27252428 | AG32: 34011328 | AH32: 27853962 | AI32: 29987612 | AJ32: 30005187 | AK32: 33774298 | AL32: 35088519 | AM32: 33992573 | AN32: 31709538 | AO32: 34384484 | AP32: 27568231 | AQ32: 399159313 | AR32: 30108220 | AS32: 30993666 | AT32: 29339409 | AU32: 32321400 | AV32: 33222594 | AW32: 35394924 | AX32: 34137492 | AY32: 37939603 | AZ32: 36582649 | BA32: 37524016 | BB32: 34164652 | BC32: 27430688 | BD32: 409068317 | BE32: 32280331 | BF32: 32413036 | BG32: 22015789 | BH32: 34776696 | BI32: 38813822 | BJ32: 35975094 | BK32: 33772093 | BL32: 36324975 | BM32: 34265900 | BN32: 42201389 | BO32: 36708183 | BP32: 29521009 | BQ32: 452123929 | BR32: 35882849 | BS32: 30382099 | BT32: 39176060 | BU32: 39256930 | BV32: 39572747 | BW32: 35937522 | BX32: 41340096 | BY32: 40205117 | BZ32: 40070608 | CA32: 36464096 | CB32: 37824009 | CC32: 36011796 | CD32: 186892920 | CE32: 35300087 | CF32: 32847683 | CG32: 39095869 | CH32: 36074466 | CI32: 43574815
A33: Construção Civil | B33: Total Operação | C33: CLINQUER | D33: 268353756 | E33: 11125714 | F33: 14730836 | G33: 22055745 | H33: 21417587 | I33: 19434678 | J33: 25563960 | K33: 23592094 | L33: 30229781 | M33: 27228373 | N33: 23891311 | O33: 24944558 | P33: 24139119 | Q33: 310508595 | R33: 28589788 | S33: 23594240 | T33: 24919905 | U33: 23344695 | V33: 31976498 | W33: 18795045 | X33: 26501542 | Y33: 24642464 | Z33: 26107876 | AA33: 27610298 | AB33: 29377714 | AC33: 25048530 | AD33: 255138924 | AE33: 29037669 | AF33: 20837751 | AG33: 22022316 | AH33: 22468443 | AI33: 21611727 | AJ33: 22031745 | AK33: 15691852 | AL33: 11400157 | AM33: 20164956 | AN33: 30130241 | AO33: 25284496 | AP33: 14457571 | AQ33: 245003344 | AR33: 24320952 | AS33: 20734556 | AT33: 24555766 | AU33: 10913353 | AV33: 19713320 | AW33: 21634621 | AX33: 22731986 | AY33: 24647846 | AZ33: 19582849 | BA33: 21916588 | BB33: 14562899 | BC33: 19688608 | BD33: 264669342 | BE33: 20505114 | BF33: 23210996 | BG33: 18758407 | BH33: 17424984 | BI33: 24623111 | BJ33: 18618729 | BK33: 18058073 | BL33: 22284230 | BM33: 22391212 | BN33: 28358231 | BO33: 25170330 | BP33: 25265925 | BQ33: 313803126 | BR33: 22026355 | BS33: 24392857 | BT33: 27157676 | BU33: 26964901 | BV33: 25512579 | BW33: 26523240 | BX33: 25091759 | BY33: 28576293 | BZ33: 29217855 | CA33: 28707008 | CB33: 27156655 | CC33: 22475948 | CD33: 119705457 | CE33: 23195136 | CF33: 28341185 | CG33: 23612286 | CH33: 21756721 | CI33: 22800129
A34: Madeira, Papel e Celulose | B34: Total Operação | C34: MADEIRA | AQ34: 0 | AR34: 0 | AS34: 0 | AT34: 0 | AU34: 0 | AV34: 0 | AW34: 0 | AX34: 0 | AY34: 0 | AZ34: 0 | BA34: 0 | BB34: 0 | BC34: 0 | BD34: 0 | BE34: 0 | BF34: 0 | BG34: 0 | BH34: 0 | BI34: 0 | BJ34: 0 | BK34: 0 | BL34: 0 | BM34: 0 | BN34: 0 | BO34: 0 | BP34: 0 | BQ34: 0 | BR34: - | BS34: - | BT34: 0 | BU34: 0 | BV34: 0 | BW34: 0 | BX34: 0 | BY34: 0 | BZ34: 0 | CA34: 0 | CB34: 0 | CC34: 0 | CD34: 0 | CE34: 0 | CF34: 0 | CG34: 0 | CH34: 0 | CI34: 0
A35: Siderúrgicos e Mineração | B35: Total Operação | C35: MINÉRIO | D35: 112605614 | E35: 8654285 | F35: 5996943 | G35: 7605219 | H35: 8033596 | I35: 10460080 | J35: 10554157 | K35: 11605112 | L35: 12365736 | M35: 10089216 | N35: 9332464 | O35: 9337280 | P35: 8571526 | Q35: 138588620 | R35: 10252237 | S35: 10657173 | T35: 10507877 | U35: 10259738 | V35: 12089552 | W35: 13082477 | X35: 12270250 | Y35: 12224950 | Z35: 12088373 | AA35: 11726467 | AB35: 11907335 | AC35: 11522191 | AD35: 151769895 | AE35: 11811008 | AF35: 11045769 | AG35: 11749875 | AH35: 12837948 | AI35: 14275751 | AJ35: 12224975 | AK35: 12901107 | AL35: 13060754 | AM35: 13039535 | AN35: 13480931 | AO35: 12660792 | AP35: 12681450 | AQ35: 117820494 | AR35: 8041064 | AS35: 5543822 | AT35: 7739533 | AU35: 10358154 | AV35: 10314870 | AW35: 12220594 | AX35: 14084214 | AY35: 13465750 | AZ35: 12336298 | BA35: 11216516 | BB35: 9628252 | BC35: 2871427 | BD35: 87288883 | BE35: 4717469 | BF35: 8886288 | BG35: 6956271 | BH35: 12504445 | BI35: 8637286 | BJ35: 7780446 | BK35: 10197150 | BL35: 11211115 | BM35: 11035614 | BN35: 1219936 | BO35: 0 | BP35: 4142863 | BQ35: 102196893 | BR35: 4186979 | BS35: 8048101 | BT35: 9409452 | BU35: 10241687 | BV35: 10999764 | BW35: 9911305 | BX35: 10984066 | BY35: 10283557 | BZ35: 7421372 | CA35: 8326710 | CB35: 6191281 | CC35: 6192619 | CD35: 42035846 | CE35: 6707243 | CF35: 6392491 | CG35: 8366090 | CH35: 8607988 | CI35: 11962034
A36: Madeira, Papel e Celulose | B36: Total Operação | C36: OUTROS (IND) | D36: 2840497 | E36: 76988 | F36: 1044257 | G36: 0 | H36: 1719252 | I36: 0 | J36: 0 | K36: 0 | L36: 0 | M36: 0 | N36: 0 | O36: 0 | P36: 0 | Q36: 0 | R36: 0 | S36: 0 | T36: 0 | U36: 0 | V36: 0 | W36: 0 | X36: 0 | Y36: 0 | Z36: 0 | AA36: 0 | AB36: 0 | AC36: 0 | AD36: 24807 | AE36: 0 | AF36: 0 | AG36: 0 | AH36: 0 | AI36: 0 | AJ36: 0 | AK36: 0 | AL36: 24807 | AM36: 0 | AN36: 0 | AO36: 0 | AP36: 0 | AQ36: 0 | AR36: 0 | AS36: 0 | AT36: 0 | AU36: 0 | AV36: 0 | AW36: 0 | AX36: 0 | AY36: 0 | AZ36: 0 | BA36: 0 | BB36: 0 | BC36: 0 | BD36: 7586 | BE36: 0 | BF36: 0 | BG36: 0 | BH36: 0 | BI36: 0 | BJ36: 0 | BK36: 0 | BL36: 0 | BM36: 0 | BN36: 0 | BO36: 7586 | BP36: 0 | BQ36: 0 | BR36: - | BS36: - | BT36: 0 | BU36: 0 | BV36: 0 | BW36: 0 | BX36: 0 | BY36: 0 | BZ36: 0 | CA36: 0 | CB36: 0 | CC36: 0 | CD36: 0 | CE36: 0 | CF36: 0 | CG36: 0 | CH36: 0 | CI36: 0
A37: Madeira, Papel e Celulose | B37: Total Operação | C37: PAPEL | AQ37: 0 | AR37: 0 | AS37: 0 | AT37: 0 | AU37: 0 | AV37: 0 | AW37: 0 | AX37: 0 | AY37: 0 | AZ37: 0 | BA37: 0 | BB37: 0 | BC37: 0 | BD37: 0 | BE37: 0 | BF37: 0 | BG37: 0 | BH37: 0 | BI37: 0 | BJ37: 0 | BK37: 0 | BL37: 0 | BM37: 0 | BN37: 0 | BO37: 0 | BP37: 0 | BQ37: 0 | BR37: - | BS37: - | BT37: 0 | BU37: 0 | BV37: 0 | BW37: 0 | BX37: 0 | BY37: 0 | BZ37: 0 | CA37: 0 | CB37: 0 | CC37: 0 | CD37: 0 | CE37: 0 | CF37: 0 | CG37: 0 | CH37: 0 | CI37: 0
A38: Siderúrgicos e Mineração | B38: Total Operação | C38: SIDERÚRGICOS (IND) | D38: 47330638 | E38: 3327398 | F38: 6986037 | G38: 4584030 | H38: 4964952 | I38: 1503263 | J38: 1511249 | K38: 5233055 | L38: 4497976 | M38: 3004817 | N38: 6236193 | O38: 2705094 | P38: 2776574 | Q38: 99355137 | R38: 1351774 | S38: 2991537 | T38: 5472342 | U38: 7362522 | V38: 9456398 | W38: 9641139 | X38: 9942469 | Y38: 11664983 | Z38: 11504929 | AA38: 11336617 | AB38: 9598729 | AC38: 9031698 | AD38: 115396150 | AE38: 9637956 | AF38: 5899283 | AG38: 8720726 | AH38: 8202174 | AI38: 12111783 | AJ38: 11978353 | AK38: 14318690 | AL38: 13109318 | AM38: 7393163 | AN38: 6295433 | AO38: 7951065 | AP38: 9778206 | AQ38: 105887774 | AR38: 9015743 | AS38: 10242271 | AT38: 3931707 | AU38: 7929702 | AV38: 9522398 | AW38: 12974512 | AX38: 9976710 | AY38: 11571206 | AZ38: 9803417 | BA38: 12906107 | BB38: 6469831 | BC38: 1544170 | BD38: 55315016 | BE38: 8882776 | BF38: 1277841 | BG38: 10240956 | BH38: 8534986 | BI38: 2059951 | BJ38: 3489001 | BK38: 5467017 | BL38: 1948860 | BM38: 2509488 | BN38: 0 | BO38: 4688048 | BP38: 6216092 | BQ38: 77094022 | BR38: 4645473 | BS38: 1516090 | BT38: 8539391 | BU38: 6853327 | BV38: 11573945 | BW38: 9184858 | BX38: 9288762 | BY38: 312238 | BZ38: 0 | CA38: 6883430 | CB38: 9393890 | CC38: 8902618 | CD38: 19197341 | CE38: 7646110 | CF38: 0 | CG38: 9088507 | CH38: 2462724 | CI38: 0
A39: Combustível | B39: Total Operação | C39: GRUPO - LÍQUIDOS | D39: 4329997668 | E39: 304528192 | F39: 313673640 | G39: 344908453 | H39: 326612966 | I39: 352501885 | J39: 383092123 | K39: 390003184 | L39: 402937368 | M39: 418991251 | N39: 410548983 | O39: 346348451 | P39: 335851172 | Q39: 4364294369 | R39: 359972756 | S39: 333181393 | T39: 354093247 | U39: 310523490 | V39: 351239704 | W39: 359251788 | X39: 405107140 | Y39: 405437501 | Z39: 373229591 | AA39: 435920450 | AB39: 343304428 | AC39: 333032881 | AD39: 4539791154 | AE39: 343267519 | AF39: 358307727 | AG39: 366140998 | AH39: 317020236 | AI39: 323028589 | AJ39: 419617759 | AK39: 424872105 | AL39: 414196825 | AM39: 420478374 | AN39: 395863207 | AO39: 375879340 | AP39: 381118475 | AQ39: 4688349715 | AR39: 385145746 | AS39: 368105207 | AT39: 364211564 | AU39: 347685044 | AV39: 383328748 | AW39: 396563898 | AX39: 438705982 | AY39: 443071275 | AZ39: 422165135 | BA39: 427616642 | BB39: 370226675 | BC39: 341523799 | BD39: 4367273976 | BE39: 357433980 | BF39: 358491852 | BG39: 276223203 | BH39: 202531893 | BI39: 342914323 | BJ39: 335571002 | BK39: 386149519 | BL39: 384691302 | BM39: 428047414 | BN39: 456429525 | BO39: 428881688 | BP39: 409908275 | BQ39: 5298389698 | BR39: 413447622 | BS39: 415119052 | BT39: 419057494 | BU39: 410499497 | BV39: 446948719 | BW39: 448642361 | BX39: 465192453 | BY39: 478223624 | BZ39: 470942395 | CA39: 478704253 | CB39: 418278448 | CC39: 433333780 | CD39: 2351649312 | CE39: 454960723 | CF39: 458145087 | CG39: 471898210 | CH39: 453685545 | CI39: 512959747
B40: Total Operação | C40: GRUPO - OUTROS | AQ40: 3 | AR40: 0 | AS40: 0 | AT40: 0 | AU40: 0 | AV40: 0 | AW40: 0 | AX40: 0 | AY40: 0 | AZ40: 0 | BA40: 1 | BB40: 0 | BC40: 2 | BD40: 46 | BE40: 2 | BF40: 4 | BG40: 4 | BH40: 4 | BI40: 4 | BJ40: 4 | BK40: 4 | BL40: 4 | BM40: 4 | BN40: 4 | BO40: 4 | BP40: 4 | BQ40: 27 | BR40: 6 | BS40: 4 | BT40: 4 | BU40: 3 | BV40: 3 | BW40: 1 | BX40: 1 | BY40: 1 | BZ40: 1 | CA40: 1 | CB40: 1 | CC40: 1 | CD40: 6 | CE40: 1 | CF40: 1 | CG40: 1 | CH40: 2 | CI40: 1
B41: NORTE | C41: Total Produto | AQ41: 44893337961 | AR41: 3120274334 | AS41: 2913643210 | AT41: 3840499256 | AU41: 3471864485 | AV41: 3130542893 | AW41: 4266686217 | AX41: 4665451529 | AY41: 4317726806 | AZ41: 3948703438 | BA41: 4132442121 | BB41: 4209967626 | BC41: 2875536046 | BD41: 47927957824 | BE41: 2814419794 | BF41: 4001241182 | BG41: 2764831008 | BH41: 4040170514 | BI41: 4331176837 | BJ41: 4152160403 | BK41: 4750059681 | BL41: 4337350771 | BM41: 4220248052 | BN41: 4380910322 | BO41: 4057765514 | BP41: 4077623746 | BQ41: 49813167620 | BR41: 2026076156 | BS41: 4303617503 | BT41: 4736982117 | BU41: 4581694293 | BV41: 4745631843 | BW41: 4341121536 | BX41: 4937063606 | BY41: 4139059291 | BZ41: 3430124250 | CA41: 3886143715 | CB41: 4319061063 | CC41: 4366592247 | CD41: 25478527767 | CE41: 4334722407 | CF41: 5209228522 | CG41: 5518761320 | CH41: 5113597409 | CI41: 5302218109
A42: Açúcar | B42: NORTE | C42: GRUPO - AÇÚCAR | D42: 2653566833 | E42: 114162274 | F42: 130724200 | G42: 102560156 | H42: 86993835 | I42: 242652566 | J42: 356961659 | K42: 206041495 | L42: 231280154 | M42: 240734575 | N42: 387554702 | O42: 330176061 | P42: 223725156 | Q42: 1519198944 | R42: 177465428 | S42: 69871586 | T42: 41425065 | U42: 88620569 | V42: 279497777 | W42: 170192640 | X42: 84577684 | Y42: 107523976 | Z42: 116958449 | AA42: 112038514 | AB42: 117008639 | AC42: 154018617 | AD42: 1740864052 | AE42: 233978546 | AF42: 128996850 | AG42: 101513181 | AH42: 75403311 | AI42: 223435970 | AJ42: 224783423 | AK42: 115660204 | AL42: 104162027 | AM42: 149057058 | AN42: 188454785 | AO42: 107391594 | AP42: 88027103 | AQ42: 1432196538 | AR42: 122351917 | AS42: 54639006 | AT42: 114065594 | AU42: 140667081 | AV42: 178610283 | AW42: 106232936 | AX42: 85466035 | AY42: 75016852 | AZ42: 116453372 | BA42: 96988008 | BB42: 70955101 | BC42: 270750353 | BD42: 2678654427 | BE42: 151529409 | BF42: 130163203 | BG42: 87833974 | BH42: 130076388 | BI42: 200064834 | BJ42: 157707584 | BK42: 130564837 | BL42: 261944022 | BM42: 352608901 | BN42: 427832381 | BO42: 369855550 | BP42: 278473344 | BQ42: 2266968359 | BR42: 245050447 | BS42: 21477309 | BT42: 44867139 | BU42: 118036126 | BV42: 284832162 | BW42: 271310376 | BX42: 112453960 | BY42: 209378479 | BZ42: 318887843 | CA42: 260253693 | CB42: 252157826 | CC42: 128262999 | CD42: 408535938 | CE42: 111891079 | CF42: 21725376 | CG42: 74732007 | CH42: 42339318 | CI42: 157848158
A43: Contêiner | B43: NORTE | C43: GRUPO - BRADO | D43: 1006648102 | E43: 80313919 | F43: 89996016 | G43: 100311275 | H43: 91571785 | I43: 97752010 | J43: 83559245 | K43: 89412357 | L43: 75172216 | M43: 69164680 | N43: 75906739 | O43: 80897017 | P43: 72590843 | Q43: 1290582508 | R43: 87411944 | S43: 63344561 | T43: 65941494 | U43: 89891550 | V43: 115268207 | W43: 123953000 | X43: 128026371 | Y43: 145190832 | Z43: 130634109 | AA43: 135364131 | AB43: 110149416 | AC43: 95406893 | AD43: 1732141452 | AE43: 44228946 | AF43: 163769291 | AG43: 157476452 | AH43: 163118955 | AI43: 127688865 | AJ43: 128941685 | AK43: 176466618 | AL43: 179560031 | AM43: 159889303 | AN43: 147097506 | AO43: 139534655 | AP43: 144369145 | AQ43: 2048215868 | AR43: 133647746 | AS43: 120810840 | AT43: 180563662 | AU43: 174528241 | AV43: 169211507 | AW43: 150206234 | AX43: 176776755 | AY43: 192412243 | AZ43: 186461968 | BA43: 179937373 | BB43: 199214851 | BC43: 184444448 | BD43: 2065754980 | BE43: 164529498 | BF43: 163333020 | BG43: 172201045 | BH43: 124373599 | BI43: 112287685 | BJ43: 171109559 | BK43: 181073235 | BL43: 178257746 | BM43: 193708592 | BN43: 192476160 | BO43: 213076598 | BP43: 199328243 | BQ43: 2477736401 | BR43: 172370169 | BS43: 161965007 | BT43: 166565706 | BU43: 204521034 | BV43: 199751544 | BW43: 219821299 | BX43: 224518297 | BY43: 254207065 | BZ43: 225184436 | CA43: 212111058 | CB43: 208277214 | CC43: 228443572 | CD43: 1082919988 | CE43: 190346306 | CF43: 215853583 | CG43: 233815236 | CH43: 217931137 | CI43: 224973726
A44: Fertilizantes | B44: NORTE | C44: GRUPO - FERTILIZANTES | D44: 0 | E44: 0 | F44: 0 | G44: 0 | H44: 0 | I44: 0 | J44: 0 | K44: 0 | L44: 0 | M44: 0 | N44: 0 | O44: 0 | P44: 0 | Q44: 0 | R44: 0 | S44: 0 | T44: 0 | U44: 0 | V44: 0 | W44: 0 | X44: 0 | Y44: 0 | Z44: 0 | AA44: 0 | AB44: 0 | AC44: 0 | AD44: 1157650235 | AE44: 0 | AF44: 0 | AG44: 0 | AH44: 2467047 | AI44: 64802734 | AJ44: 75318218 | AK44: 184063981 | AL44: 180525442 | AM44: 87010831 | AN44: 116635802 | AO44: 172102502 | AP44: 274723678 | AQ44: 2865820287 | AR44: 177628474 | AS44: 123625083 | AT44: 164557460 | AU44: 216852398 | AV44: 305831356 | AW44: 290615819 | AX44: 335418279 | AY44: 267339750 | AZ44: 106771666 | BA44: 225662752 | BB44: 274704641 | BC44: 376812609 | BD44: 3908618941 | BE44: 302451687 | BF44: 248778634 | BG44: 117898807 | BH44: 295673549 | BI44: 393429090 | BJ44: 366367788 | BK44: 392956371 | BL44: 264292646 | BM44: 290314702 | BN44: 419985494 | BO44: 407362878 | BP44: 409107295 | BQ44: 4410087933 | BR44: 427860782 | BS44: 368102753 | BT44: 242237557 | BU44: 248889003 | BV44: 256377438 | BW44: 257537432 | BX44: 538968071 | BY44: 522331728 | BZ44: 391926022 | CA44: 431448535 | CB44: 359762485 | CC44: 364646127 | CD44: 1618532907 | CE44: 296687640 | CF44: 377221012 | CG44: 353822115 | CH44: 155815182 | CI44: 434986958
B45: NORTE | C45: GRUPO - GRÃOS | D45: 21586398881 | E45: 1781450591 | F45: 1900009710 | G45: 2446255311 | H45: 2559372323 | I45: 2039619266 | J45: 1287380510 | K45: 2257959496 | L45: 2282688163 | M45: 2103298624 | N45: 962341151 | O45: 849151231 | P45: 1116872505 | Q45: 29848922585 | R45: 1209152106 | S45: 2250796735 | T45: 2692836335 | U45: 2489566054 | V45: 2360645036 | W45: 2356999059 | X45: 2720626342 | Y45: 2883548890 | Z45: 2677511429 | AA45: 2936783973 | AB45: 2738469771 | AC45: 2531986855 | AD45: 3.275887153e+10 | AE45: 1556161428 | AF45: 2512380228 | AG45: 2916980948 | AH45: 2827789692 | AI45: 2175933693 | AJ45: 2591315036 | AK45: 3051850628 | AL45: 3239508225 | AM45: 3137575889 | AN45: 2695969821 | AO45: 3202736467 | AP45: 2850669480 | AQ45: 34695118621 | AR45: 2354081506 | AS45: 2335949626 | AT45: 3074830006 | AU45: 2650409847 | AV45: 2164329898 | AW45: 3400693380 | AX45: 3726297485 | AY45: 3453881204 | AZ45: 3199562045 | BA45: 3274771614 | BB45: 3337496660 | BC45: 1722815350 | BD45: 34848956116 | BE45: 1856357955 | BF45: 3117630520 | BG45: 2078722617 | BH45: 3253709401 | BI45: 3247219551 | BJ45: 3098512540 | BK45: 3652379870 | BL45: 3243539684 | BM45: 2955121558 | BN45: 2887485522 | BO45: 2632611316 | BP45: 2825665582 | BQ45: 35382904681 | BR45: 790107284 | BS45: 3356057981 | BT45: 3873438642 | BU45: 3597073870 | BV45: 3571904877 | BW45: 3157180764 | BX45: 3599556631 | BY45: 2661731699 | BZ45: 2025376871 | CA45: 2489299420 | CB45: 3067051123 | CC45: 3194125519 | CD45: 19847412956 | CE45: 3265549197 | CF45: 4099270624 | CG45: 4328103996 | CH45: 4203907537 | CI45: 3950581602
B46: NORTE | C46: ARROZ (GRANEL) | AQ46: 0 | AR46: 0 | AS46: 0 | AT46: 0 | AU46: 0 | AV46: 0 | AW46: 0 | AX46: 0 | AY46: 0 | AZ46: 0 | BA46: 0 | BB46: 0 | BC46: 0 | BD46: 0 | BE46: 0 | BF46: 0 | BG46: 0 | BH46: 0 | BI46: 0 | BJ46: 0 | BK46: 0 | BL46: 0 | BM46: 0 | BN46: 0 | BO46: 0 | BP46: 0 | BQ46: 0 | BR46: - | BS46: - | BT46: 0 | BU46: 0 | BV46: 0 | BW46: 0 | BX46: 0 | BY46: 0 | BZ46: 0 | CA46: 0 | CB46: 0 | CC46: 0 | CD46: 0 | CE46: 0 | CF46: 0 | CG46: 0 | CH46: 0 | CI46: 0
A47: Farelo de Soja | B47: NORTE | C47: FARELO | D47: 4423007148 | E47: 193678377 | F47: 367783020 | G47: 448916552 | H47: 492667155 | I47: 489188134 | J47: 430945423 | K47: 318436351 | L47: 287095716 | M47: 288844467 | N47: 336430772 | O47: 393091784 | P47: 375929397 | Q47: 5478568850 | R47: 376936122 | S47: 383876280 | T47: 484933614 | U47: 552178829 | V47: 485317783 | W47: 407730849 | X47: 487181295 | Y47: 403707540 | Z47: 408604791 | AA47: 506955395 | AB47: 479734531 | AC47: 501411821 | AD47: 5842847377 | AE47: 411597834 | AF47: 487858802 | AG47: 541378769 | AH47: 587368580 | AI47: 448932085 | AJ47: 535740238 | AK47: 454516415 | AL47: 440809483 | AM47: 483767091 | AN47: 441058649 | AO47: 462549006 | AP47: 547270425 | AQ47: 6145134981 | AR47: 423338642 | AS47: 410199022 | AT47: 570301515 | AU47: 578448165 | AV47: 529770737 | AW47: 548136369 | AX47: 520453233 | AY47: 445081033 | AZ47: 474598482 | BA47: 510827643 | BB47: 590555140 | BC47: 543425000 | BD47: 6886159379 | BE47: 363276025 | BF47: 509029791 | BG47: 486277298 | BH47: 631979578 | BI47: 560637374 | BJ47: 593687312 | BK47: 634418399 | BL47: 648878840 | BM47: 589678251 | BN47: 650993694 | BO47: 569981060 | BP47: 647321757 | BQ47: =SUM(BR47:CC47) -> 7777279887 | BR47: 420956546 | BS47: 585143809 | BT47: 646234334 | BU47: 714946179 | BV47: 681841556 | BW47: 749918903 | BX47: 776801909 | BY47: 668292667 | BZ47: 606388208 | CA47: 504978270 | CB47: 709671133 | CC47: 712106373 | CD47: 3847688679 | CE47: 616911704 | CF47: 681605462 | CG47: 842747164 | CH47: 888108494 | CI47: 818315855
A48: Farelo de Milho | B48: NORTE | C48: FARELO DE MILHO | AQ48: 20738520 | AR48: 0 | AS48: 0 | AT48: 0 | AU48: 0 | AV48: 0 | AW48: 0 | AX48: 0 | AY48: 0 | AZ48: 0 | BA48: 0 | BB48: 0 | BC48: 20738520 | BD48: 18105539 | BE48: 18105539 | BF48: 0 | BG48: 0 | BH48: 0 | BI48: 0 | BJ48: 0 | BK48: 0 | BL48: 0 | BM48: 0 | BN48: 0 | BO48: 0 | BP48: 0 | BQ48: 0 | BR48: - | BS48: - | BT48: 0 | BU48: 0 | BV48: 0 | BW48: 0 | BX48: 0 | BY48: 0 | BZ48: 0 | CA48: 0 | CB48: 0 | CC48: 0 | CD48: 0 | CE48: 0 | CF48: 0 | CG48: 0 | CH48: 0 | CI48: 0
A49: Malte | B49: NORTE | C49: MALTE | AQ49: 0 | AR49: 0 | AS49: 0 | AT49: 0 | AU49: 0 | AV49: 0 | AW49: 0 | AX49: 0 | AY49: 0 | AZ49: 0 | BA49: 0 | BB49: 0 | BC49: 0 | BD49: 0 | BE49: 0 | BF49: 0 | BG49: 0 | BH49: 0 | BI49: 0 | BJ49: 0 | BK49: 0 | BL49: 0 | BM49: 0 | BN49: 0 | BO49: 0 | BP49: 0 | BQ49: 0 | BR49: - | BS49: - | BT49: 0 | BU49: 0 | BV49: 0 | BW49: 0 | BX49: 0 | BY49: 0 | BZ49: 0 | CA49: 0 | CB49: 0 | CC49: 0 | CD49: 0 | CE49: 0 | CF49: 0 | CG49: 0 | CH49: 0 | CI49: 0
A50: Milho | B50: NORTE | C50: MILHO | D50: 9279823129 | E50: 1467549536 | F50: 83340510 | G50: 215911 | H50: 0 | I50: 0 | J50: 342919621 | K50: 1895258647 | L50: 1995592447 | M50: 1814454157 | N50: 625910379 | O50: 433792284 | P50: 620789637 | Q50: 14750410951 | R50: 95217816 | S50: 236173 | T50: 0 | U50: 0 | V50: 8570985 | W50: 1222626774 | X50: 2076879188 | Y50: 2358834525 | Z50: 2268906638 | AA50: 2429828578 | AB50: 2258735240 | AC50: 2030575034 | AD50: 15827199318 | AE50: 449726126 | AF50: 60345404 | AG50: 0 | AH50: 0 | AI50: 33263967 | AJ50: 327834185 | AK50: 2338284778 | AL50: 2729308960 | AM50: 2633316732 | AN50: 2236974232 | AO50: 2714745879 | AP50: 2303399055 | AQ50: 17200169987 | AR50: 311415483 | AS50: 0 | AT50: 0 | AU50: 0 | AV50: 73686267 | AW50: 2404180160 | AX50: 3047943378 | AY50: 2859489239 | AZ50: 2603795059 | BA50: 2501574468 | BB50: 2312322219 | BC50: 1085763714 | BD50: 15377221316 | BE50: 2202418 | BF50: 0 | BG50: 0 | BH50: 0 | BI50: 0 | BJ50: 1431483015 | BK50: 2655903322 | BL50: 2522561961 | BM50: 2287604691 | BN50: 2236491828 | BO50: 2062630256 | BP50: 2178343825 | BQ50: 12148339277 | BR50: 46987066 | BS50: -4101496 | BT50: 0 | BU50: 0 | BV50: 0 | BW50: 507410742 | BX50: 2759041096 | BY50: 1917279679 | BZ50: 1271083418 | CA50: 1665927635 | CB50: 1765215891 | CC50: 2219495246 | CD50: 1257159831 | CE50: 902488451 | CF50: 68266851 | CG50: 0 | CH50: 212223158 | CI50: 74181371
A51: Soja | B51: NORTE | C51: SOJA | D51: 7883568604 | E51: 120222678 | F51: 1448886180 | G51: 1997122848 | H51: 2066705168 | I51: 1550431132 | J51: 513515466 | K51: 44264498 | L51: 0 | M51: 0 | N51: 0 | O51: 22267163 | P51: 120153471 | Q51: 9619942784 | R51: 736998168 | S51: 1866684282 | T51: 2207902721 | U51: 1937387225 | V51: 1866756268 | W51: 726641436 | X51: 156565859 | Y51: 121006825 | Z51: 0 | AA51: 0 | AB51: 0 | AC51: 0 | AD51: 11088824840 | AE51: 694837468 | AF51: 1964176022 | AG51: 2375602179 | AH51: 2240421112 | AI51: 1693737641 | AJ51: 1727740613 | AK51: 259049435 | AL51: 69389782 | AM51: 20492066 | AN51: 17936940 | AO51: 25441582 | AP51: 0 | AQ51: 11329075133 | AR51: 1619327381 | AS51: 1925750604 | AT51: 2504528491 | AU51: 2071961682 | AV51: 1560872894 | AW51: 448376851 | AX51: 157900874 | AY51: 149310932 | AZ51: 121168504 | BA51: 262369503 | BB51: 434619301 | BC51: 72888116 | BD51: 12567469882 | BE51: 1472773973 | BF51: 2608600729 | BG51: 1592445319 | BH51: 2621729823 | BI51: 2686582177 | BJ51: 1073342213 | BK51: 362058149 | BL51: 72098883 | BM51: 77838616 | BN51: 0 | BO51: 0 | BP51: 0 | BQ51: 15457285517 | BR51: 322163672 | BS51: 2775015668 | BT51: 3227204308 | BU51: 2882127691 | BV51: 2890063321 | BW51: 1899851119 | BX51: 63713626 | BY51: 76159353 | BZ51: 147905245 | CA51: 318393515 | CB51: 592164099 | CC51: 262523900 | CD51: 14742564446 | CE51: 1746149042 | CF51: 3349398311 | CG51: 3485356832 | CH51: 3103575885 | CI51: 3058084376
A52: Trigo | B52: NORTE | C52: TRIGO | AQ52: 0 | AR52: 0 | AS52: 0 | AT52: 0 | AU52: 0 | AV52: 0 | AW52: 0 | AX52: 0 | AY52: 0 | AZ52: 0 | BA52: 0 | BB52: 0 | BC52: 0 | BD52: 0 | BE52: 0 | BF52: 0 | BG52: 0 | BH52: 0 | BI52: 0 | BJ52: 0 | BK52: 0 | BL52: 0 | BM52: 0 | BN52: 0 | BO52: 0 | BP52: 0 | BQ52: 0 | BR52: - | BS52: - | BT52: 0 | BU52: 0 | BV52: 0 | BW52: 0 | BX52: 0 | BY52: 0 | BZ52: 0 | CA52: 0 | CB52: 0 | CC52: 0 | CD52: 0 | CE52: 0 | CF52: 0 | CG52: 0 | CH52: 0 | CI52: 0
A53: Soja | B53: NORTE | C53: ÓLEO VEGETAL | AQ53: 0 | AR53: 0 | AS53: 0 | AT53: 0 | AU53: 0 | AV53: 0 | AW53: 0 | AX53: 0 | AY53: 0 | AZ53: 0 | BA53: 0 | BB53: 0 | BC53: 0 | BD53: 0 | BE53: 0 | BF53: 0 | BG53: 0 | BH53: 0 | BI53: 0 | BJ53: 0 | BK53: 0 | BL53: 0 | BM53: 0 | BN53: 0 | BO53: 0 | BP53: 0 | BQ53: 0 | BR53: - | BS53: - | BT53: 0 | BU53: 0 | BV53: 0 | BW53: 0 | BX53: 0 | BY53: 0 | BZ53: 0 | CA53: 0 | CB53: 0 | CC53: 0 | CD53: 0 | CE53: 0 | CF53: 0 | CG53: 0 | CH53: 0 | CI53: 0
B54: NORTE | C54: GRUPO - INDUSTRIAL | D54: 29531823 | E54: 13831614 | F54: 14401249 | G54: 860898 | H54: 438062 | I54: 0 | J54: 0 | K54: 0 | L54: 0 | M54: 0 | N54: 0 | O54: 0 | P54: 0 | Q54: 168192431 | R54: 0 | S54: 0 | T54: 0 | U54: 0 | V54: 0 | W54: 0 | X54: 0 | Y54: 0 | Z54: 0 | AA54: 28426654 | AB54: 62728277 | AC54: 77037500 | AD54: 1163357124 | AE54: 68292558 | AF54: 67976253 | AG54: 95264947 | AH54: 64045188 | AI54: 84316610 | AJ54: 95016535 | AK54: 95178266 | AL54: 118682862 | AM54: 108359282 | AN54: 121621164 | AO54: 121621165 | AP54: 122982294 | AQ54: 1457132603 | AR54: 117837067 | AS54: 87871504 | AT54: 120364590 | AU54: 127828508 | AV54: 123642793 | AW54: 111674753 | AX54: 117577907 | AY54: 111458707 | AZ54: 127326846 | BA54: 140121410 | BB54: 130965777 | BC54: 140462741 | BD54: 1802789349 | BE54: 139977246 | BF54: 136904676 | BG54: 128017390 | BH54: 149560624 | BI54: 166061583 | BJ54: 164224915 | BK54: 156265718 | BL54: 153533605 | BM54: 159924908 | BN54: 165670250 | BO54: 170801515 | BP54: 111846919 | BQ54: 1894613342 | BR54: 136881319 | BS54: 137533041 | BT54: 162453901 | BU54: 148107456 | BV54: 155138456 | BW54: 143425612 | BX54: 159019983 | BY54: 179663840 | BZ54: 166330686 | CA54: 178730335 | CB54: 166642053 | CC54: 160686660 | CD54: 925846752 | CE54: 160615888 | CF54: 175461051 | CG54: 210273075 | CH54: 184502103 | CI54: 194994635
A55: Madeira, Papel e Celulose | B55: NORTE | C55: ARROZ (ENSACADO) | AQ55: 0 | AR55: 0 | AS55: 0 | AT55: 0 | AU55: 0 | AV55: 0 | AW55: 0 | AX55: 0 | AY55: 0 | AZ55: 0 | BA55: 0 | BB55: 0 | BC55: 0 | BD55: 0 | BE55: 0 | BF55: 0 | BG55: 0 | BH55: 0 | BI55: 0 | BJ55: 0 | BK55: 0 | BL55: 0 | BM55: 0 | BN55: 0 | BO55: 0 | BP55: 0 | BQ55: 0 | BR55: - | BS55: - | BT55: 0 | BU55: 0 | BV55: 0 | BW55: 0 | BX55: 0 | BY55: 0 | BZ55: 0 | CA55: 0 | CB55: 0 | CC55: 0 | CD55: 0 | CE55: 0 | CF55: 0 | CG55: 0 | CH55: 0 | CI55: 0
A56: Madeira, Papel e Celulose | B56: NORTE | C56: CALCÁREO (IND) | AQ56: 0 | AR56: 0 | AS56: 0 | AT56: 0 | AU56: 0 | AV56: 0 | AW56: 0 | AX56: 0 | AY56: 0 | AZ56: 0 | BA56: 0 | BB56: 0 | BC56: 0 | BD56: 0 | BE56: 0 | BF56: 0 | BG56: 0 | BH56: 0 | BI56: 0 | BJ56: 0 | BK56: 0 | BL56: 0 | BM56: 0 | BN56: 0 | BO56: 0 | BP56: 0 | BQ56: 0 | BR56: - | BS56: - | BT56: 0 | BU56: 0 | BV56: 0 | BW56: 0 | BX56: 0 | BY56: 0 | BZ56: 0 | CA56: 0 | CB56: 0 | CC56: 0 | CD56: 0 | CE56: 0 | CF56: 0 | CG56: 0 | CH56: 0 | CI56: 0
A57: Madeira, Papel e Celulose | B57: NORTE | C57: CELULOSE | D57: 27736742 | E57: 13831614 | F57: 13905128 | G57: 0 | H57: 0 | I57: 0 | J57: 0 | K57: 0 | L57: 0 | M57: 0 | N57: 0 | O57: 0 | P57: 0 | Q57: 168192431 | R57: 0 | S57: 0 | T57: 0 | U57: 0 | V57: 0 | W57: 0 | X57: 0 | Y57: 0 | Z57: 0 | AA57: 28426654 | AB57: 62728277 | AC57: 77037500 | AD57: 1163357124 | AE57: 68292558 | AF57: 67976253 | AG57: 95264947 | AH57: 64045188 | AI57: 84316610 | AJ57: 95016535 | AK57: 95178266 | AL57: 118682862 | AM57: 108359282 | AN57: 121621164 | AO57: 121621165 | AP57: 122982294 | AQ57: 1457132603 | AR57: 117837067 | AS57: 87871504 | AT57: 120364590 | AU57: 127828508 | AV57: 123642793 | AW57: 111674753 | AX57: 117577907 | AY57: 111458707 | AZ57: 127326846 | BA57: 140121410 | BB57: 130965777 | BC57: 140462741 | BD57: 1802789349 | BE57: 139977246 | BF57: 136904676 | BG57: 128017390 | BH57: 149560624 | BI57: 166061583 | BJ57: 164224915 | BK57: 156265718 | BL57: 153533605 | BM57: 159924908 | BN57: 165670250 | BO57: 170801515 | BP57: 111846919 | BQ57: 1894613342 | BR57: 136881319 | BS57: 137533041 | BT57: 162453901 | BU57: 148107456 | BV57: 155138456 | BW57: 143425612 | BX57: 159019983 | BY57: 179663840 | BZ57: 166330686 | CA57: 178730335 | CB57: 166642053 | CC57: 160686660 | CD57: 925846752 | CE57: 160615888 | CF57: 175461051 | CG57: 210273075 | CH57: 184502103 | CI57: 194994635
A58: Construção Civil | B58: NORTE | C58: CIMENTO | AQ58: 0 | AR58: 0 | AS58: 0 | AT58: 0 | AU58: 0 | AV58: 0 | AW58: 0 | AX58: 0 | AY58: 0 | AZ58: 0 | BA58: 0 | BB58: 0 | BC58: 0 | BD58: 0 | BE58: 0 | BF58: 0 | BG58: 0 | BH58: 0 | BI58: 0 | BJ58: 0 | BK58: 0 | BL58: 0 | BM58: 0 | BN58: 0 | BO58: 0 | BP58: 0 | BQ58: 0 | BR58: - | BS58: - | BT58: 0 | BU58: 0 | BV58: 0 | BW58: 0 | BX58: 0 | BY58: 0 | BZ58: 0 | CA58: 0 | CB58: 0 | CC58: 0 | CD58: 0 | CE58: 0 | CF58: 0 | CG58: 0 | CH58: 0 | CI58: 0
A59: Construção Civil | B59: NORTE | C59: CLINQUER | AQ59: 0 | AR59: 0 | AS59: 0 | AT59: 0 | AU59: 0 | AV59: 0 | AW59: 0 | AX59: 0 | AY59: 0 | AZ59: 0 | BA59: 0 | BB59: 0 | BC59: 0 | BD59: 0 | BE59: 0 | BF59: 0 | BG59: 0 | BH59: 0 | BI59: 0 | BJ59: 0 | BK59: 0 | BL59: 0 | BM59: 0 | BN59: 0 | BO59: 0 | BP59: 0 | BQ59: 0 | BR59: - | BS59: - | BT59: 0 | BU59: 0 | BV59: 0 | BW59: 0 | BX59: 0 | BY59: 0 | BZ59: 0 | CA59: 0 | CB59: 0 | CC59: 0 | CD59: 0 | CE59: 0 | CF59: 0 | CG59: 0 | CH59: 0 | CI59: 0
A60: Madeira, Papel e Celulose | B60: NORTE | C60: MADEIRA | AQ60: 0 | AR60: 0 | AS60: 0 | AT60: 0 | AU60: 0 | AV60: 0 | AW60: 0 | AX60: 0 | AY60: 0 | AZ60: 0 | BA60: 0 | BB60: 0 | BC60: 0 | BD60: 0 | BE60: 0 | BF60: 0 | BG60: 0 | BH60: 0 | BI60: 0 | BJ60: 0 | BK60: 0 | BL60: 0 | BM60: 0 | BN60: 0 | BO60: 0 | BP60: 0 | BQ60: 0 | BR60: - | BS60: - | BT60: 0 | BU60: 0 | BV60: 0 | BW60: 0 | BX60: 0 | BY60: 0 | BZ60: 0 | CA60: 0 | CB60: 0 | CC60: 0 | CD60: 0 | CE60: 0 | CF60: 0 | CG60: 0 | CH60: 0 | CI60: 0
A61: Siderúrgicos e Mineração | B61: NORTE | C61: MINÉRIO | AQ61: 0 | AR61: 0 | AS61: 0 | AT61: 0 | AU61: 0 | AV61: 0 | AW61: 0 | AX61: 0 | AY61: 0 | AZ61: 0 | BA61: 0 | BB61: 0 | BC61: 0 | BD61: 0 | BE61: 0 | BF61: 0 | BG61: 0 | BH61: 0 | BI61: 0 | BJ61: 0 | BK61: 0 | BL61: 0 | BM61: 0 | BN61: 0 | BO61: 0 | BP61: 0 | BQ61: 0 | BR61: - | BS61: - | BT61: 0 | BU61: 0 | BV61: 0 | BW61: 0 | BX61: 0 | BY61: 0 | BZ61: 0 | CA61: 0 | CB61: 0 | CC61: 0 | CD61: 0 | CE61: 0 | CF61: 0 | CG61: 0 | CH61: 0 | CI61: 0
A62: Madeira, Papel e Celulose | B62: NORTE | C62: OUTROS (IND) | AQ62: 0 | AR62: 0 | AS62: 0 | AT62: 0 | AU62: 0 | AV62: 0 | AW62: 0 | AX62: 0 | AY62: 0 | AZ62: 0 | BA62: 0 | BB62: 0 | BC62: 0 | BD62: 0 | BE62: 0 | BF62: 0 | BG62: 0 | BH62: 0 | BI62: 0 | BJ62: 0 | BK62: 0 | BL62: 0 | BM62: 0 | BN62: 0 | BO62: 0 | BP62: 0 | BQ62: 0 | BR62: - | BS62: - | BT62: 0 | BU62: 0 | BV62: 0 | BW62: 0 | BX62: 0 | BY62: 0 | BZ62: 0 | CA62: 0 | CB62: 0 | CC62: 0 | CD62: 0 | CE62: 0 | CF62: 0 | CG62: 0 | CH62: 0 | CI62: 0
A63: Madeira, Papel e Celulose | B63: NORTE | C63: PAPEL | AQ63: 0 | AR63: 0 | AS63: 0 | AT63: 0 | AU63: 0 | AV63: 0 | AW63: 0 | AX63: 0 | AY63: 0 | AZ63: 0 | BA63: 0 | BB63: 0 | BC63: 0 | BD63: 0 | BE63: 0 | BF63: 0 | BG63: 0 | BH63: 0 | BI63: 0 | BJ63: 0 | BK63: 0 | BL63: 0 | BM63: 0 | BN63: 0 | BO63: 0 | BP63: 0 | BQ63: 0 | BR63: - | BS63: - | BT63: 0 | BU63: 0 | BV63: 0 | BW63: 0 | BX63: 0 | BY63: 0 | BZ63: 0 | CA63: 0 | CB63: 0 | CC63: 0 | CD63: 0 | CE63: 0 | CF63: 0 | CG63: 0 | CH63: 0 | CI63: 0
A64: Siderúrgicos e Mineração | B64: NORTE | C64: SIDERÚRGICOS (IND) | D64: 1795081 | E64: 0 | F64: 496121 | G64: 860898 | H64: 438062 | I64: 0 | J64: 0 | K64: 0 | L64: 0 | M64: 0 | N64: 0 | O64: 0 | P64: 0 | Q64: 0 | R64: 0 | S64: 0 | T64: 0 | U64: 0 | V64: 0 | W64: 0 | X64: 0 | Y64: 0 | Z64: 0 | AA64: 0 | AB64: 0 | AC64: 0 | AD64: 0 | AE64: 0 | AF64: 0 | AG64: 0 | AH64: 0 | AI64: 0 | AJ64: 0 | AK64: 0 | AL64: 0 | AM64: 0 | AN64: 0 | AO64: 0 | AP64: 0 | AQ64: 0 | AR64: 0 | AS64: 0 | AT64: 0 | AU64: 0 | AV64: 0 | AW64: 0 | AX64: 0 | AY64: 0 | AZ64: 0 | BA64: 0 | BB64: 0 | BC64: 0 | BD64: 0 | BE64: 0 | BF64: 0 | BG64: 0 | BH64: 0 | BI64: 0 | BJ64: 0 | BK64: 0 | BL64: 0 | BM64: 0 | BN64: 0 | BO64: 0 | BP64: 0 | BQ64: 0 | BR64: - | BS64: - | BT64: 0 | BU64: 0 | BV64: 0 | BW64: 0 | BX64: 0 | BY64: 0 | BZ64: 0 | CA64: 0 | CB64: 0 | CC64: 0 | CD64: 0 | CE64: 0 | CF64: 0 | CG64: 0 | CH64: 0 | CI64: 0
A65: Combustível | B65: NORTE | C65: GRUPO - LÍQUIDOS | D65: 2322753793 | E65: 163501343 | F65: 155485991 | G65: 180905049 | H65: 174405860 | I65: 186595532 | J65: 205499932 | K65: 200243816 | L65: 217126683 | M65: 235692946 | N65: 228402137 | O65: 184006100 | P65: 190888404 | Q65: 2392575792 | R65: 216343811 | S65: 200280660 | T65: 209532830 | U65: 172577407 | V65: 187913776 | W65: 213543205 | X65: 213885738 | Y65: 213732363 | Z65: 186957479 | AA65: 231945735 | AB65: 171772472 | AC65: 174090316 | AD65: 2487241596 | AE65: 184661204 | AF65: 196613620 | AG65: 199541382 | AH65: 163413611 | AI65: 178578853 | AJ65: 250731968 | AK65: 247233567 | AL65: 220870920 | AM65: 224573791 | AN65: 210833372 | AO65: 206240374 | AP65: 203948934 | AQ65: 2394854043 | AR65: 214727624 | AS65: 190747151 | AT65: 186117944 | AU65: 161578410 | AV65: 188917056 | AW65: 207263095 | AX65: 223915068 | AY65: 217618050 | AZ65: 212127541 | BA65: 214960964 | BB65: 196630596 | BC65: 180250544 | BD65: 2623183988 | BE65: 199573998 | BF65: 204431127 | BG65: 180157173 | BH65: 86776951 | BI65: 212114092 | BJ65: 194238015 | BK65: 236819648 | BL65: 235783066 | BM65: 268569389 | BN65: 287460513 | BO65: 264057655 | BP65: 253202361 | BQ65: 3380856882 | BR65: 253806150 | BS65: 258481409 | BT65: 247419169 | BU65: 265066802 | BV65: 277627364 | BW65: 291846052 | BX65: 302546663 | BY65: 311746479 | BZ65: 302418391 | CA65: 314300673 | CB65: 265170361 | CC65: 290427369 | CD65: 1595279220 | CE65: 309632296 | CF65: 319696875 | CG65: 318014890 | CH65: 309102130 | CI65: 338833029
B66: NORTE | C66: GRUPO - OUTROS | AQ66: 1 | AR66: 0 | AS66: 0 | AT66: 0 | AU66: 0 | AV66: 0 | AW66: 0 | AX66: 0 | AY66: 0 | AZ66: 0 | BA66: 0 | BB66: 0 | BC66: 1 | BD66: 23 | BE66: 1 | BF66: 2 | BG66: 2 | BH66: 2 | BI66: 2 | BJ66: 2 | BK66: 2 | BL66: 2 | BM66: 2 | BN66: 2 | BO66: 2 | BP66: 2 | BQ66: 22 | BR66: 5 | BS66: 3 | BT66: 3 | BU66: 2 | BV66: 2 | BW66: 1 | BX66: 1 | BY66: 1 | BZ66: 1 | CA66: 1 | CB66: 1 | CC66: 1 | CD66: 6 | CE66: 1 | CF66: 1 | CG66: 1 | CH66: 2 | CI66: 1
B67: SUL | C67: Total Produto | D67: =SUM(D68:D71,D80,D91) -> 12670375353 | AQ67: 15202821718 | AR67: 993603519 | AS67: 1164187702 | AT67: 1273561267 | AU67: 1106518675 | AV67: 1152491820 | AW67: 1288020325 | AX67: 1511213711 | AY67: 1529218260 | AZ67: 1404597216 | BA67: 1460508034 | BB67: 1363211968 | BC67: 955689221 | BD67: 14530454094 | BE67: 753377028 | BF67: 908005890 | BG67: 1055600779 | BH67: 1190026112 | BI67: 1413109069 | BJ67: 1289932370 | BK67: 1406912234 | BL67: 1444681822 | BM67: 1387686801 | BN67: 1354485661 | BO67: 1330944527 | BP67: 995691801 | BQ67: 14214438241 | BR67: 677516791 | BS67: 745279463 | BT67: 1383842011 | BU67: 1389076881 | BV67: 1488224394 | BW67: 1359075632 | BX67: 1400007548 | BY67: 1216597491 | BZ67: 1243813882 | CA67: 1160317489 | CB67: 1073324087 | CC67: 1077362572 | CD67: 4876673689 | CE67: 876187346 | CF67: 961662272 | CG67: 1206974803 | CH67: 899032942 | CI67: 932816326
A68: Açúcar | B68: SUL | C68: GRUPO - AÇÚCAR | D68: 2619157020 | E68: 120293853 | F68: 26733607 | G68: 75820767 | H68: 120672378 | I68: 193209423 | J68: 229121332 | K68: 300252283 | L68: 343146511 | M68: 345067545 | N68: 295015152 | O68: 258546722 | P68: 311277447 | Q68: 2434752277 | R68: 104562251 | S68: 49086455 | T68: 62909755 | U68: 126234077 | V68: 251547555 | W68: 252217291 | X68: 301191756 | Y68: 299776980 | Z68: 303588627 | AA68: 273692384 | AB68: 262142833 | AC68: 147802313 | AD68: 1788325456 | AE68: 60676674 | AF68: 64822328 | AG68: 39060700 | AH68: 90592958 | AI68: 189419363 | AJ68: 210492326 | AK68: 207163869 | AL68: 222348948 | AM68: 207264568 | AN68: 212209473 | AO68: 121847746 | AP68: 162426503 | AQ68: 1414900647 | AR68: 31659285 | AS68: 31551186 | AT68: 28254327 | AU68: 85080897 | AV68: 138414598 | AW68: 156148160 | AX68: 210091945 | AY68: 163188221 | AZ68: 146524869 | BA68: 142173715 | BB68: 196391263 | BC68: 85422181 | BD68: 2331907174 | BE68: 86209055 | BF68: 45179594 | BG68: 59996580 | BH68: 119210742 | BI68: 236809853 | BJ68: 207656864 | BK68: 206828320 | BL68: 232221494 | BM68: 312171925 | BN68: 307485698 | BO68: 290298645 | BP68: 227838404 | BQ68: 2400676070 | BR68: 124338126 | BS68: 65841560 | BT68: 98681636 | BU68: 115143611 | BV68: 259411943 | BW68: 350267076 | BX68: 227935144 | BY68: 206643225 | BZ68: 324431396 | CA68: 278001031 | CB68: 216084139 | CC68: 133897183 | CD68: 478598514 | CE68: 89617211 | CF68: 43413500 | CG68: 39997897 | CH68: 69821130 | CI68: 235748776
A69: Contêiner | B69: SUL | C69: GRUPO - BRADO | D69: 631723930 | E69: 50653873 | F69: 58678363 | G69: 65520111 | H69: 64679544 | I69: 57983925 | J69: 61572875 | K69: 48561618 | L69: 48688919 | M69: 48451738 | N69: 46574927 | O69: 42185833 | P69: 38172204 | Q69: 474039635 | R69: 43516576 | S69: 39319431 | T69: 48893445 | U69: 38081878 | V69: 42358692 | W69: 42385509 | X69: 40273501 | Y69: 45062682 | Z69: 35134611 | AA69: 34421081 | AB69: 29817316 | AC69: 34774913 | AD69: 573284673 | AE69: 29603095 | AF69: 39473430 | AG69: 43525417 | AH69: 47937315 | AI69: 39913617 | AJ69: 50240031 | AK69: 52476263 | AL69: 54547399 | AM69: 54147602 | AN69: 55903395 | AO69: 52416510 | AP69: 53100599 | AQ69: 718081766 | AR69: 50731259 | AS69: 49206107 | AT69: 56186679 | AU69: 56894692 | AV69: 59538119 | AW69: 58457293 | AX69: 64026665 | AY69: 67365781 | AZ69: 71301328 | BA69: 63691011 | BB69: 62699147 | BC69: 57983685 | BD69: 890743581 | BE69: 63577574 | BF69: 62719521 | BG69: 60617430 | BH69: 74631833 | BI69: 76715235 | BJ69: 81775490 | BK69: 84424302 | BL69: 79692530 | BM69: 79207929 | BN69: 80026895 | BO69: 78185827 | BP69: 69169015 | BQ69: 831717610 | BR69: 71761609 | BS69: 79964935 | BT69: 74866251 | BU69: 80125343 | BV69: 76592073 | BW69: 70037726 | BX69: 71624945 | BY69: 66443760 | BZ69: 57244092 | CA69: 59003812 | CB69: 61449130 | CC69: 62603934 | CD69: 418084568 | CE69: 76499689 | CF69: 79542843 | CG69: 83331629 | CH69: 87451540 | CI69: 91258867
A70: Fertilizantes | B70: SUL | C70: GRUPO - FERTILIZANTES | D70: 814939100 | E70: 28277886 | F70: 17986273 | G70: 20430346 | H70: 22496891 | I70: 61922969 | J70: 79419138 | K70: 91515181 | L70: 95034592 | M70: 123820635 | N70: 98535259 | O70: 98943488 | P70: 76556442 | Q70: 683653693 | R70: 67081150 | S70: 37347427 | T70: 30187374 | U70: 69954742 | V70: 69651088 | W70: 49094098 | X70: 51279952 | Y70: 55388520 | Z70: 60182641 | AA70: 70693725 | AB70: 63823446 | AC70: 58969530 | AD70: 703952816 | AE70: 67919034 | AF70: 48889296 | AG70: 34909110 | AH70: 46184304 | AI70: 46967555 | AJ70: 62576874 | AK70: 64986689 | AL70: 70255047 | AM70: 64720101 | AN70: 56299767 | AO70: 77220560 | AP70: 63024479 | AQ70: 671293484 | AR70: 86707383 | AS70: 43116118 | AT70: 30368772 | AU70: 31266365 | AV70: 63116757 | AW70: 61511866 | AX70: 65124579 | AY70: 60439183 | AZ70: 74380338 | BA70: 55555972 | BB70: 56552372 | BC70: 43153779 | BD70: 555910902 | BE70: 64598429 | BF70: 48203579 | BG70: 17727727 | BH70: 44324475 | BI70: 48827144 | BJ70: 42473880 | BK70: 48914628 | BL70: 44102089 | BM70: 44816847 | BN70: 52420682 | BO70: 57102867 | BP70: 42398555 | BQ70: 598208921 | BR70: 57805561 | BS70: 43193843 | BT70: 6056070 | BU70: 23393469 | BV70: 39573596 | BW70: 56207516 | BX70: 61475788 | BY70: 87308955 | BZ70: 69723346 | CA70: 62420209 | CB70: 51259219 | CC70: 39791349 | CD70: 221821848 | CE70: 48106422 | CF70: 59060835 | CG70: 35789254 | CH70: 29916379 | CI70: 48948958
B71: SUL | C71: GRUPO - GRÃOS | D71: 4936195759 | E71: 354947558 | F71: 554687577 | G71: 661632722 | H71: 625772664 | I71: 542518583 | J71: 476353708 | K71: 435782296 | L71: 447051847 | M71: 294446094 | N71: 217847630 | O71: 172353920 | P71: 152801160 | Q71: 6952601521 | R71: 207582030 | S71: 502473019 | T71: 717073322 | U71: 613872658 | V71: 580946915 | W71: 588153344 | X71: 676294534 | Y71: 709887393 | Z71: 706615526 | AA71: 589080736 | AB71: 516608986 | AC71: 544013058 | AD71: 8300394869 | AE71: 452523565 | AF71: 541257209 | AG71: 838413478 | AH71: 805319304 | AI71: 728441992 | AJ71: 718967879 | AK71: 765153289 | AL71: 784931443 | AM71: 731038227 | AN71: 719596070 | AO71: 685519956 | AP71: 529232457 | AQ71: 8253326729 | AR71: 495234084 | AS71: 721112879 | AT71: 830646326 | AU71: 614760930 | AV71: 547898319 | AW71: 657618980 | AX71: 801211937 | AY71: 836545427 | AZ71: 739789217 | BA71: 815914292 | BB71: 721238843 | BC71: 471355495 | BD71: 7505845004 | BE71: 233258302 | BF71: 493383706 | BG71: 728483914 | BH71: 746813604 | BI71: 810618751 | BJ71: 716846243 | BK71: 776714351 | BL71: 784881546 | BM71: 635245688 | BN71: 594626584 | BO71: 596876740 | BP71: 388095575 | BQ71: 6741539697 | BR71: 118188630 | BS71: 260733594 | BT71: 874122256 | BU71: 859181040 | BV71: 773398736 | BW71: 571328995 | BX71: 729446171 | BY71: 534964433 | BZ71: 497003155 | CA71: 469466135 | CB71: 467569570 | CC71: 586136982 | CD71: 2492388283 | CE71: 411393054 | CF71: 565772142 | CG71: 778175290 | CH71: 464676439 | CI71: 272371358
B72: SUL | C72: ARROZ (GRANEL) | AQ72: 0 | AR72: 0 | AS72: 0 | AT72: 0 | AU72: 0 | AV72: 0 | AW72: 0 | AX72: 0 | AY72: 0 | AZ72: 0 | BA72: 0 | BB72: 0 | BC72: 0 | BD72: 0 | BE72: 0 | BF72: 0 | BG72: 0 | BH72: 0 | BI72: 0 | BJ72: 0 | BK72: 0 | BL72: 0 | BM72: 0 | BN72: 0 | BO72: 0 | BP72: 0 | BQ72: 0 | BR72: - | BS72: - | BT72: 0 | BU72: 0 | BV72: 0 | BW72: 0 | BX72: 0 | BY72: 0 | BZ72: 0 | CA72: 0 | CB72: 0 | CC72: 0 | CD72: 0 | CE72: 0 | CF72: 0 | CG72: 0 | CH72: 0 | CI72: 0
A73: Farelo de Soja | B73: SUL | C73: FARELO | D73: 425732797 | E73: 22585139 | F73: 27253985 | G73: 38939645 | H73: 42599338 | I73: 37227481 | J73: 42020554 | K73: 35790398 | L73: 29212686 | M73: 33941998 | N73: 41330552 | O73: 45895745 | P73: 28935276 | Q73: 344576107 | R73: 25726133 | S73: 23371234 | T73: 33055447 | U73: 36291561 | V73: 34637471 | W73: 30142350 | X73: 33622656 | Y73: 25109132 | Z73: 25814255 | AA73: 22813295 | AB73: 26348351 | AC73: 27644222 | AD73: 528722084 | AE73: 34667282 | AF73: 27340376 | AG73: 37083433 | AH73: 44805670 | AI73: 50747231 | AJ73: 48932203 | AK73: 55155977 | AL73: 45404408 | AM73: 40653373 | AN73: 34549921 | AO73: 53257155 | AP73: 56125055 | AQ73: 715899772 | AR73: 37872918 | AS73: 36030687 | AT73: 51921366 | AU73: 53452487 | AV73: 49568281 | AW73: 81832305 | AX73: 77417070 | AY73: 49447999 | AZ73: 68021610 | BA73: 82493911 | BB73: 74181278 | BC73: 53659860 | BD73: 643811267 | BE73: 39104826 | BF73: 31946692 | BG73: 75683286 | BH73: 31554860 | BI73: 71127644 | BJ73: 55672431 | BK73: 72948113 | BL73: 61470131 | BM73: 71912588 | BN73: 61147982 | BO73: 44395409 | BP73: 26847305 | BQ73: 734522935 | BR73: 24034062 | BS73: 17803749 | BT73: 58240446 | BU73: 71722392 | BV73: 74144558 | BW73: 76939861 | BX73: 64156571 | BY73: 76500015 | BZ73: 81550635 | CA73: 82386434 | CB73: 56700791 | CC73: 50343421 | CD73: 315583935 | CE73: 43337871 | CF73: 42161555 | CG73: 79061310 | CH73: 80220908 | CI73: 70802291
A74: Farelo de Milho | B74: SUL | C74: FARELO DE MILHO | BE74: 0 | BF74: 0 | BG74: 0 | BH74: 0 | BI74: 0 | BJ74: 0 | BK74: 0 | BL74: 0 | BM74: 0 | BN74: 0 | BO74: 0 | BP74: 0 | BR74: - | BS74: - | BT74: 0 | BU74: 0 | BV74: 0 | BW74: 0 | BX74: 0 | BY74: 0 | BZ74: 0 | CA74: 0 | CB74: 0 | CC74: 0 | CE74: 0 | CF74: 0 | CG74: 0 | CH74: 0 | CI74: 0
A75: Malte | B75: SUL | C75: MALTE | D75: 1118223 | E75: 0 | F75: 0 | G75: 0 | H75: 0 | I75: 0 | J75: 0 | K75: 0 | L75: 0 | M75: 0 | N75: 1118223 | O75: 0 | P75: 0 | Q75: 0 | R75: 0 | S75: 0 | T75: 0 | U75: 0 | V75: 0 | W75: 0 | X75: 0 | Y75: 0 | Z75: 0 | AA75: 0 | AB75: 0 | AC75: 0 | AD75: 0 | AE75: 0 | AF75: 0 | AG75: 0 | AH75: 0 | AI75: 0 | AJ75: 0 | AK75: 0 | AL75: 0 | AM75: 0 | AN75: 0 | AO75: 0 | AP75: 0 | AQ75: 0 | AR75: 0 | AS75: 0 | AT75: 0 | AU75: 0 | AV75: 0 | AW75: 0 | AX75: 0 | AY75: 0 | AZ75: 0 | BA75: 0 | BB75: 0 | BC75: 0 | BD75: 0 | BE75: 0 | BF75: 0 | BG75: 0 | BH75: 0 | BI75: 0 | BJ75: 0 | BK75: 0 | BL75: 0 | BM75: 0 | BN75: 0 | BO75: 0 | BP75: 0 | BQ75: =SUM(BR75:CC75) -> 0 | BR75: - | BS75: - | BT75: 0 | BU75: 0 | BV75: 0 | BW75: 0 | BX75: 0 | BY75: 0 | BZ75: 0 | CA75: 0 | CB75: 0 | CC75: 0 | CD75: =SUM(CE75:CP75) -> 0 | CE75: 0 | CF75: 0 | CG75: 0 | CH75: 0 | CI75: 0
A76: Milho | B76: SUL | C76: MILHO | D76: 935574202 | E76: 240975804 | F76: 63792640 | G76: 1228532 | H76: 0 | I76: 0 | J76: 306374 | K76: 83198401 | L76: 235058510 | M76: 130384844 | N76: 80026790 | O76: 48609551 | P76: 51992756 | Q76: 1664416016 | R76: 18163383 | S76: 6569635 | T76: 0 | U76: 0 | V76: 39816 | W76: 12185880 | X76: 179778587 | Y76: 357785534 | Z76: 502674582 | AA76: 358044919 | AB76: 120665587 | AC76: 108508093 | AD76: 605836986 | AE76: 159796749 | AF76: 13408427 | AG76: 0 | AH76: 0 | AI76: 473211 | AJ76: 0 | AK76: 3127583 | AL76: 74219267 | AM76: 98120825 | AN76: 11823906 | AO76: 83352143 | AP76: 161514875 | AQ76: 2345657927 | AR76: 103928662 | AS76: 74140707 | AT76: 15008298 | AU76: 34903503 | AV76: 38076256 | AW76: 171724498 | AX76: 396718051 | AY76: 482974540 | AZ76: 359590034 | BA76: 256077696 | BB76: 256590564 | BC76: 155925118 | BD76: 1796235506 | BE76: 58266332 | BF76: 73095562 | BG76: 14966994 | BH76: 0 | BI76: 30471 | BJ76: 0 | BK76: 51366173 | BL76: 265050328 | BM76: 313654082 | BN76: 371589252 | BO76: 406772380 | BP76: 241443932 | BQ76: 390288778 | BR76: 77983242 | BS76: 77381084 | BT76: 6976461 | BU76: 0 | BV76: 0 | BW76: 206098 | BX76: 0 | BY76: 27584925 | BZ76: 16786197 | CA76: 25517578 | CB76: 36827679 | CC76: 121025514 | CD76: 249210167 | CE76: 61161329 | CF76: 824 | CG76: 46083473 | CH76: 108039944 | CI76: 33924597
A77: Soja | B77: SUL | C77: SOJA | D77: 3480585304 | E77: 49068928 | F77: 461308481 | G77: 616952687 | H77: 581499394 | I77: 503640463 | J77: 432260222 | K77: 314945426 | L77: 180625179 | M77: 129292939 | N77: 94551349 | O77: 62365326 | P77: 54074910 | Q77: 4780948770 | R77: 113040549 | S77: 404008261 | T77: 668273903 | U77: 575142700 | V77: 544093070 | W77: 543931227 | X77: 460163252 | Y77: 325690953 | Z77: 177885711 | AA77: 207324380 | AB77: 364243137 | AC77: 397151627 | AD77: 7034263673 | AE77: 238315002 | AF77: 494383767 | AG77: 800785572 | AH77: 759851274 | AI77: 675611264 | AJ77: 668464819 | AK77: 705220007 | AL77: 664066963 | AM77: 589639892 | AN77: 670968191 | AO77: 512310623 | AP77: 254646299 | AQ77: 5111242230 | AR77: 320816893 | AS77: 607208655 | AT77: 762894856 | AU77: 525604381 | AV77: 460253782 | AW77: 404062177 | AX77: 327076816 | AY77: 304122888 | AZ77: 311692633 | BA77: 476964047 | BB77: 384537059 | BC77: 226008043 | BD77: 4885605087 | BE77: 112226422 | BF77: 386541296 | BG77: 637833634 | BH77: 715258744 | BI77: 739460636 | BJ77: 661173812 | BK77: 652400065 | BL77: 458361087 | BM77: 249679018 | BN77: 149427977 | BO77: 69608678 | BP77: 53633718 | BQ77: 5435106587 | BR77: 12514155 | BS77: 165548761 | BT77: 808905349 | BU77: 787458648 | BV77: 699254178 | BW77: 494183036 | BX77: 665289600 | BY77: 430879493 | BZ77: 398666323 | CA77: 360466519 | CB77: 300186645 | CC77: 311753880 | CD77: 1654321350 | CE77: 208873177 | CF77: 400834009 | CG77: 607436544 | CH77: 270459844 | CI77: 166717776
A78: Trigo | B78: SUL | C78: TRIGO | D78: 76524334 | E78: 41988754 | F78: 1379574 | G78: 2484418 | H78: 0 | I78: 0 | J78: 0 | K78: 0 | L78: 0 | M78: 0 | N78: 0 | O78: 14076225 | P78: 16595363 | Q78: 144137874 | R78: 49240961 | S78: 66897076 | T78: 13417951 | U78: 0 | V78: 0 | W78: 0 | X78: 0 | Y78: 0 | Z78: 0 | AA78: 0 | AB78: 4788405 | AC78: 9793481 | AD78: 116573659 | AE78: 18765000 | AF78: 5009209 | AG78: 0 | AH78: 0 | AI78: 0 | AJ78: 0 | AK78: 0 | AL78: 0 | AM78: 0 | AN78: 0 | AO78: 36464420 | AP78: 56335030 | AQ78: 75718645 | AR78: 30577094 | AS78: 3732830 | AT78: 0 | AU78: 0 | AV78: 0 | AW78: 0 | AX78: 0 | AY78: 0 | AZ78: 0 | BA78: 0 | BB78: 5788090 | BC78: 35620631 | BD78: 180193144 | BE78: 23660722 | BF78: 1800156 | BG78: 0 | BH78: 0 | BI78: 0 | BJ78: 0 | BK78: 0 | BL78: 0 | BM78: 0 | BN78: 12461373 | BO78: 76100273 | BP78: 66170620 | BQ78: 181621397 | BR78: 3657171 | BS78: - | BT78: 0 | BU78: 0 | BV78: 0 | BW78: 0 | BX78: 0 | BY78: 0 | BZ78: 0 | CA78: 1095604 | CB78: 73854455 | CC78: 103014167 | CD78: 273272831 | CE78: 98020677 | CF78: 122775754 | CG78: 45593963 | CH78: 5955743 | CI78: 926694
A79: Soja | B79: SUL | C79: ÓLEO VEGETAL | D79: 16660899 | E79: 328933 | F79: 952897 | G79: 2027440 | H79: 1673932 | I79: 1650639 | J79: 1766558 | K79: 1848071 | L79: 2155472 | M79: 826313 | N79: 820716 | O79: 1407073 | P79: 1202855 | Q79: 18522754 | R79: 1411004 | S79: 1626813 | T79: 2326021 | U79: 2438397 | V79: 2176558 | W79: 1893887 | X79: 2730039 | Y79: 1301774 | Z79: 240978 | AA79: 898142 | AB79: 563506 | AC79: 915635 | AD79: 14998467 | AE79: 979532 | AF79: 1115430 | AG79: 544473 | AH79: 662360 | AI79: 1610286 | AJ79: 1570857 | AK79: 1649722 | AL79: 1240805 | AM79: 2624137 | AN79: 2254052 | AO79: 135615 | AP79: 611198 | AQ79: 4808155 | AR79: 2038517 | AS79: 0 | AT79: 821806 | AU79: 800559 | AV79: 0 | AW79: 0 | AX79: 0 | AY79: 0 | AZ79: 484940 | BA79: 378638 | BB79: 141852 | BC79: 141843 | BD79: 0 | BE79: 0 | BF79: 0 | BG79: 0 | BH79: 0 | BI79: 0 | BJ79: 0 | BK79: 0 | BL79: 0 | BM79: 0 | BN79: 0 | BO79: 0 | BP79: 0 | BQ79: 0 | BR79: - | BS79: - | BT79: 0 | BU79: 0 | BV79: 0 | BW79: 0 | BX79: 0 | BY79: 0 | BZ79: 0 | CA79: 0 | CB79: 0 | CC79: 0 | CD79: 0 | CE79: 0 | CF79: 0 | CG79: 0 | CH79: 0 | CI79: 0
B80: SUL | C80: GRUPO - INDUSTRIAL | D80: 1661115669 | E80: 87400143 | F80: 99324917 | G80: 115963110 | H80: 120816836 | I80: 129418789 | J80: 140842872 | K80: 172400540 | L80: 175132225 | M80: 161253546 | N80: 163644056 | O80: 154733873 | P80: 140184762 | Q80: 1951296175 | R80: 143950006 | S80: 111904479 | T80: 149819310 | U80: 152267058 | V80: 179305408 | W80: 162524672 | X80: 176861648 | Y80: 181297448 | Z80: 180508581 | AA80: 180315487 | AB80: 160464931 | AC80: 172077147 | AD80: 1907222201 | AE80: 167968186 | AF80: 150528834 | AG80: 132894942 | AH80: 137775870 | AI80: 134401626 | AJ80: 171511331 | AK80: 161467215 | AL80: 177768111 | AM80: 165366563 | AN80: 181552045 | AO80: 168581736 | AP80: 157405742 | AQ80: 1851723420 | AR80: 158853386 | AS80: 141843356 | AT80: 150011543 | AU80: 132409157 | AV80: 149112335 | AW80: 164983223 | AX80: 155967671 | AY80: 176226423 | AZ80: 162563870 | BA80: 170517366 | BB80: 152734264 | BC80: 136500826 | BD80: 1501957434 | BE80: 147873686 | BF80: 104458764 | BG80: 92709097 | BH80: 89290515 | BI80: 109337854 | BJ80: 99846905 | BK80: 140700761 | BL80: 154875926 | BM80: 156766386 | BN80: 150956789 | BO80: 143656414 | BP80: 111484337 | BQ80: 1724763122 | BR80: 145781392 | BS80: 138907887 | BT80: 158477472 | BU80: 165800722 | BV80: 169926690 | BW80: 154438010 | BX80: 146879710 | BY80: 154759973 | BZ80: 126887889 | CA80: 127022722 | CB80: 123853942 | CC80: 112026713 | CD80: 509410384 | CE80: 105242543 | CF80: 75424740 | CG80: 115797413 | CH80: 102584039 | CI80: 110361649
A81: Madeira, Papel e Celulose | B81: SUL | C81: ARROZ (ENSACADO) | D81: 2949823 | E81: 2867029 | F81: 82794 | G81: 0 | H81: 0 | I81: 0 | J81: 0 | K81: 0 | L81: 0 | M81: 0 | N81: 0 | O81: 0 | P81: 0 | Q81: 0 | R81: 0 | S81: 0 | T81: 0 | U81: 0 | V81: 0 | W81: 0 | X81: 0 | Y81: 0 | Z81: 0 | AA81: 0 | AB81: 0 | AC81: 0 | AD81: 0 | AE81: 0 | AF81: 0 | AG81: 0 | AH81: 0 | AI81: 0 | AJ81: 0 | AK81: 0 | AL81: 0 | AM81: 0 | AN81: 0 | AO81: 0 | AP81: 0 | AQ81: 0 | AR81: 0 | AS81: 0 | AT81: 0 | AU81: 0 | AV81: 0 | AW81: 0 | AX81: 0 | AY81: 0 | AZ81: 0 | BA81: 0 | BB81: 0 | BC81: 0 | BD81: 0 | BE81: 0 | BF81: 0 | BG81: 0 | BH81: 0 | BI81: 0 | BJ81: 0 | BK81: 0 | BL81: 0 | BM81: 0 | BN81: 0 | BO81: 0 | BP81: 0 | BQ81: 0 | BR81: - | BS81: - | BT81: 0 | BU81: 0 | BV81: 0 | BW81: 0 | BX81: 0 | BY81: 0 | BZ81: 0 | CA81: 0 | CB81: 0 | CC81: 0 | CD81: 0 | CE81: 0 | CF81: 0 | CG81: 0 | CH81: 0 | CI81: 0
A82: Madeira, Papel e Celulose | B82: SUL | C82: CALCÁREO (IND) | D82: 6322851 | E82: 518815 | F82: 415052 | G82: 793481 | H82: 389493 | I82: 377690 | J82: 188845 | K82: 678662 | L82: 389493 | M82: 1003240 | N82: 1078263 | O82: 489817 | P82: 0 | Q82: 3316593 | R82: 495719 | S82: 483916 | T82: 631451 | U82: 507521 | V82: 489817 | W82: 177042 | X82: 177042 | Y82: 354085 | Z82: 0 | AA82: 0 | AB82: 0 | AC82: 0 | AD82: 0 | AE82: 0 | AF82: 0 | AG82: 0 | AH82: 0 | AI82: 0 | AJ82: 0 | AK82: 0 | AL82: 0 | AM82: 0 | AN82: 0 | AO82: 0 | AP82: 0 | AQ82: =SUM(AR82:BC82) -> 0 | AR82: 0 | AS82: 0 | AT82: 0 | AU82: 0 | AV82: 0 | AW82: 0 | AX82: 0 | AY82: 0 | AZ82: 0 | BA82: 0 | BB82: 0 | BC82: 0 | BD82: =SUM(BE82:BP82) -> 0 | BE82: 0 | BF82: 0 | BG82: 0 | BH82: 0 | BI82: 0 | BJ82: 0 | BK82: 0 | BL82: 0 | BM82: 0 | BN82: 0 | BO82: 0 | BP82: 0 | BQ82: 0 | BR82: - | BS82: - | BT82: 0 | BU82: 0 | BV82: 0 | BW82: 0 | BX82: 0 | BY82: 0 | BZ82: 0 | CA82: 0 | CB82: 0 | CC82: 0 | CD82: 0 | CE82: 0 | CF82: 0 | CG82: 0 | CH82: 0 | CI82: 0
A83: Madeira, Papel e Celulose | B83: SUL | C83: CELULOSE | D83: 816494824 | E83: 35808648 | F83: 39468896 | G83: 52726968 | H83: 53897960 | I83: 67886981 | J83: 68516859 | K83: 90106159 | L83: 88751216 | M83: 81277483 | N83: 85430901 | O83: 81173089 | P83: 71449664 | Q83: 999011305 | R83: 66184266 | S83: 42196771 | T83: 73607079 | U83: 77942519 | V83: 91665532 | W83: 88958897 | X83: 90708861 | Y83: 94651136 | Z83: 96334750 | AA83: 93099720 | AB83: 87427345 | AC83: 96234429 | AD83: 1015571259 | AE83: 93788547 | AF83: 85493603 | AG83: 56390697 | AH83: 66413343 | AI83: 56414753 | AJ83: 95271071 | AK83: 84781268 | AL83: 105084556 | AM83: 90776336 | AN83: 99935902 | AO83: 88300899 | AP83: 92920284 | AQ83: 983852495 | AR83: 87367407 | AS83: 74329041 | AT83: 84445128 | AU83: 70886548 | AV83: 76339153 | AW83: 82758572 | AX83: 75037269 | AY83: 88602018 | AZ83: 84258657 | BA83: 86954139 | BB83: 87908630 | BC83: 84965933 | BD83: 685608290 | BE83: 81487996 | BF83: 38670603 | BG83: 34737674 | BH83: 16049404 | BI83: 35203684 | BJ83: 33983635 | BK83: 73206428 | BL83: 83106746 | BM83: 86564172 | BN83: 79177233 | BO83: 77082267 | BP83: 46338448 | BQ83: 779545152 | BR83: 79039736 | BS83: 74568740 | BT83: 74194893 | BU83: 82483877 | BV83: 82267655 | BW83: 72881085 | BX83: 60175027 | BY83: 75382768 | BZ83: 50178054 | CA83: 46641478 | CB83: 43288107 | CC83: 38443732 | CD83: 141578820 | CE83: 32393967 | CF83: 7843381 | CG83: 35634661 | CH83: 33682140 | CI83: 32024671
A84: Construção Civil | B84: SUL | C84: CIMENTO | D84: 406012747 | E84: 25021266 | F84: 31096223 | G84: 29058565 | H84: 30832058 | I84: 29756097 | J84: 34507802 | K84: 41185458 | L84: 38898023 | M84: 38650417 | N84: 37674924 | O84: 36084035 | P84: 33247879 | Q84: 400515925 | R84: 37076222 | S84: 31980842 | T84: 34680656 | U84: 32850063 | V84: 33627611 | W84: 31870072 | X84: 37261484 | Y84: 37759830 | Z84: 34472653 | AA84: 36542385 | AB84: 22153808 | AC84: 30240299 | AD84: 369321166 | AE84: 23693006 | AF84: 27252428 | AG84: 34011328 | AH84: 27853962 | AI84: 29987612 | AJ84: 30005187 | AK84: 33774298 | AL84: 35088519 | AM84: 33992573 | AN84: 31709538 | AO84: 34384484 | AP84: 27568231 | AQ84: 399159313 | AR84: 30108220 | AS84: 30993666 | AT84: 29339409 | AU84: 32321400 | AV84: 33222594 | AW84: 35394924 | AX84: 34137492 | AY84: 37939603 | AZ84: 36582649 | BA84: 37524016 | BB84: 34164652 | BC84: 27430688 | BD84: 409068317 | BE84: 32280331 | BF84: 32413036 | BG84: 22015789 | BH84: 34776696 | BI84: 38813822 | BJ84: 35975094 | BK84: 33772093 | BL84: 36324975 | BM84: 34265900 | BN84: 42201389 | BO84: 36708183 | BP84: 29521009 | BQ84: 452123929 | BR84: 35882849 | BS84: 30382099 | BT84: 39176060 | BU84: 39256930 | BV84: 39572747 | BW84: 35937522 | BX84: 41340096 | BY84: 40205117 | BZ84: 40070608 | CA84: 36464096 | CB84: 37824009 | CC84: 36011796 | CD84: 186892920 | CE84: 35300087 | CF84: 32847683 | CG84: 39095869 | CH84: 36074466 | CI84: 43574815
A85: Construção Civil | B85: SUL | C85: CLINQUER | D85: 268353756 | E85: 11125714 | F85: 14730836 | G85: 22055745 | H85: 21417587 | I85: 19434678 | J85: 25563960 | K85: 23592094 | L85: 30229781 | M85: 27228373 | N85: 23891311 | O85: 24944558 | P85: 24139119 | Q85: 310508595 | R85: 28589788 | S85: 23594240 | T85: 24919905 | U85: 23344695 | V85: 31976498 | W85: 18795045 | X85: 26501542 | Y85: 24642464 | Z85: 26107876 | AA85: 27610298 | AB85: 29377714 | AC85: 25048530 | AD85: 255138924 | AE85: 29037669 | AF85: 20837751 | AG85: 22022316 | AH85: 22468443 | AI85: 21611727 | AJ85: 22031745 | AK85: 15691852 | AL85: 11400157 | AM85: 20164956 | AN85: 30130241 | AO85: 25284496 | AP85: 14457571 | AQ85: 245003344 | AR85: 24320952 | AS85: 20734556 | AT85: 24555766 | AU85: 10913353 | AV85: 19713320 | AW85: 21634621 | AX85: 22731986 | AY85: 24647846 | AZ85: 19582849 | BA85: 21916588 | BB85: 14562899 | BC85: 19688608 | BD85: 264669342 | BE85: 20505114 | BF85: 23210996 | BG85: 18758407 | BH85: 17424984 | BI85: 24623111 | BJ85: 18618729 | BK85: 18058073 | BL85: 22284230 | BM85: 22391212 | BN85: 28358231 | BO85: 25170330 | BP85: 25265925 | BQ85: 313803126 | BR85: 22026355 | BS85: 24392857 | BT85: 27157676 | BU85: 26964901 | BV85: 25512579 | BW85: 26523240 | BX85: 25091759 | BY85: 28576293 | BZ85: 29217855 | CA85: 28707008 | CB85: 27156655 | CC85: 22475948 | CD85: 119705457 | CE85: 23195136 | CF85: 28341185 | CG85: 23612286 | CH85: 21756721 | CI85: 22800129
A86: Madeira, Papel e Celulose | B86: SUL | C86: MADEIRA | AQ86: 0 | AR86: 0 | AS86: 0 | AT86: 0 | AU86: 0 | AV86: 0 | AW86: 0 | AX86: 0 | AY86: 0 | AZ86: 0 | BA86: 0 | BB86: 0 | BC86: 0 | BD86: 0 | BE86: 0 | BF86: 0 | BG86: 0 | BH86: 0 | BI86: 0 | BJ86: 0 | BK86: 0 | BL86: 0 | BM86: 0 | BN86: 0 | BO86: 0 | BP86: 0 | BQ86: 0 | BR86: - | BS86: - | BT86: 0 | BU86: 0 | BV86: 0 | BW86: 0 | BX86: 0 | BY86: 0 | BZ86: 0 | CA86: 0 | CB86: 0 | CC86: 0 | CD86: 0 | CE86: 0 | CF86: 0 | CG86: 0 | CH86: 0 | CI86: 0
A87: Siderúrgicos e Mineração | B87: SUL | C87: MINÉRIO | D87: 112605614 | E87: 8654285 | F87: 5996943 | G87: 7605219 | H87: 8033596 | I87: 10460080 | J87: 10554157 | K87: 11605112 | L87: 12365736 | M87: 10089216 | N87: 9332464 | O87: 9337280 | P87: 8571526 | Q87: 138588620 | R87: 10252237 | S87: 10657173 | T87: 10507877 | U87: 10259738 | V87: 12089552 | W87: 13082477 | X87: 12270250 | Y87: 12224950 | Z87: 12088373 | AA87: 11726467 | AB87: 11907335 | AC87: 11522191 | AD87: 151769895 | AE87: 11811008 | AF87: 11045769 | AG87: 11749875 | AH87: 12837948 | AI87: 14275751 | AJ87: 12224975 | AK87: 12901107 | AL87: 13060754 | AM87: 13039535 | AN87: 13480931 | AO87: 12660792 | AP87: 12681450 | AQ87: 117820494 | AR87: 8041064 | AS87: 5543822 | AT87: 7739533 | AU87: 10358154 | AV87: 10314870 | AW87: 12220594 | AX87: 14084214 | AY87: 13465750 | AZ87: 12336298 | BA87: 11216516 | BB87: 9628252 | BC87: 2871427 | BD87: 87288883 | BE87: 4717469 | BF87: 8886288 | BG87: 6956271 | BH87: 12504445 | BI87: 8637286 | BJ87: 7780446 | BK87: 10197150 | BL87: 11211115 | BM87: 11035614 | BN87: 1219936 | BO87: 0 | BP87: 4142863 | BQ87: 102196893 | BR87: 4186979 | BS87: 8048101 | BT87: 9409452 | BU87: 10241687 | BV87: 10999764 | BW87: 9911305 | BX87: 10984066 | BY87: 10283557 | BZ87: 7421372 | CA87: 8326710 | CB87: 6191281 | CC87: 6192619 | CD87: 42035846 | CE87: 6707243 | CF87: 6392491 | CG87: 8366090 | CH87: 8607988 | CI87: 11962034
A88: Madeira, Papel e Celulose | B88: SUL | C88: OUTROS (IND) | D88: 2840497 | E88: 76988 | F88: 1044257 | G88: 0 | H88: 1719252 | I88: 0 | J88: 0 | K88: 0 | L88: 0 | M88: 0 | N88: 0 | O88: 0 | P88: 0 | Q88: 0 | R88: 0 | S88: 0 | T88: 0 | U88: 0 | V88: 0 | W88: 0 | X88: 0 | Y88: 0 | Z88: 0 | AA88: 0 | AB88: 0 | AC88: 0 | AD88: 24807 | AE88: 0 | AF88: 0 | AG88: 0 | AH88: 0 | AI88: 0 | AJ88: 0 | AK88: 0 | AL88: 24807 | AM88: 0 | AN88: 0 | AO88: 0 | AP88: 0 | AQ88: 0 | AR88: 0 | AS88: 0 | AT88: 0 | AU88: 0 | AV88: 0 | AW88: 0 | AX88: 0 | AY88: 0 | AZ88: 0 | BA88: 0 | BB88: 0 | BC88: 0 | BD88: 7586 | BE88: 0 | BF88: 0 | BG88: 0 | BH88: 0 | BI88: 0 | BJ88: 0 | BK88: 0 | BL88: 0 | BM88: 0 | BN88: 0 | BO88: 7586 | BP88: 0 | BQ88: 0 | BR88: - | BS88: - | BT88: 0 | BU88: 0 | BV88: 0 | BW88: 0 | BX88: 0 | BY88: 0 | BZ88: 0 | CA88: 0 | CB88: 0 | CC88: 0 | CD88: 0 | CE88: 0 | CF88: 0 | CG88: 0 | CH88: 0 | CI88: 0
A89: Madeira, Papel e Celulose | B89: SUL | C89: PAPEL | AQ89: 0 | AR89: 0 | AS89: 0 | AT89: 0 | AU89: 0 | AV89: 0 | AW89: 0 | AX89: 0 | AY89: 0 | AZ89: 0 | BA89: 0 | BB89: 0 | BC89: 0 | BD89: 0 | BE89: 0 | BF89: 0 | BG89: 0 | BH89: 0 | BI89: 0 | BJ89: 0 | BK89: 0 | BL89: 0 | BM89: 0 | BN89: 0 | BO89: 0 | BP89: 0 | BQ89: 0 | BR89: - | BS89: - | BT89: 0 | BU89: 0 | BV89: 0 | BW89: 0 | BX89: 0 | BY89: 0 | BZ89: 0 | CA89: 0 | CB89: 0 | CC89: 0 | CD89: 0 | CE89: 0 | CF89: 0 | CG89: 0 | CH89: 0 | CI89: 0
A90: Siderúrgicos e Mineração | B90: SUL | C90: SIDERÚRGICOS (IND) | D90: 45535557 | E90: 3327398 | F90: 6489916 | G90: 3723132 | H90: 4526890 | I90: 1503263 | J90: 1511249 | K90: 5233055 | L90: 4497976 | M90: 3004817 | N90: 6236193 | O90: 2705094 | P90: 2776574 | Q90: 99355137 | R90: 1351774 | S90: 2991537 | T90: 5472342 | U90: 7362522 | V90: 9456398 | W90: 9641139 | X90: 9942469 | Y90: 11664983 | Z90: 11504929 | AA90: 11336617 | AB90: 9598729 | AC90: 9031698 | AD90: 115396150 | AE90: 9637956 | AF90: 5899283 | AG90: 8720726 | AH90: 8202174 | AI90: 12111783 | AJ90: 11978353 | AK90: 14318690 | AL90: 13109318 | AM90: 7393163 | AN90: 6295433 | AO90: 7951065 | AP90: 9778206 | AQ90: 105887774 | AR90: 9015743 | AS90: 10242271 | AT90: 3931707 | AU90: 7929702 | AV90: 9522398 | AW90: 12974512 | AX90: 9976710 | AY90: 11571206 | AZ90: 9803417 | BA90: 12906107 | BB90: 6469831 | BC90: 1544170 | BD90: 55315016 | BE90: 8882776 | BF90: 1277841 | BG90: 10240956 | BH90: 8534986 | BI90: 2059951 | BJ90: 3489001 | BK90: 5467017 | BL90: 1948860 | BM90: 2509488 | BN90: 0 | BO90: 4688048 | BP90: 6216092 | BQ90: 77094022 | BR90: 4645473 | BS90: 1516090 | BT90: 8539391 | BU90: 6853327 | BV90: 11573945 | BW90: 9184858 | BX90: 9288762 | BY90: 312238 | BZ90: 0 | CA90: 6883430 | CB90: 9393890 | CC90: 8902618 | CD90: 19197341 | CE90: 7646110 | CF90: 0 | CG90: 9088507 | CH90: 2462724 | CI90: 0
A91: Combustível | B91: SUL | C91: GRUPO - LÍQUIDOS | D91: 2007243875 | E91: 141026849 | F91: 158187649 | G91: 164003404 | H91: 152207106 | I91: 165906353 | J91: 177592191 | K91: 189759368 | L91: 185810685 | M91: 183298305 | N91: 182146846 | O91: 162342351 | P91: 144962768 | Q91: 1971718577 | R91: 143628945 | S91: 132900733 | T91: 144560417 | U91: 137946083 | V91: 163325928 | W91: 145708583 | X91: 191221402 | Y91: 191705138 | Z91: 186272112 | AA91: 203974715 | AB91: 171531956 | AC91: 158942565 | AD91: 2052549558 | AE91: 158606315 | AF91: 161694107 | AG91: 166599616 | AH91: 153606625 | AI91: 144449736 | AJ91: 168885791 | AK91: 177638538 | AL91: 193325905 | AM91: 195904583 | AN91: 185029835 | AO91: 169638966 | AP91: 177169541 | AQ91: 2293495672 | AR91: 170418122 | AS91: 177358056 | AT91: 178093620 | AU91: 186106634 | AV91: 194411692 | AW91: 189300803 | AX91: 214790914 | AY91: 225453225 | AZ91: 210037594 | BA91: 212655678 | BB91: 173596079 | BC91: 161273255 | BD91: 1744089988 | BE91: 157859982 | BF91: 154060725 | BG91: 96066030 | BH91: 115754942 | BI91: 130800231 | BJ91: 141332987 | BK91: 149329871 | BL91: 148908236 | BM91: 159478025 | BN91: 168969012 | BO91: 164824033 | BP91: 156705914 | BQ91: 1917532816 | BR91: 159641472 | BS91: 156637643 | BT91: 171638325 | BU91: 145432695 | BV91: 169321355 | BW91: 156796309 | BX91: 162645790 | BY91: 166477145 | BZ91: 168524004 | CA91: 164403580 | CB91: 153108087 | CC91: 142906411 | CD91: 756370092 | CE91: 145328427 | CF91: 138448212 | CG91: 153883320 | CH91: 144583415 | CI91: 174126718
B92: SUL | C92: GRUPO - OUTROS | AQ92: 0 | AR92: 0 | AS92: 0 | AT92: 0 | AU92: 0 | AV92: 0 | AW92: 0 | AX92: 0 | AY92: 0 | AZ92: 0 | BA92: 0 | BB92: 0 | BC92: 0 | BD92: 11 | BE92: 0 | BF92: 1 | BG92: 1 | BH92: 1 | BI92: 1 | BJ92: 1 | BK92: 1 | BL92: 1 | BM92: 1 | BN92: 1 | BO92: 1 | BP92: 1 | BQ92: 5 | BR92: 1 | BS92: 1 | BT92: 1 | BU92: 1 | BV92: 1 | BW92: 0 | BX92: 0 | BY92: 0 | BZ92: 0 | CA92: 0 | CB92: 0 | CC92: 0 | CD92: 0 | CE92: 0 | CF92: 0 | CG92: 0 | CH92: 0 | CI92: 0

Sheet RTK Base (hidden)
B1: CUBE: | C1: Cosan_Logistica:CLOG.ACO.116.VOLUMETRIA.FLUXO
B2: CLOG.D.ACO.VERSAO | C2: R
B3: ALL.D.TEMPO.ANO | C3: 2019
B4: CLOG.M.ACO.VOLUMETRIA.FLUXO | C4: Toneladas Km Útil
B5: CLOG.D.ACO.MODAL | C5: Total Modal
B6: CLOG.D.ALL.CORREDOR | C6: Total Corredor
B7: CLOG.D.ACO.GERENCIA | C7: Total Gerencia
B8: CLOG.D.ALL.EMPRESA | C8: Total Empresa
B9: CLOG.D.ACO.ORIGEM | C9: Total Origem
B10: CLOG.D.ACO.DESTINO | C10: Total Destino
B11: CLOG.D.ALL.CLIENTE.HIERARQUIA | C11: Total Clientes
D13: 2016 | E13: 2016 | F13: 2016 | G13: 2016 | H13: 2016 | I13: 2016 | J13: 2016 | K13: 2016 | L13: 2016 | M13: 2016 | N13: 2016 | O13: 2016 | P13: 2016 | Q13: 2017 | R13: 2017 | S13: 2017 | T13: 2017 | U13: 2017 | V13: 2017 | W13: 2017 | X13: 2017 | Y13: 2017 | Z13: 2017 | AA13: 2017 | AB13: 2017 | AC13: 2017 | AD13: 2018 | AE13: 2018 | AF13: 2018 | AG13: 2018 | AH13: 2018 | AI13: 2018 | AJ13: 2018 | AK13: 2018 | AL13: 2018 | AM13: 2018 | AN13: 2018 | AO13: 2018 | AP13: 2018 | AQ13: 2019 | AR13: 2019 | AS13: 2019 | AT13: 2019 | AU13: 2019 | AV13: 2019 | AW13: 2019 | AX13: 2019 | AY13: 2019 | AZ13: 2019 | BA13: 2019 | BB13: 2019 | BC13: 2019 | BE13: 2020 | BF13: 2020 | BG13: 2020 | BH13: 2020 | BI13: 2020 | BJ13: 2020 | BK13: 2020 | BL13: 2020 | BM13: 2020 | BN13: 2020 | BO13: 2020 | BP13: 2020 | BR13: 2021 | BS13: 2021 | BT13: 2021 | BU13: 2021 | BV13: 2021 | BW13: 2021 | BX13: 2021 | BY13: 2021 | BZ13: 2021 | CA13: 2021 | CB13: 2021 | CC13: 2021 | CE13: 2022 | CF13: 2022 | CG13: 2022 | CH13: 2022 | CI13: 2022 | CJ13: 2022 | CK13: 2022 | CL13: 2022 | CM13: 2022 | CN13: 2022 | CO13: 2022 | CP13: 2022
A14: RI Classification | B14: Operation | C14: Product (PTBR) | D14: Full Year | E14: January | F14: February | G14: March | H14: April | I14: May | J14: June | K14: July | L14: August | M14: September | N14: October | O14: November | P14: December | Q14: Full Year | R14: January | S14: February | T14: March | U14: April | V14: May | W14: June | X14: July | Y14: August | Z14: September | AA14: October | AB14: November | AC14: December | AD14: Full Year | AE14: January | AF14: February | AG14: March | AH14: April | AI14: May | AJ14: June | AK14: July | AL14: August | AM14: September | AN14: October | AO14: November | AP14: December | AQ14: Full Year | AR14: January | AS14: February | AT14: March | AU14: April | AV14: May | AW14: June | AX14: July | AY14: August | AZ14: September | BA14: October | BB14: November | BC14: December | BD14: Full Year 2020 | BE14: January | BF14: February | BG14: March | BH14: April | BI14: May | BJ14: June | BK14: July | BL14: August | BM14: September | BN14: October | BO14: November | BP14: December | BQ14: Full Year 2021 | BR14: January | BS14: February | BT14: March | BU14: April | BV14: May | BW14: June | BX14: July | BY14: August | BZ14: September | CA14: October | CB14: November | CC14: December | CD14: Full Year 2022 | CE14: January | CF14: February | CG14: March | CH14: April | CI14: May | CJ14: June | CK14: July | CL14: August | CM14: September | CN14: October | CO14: November | CP14: December
B15: Consolidated | C15: Total Produto | D15: =SUM(D16:D19,D28,D39) -> 40269274785 | E15: 2935859903 | F15: 3206215552 | G15: 3934263149 | H15: 4019427284 | I15: 3717579416 | J15: 3098303462 | K15: 3991928450 | L15: 4101131995 | M15: 3805228688 | N15: 2657968599 | O15: 2333336596 | P15: 2468031691 | Q15: 49687534138 | R15: 2400694247 | S15: 3457325086 | T15: 4163179347 | U15: 3979012076 | V15: 4230460382 | W15: 4104771401 | X15: 4584238928 | Y15: 4833114222 | Z15: 4584363564 | AA15: 4796737135 | AB15: 4404518043 | AC15: 4149119707 | AD15: 5.636585557e+10 | AE15: 3024619551 | AF15: 4076401446 | AG15: 4726180173 | AH15: 4577654180 | AI15: 4138350614 | AJ15: =SUM(AJ16:AJ19,AJ28,AJ39) -> 4748781097 | AK15: 5299339127 | AL15: 5546486360 | AM15: 5284907798 | AN15: 4891203035 | AO15: 5224852231 | AP15: 4827079955 | AQ15: 60096159678 | AR15: 4113877853 | AS15: 4077830912 | AT15: 5114060523 | AU15: 4578383160 | AV15: 4283034713 | AW15: 5554706542 | AX15: 6176665240 | AY15: 5846945066 | AZ15: 5353300654 | BA15: 5592950155 | BB15: 5573179594 | BC15: 3831225266 | BD15: 62458411884 | BE15: 3567796821 | BF15: 4909247069 | BG15: 3820431784 | BH15: 5230196623 | BI15: 5744285903 | BJ15: 5442092770 | BK15: 6156971912 | BL15: 5782032590 | BM15: 5607934850 | BN15: 5735395980 | BO15: 5388710038 | BP15: 5073315548 | BQ15: =SUM(BR15:CC15) -> 64027605861 | BR15: 2703592947 | BS15: 5048896966 | BT15: 6120824128 | BU15: 5970771174 | BV15: 6233856237 | BW15: 5700197168 | BX15: 6337071154 | BY15: 5355656782 | BZ15: 4673938132 | CA15: 5046461204 | CB15: 5392385150 | CC15: 5443954819 | CD15: =SUM(CE15:CP15) -> 30355201456 | CE15: 5210909753 | CF15: 6170890794 | CG15: 6725736123 | CH15: 6012630351 | CI15: 6235034435
A16: Sugar | B16: Consolidated | C16: GRUPO - AÇÚCAR | D16: 5272723853 | E16: 234456127 | F16: 157457807 | G16: 178380923 | H16: 207666213 | I16: 435861989 | J16: 586082991 | K16: 506293778 | L16: 574426665 | M16: 585802120 | N16: 682569854 | O16: 588722783 | P16: 535002603 | Q16: 3953951221 | R16: 282027679 | S16: 118958041 | T16: 104334820 | U16: 214854646 | V16: 531045332 | W16: 422409931 | X16: 385769440 | Y16: 407300956 | Z16: 420547076 | AA16: 385730898 | AB16: 379151472 | AC16: 301820930 | AD16: 3529189508 | AE16: 294655220 | AF16: 193819178 | AG16: 140573881 | AH16: 165996269 | AI16: 412855333 | AJ16: 435275749 | AK16: 322824073 | AL16: 326510975 | AM16: 356321626 | AN16: 400664258 | AO16: 229239340 | AP16: 250453606 | AQ16: =SUM(AR16:BC16) -> 2847097185 | AR16: 154011202 | AS16: 86190192 | AT16: 142319921 | AU16: 225747978 | AV16: 317024881 | AW16: 262381096 | AX16: 295557980 | AY16: 238205073 | AZ16: 262978241 | BA16: 239161723 | BB16: 267346364 | BC16: 356172534 | BD16: =SUM(BE16:BP16) -> 5010561601 | BE16: 237738464 | BF16: 175342797 | BG16: 147830554 | BH16: 249287130 | BI16: 436874687 | BJ16: 365364448 | BK16: 337393157 | BL16: 494165516 | BM16: 664780826 | BN16: 735318079 | BO16: 660154195 | BP16: 506311748 | BQ16: 4667644429 | BR16: 369388573 | BS16: 87318869 | BT16: 143548775 | BU16: 233179737 | BV16: 544244105 | BW16: 621577452 | BX16: 340389104 | BY16: 416021704 | BZ16: 643319239 | CA16: 538254724 | CB16: 468241965 | CC16: 262160182 | CD16: 887134452 | CE16: 201508290 | CF16: 65138876 | CG16: 114729904 | CH16: 112160448 | CI16: 393596934
A17: Containers | B17: Consolidated | C17: GRUPO - BRADO | D17: 1638372032 | E17: 130967792 | F17: 148674379 | G17: 165831386 | H17: 156251329 | I17: 155735935 | J17: 145132120 | K17: 137973975 | L17: 123861135 | M17: 117616418 | N17: 122481666 | O17: 123082850 | P17: 110763047 | Q17: 1764622143 | R17: 130928520 | S17: 102663992 | T17: 114834939 | U17: 127973428 | V17: 157626899 | W17: 166338509 | X17: 168299872 | Y17: 190253514 | Z17: 165768720 | AA17: 169785212 | AB17: 139966732 | AC17: 130181806 | AD17: 2305426125 | AE17: 73832041 | AF17: 203242721 | AG17: 201001869 | AH17: 211056270 | AI17: 167602482 | AJ17: 179181716 | AK17: 228942881 | AL17: 234107430 | AM17: 214036905 | AN17: 203000901 | AO17: 191951165 | AP17: 197469744 | AQ17: =SUM(AR17:BC17) -> 2766297634 | AR17: 184379005 | AS17: 170016947 | AT17: 236750341 | AU17: 231422933 | AV17: 228749626 | AW17: 208663527 | AX17: 240803420 | AY17: 259778024 | AZ17: 257763296 | BA17: 243628384 | BB17: 261913998 | BC17: 242428133 | BD17: =SUM(BE17:BP17) -> 2956498561 | BE17: 228107072 | BF17: 226052541 | BG17: 232818475 | BH17: 199005432 | BI17: 189002920 | BJ17: 252885049 | BK17: 265497537 | BL17: 257950276 | BM17: 272916521 | BN17: 272503055 | BO17: 291262425 | BP17: 268497258 | BQ17: 3309454011 | BR17: 244131778 | BS17: 241929942 | BT17: 241431957 | BU17: 284646377 | BV17: 276343617 | BW17: 289859025 | BX17: 296143242 | BY17: 320650825 | BZ17: 282428528 | CA17: 271114870 | CB17: 269726344 | CC17: 291047506 | CD17: 1501004556 | CE17: 266845995 | CF17: 295396426 | CG17: 317146865 | CH17: 305382677 | CI17: 316232593
A18: Fertilizers | B18: Consolidated | C18: GRUPO - FERTILIZANTES | D18: 814939100 | E18: 28277886 | F18: 17986273 | G18: 20430346 | H18: 22496891 | I18: 61922969 | J18: 79419138 | K18: 91515181 | L18: 95034592 | M18: 123820635 | N18: 98535259 | O18: 98943488 | P18: 76556442 | Q18: 683653693 | R18: 67081150 | S18: 37347427 | T18: 30187374 | U18: 69954742 | V18: 69651088 | W18: 49094098 | X18: 51279952 | Y18: 55388520 | Z18: 60182641 | AA18: 70693725 | AB18: 63823446 | AC18: 58969530 | AD18: 1861603051 | AE18: 67919034 | AF18: 48889296 | AG18: 34909110 | AH18: 48651351 | AI18: 111770289 | AJ18: 137895092 | AK18: 249050670 | AL18: 250780489 | AM18: 151730932 | AN18: 172935569 | AO18: 249323062 | AP18: 337748157 | AQ18: =SUM(AR18:BC18) -> 3537113771 | AR18: 264335857 | AS18: 166741201 | AT18: 194926232 | AU18: 248118763 | AV18: 368948113 | AW18: 352127685 | AX18: 400542858 | AY18: 327778933 | AZ18: 181152004 | BA18: 281218724 | BB18: 331257013 | BC18: 419966388 | BD18: =SUM(BE18:BP18) -> 4464529843 | BE18: 367050116 | BF18: 296982213 | BG18: 135626534 | BH18: 339998024 | BI18: 442256234 | BJ18: 408841668 | BK18: 441870999 | BL18: 308394735 | BM18: 335131549 | BN18: 472406176 | BO18: 464465745 | BP18: 451505850 | BQ18: 5008296854 | BR18: 485666343 | BS18: 411296596 | BT18: 248293627 | BU18: 272282472 | BV18: 295951034 | BW18: 313744948 | BX18: 600443859 | BY18: 609640683 | BZ18: 461649368 | CA18: 493868744 | CB18: 411021704 | CC18: 404437476 | CD18: 1840354755 | CE18: 344794062 | CF18: 436281847 | CG18: 389611369 | CH18: 185731561 | CI18: 483935916
B19: Consolidated | C19: GRUPO - GRÃOS | D19: =SUM(D20:D27) -> 26522594640 | E19: 2136398149 | F19: 2454697287 | G19: 3107888033 | H19: 3185144987 | I19: 2582137849 | J19: 1763734218 | K19: 2693741792 | L19: 2729740010 | M19: 2397744718 | N19: 1180188781 | O19: 1021505151 | P19: 1269673665 | Q19: 36801524106 | R19: 1416734136 | S19: 2753269754 | T19: 3409909657 | U19: 3103438712 | V19: 2941591951 | W19: 2945152403 | X19: 3396920876 | Y19: 3593436283 | Z19: 3384126955 | AA19: 3525864709 | AB19: 3255078757 | AC19: 3075999913 | AD19: 4.10592664e+10 | AE19: 2008684993 | AF19: 3053637437 | AG19: 3755394426 | AH19: 3633108996 | AI19: 2904375685 | AJ19: =SUM(AJ20:AJ27) -> 3310282915 | AK19: 3817003917 | AL19: 4024439668 | AM19: 3868614116 | AN19: 3415565891 | AO19: 3888256423 | AP19: 3379901937 | AQ19: 42948445350 | AR19: 2849315590 | AS19: 3057062505 | AT19: 3905476332 | AU19: 3265170777 | AV19: 2712228217 | AW19: 4058312360 | AX19: 4527509422 | AY19: 4290426631 | AZ19: 3939351262 | BA19: 4090685906 | BB19: 4058735503 | BC19: 2194170845 | BD19: 42354801120 | BE19: 2089616257 | BF19: 3611014226 | BG19: 2807206531 | BH19: 4000523005 | BI19: 4057838302 | BJ19: 3815358783 | BK19: 4429094221 | BL19: 4028421230 | BM19: 3590367246 | BN19: 3482112106 | BO19: 3229488056 | BP19: 3213761157 | BQ19: 42124444378 | BR19: 908295914 | BS19: 3616791575 | BT19: 4747560898 | BU19: 4456254910 | BV19: 4345303613 | BW19: 3728509759 | BX19: 4329002802 | BY19: 3196696132 | BZ19: 2522380026 | CA19: 2958765555 | CB19: 3534620693 | CC19: 3780262501 | CD19: 22339801239 | CE19: 3676942251 | CF19: 4665042766 | CG19: 5106279286 | CH19: 4668583976 | CI19: 4222952960
B20: Consolidated | C20: ARROZ (GRANEL) | AQ20: =SUM(AR20:BC20) -> 0 | AR20: 0 | AS20: 0 | AT20: 0 | AU20: 0 | AV20: 0 | AW20: 0 | AX20: 0 | AY20: 0 | AZ20: 0 | BA20: 0 | BB20: 0 | BC20: 0 | BD20: =SUM(BE20:BP20) -> 0 | BE20: 0 | BF20: 0 | BG20: 0 | BH20: 0 | BI20: 0 | BJ20: 0 | BK20: 0 | BL20: 0 | BM20: 0 | BN20: 0 | BO20: 0 | BP20: 0 | BQ20: 0 | BR20: - | BS20: - | BT20: 0 | BU20: 0 | BV20: 0 | BW20: 0 | BX20: 0 | BY20: 0 | BZ20: 0 | CA20: 0 | CB20: 0 | CC20: 0 | CD20: 0 | CE20: 0 | CF20: 0 | CG20: 0 | CH20: 0 | CI20: 0
A21: Soybean meal | B21: Consolidated | C21: FARELO | D21: 4848739945 | E21: 216263516 | F21: 395037005 | G21: 487856197 | H21: 535266493 | I21: 526415615 | J21: 472965977 | K21: 354226749 | L21: 316308402 | M21: 322786465 | N21: 377761324 | O21: 438987529 | P21: 404864673 | Q21: 5823144957 | R21: 402662255 | S21: 407247514 | T21: 517989061 | U21: 588470390 | V21: 519955254 | W21: 437873199 | X21: 520803951 | Y21: 428816672 | Z21: 434419046 | AA21: 529768690 | AB21: 506082882 | AC21: 529056043 | AD21: 6371569461 | AE21: 446265116 | AF21: 515199178 | AG21: 578462202 | AH21: 632174250 | AI21: 499679316 | AJ21: 584672441 | AK21: 509672392 | AL21: 486213891 | AM21: 524420464 | AN21: 475608570 | AO21: 515806161 | AP21: 603395480 | AQ21: 6861034753 | AR21: 461211560 | AS21: 446229709 | AT21: 622222881 | AU21: 631900652 | AV21: 579339018 | AW21: 629968674 | AX21: 597870303 | AY21: 494529032 | AZ21: 542620092 | BA21: 593321554 | BB21: 664736418 | BC21: 597084860 | BD21: 7529970646 | BE21: 402380851 | BF21: 540976483 | BG21: 561960584 | BH21: 663534438 | BI21: 631765018 | BJ21: 649359743 | BK21: 707366512 | BL21: 710348971 | BM21: 661590839 | BN21: 712141676 | BO21: 614376469 | BP21: 674169062 | BQ21: 8511802822 | BR21: 444990608 | BS21: 602947558 | BT21: 704474780 | BU21: 786668571 | BV21: 755986114 | BW21: 826858764 | BX21: 840958480 | BY21: 744792682 | BZ21: 687938843 | CA21: 587364704 | CB21: 766371924 | CC21: 762449794 | CD21: 4163272614 | CE21: 660249575 | CF21: 723767017 | CG21: 921808474 | CH21: 968329402 | CI21: 889118146
A22: Corn meal | B22: Consolidated | C22: FARELO DE MILHO | AQ22: 20738520 | AR22: 0 | AS22: 0 | AT22: 0 | AU22: 0 | AV22: 0 | AW22: 0 | AX22: 0 | AY22: 0 | AZ22: 0 | BA22: 0 | BB22: 0 | BC22: 20738520 | BD22: 18105539 | BE22: 18105539 | BF22: 0 | BG22: 0 | BH22: 0 | BI22: 0 | BJ22: 0 | BK22: 0 | BL22: 0 | BM22: 0 | BN22: 0 | BO22: 0 | BP22: 0 | BQ22: 0 | BR22: - | BS22: - | BT22: 0 | BU22: 0 | BV22: 0 | BW22: 0 | BX22: 0 | BY22: 0 | BZ22: 0 | CA22: 0 | CB22: 0 | CC22: 0 | CD22: 0 | CE22: 0 | CF22: 0 | CG22: 0 | CH22: 0 | CI22: 0
A23: Malt | B23: Consolidated | C23: MALTE | D23: 1118223 | E23: 0 | F23: 0 | G23: 0 | H23: 0 | I23: 0 | J23: 0 | K23: 0 | L23: 0 | M23: 0 | N23: 1118223 | O23: 0 | P23: 0 | Q23: 0 | R23: 0 | S23: 0 | T23: 0 | U23: 0 | V23: 0 | W23: 0 | X23: 0 | Y23: 0 | Z23: 0 | AA23: 0 | AB23: 0 | AC23: 0 | AD23: 0 | AE23: 0 | AF23: 0 | AG23: 0 | AH23: 0 | AI23: 0 | AJ23: 0 | AK23: 0 | AL23: 0 | AM23: 0 | AN23: 0 | AO23: 0 | AP23: 0 | AQ23: 0 | AR23: 0 | AS23: 0 | AT23: 0 | AU23: 0 | AV23: 0 | AW23: 0 | AX23: 0 | AY23: 0 | AZ23: 0 | BA23: 0 | BB23: 0 | BC23: 0 | BD23: 0 | BE23: 0 | BF23: 0 | BG23: 0 | BH23: 0 | BI23: 0 | BJ23: 0 | BK23: 0 | BL23: 0 | BM23: 0 | BN23: 0 | BO23: 0 | BP23: 0 | BQ23: 0 | BR23: - | BS23: - | BT23: 0 | BU23: 0 | BV23: 0 | BW23: 0 | BX23: 0 | BY23: 0 | BZ23: 0 | CA23: 0 | CB23: 0 | CC23: 0 | CD23: 0 | CE23: 0 | CF23: 0 | CG23: 0 | CH23: 0 | CI23: 0
A24: Corn | B24: Consolidated | C24: MILHO | D24: 10215397331 | E24: 1708525340 | F24: 147133150 | G24: 1444443 | H24: 0 | I24: 0 | J24: 343225995 | K24: 1978457048 | L24: 2230650957 | M24: 1944839001 | N24: 705937169 | O24: 482401835 | P24: 672782393 | Q24: 16414826967 | R24: 113381199 | S24: 6805808 | T24: 0 | U24: 0 | V24: 8610801 | W24: 1234812654 | X24: 2256657775 | Y24: 2716620059 | Z24: 2771581220 | AA24: 2787873497 | AB24: 2379400827 | AC24: 2139083127 | AD24: 16433036304 | AE24: 609522875 | AF24: 73753831 | AG24: 0 | AH24: 0 | AI24: 33737178 | AJ24: 327834185 | AK24: 2341412361 | AL24: 2803528227 | AM24: 2731437557 | AN24: 2248798138 | AO24: 2798098022 | AP24: 2464913930 | AQ24: 19545827914 | AR24: 415344145 | AS24: 74140707 | AT24: 15008298 | AU24: 34903503 | AV24: 111762523 | AW24: 2575904658 | AX24: 3444661429 | AY24: 3342463779 | AZ24: 2963385093 | BA24: 2757652164 | BB24: 2568912783 | BC24: 1241688832 | BD24: 17173456822 | BE24: 60468750 | BF24: 73095562 | BG24: 14966994 | BH24: 0 | BI24: 30471 | BJ24: 1431483015 | BK24: 2707269495 | BL24: 2787612289 | BM24: 2601258773 | BN24: 2608081080 | BO24: 2469402636 | BP24: 2419787757 | BQ24: 12538628055 | BR24: 124970308 | BS24: 73279588 | BT24: 6976461 | BU24: 0 | BV24: 0 | BW24: 507616840 | BX24: 2759041096 | BY24: 1944864604 | BZ24: 1287869615 | CA24: 1691445213 | CB24: 1802043570 | CC24: 2340520760 | CD24: 1506369998 | CE24: 963649780 | CF24: 68267675 | CG24: 46083473 | CH24: 320263102 | CI24: 108105968
A25: Soybean | B25: Consolidated | C25: SOJA | D25: 11364153908 | E25: 169291606 | F25: 1910194661 | G25: 2614075535 | H25: 2648204562 | I25: 2054071595 | J25: 945775688 | K25: 359209924 | L25: 180625179 | M25: 129292939 | N25: 94551349 | O25: 84632489 | P25: 174228381 | Q25: 14400891554 | R25: 850038717 | S25: 2270692543 | T25: 2876176624 | U25: 2512529925 | V25: 2410849338 | W25: 1270572663 | X25: 616729111 | Y25: 446697778 | Z25: 177885711 | AA25: 207324380 | AB25: 364243137 | AC25: 397151627 | AD25: 18123088513 | AE25: 933152470 | AF25: 2458559789 | AG25: 3176387751 | AH25: 3000272386 | AI25: 2369348905 | AJ25: 2396205432 | AK25: 964269442 | AL25: 733456745 | AM25: 610131958 | AN25: 688905131 | AO25: 537752205 | AP25: 254646299 | AQ25: 16440317363 | AR25: 1940144274 | AS25: 2532959259 | AT25: 3267423347 | AU25: 2597566063 | AV25: 2021126676 | AW25: 852439028 | AX25: 484977690 | AY25: 453433820 | AZ25: 432861137 | BA25: 739333550 | BB25: 819156360 | BC25: 298896159 | BD25: 17453074969 | BE25: 1585000395 | BF25: 2995142025 | BG25: 2230278953 | BH25: 3336988567 | BI25: 3426042813 | BJ25: 1734516025 | BK25: 1014458214 | BL25: 530459970 | BM25: 327517634 | BN25: 149427977 | BO25: 69608678 | BP25: 53633718 | BQ25: 20892392104 | BR25: 334677827 | BS25: 2940564429 | BT25: 4036109657 | BU25: 3669586339 | BV25: 3589317499 | BW25: 2394034155 | BX25: 729003226 | BY25: 507038846 | BZ25: 546571568 | CA25: 678860034 | CB25: 892350744 | CC25: 574277780 | CD25: 16396885796 | CE25: 1955022219 | CF25: 3750232320 | CG25: 4092793376 | CH25: 3374035729 | CI25: 3224802152
A26: Wheat | B26: Consolidated | C26: TRIGO | D26: 76524334 | E26: 41988754 | F26: 1379574 | G26: 2484418 | H26: 0 | I26: 0 | J26: 0 | K26: 0 | L26: 0 | M26: 0 | N26: 0 | O26: 14076225 | P26: 16595363 | Q26: 144137874 | R26: 49240961 | S26: 66897076 | T26: 13417951 | U26: 0 | V26: 0 | W26: 0 | X26: 0 | Y26: 0 | Z26: 0 | AA26: 0 | AB26: 4788405 | AC26: 9793481 | AD26: 116573659 | AE26: 18765000 | AF26: 5009209 | AG26: 0 | AH26: 0 | AI26: 0 | AJ26: 0 | AK26: 0 | AL26: 0 | AM26: 0 | AN26: 0 | AO26: 36464420 | AP26: 56335030 | AQ26: 75718645 | AR26: 30577094 | AS26: 3732830 | AT26: 0 | AU26: 0 | AV26: 0 | AW26: 0 | AX26: 0 | AY26: 0 | AZ26: 0 | BA26: 0 | BB26: 5788090 | BC26: 35620631 | BD26: 180193144 | BE26: 23660722 | BF26: 1800156 | BG26: 0 | BH26: 0 | BI26: 0 | BJ26: 0 | BK26: 0 | BL26: 0 | BM26: 0 | BN26: 12461373 | BO26: 76100273 | BP26: 66170620 | BQ26: 181621397 | BR26: 3657171 | BS26: - | BT26: 0 | BU26: 0 | BV26: 0 | BW26: 0 | BX26: 0 | BY26: 0 | BZ26: 0 | CA26: 1095604 | CB26: 73854455 | CC26: 103014167 | CD26: 273272831 | CE26: 98020677 | CF26: 122775754 | CG26: 45593963 | CH26: 5955743 | CI26: 926694
A27: Soybean | B27: Consolidated | C27: ÓLEO VEGETAL | D27: 16660899 | E27: 328933 | F27: 952897 | G27: 2027440 | H27: 1673932 | I27: 1650639 | J27: 1766558 | K27: 1848071 | L27: 2155472 | M27: 826313 | N27: 820716 | O27: 1407073 | P27: 1202855 | Q27: 18522754 | R27: 1411004 | S27: 1626813 | T27: 2326021 | U27: 2438397 | V27: 2176558 | W27: 1893887 | X27: 2730039 | Y27: 1301774 | Z27: 240978 | AA27: 898142 | AB27: 563506 | AC27: 915635 | AD27: 14998467 | AE27: 979532 | AF27: 1115430 | AG27: 544473 | AH27: 662360 | AI27: 1610286 | AJ27: 1570857 | AK27: 1649722 | AL27: 1240805 | AM27: 2624137 | AN27: 2254052 | AO27: 135615 | AP27: 611198 | AQ27: 4808155 | AR27: 2038517 | AS27: 0 | AT27: 821806 | AU27: 800559 | AV27: 0 | AW27: 0 | AX27: 0 | AY27: 0 | AZ27: 484940 | BA27: 378638 | BB27: 141852 | BC27: 141843 | BD27: 0 | BE27: 0 | BF27: 0 | BG27: 0 | BH27: 0 | BI27: 0 | BJ27: 0 | BK27: 0 | BL27: 0 | BM27: 0 | BN27: 0 | BO27: 0 | BP27: 0 | BQ27: 0 | BR27: - | BS27: - | BT27: 0 | BU27: 0 | BV27: 0 | BW27: 0 | BX27: 0 | BY27: 0 | BZ27: 0 | CA27: 0 | CB27: 0 | CC27: 0 | CD27: 0 | CE27: 0 | CF27: 0 | CG27: 0 | CH27: 0 | CI27: 0
B28: Consolidated | C28: GRUPO - INDUSTRIAL | D28: 1690647492 | E28: 101231757 | F28: 113726166 | G28: 116824008 | H28: 121254898 | I28: 129418789 | J28: 140842872 | K28: 172400540 | L28: 175132225 | M28: 161253546 | N28: 163644056 | O28: 154733873 | P28: 140184762 | Q28: 2119488606 | R28: 143950006 | S28: 111904479 | T28: 149819310 | U28: 152267058 | V28: 179305408 | W28: 162524672 | X28: 176861648 | Y28: 181297448 | Z28: 180508581 | AA28: 208742141 | AB28: 223193208 | AC28: 249114647 | AD28: 3070579325 | AE28: 236260744 | AF28: 218505087 | AG28: 228159889 | AH28: 201821058 | AI28: 218718236 | AJ28: 266527866 | AK28: 256645481 | AL28: 296450973 | AM28: 273725845 | AN28: 303173209 | AO28: 290202901 | AP28: 280388036 | AQ28: 3308856023 | AR28: 276690453 | AS28: 229714860 | AT28: 270376133 | AU28: 260237665 | AV28: 272755128 | AW28: 276657976 | AX28: 273545578 | AY28: 287685130 | AZ28: 289890716 | BA28: 310638776 | BB28: 283700041 | BC28: 276963567 | BD28: 3304746783 | BE28: 287850932 | BF28: 241363440 | BG28: 220726487 | BH28: 238851139 | BI28: 275399437 | BJ28: 264071820 | BK28: 296966479 | BL28: 308409531 | BM28: 316691294 | BN28: 316627039 | BO28: 314457929 | BP28: 223331256 | BQ28: 3619376464 | BR28: 282662711 | BS28: 276440928 | BT28: 320931373 | BU28: 313908178 | BV28: 325065146 | BW28: 297863622 | BX28: 305899693 | BY28: 334423813 | BZ28: 293218575 | CA28: 305753057 | CB28: 290495995 | CC28: 272713373 | CD28: 1435257136 | CE28: 265858431 | CF28: 250885791 | CG28: 326070488 | CH28: 287086142 | CI28: 305356284
A29: Wood, pulp and paper | B29: Consolidated | C29: ARROZ (ENSACADO) | D29: 2949823 | E29: 2867029 | F29: 82794 | G29: 0 | H29: 0 | I29: 0 | J29: 0 | K29: 0 | L29: 0 | M29: 0 | N29: 0 | O29: 0 | P29: 0 | Q29: 0 | R29: 0 | S29: 0 | T29: 0 | U29: 0 | V29: 0 | W29: 0 | X29: 0 | Y29: 0 | Z29: 0 | AA29: 0 | AB29: 0 | AC29: 0 | AD29: 0 | AE29: 0 | AF29: 0 | AG29: 0 | AH29: 0 | AI29: 0 | AJ29: 0 | AK29: 0 | AL29: 0 | AM29: 0 | AN29: 0 | AO29: 0 | AP29: 0 | AQ29: 0 | AR29: 0 | AS29: 0 | AT29: 0 | AU29: 0 | AV29: 0 | AW29: 0 | AX29: 0 | AY29: 0 | AZ29: 0 | BA29: 0 | BB29: 0 | BC29: 0 | BD29: 0 | BE29: 0 | BF29: 0 | BG29: 0 | BH29: 0 | BI29: 0 | BJ29: 0 | BK29: 0 | BL29: 0 | BM29: 0 | BN29: 0 | BO29: 0 | BP29: 0 | BQ29: 0 | BR29: - | BS29: - | BT29: 0 | BU29: 0 | BV29: 0 | BW29: 0 | BX29: 0 | BY29: 0 | BZ29: 0 | CA29: 0 | CB29: 0 | CC29: 0 | CD29: 0 | CE29: 0 | CF29: 0 | CG29: 0 | CH29: 0 | CI29: 0
A30: Wood, pulp and paper | B30: Consolidated | C30: CALCÁREO (IND) | D30: 6322851 | E30: 518815 | F30: 415052 | G30: 793481 | H30: 389493 | I30: 377690 | J30: 188845 | K30: 678662 | L30: 389493 | M30: 1003240 | N30: 1078263 | O30: 489817 | P30: 0 | Q30: 3316593 | R30: 495719 | S30: 483916 | T30: 631451 | U30: 507521 | V30: 489817 | W30: 177042 | X30: 177042 | Y30: 354085 | Z30: 0 | AA30: 0 | AB30: 0 | AC30: 0 | AD30: 0 | AE30: 0 | AF30: 0 | AG30: 0 | AH30: 0 | AI30: 0 | AJ30: 0 | AK30: 0 | AL30: 0 | AM30: 0 | AN30: 0 | AO30: 0 | AP30: 0 | AQ30: 0 | AR30: 0 | AS30: 0 | AT30: 0 | AU30: 0 | AV30: 0 | AW30: 0 | AX30: 0 | AY30: 0 | AZ30: 0 | BA30: 0 | BB30: 0 | BC30: 0 | BD30: 0 | BE30: 0 | BF30: 0 | BG30: 0 | BH30: 0 | BI30: 0 | BJ30: 0 | BK30: 0 | BL30: 0 | BM30: 0 | BN30: 0 | BO30: 0 | BP30: 0 | BQ30: 0 | BR30: - | BS30: - | BT30: 0 | BU30: 0 | BV30: 0 | BW30: 0 | BX30: 0 | BY30: 0 | BZ30: 0 | CA30: 0 | CB30: 0 | CC30: 0 | CD30: 0 | CE30: 0 | CF30: 0 | CG30: 0 | CH30: 0 | CI30: 0
A31: Wood, pulp and paper | B31: Consolidated | C31: CELULOSE | D31: 844231566 | E31: 49640262 | F31: 53374024 | G31: 52726968 | H31: 53897960 | I31: 67886981 | J31: 68516859 | K31: 90106159 | L31: 88751216 | M31: 81277483 | N31: 85430901 | O31: 81173089 | P31: 71449664 | Q31: 1167203736 | R31: 66184266 | S31: 42196771 | T31: 73607079 | U31: 77942519 | V31: 91665532 | W31: 88958897 | X31: 90708861 | Y31: 94651136 | Z31: 96334750 | AA31: 121526374 | AB31: 150155622 | AC31: 173271929 | AD31: 2178928383 | AE31: 162081105 | AF31: 153469856 | AG31: 151655644 | AH31: 130458531 | AI31: 140731363 | AJ31: 190287606 | AK31: 179959534 | AL31: 223767418 | AM31: 199135618 | AN31: 221557066 | AO31: 209922064 | AP31: 215902578 | AQ31: 2440985098 | AR31: 205204474 | AS31: 162200545 | AT31: 204809718 | AU31: 198715056 | AV31: 199981946 | AW31: 194433325 | AX31: 192615176 | AY31: 200060725 | AZ31: 211585503 | BA31: 227075549 | BB31: 218874407 | BC31: 225428674 | BD31: 2488397639 | BE31: 221465242 | BF31: 175575279 | BG31: 162755064 | BH31: 165610028 | BI31: 201265267 | BJ31: 198208550 | BK31: 229472146 | BL31: 236640351 | BM31: 246489080 | BN31: 244847483 | BO31: 247883782 | BP31: 158185367 | BQ31: 2674158494 | BR31: 215921055 | BS31: 212101781 | BT31: 236648794 | BU31: 230591333 | BV31: 237406111 | BW31: 216306697 | BX31: 219195010 | BY31: 255046608 | BZ31: 216508740 | CA31: 225371813 | CB31: 209930160 | CC31: 199130392 | CD31: 1067425572 | CE31: 193009855 | CF31: 183304432 | CG31: 245907736 | CH31: 218184243 | CI31: 227019306
A32: Construction | B32: Consolidated | C32: CIMENTO | D32: 406012747 | E32: 25021266 | F32: 31096223 | G32: 29058565 | H32: 30832058 | I32: 29756097 | J32: 34507802 | K32: 41185458 | L32: 38898023 | M32: 38650417 | N32: 37674924 | O32: 36084035 | P32: 33247879 | Q32: 400515925 | R32: 37076222 | S32: 31980842 | T32: 34680656 | U32: 32850063 | V32: 33627611 | W32: 31870072 | X32: 37261484 | Y32: 37759830 | Z32: 34472653 | AA32: 36542385 | AB32: 22153808 | AC32: 30240299 | AD32: 369321166 | AE32: 23693006 | AF32: 27252428 | AG32: 34011328 | AH32: 27853962 | AI32: 29987612 | AJ32: 30005187 | AK32: 33774298 | AL32: 35088519 | AM32: 33992573 | AN32: 31709538 | AO32: 34384484 | AP32: 27568231 | AQ32: 399159313 | AR32: 30108220 | AS32: 30993666 | AT32: 29339409 | AU32: 32321400 | AV32: 33222594 | AW32: 35394924 | AX32: 34137492 | AY32: 37939603 | AZ32: 36582649 | BA32: 37524016 | BB32: 34164652 | BC32: 27430688 | BD32: 409068317 | BE32: 32280331 | BF32: 32413036 | BG32: 22015789 | BH32: 34776696 | BI32: 38813822 | BJ32: 35975094 | BK32: 33772093 | BL32: 36324975 | BM32: 34265900 | BN32: 42201389 | BO32: 36708183 | BP32: 29521009 | BQ32: 452123929 | BR32: 35882849 | BS32: 30382099 | BT32: 39176060 | BU32: 39256930 | BV32: 39572747 | BW32: 35937522 | BX32: 41340096 | BY32: 40205117 | BZ32: 40070608 | CA32: 36464096 | CB32: 37824009 | CC32: 36011796 | CD32: 186892920 | CE32: 35300087 | CF32: 32847683 | CG32: 39095869 | CH32: 36074466 | CI32: 43574815
A33: Construction | B33: Consolidated | C33: CLINQUER | D33: 268353756 | E33: 11125714 | F33: 14730836 | G33: 22055745 | H33: 21417587 | I33: 19434678 | J33: 25563960 | K33: 23592094 | L33: 30229781 | M33: 27228373 | N33: 23891311 | O33: 24944558 | P33: 24139119 | Q33: 310508595 | R33: 28589788 | S33: 23594240 | T33: 24919905 | U33: 23344695 | V33: 31976498 | W33: 18795045 | X33: 26501542 | Y33: 24642464 | Z33: 26107876 | AA33: 27610298 | AB33: 29377714 | AC33: 25048530 | AD33: 255138924 | AE33: 29037669 | AF33: 20837751 | AG33: 22022316 | AH33: 22468443 | AI33: 21611727 | AJ33: 22031745 | AK33: 15691852 | AL33: 11400157 | AM33: 20164956 | AN33: 30130241 | AO33: 25284496 | AP33: 14457571 | AQ33: 245003344 | AR33: 24320952 | AS33: 20734556 | AT33: 24555766 | AU33: 10913353 | AV33: 19713320 | AW33: 21634621 | AX33: 22731986 | AY33: 24647846 | AZ33: 19582849 | BA33: 21916588 | BB33: 14562899 | BC33: 19688608 | BD33: 264669342 | BE33: 20505114 | BF33: 23210996 | BG33: 18758407 | BH33: 17424984 | BI33: 24623111 | BJ33: 18618729 | BK33: 18058073 | BL33: 22284230 | BM33: 22391212 | BN33: 28358231 | BO33: 25170330 | BP33: 25265925 | BQ33: 313803126 | BR33: 22026355 | BS33: 24392857 | BT33: 27157676 | BU33: 26964901 | BV33: 25512579 | BW33: 26523240 | BX33: 25091759 | BY33: 28576293 | BZ33: 29217855 | CA33: 28707008 | CB33: 27156655 | CC33: 22475948 | CD33: 119705457 | CE33: 23195136 | CF33: 28341185 | CG33: 23612286 | CH33: 21756721 | CI33: 22800129
A34: Wood, pulp and paper | B34: Consolidated | C34: MADEIRA | AQ34: 0 | AR34: 0 | AS34: 0 | AT34: 0 | AU34: 0 | AV34: 0 | AW34: 0 | AX34: 0 | AY34: 0 | AZ34: 0 | BA34: 0 | BB34: 0 | BC34: 0 | BD34: 0 | BE34: 0 | BF34: 0 | BG34: 0 | BH34: 0 | BI34: 0 | BJ34: 0 | BK34: 0 | BL34: 0 | BM34: 0 | BN34: 0 | BO34: 0 | BP34: 0 | BQ34: 0 | BR34: - | BS34: - | BT34: 0 | BU34: 0 | BV34: 0 | BW34: 0 | BX34: 0 | BY34: 0 | BZ34: 0 | CA34: 0 | CB34: 0 | CC34: 0 | CD34: 0 | CE34: 0 | CF34: 0 | CG34: 0 | CH34: 0 | CI34: 0
A35: Steel and mining | B35: Consolidated | C35: MINÉRIO | D35: 112605614 | E35: 8654285 | F35: 5996943 | G35: 7605219 | H35: 8033596 | I35: 10460080 | J35: 10554157 | K35: 11605112 | L35: 12365736 | M35: 10089216 | N35: 9332464 | O35: 9337280 | P35: 8571526 | Q35: 138588620 | R35: 10252237 | S35: 10657173 | T35: 10507877 | U35: 10259738 | V35: 12089552 | W35: 13082477 | X35: 12270250 | Y35: 12224950 | Z35: 12088373 | AA35: 11726467 | AB35: 11907335 | AC35: 11522191 | AD35: 151769895 | AE35: 11811008 | AF35: 11045769 | AG35: 11749875 | AH35: 12837948 | AI35: 14275751 | AJ35: 12224975 | AK35: 12901107 | AL35: 13060754 | AM35: 13039535 | AN35: 13480931 | AO35: 12660792 | AP35: 12681450 | AQ35: 117820494 | AR35: 8041064 | AS35: 5543822 | AT35: 7739533 | AU35: 10358154 | AV35: 10314870 | AW35: 12220594 | AX35: 14084214 | AY35: 13465750 | AZ35: 12336298 | BA35: 11216516 | BB35: 9628252 | BC35: 2871427 | BD35: 87288883 | BE35: 4717469 | BF35: 8886288 | BG35: 6956271 | BH35: 12504445 | BI35: 8637286 | BJ35: 7780446 | BK35: 10197150 | BL35: 11211115 | BM35: 11035614 | BN35: 1219936 | BO35: 0 | BP35: 4142863 | BQ35: 102196893 | BR35: 4186979 | BS35: 8048101 | BT35: 9409452 | BU35: 10241687 | BV35: 10999764 | BW35: 9911305 | BX35: 10984066 | BY35: 10283557 | BZ35: 7421372 | CA35: 8326710 | CB35: 6191281 | CC35: 6192619 | CD35: 42035846 | CE35: 6707243 | CF35: 6392491 | CG35: 8366090 | CH35: 8607988 | CI35: 11962034
A36: Wood, pulp and paper | B36: Consolidated | C36: OUTROS (IND) | D36: 2840497 | E36: 76988 | F36: 1044257 | G36: 0 | H36: 1719252 | I36: 0 | J36: 0 | K36: 0 | L36: 0 | M36: 0 | N36: 0 | O36: 0 | P36: 0 | Q36: 0 | R36: 0 | S36: 0 | T36: 0 | U36: 0 | V36: 0 | W36: 0 | X36: 0 | Y36: 0 | Z36: 0 | AA36: 0 | AB36: 0 | AC36: 0 | AD36: 24807 | AE36: 0 | AF36: 0 | AG36: 0 | AH36: 0 | AI36: 0 | AJ36: 0 | AK36: 0 | AL36: 24807 | AM36: 0 | AN36: 0 | AO36: 0 | AP36: 0 | AQ36: 0 | AR36: 0 | AS36: 0 | AT36: 0 | AU36: 0 | AV36: 0 | AW36: 0 | AX36: 0 | AY36: 0 | AZ36: 0 | BA36: 0 | BB36: 0 | BC36: 0 | BD36: 7586 | BE36: 0 | BF36: 0 | BG36: 0 | BH36: 0 | BI36: 0 | BJ36: 0 | BK36: 0 | BL36: 0 | BM36: 0 | BN36: 0 | BO36: 7586 | BP36: 0 | BQ36: 0 | BR36: - | BS36: - | BT36: 0 | BU36: 0 | BV36: 0 | BW36: 0 | BX36: 0 | BY36: 0 | BZ36: 0 | CA36: 0 | CB36: 0 | CC36: 0 | CD36: 0 | CE36: 0 | CF36: 0 | CG36: 0 | CH36: 0 | CI36: 0
A37: Wood, pulp and paper | B37: Consolidated | C37: PAPEL | AQ37: 0 | AR37: 0 | AS37: 0 | AT37: 0 | AU37: 0 | AV37: 0 | AW37: 0 | AX37: 0 | AY37: 0 | AZ37: 0 | BA37: 0 | BB37: 0 | BC37: 0 | BD37: 0 | BE37: 0 | BF37: 0 | BG37: 0 | BH37: 0 | BI37: 0 | BJ37: 0 | BK37: 0 | BL37: 0 | BM37: 0 | BN37: 0 | BO37: 0 | BP37: 0 | BQ37: 0 | BR37: - | BS37: - | BT37: 0 | BU37: 0 | BV37: 0 | BW37: 0 | BX37: 0 | BY37: 0 | BZ37: 0 | CA37: 0 | CB37: 0 | CC37: 0 | CD37: 0 | CE37: 0 | CF37: 0 | CG37: 0 | CH37: 0 | CI37: 0
A38: Steel and mining | B38: Consolidated | C38: SIDERÚRGICOS (IND) | D38: 47330638 | E38: 3327398 | F38: 6986037 | G38: 4584030 | H38: 4964952 | I38: 1503263 | J38: 1511249 | K38: 5233055 | L38: 4497976 | M38: 3004817 | N38: 6236193 | O38: 2705094 | P38: 2776574 | Q38: 99355137 | R38: 1351774 | S38: 2991537 | T38: 5472342 | U38: 7362522 | V38: 9456398 | W38: 9641139 | X38: 9942469 | Y38: 11664983 | Z38: 11504929 | AA38: 11336617 | AB38: 9598729 | AC38: 9031698 | AD38: 115396150 | AE38: 9637956 | AF38: 5899283 | AG38: 8720726 | AH38: 8202174 | AI38: 12111783 | AJ38: 11978353 | AK38: 14318690 | AL38: 13109318 | AM38: 7393163 | AN38: 6295433 | AO38: 7951065 | AP38: 9778206 | AQ38: 105887774 | AR38: 9015743 | AS38: 10242271 | AT38: 3931707 | AU38: 7929702 | AV38: 9522398 | AW38: 12974512 | AX38: 9976710 | AY38: 11571206 | AZ38: 9803417 | BA38: 12906107 | BB38: 6469831 | BC38: 1544170 | BD38: 55315016 | BE38: 8882776 | BF38: 1277841 | BG38: 10240956 | BH38: 8534986 | BI38: 2059951 | BJ38: 3489001 | BK38: 5467017 | BL38: 1948860 | BM38: 2509488 | BN38: 0 | BO38: 4688048 | BP38: 6216092 | BQ38: 77094022 | BR38: 4645473 | BS38: 1516090 | BT38: 8539391 | BU38: 6853327 | BV38: 11573945 | BW38: 9184858 | BX38: 9288762 | BY38: 312238 | BZ38: 0 | CA38: 6883430 | CB38: 9393890 | CC38: 8902618 | CD38: 19197341 | CE38: 7646110 | CF38: 0 | CG38: 9088507 | CH38: 2462724 | CI38: 0
A39: Fuels | B39: Consolidated | C39: GRUPO - LÍQUIDOS | D39: 4329997668 | E39: 304528192 | F39: 313673640 | G39: 344908453 | H39: 326612966 | I39: 352501885 | J39: 383092123 | K39: 390003184 | L39: 402937368 | M39: 418991251 | N39: 410548983 | O39: 346348451 | P39: 335851172 | Q39: 4364294369 | R39: 359972756 | S39: 333181393 | T39: 354093247 | U39: 310523490 | V39: 351239704 | W39: 359251788 | X39: 405107140 | Y39: 405437501 | Z39: 373229591 | AA39: 435920450 | AB39: 343304428 | AC39: 333032881 | AD39: 4539791154 | AE39: 343267519 | AF39: 358307727 | AG39: 366140998 | AH39: 317020236 | AI39: 323028589 | AJ39: 419617759 | AK39: 424872105 | AL39: 414196825 | AM39: 420478374 | AN39: 395863207 | AO39: 375879340 | AP39: 381118475 | AQ39: 4688349715 | AR39: 385145746 | AS39: 368105207 | AT39: 364211564 | AU39: 347685044 | AV39: 383328748 | AW39: 396563898 | AX39: 438705982 | AY39: 443071275 | AZ39: 422165135 | BA39: 427616642 | BB39: 370226675 | BC39: 341523799 | BD39: 4367273976 | BE39: 357433980 | BF39: 358491852 | BG39: 276223203 | BH39: 202531893 | BI39: 342914323 | BJ39: 335571002 | BK39: 386149519 | BL39: 384691302 | BM39: 428047414 | BN39: 456429525 | BO39: 428881688 | BP39: 409908275 | BQ39: 5298389698 | BR39: 413447622 | BS39: 415119052 | BT39: 419057494 | BU39: 410499497 | BV39: 446948719 | BW39: 448642361 | BX39: 465192453 | BY39: 478223624 | BZ39: 470942395 | CA39: 478704253 | CB39: 418278448 | CC39: 433333780 | CD39: 2351649312 | CE39: 454960723 | CF39: 458145087 | CG39: 471898210 | CH39: 453685545 | CI39: 512959747
B40: Consolidated | C40: GRUPO - OUTROS | AQ40: 3 | AR40: 0 | AS40: 0 | AT40: 0 | AU40: 0 | AV40: 0 | AW40: 0 | AX40: 0 | AY40: 0 | AZ40: 0 | BA40: 1 | BB40: 0 | BC40: 2 | BD40: 46 | BE40: 2 | BF40: 4 | BG40: 4 | BH40: 4 | BI40: 4 | BJ40: 4 | BK40: 4 | BL40: 4 | BM40: 4 | BN40: 4 | BO40: 4 | BP40: 4 | BQ40: 27 | BR40: 6 | BS40: 4 | BT40: 4 | BU40: 3 | BV40: 3 | BW40: 1 | BX40: 1 | BY40: 1 | BZ40: 1 | CA40: 1 | CB40: 1 | CC40: 1 | CD40: 6 | CE40: 1 | CF40: 1 | CG40: 1 | CH40: 2 | CI40: 1
B41: North | C41: Total Produto | AQ41: 44893337961 | AR41: 3120274334 | AS41: 2913643210 | AT41: 3840499256 | AU41: 3471864485 | AV41: 3130542893 | AW41: 4266686217 | AX41: 4665451529 | AY41: 4317726806 | AZ41: 3948703438 | BA41: 4132442121 | BB41: 4209967626 | BC41: 2875536046 | BD41: 47927957824 | BE41: 2814419794 | BF41: 4001241182 | BG41: 2764831008 | BH41: 4040170514 | BI41: 4331176837 | BJ41: 4152160403 | BK41: 4750059681 | BL41: 4337350771 | BM41: 4220248052 | BN41: 4380910322 | BO41: 4057765514 | BP41: 4077623746 | BQ41: 49813167620 | BR41: 2026076156 | BS41: 4303617503 | BT41: 4736982117 | BU41: 4581694293 | BV41: 4745631843 | BW41: 4341121536 | BX41: 4937063606 | BY41: 4139059291 | BZ41: 3430124250 | CA41: 3886143715 | CB41: 4319061063 | CC41: 4366592247 | CD41: 25478527767 | CE41: 4334722407 | CF41: 5209228522 | CG41: 5518761320 | CH41: 5113597409 | CI41: 5302218109
A42: Sugar | B42: North | C42: GRUPO - AÇÚCAR | D42: 2653566833 | E42: 114162274 | F42: 130724200 | G42: 102560156 | H42: 86993835 | I42: 242652566 | J42: 356961659 | K42: 206041495 | L42: 231280154 | M42: 240734575 | N42: 387554702 | O42: 330176061 | P42: 223725156 | Q42: 1519198944 | R42: 177465428 | S42: 69871586 | T42: 41425065 | U42: 88620569 | V42: 279497777 | W42: 170192640 | X42: 84577684 | Y42: 107523976 | Z42: 116958449 | AA42: 112038514 | AB42: 117008639 | AC42: 154018617 | AD42: 1740864052 | AE42: 233978546 | AF42: 128996850 | AG42: 101513181 | AH42: 75403311 | AI42: 223435970 | AJ42: 224783423 | AK42: 115660204 | AL42: 104162027 | AM42: 149057058 | AN42: 188454785 | AO42: 107391594 | AP42: 88027103 | AQ42: 1432196538 | AR42: 122351917 | AS42: 54639006 | AT42: 114065594 | AU42: 140667081 | AV42: 178610283 | AW42: 106232936 | AX42: 85466035 | AY42: 75016852 | AZ42: 116453372 | BA42: 96988008 | BB42: 70955101 | BC42: 270750353 | BD42: 2678654427 | BE42: 151529409 | BF42: 130163203 | BG42: 87833974 | BH42: 130076388 | BI42: 200064834 | BJ42: 157707584 | BK42: 130564837 | BL42: 261944022 | BM42: 352608901 | BN42: 427832381 | BO42: 369855550 | BP42: 278473344 | BQ42: 2266968359 | BR42: 245050447 | BS42: 21477309 | BT42: 44867139 | BU42: 118036126 | BV42: 284832162 | BW42: 271310376 | BX42: 112453960 | BY42: 209378479 | BZ42: 318887843 | CA42: 260253693 | CB42: 252157826 | CC42: 128262999 | CD42: 408535938 | CE42: 111891079 | CF42: 21725376 | CG42: 74732007 | CH42: 42339318 | CI42: 157848158
A43: Containers | B43: North | C43: GRUPO - BRADO | D43: 1006648102 | E43: 80313919 | F43: 89996016 | G43: 100311275 | H43: 91571785 | I43: 97752010 | J43: 83559245 | K43: 89412357 | L43: 75172216 | M43: 69164680 | N43: 75906739 | O43: 80897017 | P43: 72590843 | Q43: 1290582508 | R43: 87411944 | S43: 63344561 | T43: 65941494 | U43: 89891550 | V43: 115268207 | W43: 123953000 | X43: 128026371 | Y43: 145190832 | Z43: 130634109 | AA43: 135364131 | AB43: 110149416 | AC43: 95406893 | AD43: 1732141452 | AE43: 44228946 | AF43: 163769291 | AG43: 157476452 | AH43: 163118955 | AI43: 127688865 | AJ43: 128941685 | AK43: 176466618 | AL43: 179560031 | AM43: 159889303 | AN43: 147097506 | AO43: 139534655 | AP43: 144369145 | AQ43: 2048215868 | AR43: 133647746 | AS43: 120810840 | AT43: 180563662 | AU43: 174528241 | AV43: 169211507 | AW43: 150206234 | AX43: 176776755 | AY43: 192412243 | AZ43: 186461968 | BA43: 179937373 | BB43: 199214851 | BC43: 184444448 | BD43: 2065754980 | BE43: 164529498 | BF43: 163333020 | BG43: 172201045 | BH43: 124373599 | BI43: 112287685 | BJ43: 171109559 | BK43: 181073235 | BL43: 178257746 | BM43: 193708592 | BN43: 192476160 | BO43: 213076598 | BP43: 199328243 | BQ43: 2477736401 | BR43: 172370169 | BS43: 161965007 | BT43: 166565706 | BU43: 204521034 | BV43: 199751544 | BW43: 219821299 | BX43: 224518297 | BY43: 254207065 | BZ43: 225184436 | CA43: 212111058 | CB43: 208277214 | CC43: 228443572 | CD43: 1082919988 | CE43: 190346306 | CF43: 215853583 | CG43: 233815236 | CH43: 217931137 | CI43: 224973726
A44: Fertilizers | B44: North | C44: GRUPO - FERTILIZANTES | D44: 0 | E44: 0 | F44: 0 | G44: 0 | H44: 0 | I44: 0 | J44: 0 | K44: 0 | L44: 0 | M44: 0 | N44: 0 | O44: 0 | P44: 0 | Q44: 0 | R44: 0 | S44: 0 | T44: 0 | U44: 0 | V44: 0 | W44: 0 | X44: 0 | Y44: 0 | Z44: 0 | AA44: 0 | AB44: 0 | AC44: 0 | AD44: 1157650235 | AE44: 0 | AF44: 0 | AG44: 0 | AH44: 2467047 | AI44: 64802734 | AJ44: 75318218 | AK44: 184063981 | AL44: 180525442 | AM44: 87010831 | AN44: 116635802 | AO44: 172102502 | AP44: 274723678 | AQ44: 2865820287 | AR44: 177628474 | AS44: 123625083 | AT44: 164557460 | AU44: 216852398 | AV44: 305831356 | AW44: 290615819 | AX44: 335418279 | AY44: 267339750 | AZ44: 106771666 | BA44: 225662752 | BB44: 274704641 | BC44: 376812609 | BD44: 3908618941 | BE44: 302451687 | BF44: 248778634 | BG44: 117898807 | BH44: 295673549 | BI44: 393429090 | BJ44: 366367788 | BK44: 392956371 | BL44: 264292646 | BM44: 290314702 | BN44: 419985494 | BO44: 407362878 | BP44: 409107295 | BQ44: 4410087933 | BR44: 427860782 | BS44: 368102753 | BT44: 242237557 | BU44: 248889003 | BV44: 256377438 | BW44: 257537432 | BX44: 538968071 | BY44: 522331728 | BZ44: 391926022 | CA44: 431448535 | CB44: 359762485 | CC44: 364646127 | CD44: 1618532907 | CE44: 296687640 | CF44: 377221012 | CG44: 353822115 | CH44: 155815182 | CI44: 434986958
B45: North | C45: GRUPO - GRÃOS | D45: 21586398881 | E45: 1781450591 | F45: 1900009710 | G45: 2446255311 | H45: 2559372323 | I45: 2039619266 | J45: 1287380510 | K45: 2257959496 | L45: 2282688163 | M45: 2103298624 | N45: 962341151 | O45: 849151231 | P45: 1116872505 | Q45: 29848922585 | R45: 1209152106 | S45: 2250796735 | T45: 2692836335 | U45: 2489566054 | V45: 2360645036 | W45: 2356999059 | X45: 2720626342 | Y45: 2883548890 | Z45: 2677511429 | AA45: 2936783973 | AB45: 2738469771 | AC45: 2531986855 | AD45: 3.275887153e+10 | AE45: 1556161428 | AF45: 2512380228 | AG45: 2916980948 | AH45: 2827789692 | AI45: 2175933693 | AJ45: 2591315036 | AK45: 3051850628 | AL45: 3239508225 | AM45: 3137575889 | AN45: 2695969821 | AO45: 3202736467 | AP45: 2850669480 | AQ45: 34695118621 | AR45: 2354081506 | AS45: 2335949626 | AT45: 3074830006 | AU45: 2650409847 | AV45: 2164329898 | AW45: 3400693380 | AX45: 3726297485 | AY45: 3453881204 | AZ45: 3199562045 | BA45: 3274771614 | BB45: 3337496660 | BC45: 1722815350 | BD45: 34848956116 | BE45: 1856357955 | BF45: 3117630520 | BG45: 2078722617 | BH45: 3253709401 | BI45: 3247219551 | BJ45: 3098512540 | BK45: 3652379870 | BL45: 3243539684 | BM45: 2955121558 | BN45: 2887485522 | BO45: 2632611316 | BP45: 2825665582 | BQ45: 35382904681 | BR45: 790107284 | BS45: 3356057981 | BT45: 3873438642 | BU45: 3597073870 | BV45: 3571904877 | BW45: 3157180764 | BX45: 3599556631 | BY45: 2661731699 | BZ45: 2025376871 | CA45: 2489299420 | CB45: 3067051123 | CC45: 3194125519 | CD45: 19847412956 | CE45: 3265549197 | CF45: 4099270624 | CG45: 4328103996 | CH45: 4203907537 | CI45: 3950581602
B46: North | C46: ARROZ (GRANEL) | AQ46: 0 | AR46: 0 | AS46: 0 | AT46: 0 | AU46: 0 | AV46: 0 | AW46: 0 | AX46: 0 | AY46: 0 | AZ46: 0 | BA46: 0 | BB46: 0 | BC46: 0 | BD46: 0 | BE46: 0 | BF46: 0 | BG46: 0 | BH46: 0 | BI46: 0 | BJ46: 0 | BK46: 0 | BL46: 0 | BM46: 0 | BN46: 0 | BO46: 0 | BP46: 0 | BQ46: 0 | BR46: - | BS46: - | BT46: 0 | BU46: 0 | BV46: 0 | BW46: 0 | BX46: 0 | BY46: 0 | BZ46: 0 | CA46: 0 | CB46: 0 | CC46: 0 | CD46: 0 | CE46: 0 | CF46: 0 | CG46: 0 | CH46: 0 | CI46: 0
A47: Soybean meal | B47: North | C47: FARELO | D47: 4423007148 | E47: 193678377 | F47: 367783020 | G47: 448916552 | H47: 492667155 | I47: 489188134 | J47: 430945423 | K47: 318436351 | L47: 287095716 | M47: 288844467 | N47: 336430772 | O47: 393091784 | P47: 375929397 | Q47: 5478568850 | R47: 376936122 | S47: 383876280 | T47: 484933614 | U47: 552178829 | V47: 485317783 | W47: 407730849 | X47: 487181295 | Y47: 403707540 | Z47: 408604791 | AA47: 506955395 | AB47: 479734531 | AC47: 501411821 | AD47: 5842847377 | AE47: 411597834 | AF47: 487858802 | AG47: 541378769 | AH47: 587368580 | AI47: 448932085 | AJ47: 535740238 | AK47: 454516415 | AL47: 440809483 | AM47: 483767091 | AN47: 441058649 | AO47: 462549006 | AP47: 547270425 | AQ47: 6145134981 | AR47: 423338642 | AS47: 410199022 | AT47: 570301515 | AU47: 578448165 | AV47: 529770737 | AW47: 548136369 | AX47: 520453233 | AY47: 445081033 | AZ47: 474598482 | BA47: 510827643 | BB47: 590555140 | BC47: 543425000 | BD47: 6886159379 | BE47: 363276025 | BF47: 509029791 | BG47: 486277298 | BH47: 631979578 | BI47: 560637374 | BJ47: 593687312 | BK47: 634418399 | BL47: 648878840 | BM47: 589678251 | BN47: 650993694 | BO47: 569981060 | BP47: 647321757 | BQ47: 7777279887 | BR47: 420956546 | BS47: 585143809 | BT47: 646234334 | BU47: 714946179 | BV47: 681841556 | BW47: 749918903 | BX47: 776801909 | BY47: 668292667 | BZ47: 606388208 | CA47: 504978270 | CB47: 709671133 | CC47: 712106373 | CD47: 3847688679 | CE47: 616911704 | CF47: 681605462 | CG47: 842747164 | CH47: 888108494 | CI47: 818315855
A48: Corn meal | B48: North | C48: FARELO DE MILHO | AQ48: 20738520 | AR48: 0 | AS48: 0 | AT48: 0 | AU48: 0 | AV48: 0 | AW48: 0 | AX48: 0 | AY48: 0 | AZ48: 0 | BA48: 0 | BB48: 0 | BC48: 20738520 | BD48: 18105539 | BE48: 18105539 | BF48: 0 | BG48: 0 | BH48: 0 | BI48: 0 | BJ48: 0 | BK48: 0 | BL48: 0 | BM48: 0 | BN48: 0 | BO48: 0 | BP48: 0 | BQ48: 0 | BR48: - | BS48: - | BT48: 0 | BU48: 0 | BV48: 0 | BW48: 0 | BX48: 0 | BY48: 0 | BZ48: 0 | CA48: 0 | CB48: 0 | CC48: 0 | CD48: 0 | CE48: 0 | CF48: 0 | CG48: 0 | CH48: 0 | CI48: 0
A49: Malt | B49: North | C49: MALTE | AQ49: 0 | AR49: 0 | AS49: 0 | AT49: 0 | AU49: 0 | AV49: 0 | AW49: 0 | AX49: 0 | AY49: 0 | AZ49: 0 | BA49: 0 | BB49: 0 | BC49: 0 | BD49: 0 | BE49: 0 | BF49: 0 | BG49: 0 | BH49: 0 | BI49: 0 | BJ49: 0 | BK49: 0 | BL49: 0 | BM49: 0 | BN49: 0 | BO49: 0 | BP49: 0 | BQ49: 0 | BR49: - | BS49: - | BT49: 0 | BU49: 0 | BV49: 0 | BW49: 0 | BX49: 0 | BY49: 0 | BZ49: 0 | CA49: 0 | CB49: 0 | CC49: 0 | CD49: 0 | CE49: 0 | CF49: 0 | CG49: 0 | CH49: 0 | CI49: 0
A50: Corn | B50: North | C50: MILHO | D50: 9279823129 | E50: 1467549536 | F50: 83340510 | G50: 215911 | H50: 0 | I50: 0 | J50: 342919621 | K50: 1895258647 | L50: 1995592447 | M50: 1814454157 | N50: 625910379 | O50: 433792284 | P50: 620789637 | Q50: 14750410951 | R50: 95217816 | S50: 236173 | T50: 0 | U50: 0 | V50: 8570985 | W50: 1222626774 | X50: 2076879188 | Y50: 2358834525 | Z50: 2268906638 | AA50: 2429828578 | AB50: 2258735240 | AC50: 2030575034 | AD50: 15827199318 | AE50: 449726126 | AF50: 60345404 | AG50: 0 | AH50: 0 | AI50: 33263967 | AJ50: 327834185 | AK50: 2338284778 | AL50: 2729308960 | AM50: 2633316732 | AN50: 2236974232 | AO50: 2714745879 | AP50: 2303399055 | AQ50: 17200169987 | AR50: 311415483 | AS50: 0 | AT50: 0 | AU50: 0 | AV50: 73686267 | AW50: 2404180160 | AX50: 3047943378 | AY50: 2859489239 | AZ50: 2603795059 | BA50: 2501574468 | BB50: 2312322219 | BC50: 1085763714 | BD50: 15377221316 | BE50: 2202418 | BF50: 0 | BG50: 0 | BH50: 0 | BI50: 0 | BJ50: 1431483015 | BK50: 2655903322 | BL50: 2522561961 | BM50: 2287604691 | BN50: 2236491828 | BO50: 2062630256 | BP50: 2178343825 | BQ50: 12148339277 | BR50: 46987066 | BS50: -4101496 | BT50: 0 | BU50: 0 | BV50: 0 | BW50: 507410742 | BX50: 2759041096 | BY50: 1917279679 | BZ50: 1271083418 | CA50: 1665927635 | CB50: 1765215891 | CC50: 2219495246 | CD50: 1257159831 | CE50: 902488451 | CF50: 68266851 | CG50: 0 | CH50: 212223158 | CI50: 74181371
A51: Soybean | B51: North | C51: SOJA | D51: 7883568604 | E51: 120222678 | F51: 1448886180 | G51: 1997122848 | H51: 2066705168 | I51: 1550431132 | J51: 513515466 | K51: 44264498 | L51: 0 | M51: 0 | N51: 0 | O51: 22267163 | P51: 120153471 | Q51: 9619942784 | R51: 736998168 | S51: 1866684282 | T51: 2207902721 | U51: 1937387225 | V51: 1866756268 | W51: 726641436 | X51: 156565859 | Y51: 121006825 | Z51: 0 | AA51: 0 | AB51: 0 | AC51: 0 | AD51: 11088824840 | AE51: 694837468 | AF51: 1964176022 | AG51: 2375602179 | AH51: 2240421112 | AI51: 1693737641 | AJ51: 1727740613 | AK51: 259049435 | AL51: 69389782 | AM51: 20492066 | AN51: 17936940 | AO51: 25441582 | AP51: 0 | AQ51: 11329075133 | AR51: 1619327381 | AS51: 1925750604 | AT51: 2504528491 | AU51: 2071961682 | AV51: 1560872894 | AW51: 448376851 | AX51: 157900874 | AY51: 149310932 | AZ51: 121168504 | BA51: 262369503 | BB51: 434619301 | BC51: 72888116 | BD51: 12567469882 | BE51: 1472773973 | BF51: 2608600729 | BG51: 1592445319 | BH51: 2621729823 | BI51: 2686582177 | BJ51: 1073342213 | BK51: 362058149 | BL51: 72098883 | BM51: 77838616 | BN51: 0 | BO51: 0 | BP51: 0 | BQ51: 15457285517 | BR51: 322163672 | BS51: 2775015668 | BT51: 3227204308 | BU51: 2882127691 | BV51: 2890063321 | BW51: 1899851119 | BX51: 63713626 | BY51: 76159353 | BZ51: 147905245 | CA51: 318393515 | CB51: 592164099 | CC51: 262523900 | CD51: 14742564446 | CE51: 1746149042 | CF51: 3349398311 | CG51: 3485356832 | CH51: 3103575885 | CI51: 3058084376
A52: Wheat | B52: North | C52: TRIGO | AQ52: =SUM(AR52:BC52) -> 0 | AR52: 0 | AS52: 0 | AT52: 0 | AU52: 0 | AV52: 0 | AW52: 0 | AX52: 0 | AY52: 0 | AZ52: 0 | BA52: 0 | BB52: 0 | BC52: 0 | BD52: =SUM(BE52:BP52) -> 0 | BE52: 0 | BF52: 0 | BG52: 0 | BH52: 0 | BI52: 0 | BJ52: 0 | BK52: 0 | BL52: 0 | BM52: 0 | BN52: 0 | BO52: 0 | BP52: 0 | BQ52: 0 | BR52: - | BS52: - | BT52: 0 | BU52: 0 | BV52: 0 | BW52: 0 | BX52: 0 | BY52: 0 | BZ52: 0 | CA52: 0 | CB52: 0 | CC52: 0 | CD52: 0 | CE52: 0 | CF52: 0 | CG52: 0 | CH52: 0 | CI52: 0
A53: Soybean | B53: North | C53: ÓLEO VEGETAL | AQ53: 0 | AR53: 0 | AS53: 0 | AT53: 0 | AU53: 0 | AV53: 0 | AW53: 0 | AX53: 0 | AY53: 0 | AZ53: 0 | BA53: 0 | BB53: 0 | BC53: 0 | BD53: 0 | BE53: 0 | BF53: 0 | BG53: 0 | BH53: 0 | BI53: 0 | BJ53: 0 | BK53: 0 | BL53: 0 | BM53: 0 | BN53: 0 | BO53: 0 | BP53: 0 | BQ53: 0 | BR53: - | BS53: - | BT53: 0 | BU53: 0 | BV53: 0 | BW53: 0 | BX53: 0 | BY53: 0 | BZ53: 0 | CA53: 0 | CB53: 0 | CC53: 0 | CD53: 0 | CE53: 0 | CF53: 0 | CG53: 0 | CH53: 0 | CI53: 0
B54: North | C54: GRUPO - INDUSTRIAL | D54: 29531823 | E54: 13831614 | F54: 14401249 | G54: 860898 | H54: 438062 | I54: 0 | J54: 0 | K54: 0 | L54: 0 | M54: 0 | N54: 0 | O54: 0 | P54: 0 | Q54: 168192431 | R54: 0 | S54: 0 | T54: 0 | U54: 0 | V54: 0 | W54: 0 | X54: 0 | Y54: 0 | Z54: 0 | AA54: 28426654 | AB54: 62728277 | AC54: 77037500 | AD54: 1163357124 | AE54: 68292558 | AF54: 67976253 | AG54: 95264947 | AH54: 64045188 | AI54: 84316610 | AJ54: 95016535 | AK54: 95178266 | AL54: 118682862 | AM54: 108359282 | AN54: 121621164 | AO54: 121621165 | AP54: 122982294 | AQ54: 1457132603 | AR54: 117837067 | AS54: 87871504 | AT54: 120364590 | AU54: 127828508 | AV54: 123642793 | AW54: 111674753 | AX54: 117577907 | AY54: 111458707 | AZ54: 127326846 | BA54: 140121410 | BB54: 130965777 | BC54: 140462741 | BD54: 1802789349 | BE54: 139977246 | BF54: 136904676 | BG54: 128017390 | BH54: 149560624 | BI54: 166061583 | BJ54: 164224915 | BK54: 156265718 | BL54: 153533605 | BM54: 159924908 | BN54: 165670250 | BO54: 170801515 | BP54: 111846919 | BQ54: 1894613342 | BR54: 136881319 | BS54: 137533041 | BT54: 162453901 | BU54: 148107456 | BV54: 155138456 | BW54: 143425612 | BX54: 159019983 | BY54: 179663840 | BZ54: 166330686 | CA54: 178730335 | CB54: 166642053 | CC54: 160686660 | CD54: 925846752 | CE54: 160615888 | CF54: 175461051 | CG54: 210273075 | CH54: 184502103 | CI54: 194994635
A55: Wood, pulp and paper | B55: North | C55: ARROZ (ENSACADO) | AQ55: 0 | AR55: 0 | AS55: 0 | AT55: 0 | AU55: 0 | AV55: 0 | AW55: 0 | AX55: 0 | AY55: 0 | AZ55: 0 | BA55: 0 | BB55: 0 | BC55: 0 | BD55: 0 | BE55: 0 | BF55: 0 | BG55: 0 | BH55: 0 | BI55: 0 | BJ55: 0 | BK55: 0 | BL55: 0 | BM55: 0 | BN55: 0 | BO55: 0 | BP55: 0 | BQ55: 0 | BR55: - | BS55: - | BT55: 0 | BU55: 0 | BV55: 0 | BW55: 0 | BX55: 0 | BY55: 0 | BZ55: 0 | CA55: 0 | CB55: 0 | CC55: 0 | CD55: 0 | CE55: 0 | CF55: 0 | CG55: 0 | CH55: 0 | CI55: 0
A56: Wood, pulp and paper | B56: North | C56: CALCÁREO (IND) | AQ56: 0 | AR56: 0 | AS56: 0 | AT56: 0 | AU56: 0 | AV56: 0 | AW56: 0 | AX56: 0 | AY56: 0 | AZ56: 0 | BA56: 0 | BB56: 0 | BC56: 0 | BD56: 0 | BE56: 0 | BF56: 0 | BG56: 0 | BH56: 0 | BI56: 0 | BJ56: 0 | BK56: 0 | BL56: 0 | BM56: 0 | BN56: 0 | BO56: 0 | BP56: 0 | BQ56: 0 | BR56: - | BS56: - | BT56: 0 | BU56: 0 | BV56: 0 | BW56: 0 | BX56: 0 | BY56: 0 | BZ56: 0 | CA56: 0 | CB56: 0 | CC56: 0 | CD56: 0 | CE56: 0 | CF56: 0 | CG56: 0 | CH56: 0 | CI56: 0
A57: Wood, pulp and paper | B57: North | C57: CELULOSE | D57: 27736742 | E57: 13831614 | F57: 13905128 | G57: 0 | H57: 0 | I57: 0 | J57: 0 | K57: 0 | L57: 0 | M57: 0 | N57: 0 | O57: 0 | P57: 0 | Q57: 168192431 | R57: 0 | S57: 0 | T57: 0 | U57: 0 | V57: 0 | W57: 0 | X57: 0 | Y57: 0 | Z57: 0 | AA57: 28426654 | AB57: 62728277 | AC57: 77037500 | AD57: 1163357124 | AE57: 68292558 | AF57: 67976253 | AG57: 95264947 | AH57: 64045188 | AI57: 84316610 | AJ57: 95016535 | AK57: 95178266 | AL57: 118682862 | AM57: 108359282 | AN57: 121621164 | AO57: 121621165 | AP57: 122982294 | AQ57: 1457132603 | AR57: 117837067 | AS57: 87871504 | AT57: 120364590 | AU57: 127828508 | AV57: 123642793 | AW57: 111674753 | AX57: 117577907 | AY57: 111458707 | AZ57: 127326846 | BA57: 140121410 | BB57: 130965777 | BC57: 140462741 | BD57: 1802789349 | BE57: 139977246 | BF57: 136904676 | BG57: 128017390 | BH57: 149560624 | BI57: 166061583 | BJ57: 164224915 | BK57: 156265718 | BL57: 153533605 | BM57: 159924908 | BN57: 165670250 | BO57: 170801515 | BP57: 111846919 | BQ57: 1894613342 | BR57: 136881319 | BS57: 137533041 | BT57: 162453901 | BU57: 148107456 | BV57: 155138456 | BW57: 143425612 | BX57: 159019983 | BY57: 179663840 | BZ57: 166330686 | CA57: 178730335 | CB57: 166642053 | CC57: 160686660 | CD57: 925846752 | CE57: 160615888 | CF57: 175461051 | CG57: 210273075 | CH57: 184502103 | CI57: 194994635
A58: Construction | B58: North | C58: CIMENTO | AQ58: 0 | AR58: 0 | AS58: 0 | AT58: 0 | AU58: 0 | AV58: 0 | AW58: 0 | AX58: 0 | AY58: 0 | AZ58: 0 | BA58: 0 | BB58: 0 | BC58: 0 | BD58: 0 | BE58: 0 | BF58: 0 | BG58: 0 | BH58: 0 | BI58: 0 | BJ58: 0 | BK58: 0 | BL58: 0 | BM58: 0 | BN58: 0 | BO58: 0 | BP58: 0 | BQ58: 0 | BR58: - | BS58: - | BT58: 0 | BU58: 0 | BV58: 0 | BW58: 0 | BX58: 0 | BY58: 0 | BZ58: 0 | CA58: 0 | CB58: 0 | CC58: 0 | CD58: 0 | CE58: 0 | CF58: 0 | CG58: 0 | CH58: 0 | CI58: 0
A59: Construction | B59: North | C59: CLINQUER | AQ59: 0 | AR59: 0 | AS59: 0 | AT59: 0 | AU59: 0 | AV59: 0 | AW59: 0 | AX59: 0 | AY59: 0 | AZ59: 0 | BA59: 0 | BB59: 0 | BC59: 0 | BD59: 0 | BE59: 0 | BF59: 0 | BG59: 0 | BH59: 0 | BI59: 0 | BJ59: 0 | BK59: 0 | BL59: 0 | BM59: 0 | BN59: 0 | BO59: 0 | BP59: 0 | BQ59: 0 | BR59: - | BS59: - | BT59: 0 | BU59: 0 | BV59: 0 | BW59: 0 | BX59: 0 | BY59: 0 | BZ59: 0 | CA59: 0 | CB59: 0 | CC59: 0 | CD59: 0 | CE59: 0 | CF59: 0 | CG59: 0 | CH59: 0 | CI59: 0
A60: Wood, pulp and paper | B60: North | C60: MADEIRA | AQ60: 0 | AR60: 0 | AS60: 0 | AT60: 0 | AU60: 0 | AV60: 0 | AW60: 0 | AX60: 0 | AY60: 0 | AZ60: 0 | BA60: 0 | BB60: 0 | BC60: 0 | BD60: 0 | BE60: 0 | BF60: 0 | BG60: 0 | BH60: 0 | BI60: 0 | BJ60: 0 | BK60: 0 | BL60: 0 | BM60: 0 | BN60: 0 | BO60: 0 | BP60: 0 | BQ60: 0 | BR60: - | BS60: - | BT60: 0 | BU60: 0 | BV60: 0 | BW60: 0 | BX60: 0 | BY60: 0 | BZ60: 0 | CA60: 0 | CB60: 0 | CC60: 0 | CD60: 0 | CE60: 0 | CF60: 0 | CG60: 0 | CH60: 0 | CI60: 0
A61: Steel and mining | B61: North | C61: MINÉRIO | AQ61: 0 | AR61: 0 | AS61: 0 | AT61: 0 | AU61: 0 | AV61: 0 | AW61: 0 | AX61: 0 | AY61: 0 | AZ61: 0 | BA61: 0 | BB61: 0 | BC61: 0 | BD61: 0 | BE61: 0 | BF61: 0 | BG61: 0 | BH61: 0 | BI61: 0 | BJ61: 0 | BK61: 0 | BL61: 0 | BM61: 0 | BN61: 0 | BO61: 0 | BP61: 0 | BQ61: 0 | BR61: - | BS61: - | BT61: 0 | BU61: 0 | BV61: 0 | BW61: 0 | BX61: 0 | BY61: 0 | BZ61: 0 | CA61: 0 | CB61: 0 | CC61: 0 | CD61: 0 | CE61: 0 | CF61: 0 | CG61: 0 | CH61: 0 | CI61: 0
A62: Wood, pulp and paper | B62: North | C62: OUTROS (IND) | AQ62: 0 | AR62: 0 | AS62: 0 | AT62: 0 | AU62: 0 | AV62: 0 | AW62: 0 | AX62: 0 | AY62: 0 | AZ62: 0 | BA62: 0 | BB62: 0 | BC62: 0 | BD62: 0 | BE62: 0 | BF62: 0 | BG62: 0 | BH62: 0 | BI62: 0 | BJ62: 0 | BK62: 0 | BL62: 0 | BM62: 0 | BN62: 0 | BO62: 0 | BP62: 0 | BQ62: 0 | BR62: - | BS62: - | BT62: 0 | BU62: 0 | BV62: 0 | BW62: 0 | BX62: 0 | BY62: 0 | BZ62: 0 | CA62: 0 | CB62: 0 | CC62: 0 | CD62: 0 | CE62: 0 | CF62: 0 | CG62: 0 | CH62: 0 | CI62: 0
A63: Wood, pulp and paper | B63: North | C63: PAPEL | AQ63: 0 | AR63: 0 | AS63: 0 | AT63: 0 | AU63: 0 | AV63: 0 | AW63: 0 | AX63: 0 | AY63: 0 | AZ63: 0 | BA63: 0 | BB63: 0 | BC63: 0 | BD63: 0 | BE63: 0 | BF63: 0 | BG63: 0 | BH63: 0 | BI63: 0 | BJ63: 0 | BK63: 0 | BL63: 0 | BM63: 0 | BN63: 0 | BO63: 0 | BP63: 0 | BQ63: 0 | BR63: - | BS63: - | BT63: 0 | BU63: 0 | BV63: 0 | BW63: 0 | BX63: 0 | BY63: 0 | BZ63: 0 | CA63: 0 | CB63: 0 | CC63: 0 | CD63: 0 | CE63: 0 | CF63: 0 | CG63: 0 | CH63: 0 | CI63: 0
A64: Steel and mining | B64: North | C64: SIDERÚRGICOS (IND) | D64: 1795081 | E64: 0 | F64: 496121 | G64: 860898 | H64: 438062 | I64: 0 | J64: 0 | K64: 0 | L64: 0 | M64: 0 | N64: 0 | O64: 0 | P64: 0 | Q64: 0 | R64: 0 | S64: 0 | T64: 0 | U64: 0 | V64: 0 | W64: 0 | X64: 0 | Y64: 0 | Z64: 0 | AA64: 0 | AB64: 0 | AC64: 0 | AD64: 0 | AE64: 0 | AF64: 0 | AG64: 0 | AH64: 0 | AI64: 0 | AJ64: 0 | AK64: 0 | AL64: 0 | AM64: 0 | AN64: 0 | AO64: 0 | AP64: 0 | AQ64: 0 | AR64: 0 | AS64: 0 | AT64: 0 | AU64: 0 | AV64: 0 | AW64: 0 | AX64: 0 | AY64: 0 | AZ64: 0 | BA64: 0 | BB64: 0 | BC64: 0 | BD64: 0 | BE64: 0 | BF64: 0 | BG64: 0 | BH64: 0 | BI64: 0 | BJ64: 0 | BK64: 0 | BL64: 0 | BM64: 0 | BN64: 0 | BO64: 0 | BP64: 0 | BQ64: 0 | BR64: - | BS64: - | BT64: 0 | BU64: 0 | BV64: 0 | BW64: 0 | BX64: 0 | BY64: 0 | BZ64: 0 | CA64: 0 | CB64: 0 | CC64: 0 | CD64: 0 | CE64: 0 | CF64: 0 | CG64: 0 | CH64: 0 | CI64: 0
A65: Fuels | B65: North | C65: GRUPO - LÍQUIDOS | D65: 2322753793 | E65: 163501343 | F65: 155485991 | G65: 180905049 | H65: 174405860 | I65: 186595532 | J65: 205499932 | K65: 200243816 | L65: 217126683 | M65: 235692946 | N65: 228402137 | O65: 184006100 | P65: 190888404 | Q65: 2392575792 | R65: 216343811 | S65: 200280660 | T65: 209532830 | U65: 172577407 | V65: 187913776 | W65: 213543205 | X65: 213885738 | Y65: 213732363 | Z65: 186957479 | AA65: 231945735 | AB65: 171772472 | AC65: 174090316 | AD65: 2487241596 | AE65: 184661204 | AF65: 196613620 | AG65: 199541382 | AH65: 163413611 | AI65: 178578853 | AJ65: 250731968 | AK65: 247233567 | AL65: 220870920 | AM65: 224573791 | AN65: 210833372 | AO65: 206240374 | AP65: 203948934 | AQ65: 2394854043 | AR65: 214727624 | AS65: 190747151 | AT65: 186117944 | AU65: 161578410 | AV65: 188917056 | AW65: 207263095 | AX65: 223915068 | AY65: 217618050 | AZ65: 212127541 | BA65: 214960964 | BB65: 196630596 | BC65: 180250544 | BD65: 2623183988 | BE65: 199573998 | BF65: 204431127 | BG65: 180157173 | BH65: 86776951 | BI65: 212114092 | BJ65: 194238015 | BK65: 236819648 | BL65: 235783066 | BM65: 268569389 | BN65: 287460513 | BO65: 264057655 | BP65: 253202361 | BQ65: 3380856882 | BR65: 253806150 | BS65: 258481409 | BT65: 247419169 | BU65: 265066802 | BV65: 277627364 | BW65: 291846052 | BX65: 302546663 | BY65: 311746479 | BZ65: 302418391 | CA65: 314300673 | CB65: 265170361 | CC65: 290427369 | CD65: 1595279220 | CE65: 309632296 | CF65: 319696875 | CG65: 318014890 | CH65: 309102130 | CI65: 338833029
B66: North | C66: GRUPO - OUTROS | AQ66: 1 | AR66: 0 | AS66: 0 | AT66: 0 | AU66: 0 | AV66: 0 | AW66: 0 | AX66: 0 | AY66: 0 | AZ66: 0 | BA66: 0 | BB66: 0 | BC66: 1 | BD66: 23 | BE66: 1 | BF66: 2 | BG66: 2 | BH66: 2 | BI66: 2 | BJ66: 2 | BK66: 2 | BL66: 2 | BM66: 2 | BN66: 2 | BO66: 2 | BP66: 2 | BQ66: 22 | BR66: 5 | BS66: 3 | BT66: 3 | BU66: 2 | BV66: 2 | BW66: 1 | BX66: 1 | BY66: 1 | BZ66: 1 | CA66: 1 | CB66: 1 | CC66: 1 | CD66: 6 | CE66: 1 | CF66: 1 | CG66: 1 | CH66: 2 | CI66: 1
B67: South | C67: Total Produto | D67: =SUM(D68:D71,D80,D91) -> 12670375353 | AQ67: 15202821718 | AR67: 993603519 | AS67: 1164187702 | AT67: 1273561267 | AU67: 1106518675 | AV67: 1152491820 | AW67: 1288020325 | AX67: 1511213711 | AY67: 1529218260 | AZ67: 1404597216 | BA67: 1460508034 | BB67: 1363211968 | BC67: 955689221 | BD67: 14530454094 | BE67: 753377028 | BF67: 908005890 | BG67: 1055600779 | BH67: 1190026112 | BI67: 1413109069 | BJ67: 1289932370 | BK67: 1406912234 | BL67: 1444681822 | BM67: 1387686801 | BN67: 1354485661 | BO67: 1330944527 | BP67: 995691801 | BQ67: 14214438241 | BR67: 677516791 | BS67: 745279463 | BT67: 1383842011 | BU67: 1389076881 | BV67: 1488224394 | BW67: 1359075632 | BX67: 1400007548 | BY67: 1216597491 | BZ67: 1243813882 | CA67: 1160317489 | CB67: 1073324087 | CC67: 1077362572 | CD67: 4876673689 | CE67: 876187346 | CF67: 961662272 | CG67: 1206974803 | CH67: 899032942 | CI67: 932816326
A68: Sugar | B68: South | C68: GRUPO - AÇÚCAR | D68: 2619157020 | E68: 120293853 | F68: 26733607 | G68: 75820767 | H68: 120672378 | I68: 193209423 | J68: 229121332 | K68: 300252283 | L68: 343146511 | M68: 345067545 | N68: 295015152 | O68: 258546722 | P68: 311277447 | Q68: 2434752277 | R68: 104562251 | S68: 49086455 | T68: 62909755 | U68: 126234077 | V68: 251547555 | W68: 252217291 | X68: 301191756 | Y68: 299776980 | Z68: 303588627 | AA68: 273692384 | AB68: 262142833 | AC68: 147802313 | AD68: 1788325456 | AE68: 60676674 | AF68: 64822328 | AG68: 39060700 | AH68: 90592958 | AI68: 189419363 | AJ68: 210492326 | AK68: 207163869 | AL68: 222348948 | AM68: 207264568 | AN68: 212209473 | AO68: 121847746 | AP68: 162426503 | AQ68: 1414900647 | AR68: 31659285 | AS68: 31551186 | AT68: 28254327 | AU68: 85080897 | AV68: 138414598 | AW68: 156148160 | AX68: 210091945 | AY68: 163188221 | AZ68: 146524869 | BA68: 142173715 | BB68: 196391263 | BC68: 85422181 | BD68: 2331907174 | BE68: 86209055 | BF68: 45179594 | BG68: 59996580 | BH68: 119210742 | BI68: 236809853 | BJ68: 207656864 | BK68: 206828320 | BL68: 232221494 | BM68: 312171925 | BN68: 307485698 | BO68: 290298645 | BP68: 227838404 | BQ68: 2400676070 | BR68: 124338126 | BS68: 65841560 | BT68: 98681636 | BU68: 115143611 | BV68: 259411943 | BW68: 350267076 | BX68: 227935144 | BY68: 206643225 | BZ68: 324431396 | CA68: 278001031 | CB68: 216084139 | CC68: 133897183 | CD68: 478598514 | CE68: 89617211 | CF68: 43413500 | CG68: 39997897 | CH68: 69821130 | CI68: 235748776
A69: Containers | B69: South | C69: GRUPO - BRADO | D69: 631723930 | E69: 50653873 | F69: 58678363 | G69: 65520111 | H69: 64679544 | I69: 57983925 | J69: 61572875 | K69: 48561618 | L69: 48688919 | M69: 48451738 | N69: 46574927 | O69: 42185833 | P69: 38172204 | Q69: 474039635 | R69: 43516576 | S69: 39319431 | T69: 48893445 | U69: 38081878 | V69: 42358692 | W69: 42385509 | X69: 40273501 | Y69: 45062682 | Z69: 35134611 | AA69: 34421081 | AB69: 29817316 | AC69: 34774913 | AD69: 573284673 | AE69: 29603095 | AF69: 39473430 | AG69: 43525417 | AH69: 47937315 | AI69: 39913617 | AJ69: 50240031 | AK69: 52476263 | AL69: 54547399 | AM69: 54147602 | AN69: 55903395 | AO69: 52416510 | AP69: 53100599 | AQ69: 718081766 | AR69: 50731259 | AS69: 49206107 | AT69: 56186679 | AU69: 56894692 | AV69: 59538119 | AW69: 58457293 | AX69: 64026665 | AY69: 67365781 | AZ69: 71301328 | BA69: 63691011 | BB69: 62699147 | BC69: 57983685 | BD69: 890743581 | BE69: 63577574 | BF69: 62719521 | BG69: 60617430 | BH69: 74631833 | BI69: 76715235 | BJ69: 81775490 | BK69: 84424302 | BL69: 79692530 | BM69: 79207929 | BN69: 80026895 | BO69: 78185827 | BP69: 69169015 | BQ69: 831717610 | BR69: 71761609 | BS69: 79964935 | BT69: 74866251 | BU69: 80125343 | BV69: 76592073 | BW69: 70037726 | BX69: 71624945 | BY69: 66443760 | BZ69: 57244092 | CA69: 59003812 | CB69: 61449130 | CC69: 62603934 | CD69: 418084568 | CE69: 76499689 | CF69: 79542843 | CG69: 83331629 | CH69: 87451540 | CI69: 91258867
A70: Fertilizers | B70: South | C70: GRUPO - FERTILIZANTES | D70: 814939100 | E70: 28277886 | F70: 17986273 | G70: 20430346 | H70: 22496891 | I70: 61922969 | J70: 79419138 | K70: 91515181 | L70: 95034592 | M70: 123820635 | N70: 98535259 | O70: 98943488 | P70: 76556442 | Q70: 683653693 | R70: 67081150 | S70: 37347427 | T70: 30187374 | U70: 69954742 | V70: 69651088 | W70: 49094098 | X70: 51279952 | Y70: 55388520 | Z70: 60182641 | AA70: 70693725 | AB70: 63823446 | AC70: 58969530 | AD70: 703952816 | AE70: 67919034 | AF70: 48889296 | AG70: 34909110 | AH70: 46184304 | AI70: 46967555 | AJ70: 62576874 | AK70: 64986689 | AL70: 70255047 | AM70: 64720101 | AN70: 56299767 | AO70: 77220560 | AP70: 63024479 | AQ70: 671293484 | AR70: 86707383 | AS70: 43116118 | AT70: 30368772 | AU70: 31266365 | AV70: 63116757 | AW70: 61511866 | AX70: 65124579 | AY70: 60439183 | AZ70: 74380338 | BA70: 55555972 | BB70: 56552372 | BC70: 43153779 | BD70: 555910902 | BE70: 64598429 | BF70: 48203579 | BG70: 17727727 | BH70: 44324475 | BI70: 48827144 | BJ70: 42473880 | BK70: 48914628 | BL70: 44102089 | BM70: 44816847 | BN70: 52420682 | BO70: 57102867 | BP70: 42398555 | BQ70: 598208921 | BR70: 57805561 | BS70: 43193843 | BT70: 6056070 | BU70: 23393469 | BV70: 39573596 | BW70: 56207516 | BX70: 61475788 | BY70: 87308955 | BZ70: 69723346 | CA70: 62420209 | CB70: 51259219 | CC70: 39791349 | CD70: 221821848 | CE70: 48106422 | CF70: 59060835 | CG70: 35789254 | CH70: 29916379 | CI70: 48948958
B71: South | C71: GRUPO - GRÃOS | D71: 4936195759 | E71: 354947558 | F71: 554687577 | G71: 661632722 | H71: 625772664 | I71: 542518583 | J71: 476353708 | K71: 435782296 | L71: 447051847 | M71: 294446094 | N71: 217847630 | O71: 172353920 | P71: 152801160 | Q71: 6952601521 | R71: 207582030 | S71: 502473019 | T71: 717073322 | U71: 613872658 | V71: 580946915 | W71: 588153344 | X71: 676294534 | Y71: 709887393 | Z71: 706615526 | AA71: 589080736 | AB71: 516608986 | AC71: 544013058 | AD71: 8300394869 | AE71: 452523565 | AF71: 541257209 | AG71: 838413478 | AH71: 805319304 | AI71: 728441992 | AJ71: 718967879 | AK71: 765153289 | AL71: 784931443 | AM71: 731038227 | AN71: 719596070 | AO71: 685519956 | AP71: 529232457 | AQ71: 8253326729 | AR71: 495234084 | AS71: 721112879 | AT71: 830646326 | AU71: 614760930 | AV71: 547898319 | AW71: 657618980 | AX71: 801211937 | AY71: 836545427 | AZ71: 739789217 | BA71: 815914292 | BB71: 721238843 | BC71: 471355495 | BD71: 7505845004 | BE71: 233258302 | BF71: 493383706 | BG71: 728483914 | BH71: 746813604 | BI71: 810618751 | BJ71: 716846243 | BK71: 776714351 | BL71: 784881546 | BM71: 635245688 | BN71: 594626584 | BO71: 596876740 | BP71: 388095575 | BQ71: 6741539697 | BR71: 118188630 | BS71: 260733594 | BT71: 874122256 | BU71: 859181040 | BV71: 773398736 | BW71: 571328995 | BX71: 729446171 | BY71: 534964433 | BZ71: 497003155 | CA71: 469466135 | CB71: 467569570 | CC71: 586136982 | CD71: 2492388283 | CE71: 411393054 | CF71: 565772142 | CG71: 778175290 | CH71: 464676439 | CI71: 272371358
B72: South | C72: ARROZ (GRANEL) | AQ72: 0 | AR72: 0 | AS72: 0 | AT72: 0 | AU72: 0 | AV72: 0 | AW72: 0 | AX72: 0 | AY72: 0 | AZ72: 0 | BA72: 0 | BB72: 0 | BC72: 0 | BD72: 0 | BE72: 0 | BF72: 0 | BG72: 0 | BH72: 0 | BI72: 0 | BJ72: 0 | BK72: 0 | BL72: 0 | BM72: 0 | BN72: 0 | BO72: 0 | BP72: 0 | BQ72: 0 | BR72: - | BS72: - | BT72: 0 | BU72: 0 | BV72: 0 | BW72: 0 | BX72: 0 | BY72: 0 | BZ72: 0 | CA72: 0 | CB72: 0 | CC72: 0 | CD72: 0 | CE72: 0 | CF72: 0 | CG72: 0 | CH72: 0 | CI72: 0
A73: Soybean meal | B73: South | C73: FARELO | D73: 425732797 | E73: 22585139 | F73: 27253985 | G73: 38939645 | H73: 42599338 | I73: 37227481 | J73: 42020554 | K73: 35790398 | L73: 29212686 | M73: 33941998 | N73: 41330552 | O73: 45895745 | P73: 28935276 | Q73: 344576107 | R73: 25726133 | S73: 23371234 | T73: 33055447 | U73: 36291561 | V73: 34637471 | W73: 30142350 | X73: 33622656 | Y73: 25109132 | Z73: 25814255 | AA73: 22813295 | AB73: 26348351 | AC73: 27644222 | AD73: 528722084 | AE73: 34667282 | AF73: 27340376 | AG73: 37083433 | AH73: 44805670 | AI73: 50747231 | AJ73: 48932203 | AK73: 55155977 | AL73: 45404408 | AM73: 40653373 | AN73: 34549921 | AO73: 53257155 | AP73: 56125055 | AQ73: 715899772 | AR73: 37872918 | AS73: 36030687 | AT73: 51921366 | AU73: 53452487 | AV73: 49568281 | AW73: 81832305 | AX73: 77417070 | AY73: 49447999 | AZ73: 68021610 | BA73: 82493911 | BB73: 74181278 | BC73: 53659860 | BD73: 643811267 | BE73: 39104826 | BF73: 31946692 | BG73: 75683286 | BH73: 31554860 | BI73: 71127644 | BJ73: 55672431 | BK73: 72948113 | BL73: 61470131 | BM73: 71912588 | BN73: 61147982 | BO73: 44395409 | BP73: 26847305 | BQ73: 734522935 | BR73: 24034062 | BS73: 17803749 | BT73: 58240446 | BU73: 71722392 | BV73: 74144558 | BW73: 76939861 | BX73: 64156571 | BY73: 76500015 | BZ73: 81550635 | CA73: 82386434 | CB73: 56700791 | CC73: 50343421 | CD73: 315583935 | CE73: 43337871 | CF73: 42161555 | CG73: 79061310 | CH73: 80220908 | CI73: 70802291
A74: Corn meal | B74: South | C74: FARELO DE MILHO | BE74: 0 | BF74: 0 | BG74: 0 | BH74: 0 | BI74: 0 | BJ74: 0 | BK74: 0 | BL74: 0 | BM74: 0 | BN74: 0 | BO74: 0 | BP74: 0 | BQ74: 0 | BR74: - | BS74: - | BT74: 0 | BU74: 0 | BV74: 0 | BW74: 0 | BX74: 0 | BY74: 0 | BZ74: 0 | CA74: 0 | CB74: 0 | CC74: 0 | CE74: 0 | CF74: 0 | CG74: 0 | CH74: 0 | CI74: 0
A75: Malt | B75: South | C75: MALTE | D75: 1118223 | E75: 0 | F75: 0 | G75: 0 | H75: 0 | I75: 0 | J75: 0 | K75: 0 | L75: 0 | M75: 0 | N75: 1118223 | O75: 0 | P75: 0 | Q75: 0 | R75: 0 | S75: 0 | T75: 0 | U75: 0 | V75: 0 | W75: 0 | X75: 0 | Y75: 0 | Z75: 0 | AA75: 0 | AB75: 0 | AC75: 0 | AD75: 0 | AE75: 0 | AF75: 0 | AG75: 0 | AH75: 0 | AI75: 0 | AJ75: 0 | AK75: 0 | AL75: 0 | AM75: 0 | AN75: 0 | AO75: 0 | AP75: 0 | AQ75: =SUM(AR75:BC75) -> 0 | AR75: 0 | AS75: 0 | AT75: 0 | AU75: 0 | AV75: 0 | AW75: 0 | AX75: 0 | AY75: 0 | AZ75: 0 | BA75: 0 | BB75: 0 | BC75: 0 | BD75: =SUM(BE75:BP75) -> 0 | BE75: 0 | BF75: 0 | BG75: 0 | BH75: 0 | BI75: 0 | BJ75: 0 | BK75: 0 | BL75: 0 | BM75: 0 | BN75: 0 | BO75: 0 | BP75: 0 | BQ75: 0 | BR75: - | BS75: - | BT75: 0 | BU75: 0 | BV75: 0 | BW75: 0 | BX75: 0 | BY75: 0 | BZ75: 0 | CA75: 0 | CB75: 0 | CC75: 0 | CD75: =SUM(CE75:CP75) -> 0 | CE75: 0 | CF75: 0 | CG75: 0 | CH75: 0 | CI75: 0
A76: Corn | B76: South | C76: MILHO | D76: 935574202 | E76: 240975804 | F76: 63792640 | G76: 1228532 | H76: 0 | I76: 0 | J76: 306374 | K76: 83198401 | L76: 235058510 | M76: 130384844 | N76: 80026790 | O76: 48609551 | P76: 51992756 | Q76: 1664416016 | R76: 18163383 | S76: 6569635 | T76: 0 | U76: 0 | V76: 39816 | W76: 12185880 | X76: 179778587 | Y76: 357785534 | Z76: 502674582 | AA76: 358044919 | AB76: 120665587 | AC76: 108508093 | AD76: 605836986 | AE76: 159796749 | AF76: 13408427 | AG76: 0 | AH76: 0 | AI76: 473211 | AJ76: 0 | AK76: 3127583 | AL76: 74219267 | AM76: 98120825 | AN76: 11823906 | AO76: 83352143 | AP76: 161514875 | AQ76: 2345657927 | AR76: 103928662 | AS76: 74140707 | AT76: 15008298 | AU76: 34903503 | AV76: 38076256 | AW76: 171724498 | AX76: 396718051 | AY76: 482974540 | AZ76: 359590034 | BA76: 256077696 | BB76: 256590564 | BC76: 155925118 | BD76: 1796235506 | BE76: 58266332 | BF76: 73095562 | BG76: 14966994 | BH76: 0 | BI76: 30471 | BJ76: 0 | BK76: 51366173 | BL76: 265050328 | BM76: 313654082 | BN76: 371589252 | BO76: 406772380 | BP76: 241443932 | BQ76: 390288778 | BR76: 77983242 | BS76: 77381084 | BT76: 6976461 | BU76: 0 | BV76: 0 | BW76: 206098 | BX76: 0 | BY76: 27584925 | BZ76: 16786197 | CA76: 25517578 | CB76: 36827679 | CC76: 121025514 | CD76: 249210167 | CE76: 61161329 | CF76: 824 | CG76: 46083473 | CH76: 108039944 | CI76: 33924597
A77: Soybean | B77: South | C77: SOJA | D77: 3480585304 | E77: 49068928 | F77: 461308481 | G77: 616952687 | H77: 581499394 | I77: 503640463 | J77: 432260222 | K77: 314945426 | L77: 180625179 | M77: 129292939 | N77: 94551349 | O77: 62365326 | P77: 54074910 | Q77: 4780948770 | R77: 113040549 | S77: 404008261 | T77: 668273903 | U77: 575142700 | V77: 544093070 | W77: 543931227 | X77: 460163252 | Y77: 325690953 | Z77: 177885711 | AA77: 207324380 | AB77: 364243137 | AC77: 397151627 | AD77: 7034263673 | AE77: 238315002 | AF77: 494383767 | AG77: 800785572 | AH77: 759851274 | AI77: 675611264 | AJ77: 668464819 | AK77: 705220007 | AL77: 664066963 | AM77: 589639892 | AN77: 670968191 | AO77: 512310623 | AP77: 254646299 | AQ77: 5111242230 | AR77: 320816893 | AS77: 607208655 | AT77: 762894856 | AU77: 525604381 | AV77: 460253782 | AW77: 404062177 | AX77: 327076816 | AY77: 304122888 | AZ77: 311692633 | BA77: 476964047 | BB77: 384537059 | BC77: 226008043 | BD77: 4885605087 | BE77: 112226422 | BF77: 386541296 | BG77: 637833634 | BH77: 715258744 | BI77: 739460636 | BJ77: 661173812 | BK77: 652400065 | BL77: 458361087 | BM77: 249679018 | BN77: 149427977 | BO77: 69608678 | BP77: 53633718 | BQ77: 5435106587 | BR77: 12514155 | BS77: 165548761 | BT77: 808905349 | BU77: 787458648 | BV77: 699254178 | BW77: 494183036 | BX77: 665289600 | BY77: 430879493 | BZ77: 398666323 | CA77: 360466519 | CB77: 300186645 | CC77: 311753880 | CD77: 1654321350 | CE77: 208873177 | CF77: 400834009 | CG77: 607436544 | CH77: 270459844 | CI77: 166717776
A78: Wheat | B78: South | C78: TRIGO | D78: 76524334 | E78: 41988754 | F78: 1379574 | G78: 2484418 | H78: 0 | I78: 0 | J78: 0 | K78: 0 | L78: 0 | M78: 0 | N78: 0 | O78: 14076225 | P78: 16595363 | Q78: 144137874 | R78: 49240961 | S78: 66897076 | T78: 13417951 | U78: 0 | V78: 0 | W78: 0 | X78: 0 | Y78: 0 | Z78: 0 | AA78: 0 | AB78: 4788405 | AC78: 9793481 | AD78: 116573659 | AE78: 18765000 | AF78: 5009209 | AG78: 0 | AH78: 0 | AI78: 0 | AJ78: 0 | AK78: 0 | AL78: 0 | AM78: 0 | AN78: 0 | AO78: 36464420 | AP78: 56335030 | AQ78: 75718645 | AR78: 30577094 | AS78: 3732830 | AT78: 0 | AU78: 0 | AV78: 0 | AW78: 0 | AX78: 0 | AY78: 0 | AZ78: 0 | BA78: 0 | BB78: 5788090 | BC78: 35620631 | BD78: 180193144 | BE78: 23660722 | BF78: 1800156 | BG78: 0 | BH78: 0 | BI78: 0 | BJ78: 0 | BK78: 0 | BL78: 0 | BM78: 0 | BN78: 12461373 | BO78: 76100273 | BP78: 66170620 | BQ78: 181621397 | BR78: 3657171 | BS78: - | BT78: 0 | BU78: 0 | BV78: 0 | BW78: 0 | BX78: 0 | BY78: 0 | BZ78: 0 | CA78: 1095604 | CB78: 73854455 | CC78: 103014167 | CD78: 273272831 | CE78: 98020677 | CF78: 122775754 | CG78: 45593963 | CH78: 5955743 | CI78: 926694
A79: Soybean | B79: South | C79: ÓLEO VEGETAL | D79: 16660899 | E79: 328933 | F79: 952897 | G79: 2027440 | H79: 1673932 | I79: 1650639 | J79: 1766558 | K79: 1848071 | L79: 2155472 | M79: 826313 | N79: 820716 | O79: 1407073 | P79: 1202855 | Q79: 18522754 | R79: 1411004 | S79: 1626813 | T79: 2326021 | U79: 2438397 | V79: 2176558 | W79: 1893887 | X79: 2730039 | Y79: 1301774 | Z79: 240978 | AA79: 898142 | AB79: 563506 | AC79: 915635 | AD79: 14998467 | AE79: 979532 | AF79: 1115430 | AG79: 544473 | AH79: 662360 | AI79: 1610286 | AJ79: 1570857 | AK79: 1649722 | AL79: 1240805 | AM79: 2624137 | AN79: 2254052 | AO79: 135615 | AP79: 611198 | AQ79: 4808155 | AR79: 2038517 | AS79: 0 | AT79: 821806 | AU79: 800559 | AV79: 0 | AW79: 0 | AX79: 0 | AY79: 0 | AZ79: 484940 | BA79: 378638 | BB79: 141852 | BC79: 141843 | BD79: 0 | BE79: 0 | BF79: 0 | BG79: 0 | BH79: 0 | BI79: 0 | BJ79: 0 | BK79: 0 | BL79: 0 | BM79: 0 | BN79: 0 | BO79: 0 | BP79: 0 | BQ79: =SUM(BR79:CC79) -> 0 | BR79: - | BS79: - | BT79: 0 | BU79: 0 | BV79: 0 | BW79: 0 | BX79: 0 | BY79: 0 | BZ79: 0 | CA79: 0 | CB79: 0 | CC79: 0 | CD79: 0 | CE79: 0 | CF79: 0 | CG79: 0 | CH79: 0 | CI79: 0
B80: South | C80: GRUPO - INDUSTRIAL | D80: 1661115669 | E80: 87400143 | F80: 99324917 | G80: 115963110 | H80: 120816836 | I80: 129418789 | J80: 140842872 | K80: 172400540 | L80: 175132225 | M80: 161253546 | N80: 163644056 | O80: 154733873 | P80: 140184762 | Q80: 1951296175 | R80: 143950006 | S80: 111904479 | T80: 149819310 | U80: 152267058 | V80: 179305408 | W80: 162524672 | X80: 176861648 | Y80: 181297448 | Z80: 180508581 | AA80: 180315487 | AB80: 160464931 | AC80: 172077147 | AD80: 1907222201 | AE80: 167968186 | AF80: 150528834 | AG80: 132894942 | AH80: 137775870 | AI80: 134401626 | AJ80: 171511331 | AK80: 161467215 | AL80: 177768111 | AM80: 165366563 | AN80: 181552045 | AO80: 168581736 | AP80: 157405742 | AQ80: 1851723420 | AR80: 158853386 | AS80: 141843356 | AT80: 150011543 | AU80: 132409157 | AV80: 149112335 | AW80: 164983223 | AX80: 155967671 | AY80: 176226423 | AZ80: 162563870 | BA80: 170517366 | BB80: 152734264 | BC80: 136500826 | BD80: 1501957434 | BE80: 147873686 | BF80: 104458764 | BG80: 92709097 | BH80: 89290515 | BI80: 109337854 | BJ80: 99846905 | BK80: 140700761 | BL80: 154875926 | BM80: 156766386 | BN80: 150956789 | BO80: 143656414 | BP80: 111484337 | BQ80: 1724763122 | BR80: 145781392 | BS80: 138907887 | BT80: 158477472 | BU80: 165800722 | BV80: 169926690 | BW80: 154438010 | BX80: 146879710 | BY80: 154759973 | BZ80: 126887889 | CA80: 127022722 | CB80: 123853942 | CC80: 112026713 | CD80: 509410384 | CE80: 105242543 | CF80: 75424740 | CG80: 115797413 | CH80: 102584039 | CI80: 110361649
A81: Wood, pulp and paper | B81: South | C81: ARROZ (ENSACADO) | D81: 2949823 | E81: 2867029 | F81: 82794 | G81: 0 | H81: 0 | I81: 0 | J81: 0 | K81: 0 | L81: 0 | M81: 0 | N81: 0 | O81: 0 | P81: 0 | Q81: 0 | R81: 0 | S81: 0 | T81: 0 | U81: 0 | V81: 0 | W81: 0 | X81: 0 | Y81: 0 | Z81: 0 | AA81: 0 | AB81: 0 | AC81: 0 | AD81: 0 | AE81: 0 | AF81: 0 | AG81: 0 | AH81: 0 | AI81: 0 | AJ81: 0 | AK81: 0 | AL81: 0 | AM81: 0 | AN81: 0 | AO81: 0 | AP81: 0 | AQ81: 0 | AR81: 0 | AS81: 0 | AT81: 0 | AU81: 0 | AV81: 0 | AW81: 0 | AX81: 0 | AY81: 0 | AZ81: 0 | BA81: 0 | BB81: 0 | BC81: 0 | BD81: 0 | BE81: 0 | BF81: 0 | BG81: 0 | BH81: 0 | BI81: 0 | BJ81: 0 | BK81: 0 | BL81: 0 | BM81: 0 | BN81: 0 | BO81: 0 | BP81: 0 | BQ81: 0 | BR81: - | BS81: - | BT81: 0 | BU81: 0 | BV81: 0 | BW81: 0 | BX81: 0 | BY81: 0 | BZ81: 0 | CA81: 0 | CB81: 0 | CC81: 0 | CD81: 0 | CE81: 0 | CF81: 0 | CG81: 0 | CH81: 0 | CI81: 0
A82: Wood, pulp and paper | B82: South | C82: CALCÁREO (IND) | D82: 6322851 | E82: 518815 | F82: 415052 | G82: 793481 | H82: 389493 | I82: 377690 | J82: 188845 | K82: 678662 | L82: 389493 | M82: 1003240 | N82: 1078263 | O82: 489817 | P82: 0 | Q82: 3316593 | R82: 495719 | S82: 483916 | T82: 631451 | U82: 507521 | V82: 489817 | W82: 177042 | X82: 177042 | Y82: 354085 | Z82: 0 | AA82: 0 | AB82: 0 | AC82: 0 | AD82: 0 | AE82: 0 | AF82: 0 | AG82: 0 | AH82: 0 | AI82: 0 | AJ82: 0 | AK82: 0 | AL82: 0 | AM82: 0 | AN82: 0 | AO82: 0 | AP82: 0 | AQ82: 0 | AR82: 0 | AS82: 0 | AT82: 0 | AU82: 0 | AV82: 0 | AW82: 0 | AX82: 0 | AY82: 0 | AZ82: 0 | BA82: 0 | BB82: 0 | BC82: 0 | BD82: 0 | BE82: 0 | BF82: 0 | BG82: 0 | BH82: 0 | BI82: 0 | BJ82: 0 | BK82: 0 | BL82: 0 | BM82: 0 | BN82: 0 | BO82: 0 | BP82: 0 | BQ82: 0 | BR82: - | BS82: - | BT82: 0 | BU82: 0 | BV82: 0 | BW82: 0 | BX82: 0 | BY82: 0 | BZ82: 0 | CA82: 0 | CB82: 0 | CC82: 0 | CD82: 0 | CE82: 0 | CF82: 0 | CG82: 0 | CH82: 0 | CI82: 0
A83: Wood, pulp and paper | B83: South | C83: CELULOSE | D83: 816494824 | E83: 35808648 | F83: 39468896 | G83: 52726968 | H83: 53897960 | I83: 67886981 | J83: 68516859 | K83: 90106159 | L83: 88751216 | M83: 81277483 | N83: 85430901 | O83: 81173089 | P83: 71449664 | Q83: 999011305 | R83: 66184266 | S83: 42196771 | T83: 73607079 | U83: 77942519 | V83: 91665532 | W83: 88958897 | X83: 90708861 | Y83: 94651136 | Z83: 96334750 | AA83: 93099720 | AB83: 87427345 | AC83: 96234429 | AD83: 1015571259 | AE83: 93788547 | AF83: 85493603 | AG83: 56390697 | AH83: 66413343 | AI83: 56414753 | AJ83: 95271071 | AK83: 84781268 | AL83: 105084556 | AM83: 90776336 | AN83: 99935902 | AO83: 88300899 | AP83: 92920284 | AQ83: 983852495 | AR83: 87367407 | AS83: 74329041 | AT83: 84445128 | AU83: 70886548 | AV83: 76339153 | AW83: 82758572 | AX83: 75037269 | AY83: 88602018 | AZ83: 84258657 | BA83: 86954139 | BB83: 87908630 | BC83: 84965933 | BD83: 685608290 | BE83: 81487996 | BF83: 38670603 | BG83: 34737674 | BH83: 16049404 | BI83: 35203684 | BJ83: 33983635 | BK83: 73206428 | BL83: 83106746 | BM83: 86564172 | BN83: 79177233 | BO83: 77082267 | BP83: 46338448 | BQ83: 779545152 | BR83: 79039736 | BS83: 74568740 | BT83: 74194893 | BU83: 82483877 | BV83: 82267655 | BW83: 72881085 | BX83: 60175027 | BY83: 75382768 | BZ83: 50178054 | CA83: 46641478 | CB83: 43288107 | CC83: 38443732 | CD83: 141578820 | CE83: 32393967 | CF83: 7843381 | CG83: 35634661 | CH83: 33682140 | CI83: 32024671
A84: Construction | B84: South | C84: CIMENTO | D84: 406012747 | E84: 25021266 | F84: 31096223 | G84: 29058565 | H84: 30832058 | I84: 29756097 | J84: 34507802 | K84: 41185458 | L84: 38898023 | M84: 38650417 | N84: 37674924 | O84: 36084035 | P84: 33247879 | Q84: 400515925 | R84: 37076222 | S84: 31980842 | T84: 34680656 | U84: 32850063 | V84: 33627611 | W84: 31870072 | X84: 37261484 | Y84: 37759830 | Z84: 34472653 | AA84: 36542385 | AB84: 22153808 | AC84: 30240299 | AD84: 369321166 | AE84: 23693006 | AF84: 27252428 | AG84: 34011328 | AH84: 27853962 | AI84: 29987612 | AJ84: 30005187 | AK84: 33774298 | AL84: 35088519 | AM84: 33992573 | AN84: 31709538 | AO84: 34384484 | AP84: 27568231 | AQ84: 399159313 | AR84: 30108220 | AS84: 30993666 | AT84: 29339409 | AU84: 32321400 | AV84: 33222594 | AW84: 35394924 | AX84: 34137492 | AY84: 37939603 | AZ84: 36582649 | BA84: 37524016 | BB84: 34164652 | BC84: 27430688 | BD84: 409068317 | BE84: 32280331 | BF84: 32413036 | BG84: 22015789 | BH84: 34776696 | BI84: 38813822 | BJ84: 35975094 | BK84: 33772093 | BL84: 36324975 | BM84: 34265900 | BN84: 42201389 | BO84: 36708183 | BP84: 29521009 | BQ84: 452123929 | BR84: 35882849 | BS84: 30382099 | BT84: 39176060 | BU84: 39256930 | BV84: 39572747 | BW84: 35937522 | BX84: 41340096 | BY84: 40205117 | BZ84: 40070608 | CA84: 36464096 | CB84: 37824009 | CC84: 36011796 | CD84: 186892920 | CE84: 35300087 | CF84: 32847683 | CG84: 39095869 | CH84: 36074466 | CI84: 43574815
A85: Construction | B85: South | C85: CLINQUER | D85: 268353756 | E85: 11125714 | F85: 14730836 | G85: 22055745 | H85: 21417587 | I85: 19434678 | J85: 25563960 | K85: 23592094 | L85: 30229781 | M85: 27228373 | N85: 23891311 | O85: 24944558 | P85: 24139119 | Q85: 310508595 | R85: 28589788 | S85: 23594240 | T85: 24919905 | U85: 23344695 | V85: 31976498 | W85: 18795045 | X85: 26501542 | Y85: 24642464 | Z85: 26107876 | AA85: 27610298 | AB85: 29377714 | AC85: 25048530 | AD85: 255138924 | AE85: 29037669 | AF85: 20837751 | AG85: 22022316 | AH85: 22468443 | AI85: 21611727 | AJ85: 22031745 | AK85: 15691852 | AL85: 11400157 | AM85: 20164956 | AN85: 30130241 | AO85: 25284496 | AP85: 14457571 | AQ85: 245003344 | AR85: 24320952 | AS85: 20734556 | AT85: 24555766 | AU85: 10913353 | AV85: 19713320 | AW85: 21634621 | AX85: 22731986 | AY85: 24647846 | AZ85: 19582849 | BA85: 21916588 | BB85: 14562899 | BC85: 19688608 | BD85: 264669342 | BE85: 20505114 | BF85: 23210996 | BG85: 18758407 | BH85: 17424984 | BI85: 24623111 | BJ85: 18618729 | BK85: 18058073 | BL85: 22284230 | BM85: 22391212 | BN85: 28358231 | BO85: 25170330 | BP85: 25265925 | BQ85: 313803126 | BR85: 22026355 | BS85: 24392857 | BT85: 27157676 | BU85: 26964901 | BV85: 25512579 | BW85: 26523240 | BX85: 25091759 | BY85: 28576293 | BZ85: 29217855 | CA85: 28707008 | CB85: 27156655 | CC85: 22475948 | CD85: 119705457 | CE85: 23195136 | CF85: 28341185 | CG85: 23612286 | CH85: 21756721 | CI85: 22800129
A86: Wood, pulp and paper | B86: South | C86: MADEIRA | AQ86: 0 | AR86: 0 | AS86: 0 | AT86: 0 | AU86: 0 | AV86: 0 | AW86: 0 | AX86: 0 | AY86: 0 | AZ86: 0 | BA86: 0 | BB86: 0 | BC86: 0 | BD86: 0 | BE86: 0 | BF86: 0 | BG86: 0 | BH86: 0 | BI86: 0 | BJ86: 0 | BK86: 0 | BL86: 0 | BM86: 0 | BN86: 0 | BO86: 0 | BP86: 0 | BQ86: 0 | BR86: - | BS86: - | BT86: 0 | BU86: 0 | BV86: 0 | BW86: 0 | BX86: 0 | BY86: 0 | BZ86: 0 | CA86: 0 | CB86: 0 | CC86: 0 | CD86: 0 | CE86: 0 | CF86: 0 | CG86: 0 | CH86: 0 | CI86: 0
A87: Steel and mining | B87: South | C87: MINÉRIO | D87: 112605614 | E87: 8654285 | F87: 5996943 | G87: 7605219 | H87: 8033596 | I87: 10460080 | J87: 10554157 | K87: 11605112 | L87: 12365736 | M87: 10089216 | N87: 9332464 | O87: 9337280 | P87: 8571526 | Q87: 138588620 | R87: 10252237 | S87: 10657173 | T87: 10507877 | U87: 10259738 | V87: 12089552 | W87: 13082477 | X87: 12270250 | Y87: 12224950 | Z87: 12088373 | AA87: 11726467 | AB87: 11907335 | AC87: 11522191 | AD87: 151769895 | AE87: 11811008 | AF87: 11045769 | AG87: 11749875 | AH87: 12837948 | AI87: 14275751 | AJ87: 12224975 | AK87: 12901107 | AL87: 13060754 | AM87: 13039535 | AN87: 13480931 | AO87: 12660792 | AP87: 12681450 | AQ87: 117820494 | AR87: 8041064 | AS87: 5543822 | AT87: 7739533 | AU87: 10358154 | AV87: 10314870 | AW87: 12220594 | AX87: 14084214 | AY87: 13465750 | AZ87: 12336298 | BA87: 11216516 | BB87: 9628252 | BC87: 2871427 | BD87: 87288883 | BE87: 4717469 | BF87: 8886288 | BG87: 6956271 | BH87: 12504445 | BI87: 8637286 | BJ87: 7780446 | BK87: 10197150 | BL87: 11211115 | BM87: 11035614 | BN87: 1219936 | BO87: 0 | BP87: 4142863 | BQ87: 102196893 | BR87: 4186979 | BS87: 8048101 | BT87: 9409452 | BU87: 10241687 | BV87: 10999764 | BW87: 9911305 | BX87: 10984066 | BY87: 10283557 | BZ87: 7421372 | CA87: 8326710 | CB87: 6191281 | CC87: 6192619 | CD87: 42035846 | CE87: 6707243 | CF87: 6392491 | CG87: 8366090 | CH87: 8607988 | CI87: 11962034
A88: Wood, pulp and paper | B88: South | C88: OUTROS (IND) | D88: 2840497 | E88: 76988 | F88: 1044257 | G88: 0 | H88: 1719252 | I88: 0 | J88: 0 | K88: 0 | L88: 0 | M88: 0 | N88: 0 | O88: 0 | P88: 0 | Q88: 0 | R88: 0 | S88: 0 | T88: 0 | U88: 0 | V88: 0 | W88: 0 | X88: 0 | Y88: 0 | Z88: 0 | AA88: 0 | AB88: 0 | AC88: 0 | AD88: 24807 | AE88: 0 | AF88: 0 | AG88: 0 | AH88: 0 | AI88: 0 | AJ88: 0 | AK88: 0 | AL88: 24807 | AM88: 0 | AN88: 0 | AO88: 0 | AP88: 0 | AQ88: 0 | AR88: 0 | AS88: 0 | AT88: 0 | AU88: 0 | AV88: 0 | AW88: 0 | AX88: 0 | AY88: 0 | AZ88: 0 | BA88: 0 | BB88: 0 | BC88: 0 | BD88: 7586 | BE88: 0 | BF88: 0 | BG88: 0 | BH88: 0 | BI88: 0 | BJ88: 0 | BK88: 0 | BL88: 0 | BM88: 0 | BN88: 0 | BO88: 7586 | BP88: 0 | BQ88: 0 | BR88: - | BS88: - | BT88: 0 | BU88: 0 | BV88: 0 | BW88: 0 | BX88: 0 | BY88: 0 | BZ88: 0 | CA88: 0 | CB88: 0 | CC88: 0 | CD88: 0 | CE88: 0 | CF88: 0 | CG88: 0 | CH88: 0 | CI88: 0
A89: Wood, pulp and paper | B89: South | C89: PAPEL | AQ89: 0 | AR89: 0 | AS89: 0 | AT89: 0 | AU89: 0 | AV89: 0 | AW89: 0 | AX89: 0 | AY89: 0 | AZ89: 0 | BA89: 0 | BB89: 0 | BC89: 0 | BD89: 0 | BE89: 0 | BF89: 0 | BG89: 0 | BH89: 0 | BI89: 0 | BJ89: 0 | BK89: 0 | BL89: 0 | BM89: 0 | BN89: 0 | BO89: 0 | BP89: 0 | BQ89: 0 | BR89: - | BS89: - | BT89: 0 | BU89: 0 | BV89: 0 | BW89: 0 | BX89: 0 | BY89: 0 | BZ89: 0 | CA89: 0 | CB89: 0 | CC89: 0 | CD89: 0 | CE89: 0 | CF89: 0 | CG89: 0 | CH89: 0 | CI89: 0
A90: Steel and mining | B90: South | C90: SIDERÚRGICOS (IND) | D90: 45535557 | E90: 3327398 | F90: 6489916 | G90: 3723132 | H90: 4526890 | I90: 1503263 | J90: 1511249 | K90: 5233055 | L90: 4497976 | M90: 3004817 | N90: 6236193 | O90: 2705094 | P90: 2776574 | Q90: 99355137 | R90: 1351774 | S90: 2991537 | T90: 5472342 | U90: 7362522 | V90: 9456398 | W90: 9641139 | X90: 9942469 | Y90: 11664983 | Z90: 11504929 | AA90: 11336617 | AB90: 9598729 | AC90: 9031698 | AD90: 115396150 | AE90: 9637956 | AF90: 5899283 | AG90: 8720726 | AH90: 8202174 | AI90: 12111783 | AJ90: 11978353 | AK90: 14318690 | AL90: 13109318 | AM90: 7393163 | AN90: 6295433 | AO90: 7951065 | AP90: 9778206 | AQ90: 105887774 | AR90: 9015743 | AS90: 10242271 | AT90: 3931707 | AU90: 7929702 | AV90: 9522398 | AW90: 12974512 | AX90: 9976710 | AY90: 11571206 | AZ90: 9803417 | BA90: 12906107 | BB90: 6469831 | BC90: 1544170 | BD90: 55315016 | BE90: 8882776 | BF90: 1277841 | BG90: 10240956 | BH90: 8534986 | BI90: 2059951 | BJ90: 3489001 | BK90: 5467017 | BL90: 1948860 | BM90: 2509488 | BN90: 0 | BO90: 4688048 | BP90: 6216092 | BQ90: 77094022 | BR90: 4645473 | BS90: 1516090 | BT90: 8539391 | BU90: 6853327 | BV90: 11573945 | BW90: 9184858 | BX90: 9288762 | BY90: 312238 | BZ90: 0 | CA90: 6883430 | CB90: 9393890 | CC90: 8902618 | CD90: 19197341 | CE90: 7646110 | CF90: 0 | CG90: 9088507 | CH90: 2462724 | CI90: 0
A91: Fuels | B91: South | C91: GRUPO - LÍQUIDOS | D91: 2007243875 | E91: 141026849 | F91: 158187649 | G91: 164003404 | H91: 152207106 | I91: 165906353 | J91: 177592191 | K91: 189759368 | L91: 185810685 | M91: 183298305 | N91: 182146846 | O91: 162342351 | P91: 144962768 | Q91: 1971718577 | R91: 143628945 | S91: 132900733 | T91: 144560417 | U91: 137946083 | V91: 163325928 | W91: 145708583 | X91: 191221402 | Y91: 191705138 | Z91: 186272112 | AA91: 203974715 | AB91: 171531956 | AC91: 158942565 | AD91: 2052549558 | AE91: 158606315 | AF91: 161694107 | AG91: 166599616 | AH91: 153606625 | AI91: 144449736 | AJ91: 168885791 | AK91: 177638538 | AL91: 193325905 | AM91: 195904583 | AN91: 185029835 | AO91: 169638966 | AP91: 177169541 | AQ91: 2293495672 | AR91: 170418122 | AS91: 177358056 | AT91: 178093620 | AU91: 186106634 | AV91: 194411692 | AW91: 189300803 | AX91: 214790914 | AY91: 225453225 | AZ91: 210037594 | BA91: 212655678 | BB91: 173596079 | BC91: 161273255 | BD91: 1744089988 | BE91: 157859982 | BF91: 154060725 | BG91: 96066030 | BH91: 115754942 | BI91: 130800231 | BJ91: 141332987 | BK91: 149329871 | BL91: 148908236 | BM91: 159478025 | BN91: 168969012 | BO91: 164824033 | BP91: 156705914 | BQ91: 1917532816 | BR91: 159641472 | BS91: 156637643 | BT91: 171638325 | BU91: 145432695 | BV91: 169321355 | BW91: 156796309 | BX91: 162645790 | BY91: 166477145 | BZ91: 168524004 | CA91: 164403580 | CB91: 153108087 | CC91: 142906411 | CD91: 756370092 | CE91: 145328427 | CF91: 138448212 | CG91: 153883320 | CH91: 144583415 | CI91: 174126718
B92: South | C92: GRUPO - OUTROS | AQ92: 0 | AR92: 0 | AS92: 0 | AT92: 0 | AU92: 0 | AV92: 0 | AW92: 0 | AX92: 0 | AY92: 0 | AZ92: 0 | BA92: 0 | BB92: 0 | BC92: 0 | BD92: 11 | BE92: 0 | BF92: 1 | BG92: 1 | BH92: 1 | BI92: 1 | BJ92: 1 | BK92: 1 | BL92: 1 | BM92: 1 | BN92: 1 | BO92: 1 | BP92: 1 | BQ92: 5 | BR92: 1 | BS92: 1 | BT92: 1 | BU92: 1 | BV92: 1 | BW92: 0 | BX92: 0 | BY92: 0 | BZ92: 0 | CA92: 0 | CB92: 0 | CC92: 0 | CD92: 0 | CE92: 0 | CF92: 0 | CG92: 0 | CH92: 0 | CI92: 0

Sheet Base TU (hidden)
B1: CUBE: | C1: Cosan_Logistica:CLOG.ACO.116.VOLUMETRIA.FLUXO
B2: CLOG.D.ACO.VERSAO | C2: R
B3: ALL.D.TEMPO.ANO | C3: 2019
B4: CLOG.M.ACO.VOLUMETRIA.FLUXO | C4: Toneladas Úteis
B5: CLOG.D.ACO.MODAL | C5: Total Modal
B6: CLOG.D.ALL.CORREDOR | C6: Total Corredor
B7: CLOG.D.ACO.GERENCIA | C7: Total Gerencia
B8: CLOG.D.ALL.EMPRESA | C8: Total Empresa
B9: CLOG.D.ACO.ORIGEM | C9: Total Origem
B10: CLOG.D.ACO.DESTINO | C10: Total Destino | AQ10: =SUM(AQ21:AQ27) -> 34986351
B11: CLOG.D.ALL.CLIENTE.HIERARQUIA | C11: Total Clientes | D11: =D15/1000 -> 42839.827 | AQ11: =AQ10-AQ19 -> 0
D13: 2016 | E13: 2016 | F13: 2016 | G13: 2016 | H13: 2016 | I13: 2016 | J13: 2016 | K13: 2016 | L13: 2016 | M13: 2016 | N13: 2016 | O13: 2016 | P13: 2016 | Q13: 2017 | R13: 2017 | S13: 2017 | T13: 2017 | U13: 2017 | V13: 2017 | W13: 2017 | X13: 2017 | Y13: 2017 | Z13: 2017 | AA13: 2017 | AB13: 2017 | AC13: 2017 | AD13: 2018 | AE13: 2018 | AF13: 2018 | AG13: 2018 | AH13: 2018 | AI13: 2018 | AJ13: 2018 | AK13: 2018 | AL13: 2018 | AM13: 2018 | AN13: 2018 | AO13: 2018 | AP13: 2018 | AQ13: 2019 | AR13: 2019 | AS13: 2019 | AT13: 2019 | AU13: 2019 | AV13: 2019 | AW13: 2019 | AX13: 2019 | AY13: 2019 | AZ13: 2019 | BA13: 2019 | BB13: 2019 | BC13: 2019 | BD13: 2020 | BE13: 2020 | BF13: 2020 | BG13: 2020 | BH13: 2020 | BI13: 2020 | BJ13: 2020 | BK13: 2020 | BL13: 2020 | BM13: 2020 | BN13: 2020 | BO13: 2020 | BP13: 2020 | BQ13: 2021 | BR13: 2021 | BS13: 2021 | BT13: 2021 | BU13: 2021 | BV13: 2021 | BW13: 2021 | BX13: 2021 | BY13: 2021 | BZ13: 2021 | CA13: 2021 | CB13: 2021 | CC13: 2021 | CD13: 2022 | CE13: 2022 | CF13: 2022 | CG13: 2022 | CH13: 2022 | CI13: 2022 | CJ13: 2022 | CK13: 2022 | CL13: 2022 | CM13: 2022 | CN13: 2022 | CO13: 2022 | CP13: 2022
A14: Classificação RI | B14: Operação | C14: Produto | D14: Total Ano | E14: Janeiro | F14: Fevereiro | G14: Março | H14: Abril | I14: Maio | J14: Junho | K14: Julho | L14: Agosto | M14: Setembro | N14: Outubro | O14: Novembro | P14: Dezembro | Q14: Total Ano | R14: Janeiro | S14: Fevereiro | T14: Março | U14: Abril | V14: Maio | W14: Junho | X14: Julho | Y14: Agosto | Z14: Setembro | AA14: Outubro | AB14: Novembro | AC14: Dezembro | AD14: Total Ano | AE14: Janeiro | AF14: Fevereiro | AG14: Março | AH14: Abril | AI14: Maio | AJ14: Junho | AK14: Julho | AL14: Agosto | AM14: Setembro | AN14: Outubro | AO14: Novembro | AP14: Dezembro | AQ14: Total Ano | AR14: Janeiro | AS14: Fevereiro | AT14: Março | AU14: Abril | AV14: Maio | AW14: Junho | AX14: Julho | AY14: Agosto | AZ14: Setembro | BA14: Outubro | BB14: Novembro | BC14: Dezembro | BD14: Total Ano | BE14: Janeiro | BF14: Fevereiro | BG14: Março | BH14: Abril | BI14: Maio | BJ14: Junho | BK14: Julho | BL14: Agosto | BM14: Setembro | BN14: Outubro | BO14: Novembro | BP14: Dezembro | BQ14: Total Ano | BR14: Janeiro | BS14: Fevereiro | BT14: Março | BU14: Abril | BV14: Maio | BW14: Junho | BX14: Julho | BY14: Agosto | BZ14: Setembro | CA14: Outubro | CB14: Novembro | CC14: Dezembro | CD14: Total Ano | CE14: Janeiro | CF14: Fevereiro | CG14: Março | CH14: Abril | CI14: Maio | CJ14: Junho | CK14: Julho | CL14: Agosto | CM14: Setembro | CN14: Outubro | CO14: Novembro | CP14: Dezembro
B15: Total Operação | C15: Total Produto | D15: =SUM(D16:D19,D28,D39) -> 42839827 | E15: 2909195 | F15: 3118678 | G15: 3786354 | H15: 3852707 | I15: 3858808 | J15: 3662245 | K15: 4102771 | L15: 4293940 | M15: 3969024 | N15: 3362126 | O15: 2991012 | P15: 2932967 | Q15: 49916667 | R15: 2665303 | S15: 3365751 | T15: 4003834 | U15: 3976033 | V15: 4472596 | W15: 4244218 | X15: 4614947 | Y15: 4804302 | Z15: 4628689 | AA15: 4713498 | AB15: 4318150 | AC15: 4109346 | AD15: 55947062.87 | AE15: 3411579 | AF15: 3955592 | AG15: 4605648 | AH15: 4521491 | AI15: 4470570 | AJ15: 4918535 | AK15: 5150157 | AL15: 5334012 | AM15: 5105982 | AN15: 4939817 | AO15: 4954209 | AP15: 4579470.87 | AQ15: 57674040 | AR15: 3939472 | AS15: 3916737 | AT15: 4849313 | AU15: 4535711 | AV15: 4343282 | AW15: =SUM(AW16:AW19,AW28,AW39) -> 5204070 | AX15: 5792147 | AY15: 5571448 | AZ15: 5121817 | BA15: 5346719 | BB15: 5206275 | BC15: 3847049 | BD15: 58971506 | BE15: 3427970 | BF15: 4438827 | BG15: 3727259 | BH15: 4924017 | BI15: 5475921 | BJ15: =SUM(BJ16:BJ19,BJ28,BJ39) -> 5076795 | BK15: 5666912 | BL15: 5622310 | BM15: 5569597 | BN15: 5452470 | BO15: 5057380 | BP15: 4545044 | BQ15: =SUM(BR15:CC15) -> 60415813 | BR15: 2801243 | BS15: 4187892 | BT15: 5588569 | BU15: 5690662 | BV15: 6090703 | BW15: 5617700 | BX15: 5803075 | BY15: 5127593 | BZ15: 4722700 | CA15: 4897105 | CB15: 4953457 | CC15: 4935114 | CD15: =SUM(CE15:CP15) -> 26432703 | CE15: 4532798 | CF15: 5227983 | CG15: 5999865 | CH15: 5173067 | CI15: 5498990
A16: Açúcar | B16: Total Operação | C16: GRUPO - AÇÚCAR | D16: 8072442 | E16: 343242 | F16: 222585 | G16: 259319 | H16: 317087 | I16: 643207 | J16: 906712 | K16: 757607 | L16: 841564 | M16: 869160 | N16: 1096123 | O16: 960168 | P16: 855668 | Q16: 5963968 | R16: 426322 | S16: 173794 | T16: 156527 | U16: 329557 | V16: 818796 | W16: 636714 | X16: 584453 | Y16: 613090 | Z16: 630287 | AA16: 583240 | AB16: 567451 | AC16: 443737 | AD16: 5421906 | AE16: 502699 | AF16: 297032 | AG16: 221357 | AH16: 254703 | AI16: 640705 | AJ16: 692891 | AK16: 483193 | AL16: 488120 | AM16: 525604 | AN16: 601848 | AO16: 340061 | AP16: 373693 | AQ16: =SUM(AR16:BC16) -> 4330901 | AR16: 214299 | AS16: 124412 | AT16: 226788 | AU16: 394368 | AV16: 479400 | AW16: 380569 | AX16: 437485 | AY16: 351409 | AZ16: 381160 | BA16: 350455 | BB16: 398869 | BC16: 591687 | BD16: =SUM(BE16:BP16) -> 7905803 | BE16: 400380 | BF16: 266399 | BG16: 217003 | BH16: 360523 | BI16: 650204 | BJ16: 535263 | BK16: 496440 | BL16: 772580 | BM16: 1080281 | BN16: 1204582 | BO16: 1090213 | BP16: 831935 | BQ16: 7409506 | BR16: 611047 | BS16: 150060 | BT16: 236763 | BU16: 359128 | BV16: 856177 | BW16: 988539 | BX16: 512902 | BY16: 618459 | BZ16: 995621 | CA16: 883475 | CB16: 754712 | CC16: 442623 | CD16: 1402777 | CE16: 338615 | CF16: 99457 | CG16: 209496 | CH16: 170348 | CI16: 584861
A17: Contêiner | B17: Total Operação | C17: GRUPO - BRADO | D17: 1890030 | E17: 140195 | F17: 164418 | G17: 177748 | H17: 166389 | I17: 169424 | J17: 172846 | K17: 165297 | L17: 157873 | M17: 147810 | N17: 153987 | O17: 147326 | P17: 126717 | Q17: 1874401 | R17: 150226 | S17: 132312 | T17: 147850 | U17: 156883 | V17: 180308 | W17: 166727 | X17: 165137 | Y17: 183179 | Z17: 159231 | AA17: 163311 | AB17: 137260 | AC17: 131977 | AD17: 2215465 | AE17: 89718 | AF17: 182692 | AG17: 178786 | AH17: 190065 | AI17: 156919 | AJ17: 175007 | AK17: 211278 | AL17: 223106 | AM17: 208607 | AN17: 207629 | AO17: 195324 | AP17: 196334 | AQ17: =SUM(AR17:BC17) -> 2760212 | AR17: 187554 | AS17: 180199 | AT17: 228287 | AU17: 224428 | AV17: 229675 | AW17: 214065 | AX17: 245958 | AY17: 259337 | AZ17: 259730 | BA17: 246879 | BB17: 248910 | BC17: 235190 | BD17: =SUM(BE17:BP17) -> 2815422 | BE17: 230731 | BF17: 220654 | BG17: 205364 | BH17: 198601 | BI17: 191265 | BJ17: 247279 | BK17: 259381 | BL17: 249148 | BM17: 257894 | BN17: 251529 | BO17: 262504 | BP17: 241072 | BQ17: 2938110 | BR17: 226125 | BS17: 230441 | BT17: 224831 | BU17: 262335 | BV17: 248245 | BW17: 254400 | BX17: 258294 | BY17: 269739 | BZ17: 238696 | CA17: 236397 | CB17: 236833 | CC17: 251774 | CD17: 1407593 | CE17: 252933 | CF17: 272303 | CG17: 291513 | CH17: 287886 | CI17: 302958
A18: Fertilizantes | B18: Total Operação | C18: GRUPO - FERTILIZANTES | D18: 1256096 | E18: 40016 | F18: 26385 | G18: 29764 | H18: 37642 | I18: 94591 | J18: 118747 | K18: 135369 | L18: 148985 | M18: 195932 | N18: 149495 | O18: 157230 | P18: 121940 | Q18: 1098466 | R18: 101564 | S18: 70693 | T18: 52874 | U18: 118539 | V18: 108350 | W18: 77277 | X18: 76747 | Y18: 91299 | Z18: 99471 | AA18: 110258 | AB18: 95177 | AC18: 96217 | AD18: 1771057 | AE18: 101394 | AF18: 79975 | AG18: 58163 | AH18: 72632 | AI18: 110302 | AJ18: 142225 | AK18: 211946 | AL18: 215261 | AM18: 148045 | AN18: 152613 | AO18: 217358 | AP18: 261143 | AQ18: 2767790 | AR18: 232575 | AS18: 136288 | AT18: 143889 | AU18: 188620 | AV18: 288450 | AW18: 275754 | AX18: 306307 | AY18: 261451 | AZ18: 176593 | BA18: 218018 | BB18: 247828 | BC18: 292017 | BD18: 3175245 | BE18: 272865 | BF18: 211188 | BG18: 101229 | BH18: 247228 | BI18: 315437 | BJ18: 290390 | BK18: 314708 | BL18: 229656 | BM18: 247761 | BN18: 322071 | BO18: 313087 | BP18: 309625 | BQ18: 3577849 | BR18: 329630 | BS18: 282826 | BT18: 157013 | BU18: 189655 | BV18: 225313 | BW18: 246636 | BX18: 419222 | BY18: 452011 | BZ18: 347360 | CA18: 349707 | CB18: 294137 | CC18: 284339 | CD18: 1319863 | CE18: 256330 | CF18: 305630 | CG18: 267940 | CH18: 141700 | CI18: 348263
B19: Total Operação | C19: GRUPO - GRÃOS | D19: 20990429 | E19: 1645675 | F19: 1981565 | G19: 2502887 | H19: 2532228 | I19: 2081208 | J19: 1532509 | K19: 2040724 | L19: 2099254 | M19: 1772006 | N19: 983658 | O19: 827441 | P19: 991274 | Q19: 29107599 | R19: 1080575 | S19: 2165245 | T19: 2744400 | U19: 2497583 | V19: 2370027 | W19: 2370213 | X19: 2729234 | Y19: 2841030 | Z19: 2700502 | AA19: 2722367 | AB19: 2494072 | AC19: 2392351 | AD19: 33455967.87 | AE19: 1699704 | AF19: 2394888 | AG19: 3107593 | AH19: 3028088 | AI19: 2525771 | AJ19: 2772315 | AK19: 3099422 | AL19: 3221459 | AM19: 3082493 | AN19: 2808385 | AO19: 3079691 | AP19: 2636158.87 | AQ19: =SUM(AR19:BC19) -> 34986351 | AR19: =SUM(AR20:AR27) -> 2302664 | AS19: =SUM(AS20:AS27) -> 2599055 | AT19: 3268939 | AU19: 2694942 | AV19: 2270283 | AW19: 3203427 | AX19: 3620506 | AY19: 3481111 | AZ19: 3138609 | BA19: 3341317 | BB19: 3234230 | BC19: 1831268 | BD19: 33484800 | BE19: =SUM(BE20:BE27) -> 1566751 | BF19: =SUM(BF20:BF27) -> 2762641 | BG19: 2434815 | BH19: 3243566 | BI19: 3338502 | BJ19: 3057626 | BK19: 3504679 | BL19: 3235460 | BM19: 2827259 | BN19: 2702586 | BO19: 2488686 | BP19: 2335225 | BQ19: 33559900 | BR19: 695966 | BS19: 2511706 | BT19: 3860998 | BU19: 3769070 | BV19: 3574512 | BW19: 3023267 | BX19: 3462505 | BY19: 2588804 | BZ19: 2084343 | CA19: 2338400 | CB19: 2675211 | CC19: 2975118 | CD19: 16990747 | CE19: 2705288 | CF19: 3616369 | CG19: 4100734 | CH19: 3506611 | CI19: 3061745
B20: Total Operação | C20: ARROZ (GRANEL) | AQ20: =SUM(AR20:BC20) -> 0 | AR20: 0 | AS20: 0 | AT20: 0 | AU20: 0 | AV20: 0 | AW20: 0 | AX20: 0 | AY20: 0 | AZ20: 0 | BA20: 0 | BB20: 0 | BC20: 0 | BD20: 0 | BE20: 0 | BF20: 0 | BG20: 0 | BH20: 0 | BI20: 0 | BJ20: 0 | BK20: 0 | BL20: 0 | BM20: 0 | BN20: 0 | BO20: 0 | BP20: 0 | BQ20: 0 | BR20: - | BS20: - | BT20: 0 | BU20: 0 | BV20: 0 | BW20: 0 | BX20: 0 | BY20: 0 | BZ20: 0 | CA20: 0 | CB20: 0 | CC20: 0 | CD20: 0 | CE20: 0 | CF20: 0 | CG20: 0 | CH20: 0 | CI20: 0
A21: Farelo de Soja | B21: Total Operação | C21: FARELO | D21: 3969992 | E21: 201066 | F21: 310159 | G21: 390723 | H21: 434669 | I21: 400653 | J21: 377341 | K21: 297404 | L21: 251399 | M21: 277005 | N21: 338686 | O21: 367552 | P21: 323335 | Q21: 4686011 | R21: 322857 | S21: 338253 | T21: 416847 | U21: 466624 | V21: 421607 | W21: 358040 | X21: 416762 | Y21: 337641 | Z21: 342962 | AA21: 421263 | AB21: 414328 | AC21: 428827 | AD21: 5226408.87 | AE21: 371792 | AF21: 412188 | AG21: 466139 | AH21: 510473 | AI21: 422164 | AJ21: 464212 | AK21: 426054 | AL21: 411507 | AM21: 435918 | AN21: 374367 | AO21: 432493 | AP21: 499101.87 | AQ21: 5754347 | AR21: 393573 | AS21: 393024 | AT21: 521646 | AU21: 521301 | AV21: 488445 | AW21: 550633 | AX21: 519305 | AY21: 401116 | AZ21: 463474 | BA21: 492409 | BB21: 536874 | BC21: 472547 | BD21: 6022027 | BE21: 362151 | BF21: 453770 | BG21: 477683 | BH21: 539117 | BI21: 540876 | BJ21: 536495 | BK21: 571586 | BL21: 534123 | BM21: 518579 | BN21: 548966 | BO21: 450418 | BP21: 488263 | BQ21: 6560650 | BR21: 334876 | BS21: 419029 | BT21: 529527 | BU21: 603179 | BV21: 582252 | BW21: 628711 | BX21: 646094 | BY21: 587620 | BZ21: 560413 | CA21: 503838 | CB21: 586561 | CC21: 578550 | CD21: 3143469 | CE21: 483861 | CF21: 530605 | CG21: 705742 | CH21: 737503 | CI21: 685758
A22: Farelo de Milho | B22: Total Operação | C22: FARELO DE MILHO | AQ22: =SUM(AR22:BC22) -> 14886 | AR22: 0 | AS22: 0 | AT22: 0 | AU22: 0 | AV22: 0 | AW22: 0 | AX22: 0 | AY22: 0 | AZ22: 0 | BB22: 0 | BC22: 14886 | BE22: 12996 | BF22: 0 | BG22: 0 | BH22: 0 | BI22: 0 | BJ22: 0 | BK22: 0 | BL22: 0 | BM22: 0 | BN22: 0 | BO22: 0 | BP22: 0 | BQ22: 0 | BR22: - | BS22: - | BT22: 0 | BU22: 0 | BV22: 0 | BW22: 0 | BX22: 0 | BY22: 0 | BZ22: 0 | CA22: 0 | CB22: 0 | CC22: 0 | CD22: 0 | CE22: 0 | CF22: 0 | CG22: 0 | CH22: 0 | CI22: 0
A23: Malte | B23: Total Operação | C23: MALTE | D23: 2311 | E23: 0 | F23: 0 | G23: 0 | H23: 0 | I23: 0 | J23: 0 | K23: 0 | L23: 0 | M23: 0 | N23: 2311 | O23: 0 | P23: 0 | Q23: 0 | R23: 0 | S23: 0 | T23: 0 | U23: 0 | V23: 0 | W23: 0 | X23: 0 | Y23: 0 | Z23: 0 | AA23: 0 | AB23: 0 | AC23: 0 | AD23: 0 | AE23: 0 | AF23: 0 | AG23: 0 | AH23: 0 | AI23: 0 | AJ23: 0 | AK23: 0 | AL23: 0 | AM23: 0 | AN23: 0 | AO23: 0 | AP23: 0 | AQ23: 0 | AR23: 0 | AS23: 0 | AT23: 0 | AU23: 0 | AV23: 0 | AW23: 0 | AX23: 0 | AY23: 0 | AZ23: 0 | BA23: 0 | BB23: 0 | BC23: 0 | BD23: 0 | BE23: 0 | BF23: 0 | BG23: 0 | BH23: 0 | BI23: 0 | BJ23: 0 | BK23: 0 | BL23: 0 | BM23: 0 | BN23: 0 | BO23: 0 | BP23: 0 | BQ23: 0 | BR23: - | BS23: - | BT23: 0 | BU23: 0 | BV23: 0 | BW23: 0 | BX23: 0 | BY23: 0 | BZ23: 0 | CA23: 0 | CB23: 0 | CC23: 0 | CD23: 0 | CE23: 0 | CF23: 0 | CG23: 0 | CH23: 0 | CI23: 0
A24: Milho | B24: Total Operação | C24: MILHO | D24: 7114355 | E24: 1245723 | F24: 140909 | G24: 1682 | H24: 0 | I24: 0 | J24: 213883 | K24: 1271999 | L24: 1588841 | M24: 1316650 | N24: 510670 | O24: 344112 | P24: 479886 | Q24: 11458575 | R24: 85296 | S24: 8797 | T24: 0 | U24: 0 | V24: 7293 | W24: 780246 | X24: 1542625 | Y24: 1971538 | Z24: 2109089 | AA24: 1993773 | AB24: 1553793 | AC24: 1406125 | AD24: 10759302 | AE24: 511871 | AF24: 58203 | AG24: 0 | AH24: 0 | AI24: 22684 | AJ24: 227177 | AK24: 1437771 | AL24: 1791480 | AM24: 1790353 | AN24: 1424964 | AO24: 1820700 | AP24: 1674099 | AQ24: 14257220 | AR24: 388763 | AS24: 106889 | AT24: 21357 | AU24: 59186 | AV24: 105342 | AW24: 1738048 | AX24: 2489866 | AY24: 2524502 | AZ24: 2139600 | BA24: 1938564 | BB24: 1831686 | BC24: 913417 | BD24: 12264145 | BE24: 88580 | BF24: 102557 | BG24: 20269 | BH24: 0 | BI24: 41 | BJ24: 869988 | BK24: 1771947 | BL24: 1999554 | BM24: 1911519 | BN24: 1934609 | BO24: 1869337 | BP24: 1695744 | BQ24: 8391260 | BR24: 141408 | BS24: 101243 | BT24: 9765 | BU24: 0 | BV24: 0 | BW24: 319694 | BX24: 1776466 | BY24: 1342011 | BZ24: 861572 | CA24: 1088342 | CB24: 1144566 | CC24: 1606193 | CD24: 1200620 | CE24: 693464 | CF24: 46286 | CG24: 65640 | CH24: 293175 | CI24: 102055
A25: Soja | B25: Total Operação | C25: SOJA | D25: 9778680 | E25: 142225 | F25: 1526682 | G25: 2103585 | H25: 2093133 | I25: 1677153 | J25: 937865 | K25: 467438 | L25: 255206 | M25: 176779 | N25: 130487 | O25: 104449 | P25: 163678 | Q25: 12732867 | R25: 606111 | S25: 1731574 | T25: 2304734 | U25: 2025913 | V25: 1936062 | W25: 1226966 | X25: 764236 | Y25: 528953 | Z25: 247404 | AA25: 303428 | AB25: 517462 | AC25: 540024 | AD25: 17246325 | AE25: 785626 | AF25: 1914150 | AG25: 2639088 | AH25: 2514737 | AI25: 2076437 | AJ25: 2077205 | AK25: 1230710 | AL25: 1014386 | AM25: 849151 | AN25: 1002931 | AO25: 768766 | AP25: 373138 | AQ25: 14833359 | AR25: 1468302 | AS25: 2093722 | AT25: 2724675 | AU25: 2113227 | AV25: 1676496 | AW25: 914746 | AX25: 611335 | AY25: 555493 | AZ25: 533428 | BA25: 908699 | BB25: 857215 | BC25: 376021 | BD25: 14939229 | BE25: 1062084 | BF25: 2204041 | BG25: 1936863 | BH25: 2704449 | BI25: 2797585 | BJ25: 1651143 | BK25: 1161146 | BL25: 701783 | BM25: 397161 | BN25: 201998 | BO25: 62343 | BP25: 58633 | BQ25: 18338263 | BR25: 214729 | BS25: 1991434 | BT25: 3321706 | BU25: 3165891 | BV25: 2992260 | BW25: 2074862 | BX25: 1039945 | BY25: 659173 | BZ25: 662358 | CA25: 744836 | CB25: 832779 | CC25: 638290 | CD25: 12263631 | CE25: 1389925 | CF25: 2866913 | CG25: 3266186 | CH25: 2467930 | CI25: 2272677
A26: Trigo | B26: Total Operação | C26: TRIGO | D26: 92438 | E26: 56140 | F26: 1934 | G26: 2974 | H26: 0 | I26: 0 | J26: 0 | K26: 0 | L26: 0 | M26: 0 | N26: 0 | O26: 9121 | P26: 22269 | Q26: 183475 | R26: 62998 | S26: 82959 | T26: 18082 | U26: 0 | V26: 0 | W26: 0 | X26: 0 | Y26: 0 | Z26: 0 | AA26: 0 | AB26: 6040 | AC26: 13396 | AD26: 178882 | AE26: 27410 | AF26: 6784 | AG26: 0 | AH26: 0 | AI26: 0 | AJ26: 0 | AK26: 0 | AL26: 0 | AM26: 0 | AN26: 0 | AO26: 57524 | AP26: 87164 | AQ26: 113925 | AR26: 46885 | AS26: 5420 | AT26: 0 | AU26: 0 | AV26: 0 | AW26: 0 | AX26: 0 | AY26: 0 | AZ26: 0 | BA26: 0 | BB26: 7839 | BC26: 53781 | BD26: 259399 | BE26: 40940 | BF26: 2273 | BG26: 0 | BH26: 0 | BI26: 0 | BJ26: 0 | BK26: 0 | BL26: 0 | BM26: 0 | BN26: 17013 | BO26: 106588 | BP26: 92585 | BQ26: 269727 | BR26: 4953 | BS26: - | BT26: 0 | BU26: 0 | BV26: 0 | BW26: 0 | BX26: 0 | BY26: 0 | BZ26: 0 | CA26: 1384 | CB26: 111305 | CC26: 152085 | CD26: 383027 | CE26: 138038 | CF26: 172565 | CG26: 63166 | CH26: 8003 | CI26: 1255
A27: Soja | B27: Total Operação | C27: ÓLEO VEGETAL | D27: 32653 | E27: 521 | F27: 1881 | G27: 3923 | H27: 4426 | I27: 3402 | J27: 3420 | K27: 3883 | L27: 3808 | M27: 1572 | N27: 1504 | O27: 2207 | P27: 2106 | Q27: 46671 | R27: 3313 | S27: 3662 | T27: 4737 | U27: 5046 | V27: 5065 | W27: 4961 | X27: 5611 | Y27: 2898 | Z27: 1047 | AA27: 3903 | AB27: 2449 | AC27: 3979 | AD27: 45050 | AE27: 3005 | AF27: 3563 | AG27: 2366 | AH27: 2878 | AI27: 4486 | AJ27: 3721 | AK27: 4887 | AL27: 4086 | AM27: 7071 | AN27: 6123 | AO27: 208 | AP27: 2656 | AQ27: 12614 | AR27: 5141 | AS27: 0 | AT27: 1261 | AU27: 1228 | AV27: 0 | AW27: 0 | AX27: 0 | AY27: 0 | AZ27: 2107 | BA27: 1645 | BB27: 616 | BC27: 616 | BD27: 0 | BE27: 0 | BF27: 0 | BG27: 0 | BH27: 0 | BI27: 0 | BJ27: 0 | BK27: 0 | BL27: 0 | BM27: 0 | BN27: 0 | BO27: 0 | BP27: 0 | BQ27: 0 | BR27: - | BS27: - | BT27: 0 | BU27: 0 | BV27: 0 | BW27: 0 | BX27: 0 | BY27: 0 | BZ27: 0 | CA27: 0 | CB27: 0 | CC27: 0 | CD27: 0 | CE27: 0 | CF27: 0 | CG27: 0 | CH27: 0 | CI27: 0
B28: Total Operação | C28: GRUPO - INDUSTRIAL | D28: 5071902 | E28: 336172 | F28: 292087 | G28: 344432 | H28: 357790 | I28: 421952 | J28: 446109 | K28: 518004 | L28: 541290 | M28: 477514 | N28: 468696 | O28: 447294 | P28: 420562 | Q28: 6233038 | R28: 468193 | S28: 420698 | T28: 459860 | U28: 464072 | V28: 533317 | W28: 533300 | X28: 539131 | Y28: 540725 | Z28: 534650 | AA28: 566341 | AB28: 568850 | AC28: 603901 | AD28: 7510581 | AE28: 585337 | AF28: 546257 | AG28: 557252 | AH28: 561091 | AI28: 616026 | AJ28: 634201 | AK28: 628436 | AL28: 697369 | AM28: 658850 | AN28: 703942 | AO28: 666053 | AP28: 655767 | AQ28: 7036358 | AR28: 544671 | AS28: 439346 | AT28: 526163 | AU28: 574601 | AV28: 592158 | AW28: 631919 | AX28: 659398 | AY28: 685781 | AZ28: 664252 | BA28: 664911 | BB28: 603827 | BC28: 449331 | BD28: 6345257 | BE28: 495547 | BF28: 515993 | BG28: 446390 | BH28: 587356 | BI28: 570430 | BJ28: 536935 | BK28: 631911 | BL28: 668288 | BM28: 664319 | BN28: 451123 | BO28: 408596 | BP28: 368369 | BQ28: 6988375 | BR28: 466725 | BS28: 532534 | BT28: 632507 | BU28: 643636 | BV28: 675712 | BW28: 607852 | BX28: 635314 | BY28: 664834 | BZ28: 549104 | CA28: 575232 | CB28: 511805 | CC28: 493120 | CD28: 2765338 | CE28: 494213 | CF28: 449164 | CG28: 603824 | CH28: 561200 | CI28: 656937
A29: Madeira, Papel e Celulose | B29: Total Operação | C29: ARROZ (ENSACADO) | D29: 1665 | E29: 1623 | F29: 42 | G29: 0 | H29: 0 | I29: 0 | J29: 0 | K29: 0 | L29: 0 | M29: 0 | N29: 0 | O29: 0 | P29: 0 | Q29: 0 | R29: 0 | S29: 0 | T29: 0 | U29: 0 | V29: 0 | W29: 0 | X29: 0 | Y29: 0 | Z29: 0 | AA29: 0 | AB29: 0 | AC29: 0 | AD29: 0 | AE29: 0 | AF29: 0 | AG29: 0 | AH29: 0 | AI29: 0 | AJ29: 0 | AK29: 0 | AL29: 0 | AM29: 0 | AN29: 0 | AO29: 0 | AP29: 0 | AQ29: 0 | AR29: 0 | AS29: 0 | AT29: 0 | AU29: 0 | AV29: 0 | AW29: 0 | AX29: 0 | AY29: 0 | AZ29: 0 | BA29: 0 | BB29: 0 | BC29: 0 | BD29: 0 | BE29: 0 | BF29: 0 | BG29: 0 | BH29: 0 | BI29: 0 | BJ29: 0 | BK29: 0 | BL29: 0 | BM29: 0 | BN29: 0 | BO29: 0 | BP29: 0 | BQ29: 0 | BR29: - | BS29: - | BT29: 0 | BU29: 0 | BV29: 0 | BW29: 0 | BX29: 0 | BY29: 0 | BZ29: 0 | CA29: 0 | CB29: 0 | CC29: 0 | CD29: 0 | CE29: 0 | CF29: 0 | CG29: 0 | CH29: 0 | CI29: 0
A30: Madeira, Papel e Celulose | B30: Total Operação | C30: CALCÁREO (IND) | D30: 46068 | E30: 3740 | F30: 2992 | G30: 5720 | H30: 2904 | I30: 2816 | J30: 1408 | K30: 5060 | L30: 2904 | M30: 7480 | N30: 7392 | O30: 3652 | P30: 0 | Q30: 24728 | R30: 3696 | S30: 3608 | T30: 4708 | U30: 3784 | V30: 3652 | W30: 1320 | X30: 1320 | Y30: 2640 | Z30: 0 | AA30: 0 | AB30: 0 | AC30: 0 | AD30: 0 | AE30: 0 | AF30: 0 | AG30: 0 | AH30: 0 | AI30: 0 | AJ30: 0 | AK30: 0 | AL30: 0 | AM30: 0 | AN30: 0 | AO30: 0 | AP30: 0 | AQ30: 0 | AR30: 0 | AS30: 0 | AT30: 0 | AU30: 0 | AV30: 0 | AW30: 0 | AX30: 0 | AY30: 0 | AZ30: 0 | BA30: 0 | BB30: 0 | BC30: 0 | BD30: 0 | BE30: 0 | BF30: 0 | BG30: 0 | BH30: 0 | BI30: 0 | BJ30: 0 | BK30: 0 | BL30: 0 | BM30: 0 | BN30: 0 | BO30: 0 | BP30: 0 | BQ30: 0 | BR30: - | BS30: - | BT30: 0 | BU30: 0 | BV30: 0 | BW30: 0 | BX30: 0 | BY30: 0 | BZ30: 0 | CA30: 0 | CB30: 0 | CC30: 0 | CD30: 0 | CE30: 0 | CF30: 0 | CG30: 0 | CH30: 0 | CI30: 0
A31: Madeira, Papel e Celulose | B31: Total Operação | C31: CELULOSE | D31: 1130712 | E31: 54928 | F31: 59084 | G31: 58716 | H31: 60020 | I31: 80060 | J31: 89400 | K31: 124684 | L31: 128588 | M31: 116056 | N31: 127276 | O31: 115520 | P31: 116380 | Q31: 1733132 | R31: 117576 | S31: 74704 | T31: 105112 | U31: 119472 | V31: 139980 | W31: 135608 | X31: 136868 | Y31: 136836 | Z31: 147088 | AA31: 178596 | AB31: 203292 | AC31: 238000 | AD31: 2864419 | AE31: 218791 | AF31: 202264 | AG31: 180324 | AH31: 171288 | AI31: 189148 | AJ31: 257744 | AK31: 234740 | AL31: 300676 | AM31: 259936 | AN31: 292320 | AO31: 272892 | AP31: 284296 | AQ31: 3124364 | AR31: 261552 | AS31: 219112 | AT31: 267040 | AU31: 249308 | AV31: 254196 | AW31: 245808 | AX31: 229320 | AY31: 260012 | AZ31: 271520 | BA31: 293312 | BB31: 284940 | BC31: 288244 | BD31: 3135548 | BE31: 277460 | BF31: 217452 | BG31: 218276 | BH31: 199660 | BI31: 261830 | BJ31: 257296 | BK31: 297386 | BL31: 304644 | BM31: 307790 | BN31: 302316 | BO31: 302868 | BP31: 188570 | BQ31: 3363570 | BR31: 277146 | BS31: 272464 | BT31: 295072 | BU31: 288312 | BV31: 298506 | BW31: 273600 | BX31: 271676 | BY31: 321386 | BZ31: 269282 | CA31: 280386 | CB31: 262668 | CC31: 253072 | CD31: 1329278 | CE31: 245434 | CF31: 211342 | CG31: 310002 | CH31: 277230 | CI31: 285270
A32: Construção Civil | B32: Total Operação | C32: CIMENTO | D32: 796450 | E32: 51960 | F32: 59887 | G32: 59205 | H32: 61661 | I32: 57595 | J32: 68650 | K32: 76161 | L32: 78110 | M32: 74915 | N32: 73999 | O32: 68651 | P32: 65656 | Q32: 770394 | R32: 70778 | S32: 61523 | T32: 67337 | U32: 65785 | V32: 64955 | W32: 60826 | X32: 71753 | Y32: 74683 | Z32: 64073 | AA32: 69366 | AB32: 41493 | AC32: 57822 | AD32: 719827 | AE32: 46667 | AF32: 54405 | AG32: 66526 | AH32: 52833 | AI32: 58136 | AJ32: 57165 | AK32: 65630 | AL32: 69407 | AM32: 66327 | AN32: 61833 | AO32: 67113 | AP32: 53785 | AQ32: 797494 | AR32: 58843 | AS32: 59373 | AT32: 55397 | AU32: 64214 | AV32: 65604 | AW32: 67011 | AX32: 69113 | AY32: 76419 | AZ32: 75952 | BA32: 76399 | BB32: 71587 | BC32: 57582 | BD32: 818429 | BE32: 66430 | BF32: 66962 | BG32: 40409 | BH32: 71088 | BI32: 75191 | BJ32: 71841 | BK32: 69218 | BL32: 73803 | BM32: 69638 | BN32: 82218 | BO32: 73881 | BP32: 57750 | BQ32: 913949 | BR32: 70642 | BS32: 60876 | BT32: 79515 | BU32: 80601 | BV32: 82658 | BW32: 71946 | BX32: 81896 | BY32: 82180 | BZ32: 79629 | CA32: 72821 | CB32: 77334 | CC32: 73851 | CD32: 376524 | CE32: 71602 | CF32: 67550 | CG32: 79139 | CH32: 71224 | CI32: 87009
A33: Construção Civil | B33: Total Operação | C33: CLINQUER | D33: 298325 | E33: 12038 | F33: 15421 | G33: 24830 | H33: 24206 | I33: 21349 | J33: 28373 | K33: 26642 | L33: 33287 | M33: 30294 | N33: 26831 | O33: 28417 | P33: 26637 | Q33: 348772 | R33: 30634 | S33: 25904 | T33: 26945 | U33: 26618 | V33: 36199 | W33: 21453 | X33: 30095 | Y33: 27898 | Z33: 29843 | AA33: 30939 | AB33: 33564 | AC33: 28680 | AD33: 287754 | AE33: 33068 | AF33: 23767 | AG33: 24856 | AH33: 25351 | AI33: 24161 | AJ33: 24791 | AK33: 17865 | AL33: 13160 | AM33: 22895 | AN33: 33504 | AO33: 28274 | AP33: 16062 | AQ33: 270799 | AR33: 27361 | AS33: 22733 | AT33: 27247 | AU33: 11840 | AV33: 21917 | AW33: 23499 | AX33: 25201 | AY33: 27534 | AZ33: 21762 | BA33: 24160 | BB33: 15869 | BC33: 21676 | BD33: 294483 | BE33: 22840 | BF33: 25849 | BG33: 20395 | BH33: 19331 | BI33: 27277 | BJ33: 20682 | BK33: 20155 | BL33: 24846 | BM33: 24973 | BN33: 31701 | BO33: 28081 | BP33: 28353 | BQ33: 352156 | BR33: 24694 | BS33: 27343 | BT33: 30499 | BU33: 30285 | BV33: 28615 | BW33: 29766 | BX33: 28110 | BY33: 32045 | BZ33: 32800 | CA33: 32245 | CB33: 30506 | CC33: 25248 | CD33: 134447 | CE33: 26049 | CF33: 31834 | CG33: 26522 | CH33: 24437 | CI33: 25605
A34: Madeira, Papel e Celulose | B34: Total Operação | C34: MADEIRA | AQ34: 0 | AR34: 0 | AS34: 0 | AT34: 0 | AU34: 0 | AV34: 0 | AW34: 0 | AX34: 0 | AY34: 0 | AZ34: 0 | BA34: 0 | BB34: 0 | BC34: 0 | BD34: 0 | BE34: 0 | BF34: 0 | BG34: 0 | BH34: 0 | BI34: 0 | BJ34: 0 | BK34: 0 | BL34: 0 | BM34: 0 | BN34: 0 | BO34: 0 | BP34: 0 | BQ34: 0 | BR34: - | BS34: - | BT34: 0 | BU34: 0 | BV34: 0 | BW34: 0 | BX34: 0 | BY34: 0 | BZ34: 0 | CA34: 0 | CB34: 0 | CC34: 0 | CD34: 0 | CE34: 0 | CF34: 0 | CG34: 0 | CH34: 0 | CI34: 0
A35: Siderúrgicos e Mineração | B35: Total Operação | C35: MINÉRIO | D35: 2757822 | E35: 209188 | F35: 147870 | G35: 191456 | H35: 203174 | I35: 258974 | J35: 257114 | K35: 281418 | L35: 294934 | M35: 246450 | N35: 228532 | O35: 228966 | P35: 209746 | Q35: 3279366 | R35: 244466 | S35: 252650 | T35: 251534 | U35: 242730 | V35: 281232 | W35: 306652 | X35: 291462 | Y35: 289664 | Z35: 284766 | AA35: 278690 | AB35: 283092 | AC35: 272428 | AD35: 3549661 | AE35: 279372 | AF35: 261268 | AG35: 278814 | AH35: 305288 | AI35: 335296 | AJ35: 285350 | AK35: 299150 | AL35: 303986 | AM35: 303986 | AN35: 311426 | AO35: 291648 | AP35: 294077 | AQ35: 2762082 | AR35: 189968 | AS35: 130270 | AT35: 173444 | AU35: 243135 | AV35: 243091 | AW35: 285587 | AX35: 328064 | AY35: 312884 | AZ35: 287451 | BA35: 261085 | BB35: 226460 | BC35: 80643 | BD35: 2054142 | BE35: 122000 | BF35: 204748 | BG35: 159442 | BH35: 290720 | BI35: 204549 | BJ35: 184435 | BK35: 240952 | BL35: 263498 | BM35: 259990 | BN35: 34888 | BO35: 0 | BP35: 88920 | BQ35: 2299471 | BR35: 90674 | BS35: 170686 | BT35: 220860 | BU35: 239173 | BV35: 257041 | BW35: 225485 | BX35: 246496 | BY35: 228983 | BZ35: 167393 | CA35: 184491 | CB35: 134080 | CC35: 134109 | CD35: 910340 | CE35: 145254 | CF35: 138438 | CG35: 181178 | CH35: 186417 | CI35: 259053
A36: Madeira, Papel e Celulose | B36: Total Operação | C36: OUTROS (IND) | D36: 2504 | E36: 83 | F36: 842 | G36: 0 | H36: 1579 | I36: 0 | J36: 0 | K36: 0 | L36: 0 | M36: 0 | N36: 0 | O36: 0 | P36: 0 | Q36: 0 | R36: 0 | S36: 0 | T36: 0 | U36: 0 | V36: 0 | W36: 0 | X36: 0 | Y36: 0 | Z36: 0 | AA36: 0 | AB36: 0 | AC36: 0 | AD36: 22 | AE36: 0 | AF36: 0 | AG36: 0 | AH36: 0 | AI36: 0 | AJ36: 0 | AK36: 0 | AL36: 22 | AM36: 0 | AN36: 0 | AO36: 0 | AP36: 0 | AQ36: 0 | AR36: 0 | AS36: 0 | AT36: 0 | AU36: 0 | AV36: 0 | AW36: 0 | AX36: 0 | AY36: 0 | AZ36: 0 | BA36: 0 | BB36: 0 | BC36: 0 | BD36: 164 | BE36: 0 | BF36: 0 | BG36: 0 | BH36: 0 | BI36: 0 | BJ36: 0 | BK36: 0 | BL36: 0 | BM36: 0 | BN36: 0 | BO36: 164 | BP36: 0 | BQ36: 0 | BR36: - | BS36: - | BT36: 0 | BU36: 0 | BV36: 0 | BW36: 0 | BX36: 0 | BY36: 0 | BZ36: 0 | CA36: 0 | CB36: 0 | CC36: 0 | CD36: 0 | CE36: 0 | CF36: 0 | CG36: 0 | CH36: 0 | CI36: 0
A37: Madeira, Papel e Celulose | B37: Total Operação | C37: PAPEL | AQ37: 0 | AR37: 0 | AS37: 0 | AT37: 0 | AU37: 0 | AV37: 0 | AW37: 0 | AX37: 0 | AY37: 0 | AZ37: 0 | BA37: 0 | BB37: 0 | BC37: 0 | BD37: 0 | BE37: 0 | BF37: 0 | BG37: 0 | BH37: 0 | BI37: 0 | BJ37: 0 | BK37: 0 | BL37: 0 | BM37: 0 | BN37: 0 | BO37: 0 | BP37: 0 | BQ37: 0 | BR37: - | BS37: - | BT37: 0 | BU37: 0 | BV37: 0 | BW37: 0 | BX37: 0 | BY37: 0 | BZ37: 0 | CA37: 0 | CB37: 0 | CC37: 0 | CD37: 0 | CE37: 0 | CF37: 0 | CG37: 0 | CH37: 0 | CI37: 0
A38: Siderúrgicos e Mineração | B38: Total Operação | C38: SIDERÚRGICOS (IND) | D38: 38356 | E38: 2612 | F38: 5949 | G38: 4505 | H38: 4246 | I38: 1158 | J38: 1164 | K38: 4039 | L38: 3467 | M38: 2319 | N38: 4666 | O38: 2088 | P38: 2143 | Q38: 76646 | R38: 1043 | S38: 2309 | T38: 4224 | U38: 5683 | V38: 7299 | W38: 7441 | X38: 7633 | Y38: 9004 | Z38: 8880 | AA38: 8750 | AB38: 7409 | AC38: 6971 | AD38: 88898 | AE38: 7439 | AF38: 4553 | AG38: 6732 | AH38: 6331 | AI38: 9285 | AJ38: 9151 | AK38: 11051 | AL38: 10118 | AM38: 5706 | AN38: 4859 | AO38: 6126 | AP38: 7547 | AQ38: 81619 | AR38: 6947 | AS38: 7858 | AT38: 3035 | AU38: 6104 | AV38: 7350 | AW38: 10014 | AX38: 7700 | AY38: 8932 | AZ38: 7567 | BA38: 9955 | BB38: 4971 | BC38: 1186 | BD38: 42491 | BE38: 6817 | BF38: 982 | BG38: 7868 | BH38: 6557 | BI38: 1583 | BJ38: 2681 | BK38: 4200 | BL38: 1497 | BM38: 1928 | BN38: 0 | BO38: 3602 | BP38: 4776 | BQ38: 59229 | BR38: 3569 | BS38: 1165 | BT38: 6561 | BU38: 5265 | BV38: 8892 | BW38: 7055 | BX38: 7136 | BY38: 240 | BZ38: 0 | CA38: 5289 | CB38: 7217 | CC38: 6840 | CD38: 14749 | CE38: 5874 | CF38: 0 | CG38: 6983 | CH38: 1892 | CI38: 0
A39: Combustível | B39: Total Operação | C39: GRUPO - LÍQUIDOS | D39: 5558928 | E39: 403895 | F39: 431638 | G39: 472204 | H39: 441571 | I39: 448426 | J39: 485322 | K39: 485770 | L39: 504974 | M39: 506602 | N39: 510167 | O39: 451553 | P39: 416806 | Q39: 5639195 | R39: 438423 | S39: 403009 | T39: 442323 | U39: 409399 | V39: 461798 | W39: 459987 | X39: 520245 | Y39: 534979 | Z39: 504548 | AA39: 567981 | AB39: 455340 | AC39: 441163 | AD39: 5572086 | AE39: 432727 | AF39: 454748 | AG39: 482497 | AH39: 414912 | AI39: 420847 | AJ39: 501896 | AK39: 515882 | AL39: 488697 | AM39: 482383 | AN39: 465400 | AO39: 455722 | AP39: 456375 | AQ39: 5792428 | AR39: 457709 | AS39: 437437 | AT39: 455247 | AU39: 458752 | AV39: 483316 | AW39: 498336 | AX39: 522493 | AY39: 532359 | AZ39: 501473 | BA39: 525139 | BB39: 472611 | BC39: 447556 | BD39: 5244979 | BE39: 461696 | BF39: 461952 | BG39: 322458 | BH39: 286743 | BI39: 410083 | BJ39: 409302 | BK39: 459793 | BL39: 467178 | BM39: 492083 | BN39: 520579 | BO39: 494294 | BP39: 458818 | BQ39: 5942069 | BR39: 471748 | BS39: 480324 | BT39: 476456 | BU39: 466838 | BV39: 510744 | BW39: 497006 | BX39: 514838 | BY39: 533746 | BZ39: 507576 | CA39: 513894 | CB39: 480759 | CC39: 488140 | CD39: 2546385 | CE39: 485419 | CF39: 485060 | CG39: 526358 | CH39: 505322 | CI39: 544226
B40: Total Operação | C40: GRUPO - OUTROS | AQ40: 2 | AR40: 0 | AS40: 0 | AT40: 0 | AU40: 0 | AV40: 0 | AW40: 0 | AX40: 0 | AY40: 0 | AZ40: 0 | BA40: 1 | BB40: 0 | BC40: 1 | BD40: 0 | BE40: 0 | BF40: 0 | BG40: 0 | BH40: 0 | BI40: 0 | BJ40: 0 | BK40: 0 | BL40: 0 | BM40: 0 | BN40: 0 | BO40: 0 | BP40: 0 | BQ40: 4 | BR40: 2 | BS40: 1 | BT40: 1 | BU40: 0 | BV40: 0 | BW40: 0 | BX40: 0 | BY40: 0 | BZ40: 0 | CA40: 0 | CB40: 0 | CC40: 0 | CD40: 0 | CE40: 0 | CF40: 0 | CG40: 0 | CH40: 0 | CI40: 0
B41: NORTE | C41: Total Produto | D41: =SUM(D42:D45,D54,D65) -> 20941482 | E41: 1512500 | F41: 1600153 | G41: 1923435 | H41: 1972200 | I41: 1864269 | J41: 1649962 | K41: 1977554 | L41: 2075853 | M41: 1982434 | N41: 1606930 | O41: 1394598 | P41: 1381594 | Q41: 24437526 | R41: 1297573 | S41: 1752734 | T41: 2010546 | U41: 1959879 | V41: 2217895 | W41: 2029491 | X41: 2121596 | Y41: 2257428 | Z41: 2105506 | AA41: 2353317 | AB41: 2194943 | AC41: 2136618 | AD41: 28967342.87 | AE41: 1680391 | AF41: 2143021 | AG41: 2398665 | AH41: 2264991 | AI41: 2158864 | AJ41: 2509516 | AK41: 2662230 | AL41: 2743605 | AM41: 2685469 | AN41: 2491933 | AO41: 2711889 | AP41: 2516768.87 | AQ41: 31460951 | AR41: 2219067 | AS41: 1984367 | AT41: 2702593 | AU41: 2539708 | AV41: 2303032 | AW41: 2913556 | AX41: 3182551 | AY41: 2954193 | AZ41: 2724510 | BA41: 2850985 | BB41: 2856615 | BC41: 2229774 | BD41: 34398967 | BE41: 2066801 | BF41: 2777616 | BG41: 1960457 | BH41: 2787580 | BI41: 3057496 | BJ41: 2866446 | BK41: 3251457 | BL41: 3138455 | BM41: 3167355 | BN41: 3329751 | BO41: 3056197 | BP41: 2939356 | BQ41: 35998726 | BR41: 1643093 | BS41: 2851096 | BT41: 3255749 | BU41: 3292235 | BV41: 3518270 | BW41: 3270011 | BX41: 3389291 | BY41: 3020256 | BZ41: 2628704 | CA41: 2903942 | CB41: 3122264 | CC41: 3103815 | CD41: 17859788 | CE41: 3010359 | CF41: 3607552 | CG41: 3936526 | CH41: 3552443 | CI41: 3752908
A42: Açúcar | B42: NORTE | C42: GRUPO - AÇÚCAR | D42: 4031626 | E42: 159114 | F42: 180609 | G42: 139265 | H42: 127612 | I42: 342175 | J42: 550508 | K42: 294642 | L42: 315576 | M42: 339512 | N42: 643579 | O42: 566026 | P42: 373008 | Q42: 2163443 | R42: 264261 | S42: 97177 | T42: 57243 | U42: 132363 | V42: 426989 | W42: 242806 | X42: 113385 | Y42: 144136 | Z42: 155928 | AA42: 155838 | AB42: 158893 | AC42: 214424 | AD42: 2629478 | AE42: 406983 | AF42: 196291 | AG42: 160306 | AH42: 113837 | AI42: 346881 | AJ42: 363892 | AK42: 159520 | AL42: 139393 | AM42: 202911 | AN42: 269314 | AO42: 150131 | AP42: 120019 | AQ42: 2140095 | AR42: 164754 | AS42: 74714 | AT42: 182717 | AU42: 263268 | AV42: 265242 | AW42: 138801 | AX42: 114189 | AY42: 98405 | AZ42: 154178 | BA42: 129019 | BB42: 95748 | BC42: 459060 | BD42: 4229508 | BE42: 263838 | BF42: 194414 | BG42: 122806 | BH42: 173784 | BI42: 278256 | BJ42: 207346 | BK42: 171830 | BL42: 406858 | BM42: 587317 | BN42: 717885 | BO42: 631247 | BP42: 473927 | BQ42: 3589307 | BR42: 412830 | BS42: 45569 | BT42: 77192 | BU42: 175534 | BV42: 444666 | BW42: 430415 | BX42: 149171 | BY42: 290171 | BZ42: 482624 | CA42: 440941 | CB42: 412324 | CC42: 227870 | CD42: 636930 | CE42: 194028 | CF42: 29097 | CG42: 146150 | CH42: 57756 | CI42: 209899
A43: Contêiner | B43: NORTE | C43: GRUPO - BRADO | D43: 902038 | E43: 66911 | F43: 71228 | G43: 78105 | H43: 68800 | I43: 76700 | J43: 79313 | K43: 85311 | L43: 79213 | M43: 71250 | N43: 79877 | O43: 79796 | P43: 65534 | Q43: 1031163 | R43: 77206 | S43: 62501 | T43: 70145 | U43: 86667 | V43: 101449 | W43: 91000 | X43: 90524 | Y43: 102534 | Z43: 94613 | AA43: 99242 | AB43: 85445 | AC43: 69837 | AD43: 1176487 | AE43: 35056 | AF43: 111019 | AG43: 101471 | AH43: 104069 | AI43: 85317 | AJ43: 88085 | AK43: 117664 | AL43: 124431 | AM43: 109664 | AN43: 103292 | AO43: 96879 | AP43: 99540 | AQ43: 1478003 | AR43: 96914 | AS43: 89437 | AT43: 127261 | AU43: 122676 | AV43: 123248 | AW43: 109444 | AX43: 131847 | AY43: 140161 | AZ43: 134776 | BA43: 132647 | BB43: 138013 | BC43: 131579 | BD43: 1387783 | BE43: 117087 | BF43: 107946 | BG43: 109280 | BH43: 80242 | BI43: 71525 | BJ43: 117378 | BK43: 125064 | BL43: 123704 | BM43: 130722 | BN43: 127553 | BO43: 142406 | BP43: 134876 | BQ43: 1648657 | BR43: 115552 | BS43: 105970 | BT43: 109347 | BU43: 137087 | BV43: 129784 | BW43: 145624 | BX43: 147653 | BY43: 170227 | BZ43: 151443 | CA43: 144080 | CB43: 138501 | CC43: 153389 | CD43: 726840 | CE43: 127402 | CF43: 143008 | CG43: 156558 | CH43: 147452 | CI43: 152420
A44: Fertilizantes | B44: NORTE | C44: GRUPO - FERTILIZANTES | D44: 0 | E44: 0 | F44: 0 | G44: 0 | H44: 0 | I44: 0 | J44: 0 | K44: 0 | L44: 0 | M44: 0 | N44: 0 | O44: 0 | P44: 0 | Q44: 0 | R44: 0 | S44: 0 | T44: 0 | U44: 0 | V44: 0 | W44: 0 | X44: 0 | Y44: 0 | Z44: 0 | AA44: 0 | AB44: 0 | AC44: 0 | AD44: 700690 | AE44: 0 | AF44: 0 | AG44: 0 | AH44: 1490 | AI44: 39138 | AJ44: 46832 | AK44: 111152 | AL44: 109027 | AM44: 52548 | AN44: 70442 | AO44: 104008 | AP44: 166053 | AQ44: 1732180 | AR44: 107379 | AS44: 74680 | AT44: 99420 | AU44: 130966 | AV44: 184699 | AW44: 175650 | AX44: 202606 | AY44: 161594 | AZ44: 64507 | BA44: 136468 | BB44: 166253 | BC44: 227958 | BD44: 2367994 | BE44: 182939 | BF44: 150573 | BG44: 71800 | BH44: 178512 | BI44: 237698 | BJ44: 221842 | BK44: 237646 | BL44: 160133 | BM44: 177808 | BN44: 254297 | BO44: 246732 | BP44: 248014 | BQ44: 2677218 | BR44: 259463 | BS44: 223175 | BT44: 147105 | BU44: 151100 | BV44: 159329 | BW44: 156254 | BX44: 326400 | BY44: 316078 | BZ44: 237472 | CA44: 261324 | CB44: 218129 | CC44: 221389 | CD44: 994083 | CE44: 179855 | CF44: 228742 | CG44: 213985 | CH44: 95893 | CI44: 275608
B45: NORTE | C45: GRUPO - GRÃOS | D45: 13745782 | E45: 1112819 | F45: 1181488 | G45: 1526294 | H45: 1602989 | I45: 1268685 | J45: 827056 | K45: 1412079 | L45: 1477948 | M45: 1348691 | N45: 661955 | O45: 566802 | P45: 758976 | Q45: 18836880 | R45: 765037 | S45: 1419699 | T45: 1695072 | U45: 1572813 | V45: 1501565 | W45: 1497034 | X45: 1726374 | Y45: 1810311 | Z45: 1679881 | AA45: 1850480 | AB45: 1716250 | AC45: 1602364 | AD45: 20935468.87 | AE45: 993814 | AF45: 1592384 | AG45: 1855430 | AH45: 1817026 | AI45: 1420003 | AJ45: 1681672 | AK45: 1949455 | AL45: 2042971 | AM45: 2002082 | AN45: 1731172 | AO45: 2038759 | AP45: 1810700.87 | AQ45: 22323728 | AR45: 1535226 | AS45: 1484759 | AT45: 1994074 | AU45: 1730223 | AV45: 1413943 | AW45: 2172047 | AX45: 2405085 | AY45: 2230005 | AZ45: 2036686 | BA45: 2100406 | BB45: 2130248 | BC45: 1091026 | BD45: =SUM(BD46:BD53) -> 22156103 | BE45: =SUM(BE46:BE53) -> 1169700 | BF45: =SUM(BF46:BF53) -> 1990404 | BG45: 1366875 | BH45: 2106054 | BI45: 2103651 | BJ45: 1977110 | BK45: 2344991 | BL45: 2067470 | BM45: 1864690 | BN45: 1802711 | BO45: 1620543 | BP45: 1741904 | BQ45: 23214690 | BR45: 491729 | BS45: 2110481 | BT45: 2538181 | BU45: 2445366 | BV45: 2383920 | BW45: 2139116 | BX45: 2342530 | BY45: 1790856 | BZ45: 1328691 | CA45: 1605853 | CB45: 1949668 | CC45: 2088299 | CD45: 13208119 | CE45: 2086281 | CF45: 2756141 | CG45: 2931615 | CH45: 2803706 | CI45: 2630376
B46: NORTE | C46: ARROZ (GRANEL) | AQ46: 0 | AR46: 0 | AS46: 0 | AT46: 0 | AU46: 0 | AV46: 0 | AW46: 0 | AX46: 0 | AY46: 0 | AZ46: 0 | BA46: 0 | BB46: 0 | BC46: 0 | BD46: 0 | BE46: 0 | BF46: 0 | BG46: 0 | BH46: 0 | BI46: 0 | BJ46: 0 | BK46: 0 | BL46: 0 | BM46: 0 | BN46: 0 | BO46: 0 | BP46: 0 | BQ46: 0 | BR46: - | BS46: - | BT46: 0 | BU46: 0 | BV46: 0 | BW46: 0 | BX46: 0 | BY46: 0 | BZ46: 0 | CA46: 0 | CB46: 0 | CC46: 0 | CD46: 0 | CE46: 0 | CF46: 0 | CG46: 0 | CH46: 0 | CI46: 0
A47: Farelo de Soja | B47: NORTE | C47: FARELO | D47: 3029211 | E47: 138665 | F47: 248372 | G47: 314174 | H47: 344702 | I47: 327073 | J47: 294540 | K47: 225291 | L47: 201266 | M47: 205210 | N47: 236378 | O47: 251827 | P47: 241713 | Q47: 3825322 | R47: 254830 | S47: 271252 | T47: 337929 | U47: 376599 | V47: 339766 | W47: 288499 | X47: 342228 | Y47: 281327 | Z47: 288632 | AA47: 356200 | AB47: 336901 | AC47: 351159 | AD47: 4064821.87 | AE47: 276811 | AF47: 338182 | AG47: 380643 | AH47: 410914 | AI47: 314032 | AJ47: 361905 | AK47: 313799 | AL47: 309701 | AM47: 339574 | AN47: 308946 | AO47: 327625 | AP47: 382689.87 | AQ47: 4270319 | AR47: 301233 | AS47: 288059 | AT47: 399566 | AU47: 394771 | AV47: 373017 | AW47: 382772 | AX47: 366677 | AY47: 311848 | AZ47: 332050 | BA47: 355964 | BB47: 410599 | BC47: 353763 | BD47: 4552887 | BE47: 258548 | BF47: 357153 | BG47: 337667 | BH47: 441612 | BI47: 390450 | BJ47: 411490 | BK47: 417490 | BL47: 402115 | BM47: 368129 | BN47: 410441 | BO47: 354102 | BP47: 403690 | BQ47: =SUM(BR47:CC47) -> 4951838 | BR47: 264328 | BS47: 363904 | BT47: 403452 | BU47: 450715 | BV47: 426796 | BW47: 467850 | BX47: 497982 | BY47: 428979 | BZ47: 392715 | CA47: 332790 | CB47: 460882 | CC47: 461445 | CD47: 2455051 | CE47: 385790 | CF47: 431714 | CG47: 538016 | CH47: 570770 | CI47: 528761
A48: Farelo de Milho | B48: NORTE | C48: FARELO DE MILHO | AQ48: =SUM(AR48:BC48) -> 14886 | AR48: 0 | AS48: 0 | AT48: 0 | AU48: 0 | AV48: 0 | AW48: 0 | AX48: 0 | AY48: 0 | AZ48: 0 | BB48: 0 | BC48: 14886 | BD48: 12996 | BE48: 12996 | BF48: 0 | BG48: 0 | BH48: 0 | BI48: 0 | BJ48: 0 | BK48: 0 | BL48: 0 | BM48: 0 | BN48: 0 | BO48: 0 | BP48: 0 | BQ48: 0 | BR48: - | BS48: - | BT48: 0 | BU48: 0 | BV48: 0 | BW48: 0 | BX48: 0 | BY48: 0 | BZ48: 0 | CA48: 0 | CB48: 0 | CC48: 0 | CD48: 0 | CE48: 0 | CF48: 0 | CG48: 0 | CH48: 0 | CI48: 0
A49: Malte | B49: NORTE | C49: MALTE | AQ49: 0 | AR49: 0 | AS49: 0 | AT49: 0 | AU49: 0 | AV49: 0 | AW49: 0 | AX49: 0 | AY49: 0 | AZ49: 0 | BA49: 0 | BB49: 0 | BC49: 0 | BD49: 0 | BE49: 0 | BF49: 0 | BG49: 0 | BH49: 0 | BI49: 0 | BJ49: 0 | BK49: 0 | BL49: 0 | BM49: 0 | BN49: 0 | BO49: 0 | BP49: 0 | BQ49: 0 | BR49: - | BS49: - | BT49: 0 | BU49: 0 | BV49: 0 | BW49: 0 | BX49: 0 | BY49: 0 | BZ49: 0 | CA49: 0 | CB49: 0 | CC49: 0 | CD49: 0 | CE49: 0 | CF49: 0 | CG49: 0 | CH49: 0 | CI49: 0
A50: Milho | B50: NORTE | C50: MILHO | D50: 5901716 | E50: 901140 | F50: 51329 | G50: 131 | H50: 0 | I50: 0 | J50: 213479 | K50: 1159751 | L50: 1276682 | M50: 1143481 | N50: 425577 | O50: 299064 | P50: 431082 | Q50: 9087457 | R50: 63752 | S50: 185 | T50: 0 | U50: 0 | V50: 7240 | W50: 761556 | X50: 1283092 | Y50: 1455549 | Z50: 1391249 | AA50: 1494280 | AB50: 1379349 | AC50: 1251205 | AD50: 9874286 | AE50: 294069 | AF50: 40663 | AG50: 0 | AH50: 0 | AI50: 22060 | AJ50: 227177 | AK50: 1432772 | AL50: 1687615 | AM50: 1645201 | AN50: 1407075 | AO50: 1689643 | AP50: 1428011 | AQ50: 10779143 | AR50: 234746 | AS50: 0 | AT50: 0 | AU50: 0 | AV50: 44666 | AW50: 1479970 | AX50: 1912642 | AY50: 1818859 | AZ50: 1619625 | BA50: 1554429 | BB50: 1439804 | BC50: 674402 | BD50: 9629770 | BE50: 1223 | BF50: 0 | BG50: 0 | BH50: 0 | BI50: 0 | BJ50: 869988 | BK50: 1694890 | BL50: 1617572 | BM50: 1449172 | BN50: 1392270 | BO50: 1266441 | BP50: 1338214 | BQ50: 7832741 | BR50: 31014 | BS50: -2942 | BT50: 0 | BU50: 0 | BV50: 0 | BW50: 319368 | BX50: 1776466 | BY50: 1298815 | BZ50: 837666 | CA50: 1052141 | CB50: 1088770 | CC50: 1431443 | CD50: 836309 | CE50: 600499 | CF50: 46035 | CG50: 0 | CH50: 140739 | CI50: 49036
A51: Soja | B51: NORTE | C51: SOJA | D51: 4814855 | E51: 73014 | F51: 881787 | G51: 1211989 | H51: 1258287 | I51: 941612 | J51: 319037 | K51: 27037 | L51: 0 | M51: 0 | N51: 0 | O51: 15911 | P51: 86181 | Q51: 5924101 | R51: 446455 | S51: 1148262 | T51: 1357143 | U51: 1196214 | V51: 1154559 | W51: 446979 | X51: 101054 | Y51: 73435 | Z51: 0 | AA51: 0 | AB51: 0 | AC51: 0 | AD51: 6996361 | AE51: 422934 | AF51: 1213539 | AG51: 1474787 | AH51: 1406112 | AI51: 1083911 | AJ51: 1092590 | AK51: 202884 | AL51: 45655 | AM51: 17307 | AN51: 15151 | AO51: 21491 | AP51: 0 | AQ51: 7259380 | AR51: 999247 | AS51: 1196700 | AT51: 1594508 | AU51: 1335452 | AV51: 996260 | AW51: 309305 | AX51: 125766 | AY51: 99298 | AZ51: 85011 | BA51: 190013 | BB51: 279845 | BC51: 47975 | BD51: 7960450 | BE51: 896933 | BF51: 1633251 | BG51: 1029208 | BH51: 1664442 | BI51: 1713201 | BJ51: 695632 | BK51: 232611 | BL51: 47783 | BM51: 47389 | BN51: 0 | BO51: 0 | BP51: 0 | BQ51: 10430111 | BR51: 196387 | BS51: 1749519 | BT51: 2134729 | BU51: 1994651 | BV51: 1957124 | BW51: 1351898 | BX51: 68082 | BY51: 63062 | BZ51: 98310 | CA51: 220922 | CB51: 400016 | CC51: 195411 | CD51: 9916759 | CE51: 1099992 | CF51: 2278392 | CG51: 2393599 | CH51: 2092197 | CI51: 2052579
A52: Trigo | B52: NORTE | C52: TRIGO | AQ52: 0 | AR52: 0 | AS52: 0 | AT52: 0 | AU52: 0 | AV52: 0 | AW52: 0 | AX52: 0 | AY52: 0 | AZ52: 0 | BA52: 0 | BB52: 0 | BC52: 0 | BD52: 0 | BE52: 0 | BF52: 0 | BG52: 0 | BH52: 0 | BI52: 0 | BJ52: 0 | BK52: 0 | BL52: 0 | BM52: 0 | BN52: 0 | BO52: 0 | BP52: 0 | BQ52: 0 | BR52: - | BS52: - | BT52: 0 | BU52: 0 | BV52: 0 | BW52: 0 | BX52: 0 | BY52: 0 | BZ52: 0 | CA52: 0 | CB52: 0 | CC52: 0 | CD52: 0 | CE52: 0 | CF52: 0 | CG52: 0 | CH52: 0 | CI52: 0
A53: Soja | B53: NORTE | C53: ÓLEO VEGETAL | AQ53: 0 | AR53: 0 | AS53: 0 | AT53: 0 | AU53: 0 | AV53: 0 | AW53: 0 | AX53: 0 | AY53: 0 | AZ53: 0 | BA53: 0 | BB53: 0 | BC53: 0 | BD53: 0 | BE53: 0 | BF53: 0 | BG53: 0 | BH53: 0 | BI53: 0 | BJ53: 0 | BK53: 0 | BL53: 0 | BM53: 0 | BN53: 0 | BO53: 0 | BP53: 0 | BQ53: 0 | BR53: - | BS53: - | BT53: 0 | BU53: 0 | BV53: 0 | BW53: 0 | BX53: 0 | BY53: 0 | BZ53: 0 | CA53: 0 | CB53: 0 | CC53: 0 | CD53: 0 | CE53: 0 | CF53: 0 | CG53: 0 | CH53: 0 | CI53: 0
B54: NORTE | C54: GRUPO - INDUSTRIAL | D54: 33515 | E54: 15052 | F54: 16072 | G54: 1631 | H54: 760 | I54: 0 | J54: 0 | K54: 0 | L54: 0 | M54: 0 | N54: 0 | O54: 0 | P54: 0 | Q54: 185416 | R54: 0 | S54: 0 | T54: 0 | U54: 0 | V54: 0 | W54: 0 | X54: 0 | Y54: 0 | Z54: 0 | AA54: 31240 | AB54: 69256 | AC54: 84920 | AD54: 1268872 | AE54: 75240 | AF54: 74888 | AG54: 104192 | AH54: 69696 | AI54: 91960 | AJ54: 103400 | AK54: 103576 | AL54: 129360 | AM54: 117920 | AN54: 132352 | AO54: 132352 | AP54: 133936 | AQ54: 1588048 | AR54: 128832 | AS54: 95832 | AT54: 131296 | AU54: 139392 | AV54: 134552 | AW54: 121528 | AX54: 127952 | AY54: 121704 | AZ54: 138776 | BA54: 152592 | BB54: 142736 | BC54: 152856 | BD54: 1980924 | BE54: 152328 | BF54: 148984 | BG54: 139314 | BH54: 163230 | BI54: 181830 | BJ54: 180048 | BK54: 171906 | BL54: 169878 | BM54: 176850 | BN54: 183428 | BO54: 189220 | BP54: 123908 | BQ54: 2097582 | BR54: 151642 | BS54: 152364 | BT54: 179644 | BU54: 163964 | BV54: 171778 | BW54: 158892 | BX54: 176168 | BY54: 199038 | BZ54: 183894 | CA54: 197898 | CB54: 184612 | CC54: 177688 | CD54: 1025686 | CE54: 177936 | CF54: 194382 | CG54: 232948 | CH54: 204398 | CI54: 216022
A55: Madeira, Papel e Celulose | B55: NORTE | C55: ARROZ (ENSACADO) | AQ55: 0 | AR55: 0 | AS55: 0 | AT55: 0 | AU55: 0 | AV55: 0 | AW55: 0 | AX55: 0 | AY55: 0 | AZ55: 0 | BA55: 0 | BB55: 0 | BC55: 0 | BD55: 0 | BE55: 0 | BF55: 0 | BG55: 0 | BH55: 0 | BI55: 0 | BJ55: 0 | BK55: 0 | BL55: 0 | BM55: 0 | BN55: 0 | BO55: 0 | BP55: 0 | BQ55: 0 | BR55: - | BS55: - | BT55: 0 | BU55: 0 | BV55: 0 | BW55: 0 | BX55: 0 | BY55: 0 | BZ55: 0 | CA55: 0 | CB55: 0 | CC55: 0 | CD55: 0 | CE55: 0 | CF55: 0 | CG55: 0 | CH55: 0 | CI55: 0
A56: Madeira, Papel e Celulose | B56: NORTE | C56: CALCÁREO (IND) | AQ56: 0 | AR56: 0 | AS56: 0 | AT56: 0 | AU56: 0 | AV56: 0 | AW56: 0 | AX56: 0 | AY56: 0 | AZ56: 0 | BA56: 0 | BB56: 0 | BC56: 0 | BD56: 0 | BE56: 0 | BF56: 0 | BG56: 0 | BH56: 0 | BI56: 0 | BJ56: 0 | BK56: 0 | BL56: 0 | BM56: 0 | BN56: 0 | BO56: 0 | BP56: 0 | BQ56: 0 | BR56: - | BS56: - | BT56: 0 | BU56: 0 | BV56: 0 | BW56: 0 | BX56: 0 | BY56: 0 | BZ56: 0 | CA56: 0 | CB56: 0 | CC56: 0 | CD56: 0 | CE56: 0 | CF56: 0 | CG56: 0 | CH56: 0 | CI56: 0
A57: Madeira, Papel e Celulose | B57: NORTE | C57: CELULOSE | D57: 30184 | E57: 15052 | F57: 15132 | G57: 0 | H57: 0 | I57: 0 | J57: 0 | K57: 0 | L57: 0 | M57: 0 | N57: 0 | O57: 0 | P57: 0 | Q57: 185416 | R57: 0 | S57: 0 | T57: 0 | U57: 0 | V57: 0 | W57: 0 | X57: 0 | Y57: 0 | Z57: 0 | AA57: 31240 | AB57: 69256 | AC57: 84920 | AD57: 1268872 | AE57: 75240 | AF57: 74888 | AG57: 104192 | AH57: 69696 | AI57: 91960 | AJ57: 103400 | AK57: 103576 | AL57: 129360 | AM57: 117920 | AN57: 132352 | AO57: 132352 | AP57: 133936 | AQ57: 1588048 | AR57: 128832 | AS57: 95832 | AT57: 131296 | AU57: 139392 | AV57: 134552 | AW57: 121528 | AX57: 127952 | AY57: 121704 | AZ57: 138776 | BA57: 152592 | BB57: 142736 | BC57: 152856 | BD57: 1980924 | BE57: 152328 | BF57: 148984 | BG57: 139314 | BH57: 163230 | BI57: 181830 | BJ57: 180048 | BK57: 171906 | BL57: 169878 | BM57: 176850 | BN57: 183428 | BO57: 189220 | BP57: 123908 | BQ57: 2097582 | BR57: 151642 | BS57: 152364 | BT57: 179644 | BU57: 163964 | BV57: 171778 | BW57: 158892 | BX57: 176168 | BY57: 199038 | BZ57: 183894 | CA57: 197898 | CB57: 184612 | CC57: 177688 | CD57: 1025686 | CE57: 177936 | CF57: 194382 | CG57: 232948 | CH57: 204398 | CI57: 216022
A58: Construção Civil | B58: NORTE | C58: CIMENTO | AQ58: 0 | AR58: 0 | AS58: 0 | AT58: 0 | AU58: 0 | AV58: 0 | AW58: 0 | AX58: 0 | AY58: 0 | AZ58: 0 | BA58: 0 | BB58: 0 | BC58: 0 | BD58: 0 | BE58: 0 | BF58: 0 | BG58: 0 | BH58: 0 | BI58: 0 | BJ58: 0 | BK58: 0 | BL58: 0 | BM58: 0 | BN58: 0 | BO58: 0 | BP58: 0 | BQ58: 0 | BR58: - | BS58: - | BT58: 0 | BU58: 0 | BV58: 0 | BW58: 0 | BX58: 0 | BY58: 0 | BZ58: 0 | CA58: 0 | CB58: 0 | CC58: 0 | CD58: 0 | CE58: 0 | CF58: 0 | CG58: 0 | CH58: 0 | CI58: 0
A59: Construção Civil | B59: NORTE | C59: CLINQUER | AQ59: 0 | AR59: 0 | AS59: 0 | AT59: 0 | AU59: 0 | AV59: 0 | AW59: 0 | AX59: 0 | AY59: 0 | AZ59: 0 | BA59: 0 | BB59: 0 | BC59: 0 | BD59: 0 | BE59: 0 | BF59: 0 | BG59: 0 | BH59: 0 | BI59: 0 | BJ59: 0 | BK59: 0 | BL59: 0 | BM59: 0 | BN59: 0 | BO59: 0 | BP59: 0 | BQ59: 0 | BR59: - | BS59: - | BT59: 0 | BU59: 0 | BV59: 0 | BW59: 0 | BX59: 0 | BY59: 0 | BZ59: 0 | CA59: 0 | CB59: 0 | CC59: 0 | CD59: 0 | CE59: 0 | CF59: 0 | CG59: 0 | CH59: 0 | CI59: 0
A60: Madeira, Papel e Celulose | B60: NORTE | C60: MADEIRA | AQ60: 0 | AR60: 0 | AS60: 0 | AT60: 0 | AU60: 0 | AV60: 0 | AW60: 0 | AX60: 0 | AY60: 0 | AZ60: 0 | BA60: 0 | BB60: 0 | BC60: 0 | BD60: 0 | BE60: 0 | BF60: 0 | BG60: 0 | BH60: 0 | BI60: 0 | BJ60: 0 | BK60: 0 | BL60: 0 | BM60: 0 | BN60: 0 | BO60: 0 | BP60: 0 | BQ60: 0 | BR60: - | BS60: - | BT60: 0 | BU60: 0 | BV60: 0 | BW60: 0 | BX60: 0 | BY60: 0 | BZ60: 0 | CA60: 0 | CB60: 0 | CC60: 0 | CD60: 0 | CE60: 0 | CF60: 0 | CG60: 0 | CH60: 0 | CI60: 0
A61: Siderúrgicos e Mineração | B61: NORTE | C61: MINÉRIO | AQ61: 0 | AR61: 0 | AS61: 0 | AT61: 0 | AU61: 0 | AV61: 0 | AW61: 0 | AX61: 0 | AY61: 0 | AZ61: 0 | BA61: 0 | BB61: 0 | BC61: 0 | BD61: 0 | BE61: 0 | BF61: 0 | BG61: 0 | BH61: 0 | BI61: 0 | BJ61: 0 | BK61: 0 | BL61: 0 | BM61: 0 | BN61: 0 | BO61: 0 | BP61: 0 | BQ61: 0 | BR61: - | BS61: - | BT61: 0 | BU61: 0 | BV61: 0 | BW61: 0 | BX61: 0 | BY61: 0 | BZ61: 0 | CA61: 0 | CB61: 0 | CC61: 0 | CD61: 0 | CE61: 0 | CF61: 0 | CG61: 0 | CH61: 0 | CI61: 0
A62: Madeira, Papel e Celulose | B62: NORTE | C62: OUTROS (IND) | AQ62: 0 | AR62: 0 | AS62: 0 | AT62: 0 | AU62: 0 | AV62: 0 | AW62: 0 | AX62: 0 | AY62: 0 | AZ62: 0 | BA62: 0 | BB62: 0 | BC62: 0 | BD62: 0 | BE62: 0 | BF62: 0 | BG62: 0 | BH62: 0 | BI62: 0 | BJ62: 0 | BK62: 0 | BL62: 0 | BM62: 0 | BN62: 0 | BO62: 0 | BP62: 0 | BQ62: 0 | BR62: - | BS62: - | BT62: 0 | BU62: 0 | BV62: 0 | BW62: 0 | BX62: 0 | BY62: 0 | BZ62: 0 | CA62: 0 | CB62: 0 | CC62: 0 | CD62: 0 | CE62: 0 | CF62: 0 | CG62: 0 | CH62: 0 | CI62: 0
A63: Madeira, Papel e Celulose | B63: NORTE | C63: PAPEL | AQ63: 0 | AR63: 0 | AS63: 0 | AT63: 0 | AU63: 0 | AV63: 0 | AW63: 0 | AX63: 0 | AY63: 0 | AZ63: 0 | BA63: 0 | BB63: 0 | BC63: 0 | BD63: 0 | BE63: 0 | BF63: 0 | BG63: 0 | BH63: 0 | BI63: 0 | BJ63: 0 | BK63: 0 | BL63: 0 | BM63: 0 | BN63: 0 | BO63: 0 | BP63: 0 | BQ63: 0 | BR63: - | BS63: - | BT63: 0 | BU63: 0 | BV63: 0 | BW63: 0 | BX63: 0 | BY63: 0 | BZ63: 0 | CA63: 0 | CB63: 0 | CC63: 0 | CD63: 0 | CE63: 0 | CF63: 0 | CG63: 0 | CH63: 0 | CI63: 0
A64: Siderúrgicos e Mineração | B64: NORTE | C64: SIDERÚRGICOS (IND) | D64: 3331 | E64: 0 | F64: 940 | G64: 1631 | H64: 760 | I64: 0 | J64: 0 | K64: 0 | L64: 0 | M64: 0 | N64: 0 | O64: 0 | P64: 0 | Q64: 0 | R64: 0 | S64: 0 | T64: 0 | U64: 0 | V64: 0 | W64: 0 | X64: 0 | Y64: 0 | Z64: 0 | AA64: 0 | AB64: 0 | AC64: 0 | AD64: 0 | AE64: 0 | AF64: 0 | AG64: 0 | AH64: 0 | AI64: 0 | AJ64: 0 | AK64: 0 | AL64: 0 | AM64: 0 | AN64: 0 | AO64: 0 | AP64: 0 | AQ64: 0 | AR64: 0 | AS64: 0 | AT64: 0 | AU64: 0 | AV64: 0 | AW64: 0 | AX64: 0 | AY64: 0 | AZ64: 0 | BA64: 0 | BB64: 0 | BC64: 0 | BD64: 0 | BE64: 0 | BF64: 0 | BG64: 0 | BH64: 0 | BI64: 0 | BJ64: 0 | BK64: 0 | BL64: 0 | BM64: 0 | BN64: 0 | BO64: 0 | BP64: 0 | BQ64: 0 | BR64: - | BS64: - | BT64: 0 | BU64: 0 | BV64: 0 | BW64: 0 | BX64: 0 | BY64: 0 | BZ64: 0 | CA64: 0 | CB64: 0 | CC64: 0 | CD64: 0 | CE64: 0 | CF64: 0 | CG64: 0 | CH64: 0 | CI64: 0
A65: Combustível | B65: NORTE | C65: GRUPO - LÍQUIDOS | D65: 2228521 | E65: 158604 | F65: 150756 | G65: 178140 | H65: 172039 | I65: 176709 | J65: 193085 | K65: 185522 | L65: 203116 | M65: 222981 | N65: 221519 | O65: 181974 | P65: 184076 | Q65: 2220624 | R65: 191069 | S65: 173357 | T65: 188086 | U65: 168036 | V65: 187892 | W65: 198651 | X65: 191313 | Y65: 200447 | Z65: 175084 | AA65: 216517 | AB65: 165099 | AC65: 165073 | AD65: 2256347 | AE65: 169298 | AF65: 168439 | AG65: 177266 | AH65: 158873 | AI65: 175565 | AJ65: 225635 | AK65: 220863 | AL65: 198423 | AM65: 200344 | AN65: 185361 | AO65: 189760 | AP65: 186520 | AQ65: 2198897 | AR65: 185962 | AS65: 164945 | AT65: 167825 | AU65: 153183 | AV65: 181348 | AW65: 196086 | AX65: 200872 | AY65: 202324 | AZ65: 195587 | BA65: 199853 | BB65: 183617 | BC65: 167295 | BD65: 2276655 | BE65: 180909 | BF65: 185295 | BG65: 150382 | BH65: 85758 | BI65: 184536 | BJ65: 162722 | BK65: 200020 | BL65: 210412 | BM65: 229968 | BN65: 243877 | BO65: 226049 | BP65: 216727 | BQ65: 2771268 | BR65: 211875 | BS65: 213536 | BT65: 204279 | BU65: 219184 | BV65: 228793 | BW65: 239710 | BX65: 247369 | BY65: 253886 | BZ65: 244580 | CA65: 253846 | CB65: 219030 | CC65: 235180 | CD65: 1268130 | CE65: 244857 | CF65: 256182 | CG65: 255270 | CH65: 243238 | CI65: 268583
B66: NORTE | C66: GRUPO - OUTROS | AQ66: 0 | AR66: 0 | AS66: 0 | AT66: 0 | AU66: 0 | AV66: 0 | AW66: 0 | AX66: 0 | AY66: 0 | AZ66: 0 | BA66: 0 | BB66: 0 | BC66: 0 | BD66: 0 | BE66: 0 | BF66: 0 | BG66: 0 | BH66: 0 | BI66: 0 | BJ66: 0 | BK66: 0 | BL66: 0 | BM66: 0 | BN66: 0 | BO66: 0 | BP66: 0 | BQ66: 4 | BR66: 2 | BS66: 1 | BT66: 1 | BU66: 0 | BV66: 0 | BW66: 0 | BX66: 0 | BY66: 0 | BZ66: 0 | CA66: 0 | CB66: 0 | CC66: 0 | CD66: 0 | CE66: 0 | CF66: 0 | CG66: 0 | CH66: 0 | CI66: 0
B67: SUL | C67: Total Produto | D67: =SUM(D68:D71,D80,D91) -> 21898345 | E67: 1396695 | F67: 1518525 | G67: 1862919 | H67: 1880507 | I67: 1994539 | J67: 2012283 | K67: 2125217 | L67: 2218087 | M67: 1986590 | N67: 1755196 | O67: 1596414 | P67: 1551373 | Q67: 25479141 | R67: 1367730 | S67: 1613017 | T67: 1993288 | U67: 2016154 | V67: 2254701 | W67: 2214727 | X67: 2493351 | Y67: 2546874 | Z67: 2523183 | AA67: 2360181 | AB67: 2123207 | AC67: 1972728 | AD67: 26979720 | AE67: 1731188 | AF67: 1812571 | AG67: 2206983 | AH67: 2256500 | AI67: 2311706 | AJ67: 2409019 | AK67: 2487927 | AL67: 2590407 | AM67: 2420513 | AN67: 2447884 | AO67: 2242320 | AP67: 2062702 | AQ67: 26213089 | AR67: 1720405 | AS67: 1932370 | AT67: 2146720 | AU67: 1996003 | AV67: 2040250 | AW67: 2290514 | AX67: 2609596 | AY67: 2617255 | AZ67: 2397307 | BA67: 2495734 | BB67: 2349660 | BC67: 1617275 | BD67: 24585535 | BE67: 1361169 | BF67: 1661211 | BG67: 1766802 | BH67: 2136437 | BI67: 2418425 | BJ67: 2210349 | BK67: 2415455 | BL67: 2483855 | BM67: 2402242 | BN67: 2122719 | BO67: 2001183 | BP67: 1605688 | BQ67: 24417087 | BR67: 1158150 | BS67: 1336796 | BT67: 2332820 | BU67: 2398427 | BV67: 2572433 | BW67: 2347689 | BX67: 2413784 | BY67: 2107337 | BZ67: 2093996 | CA67: 1993163 | CB67: 1831193 | CC67: 1831299 | CD67: 8572915 | CE67: 1522439 | CF67: 1620431 | CG67: 2063339 | CH67: 1620624 | CI67: 1746082
A68: Açúcar | B68: SUL | C68: GRUPO - AÇÚCAR | D68: 4040816 | E68: 184128 | F68: 41976 | G68: 120054 | H68: 189475 | I68: 301032 | J68: 356204 | K68: 462965 | L68: 525988 | M68: 529648 | N68: 452544 | O68: 394142 | P68: 482660 | Q68: 3800525 | R68: 162061 | S68: 76617 | T68: 99284 | U68: 197194 | V68: 391807 | W68: 393908 | X68: 471068 | Y68: 468954 | Z68: 474359 | AA68: 427402 | AB68: 408558 | AC68: 229313 | AD68: 2792428 | AE68: 95716 | AF68: 100741 | AG68: 61051 | AH68: 140866 | AI68: 293824 | AJ68: 328999 | AK68: 323673 | AL68: 348727 | AM68: 322693 | AN68: 332534 | AO68: 189930 | AP68: 253674 | AQ68: 2190806 | AR68: 49545 | AS68: 49698 | AT68: 44071 | AU68: 131100 | AV68: 214158 | AW68: 241768 | AX68: 323296 | AY68: 253004 | AZ68: 226982 | BA68: 221436 | BB68: 303121 | BC68: 132627 | BD68: 3676295 | BE68: 136542 | BF68: 71985 | BG68: 94197 | BH68: 186739 | BI68: 371948 | BJ68: 327917 | BK68: 324610 | BL68: 365722 | BM68: 492964 | BN68: 486697 | BO68: 458966 | BP68: 358008 | BQ68: 3820199 | BR68: 198217 | BS68: 104491 | BT68: 159571 | BU68: 183594 | BV68: 411511 | BW68: 558124 | BX68: 363731 | BY68: 328288 | BZ68: 512997 | CA68: 442534 | CB68: 342388 | CC68: 214753 | CD68: 765847 | CE68: 144587 | CF68: 70360 | CG68: 63346 | CH68: 112592 | CI68: 374962
A69: Contêiner | B69: SUL | C69: GRUPO - BRADO | D69: 987992 | E69: 73284 | F69: 93190 | G69: 99643 | H69: 97589 | I69: 92724 | J69: 93533 | K69: 79986 | L69: 78660 | M69: 76560 | N69: 74110 | O69: 67530 | P69: 61183 | Q69: 843238 | R69: 73020 | S69: 69811 | T69: 77705 | U69: 70216 | V69: 78859 | W69: 75727 | X69: 74613 | Y69: 80645 | Z69: 64618 | AA69: 64069 | AB69: 51815 | AC69: 62140 | AD69: 1038978 | AE69: 54662 | AF69: 71673 | AG69: 77315 | AH69: 85996 | AI69: 71602 | AJ69: 86922 | AK69: 93614 | AL69: 98675 | AM69: 98943 | AN69: 104337 | AO69: 98445 | AP69: 96794 | AQ69: 1282209 | AR69: 90640 | AS69: 90762 | AT69: 101026 | AU69: 101752 | AV69: 106427 | AW69: 104621 | AX69: 114111 | AY69: 119176 | AZ69: 124954 | BA69: 114232 | BB69: 110897 | BC69: 103611 | BD69: 1427639 | BE69: 113644 | BF69: 112708 | BG69: 96084 | BH69: 118359 | BI69: 119740 | BJ69: 129901 | BK69: 134317 | BL69: 125444 | BM69: 127172 | BN69: 123976 | BO69: 120098 | BP69: 106196 | BQ69: 1289453 | BR69: 110573 | BS69: 124471 | BT69: 115484 | BU69: 125248 | BV69: 118461 | BW69: 108776 | BX69: 110641 | BY69: 99512 | BZ69: 87253 | CA69: 92317 | CB69: 98332 | CC69: 98385 | CD69: 680753 | CE69: 125531 | CF69: 129295 | CG69: 134955 | CH69: 140434 | CI69: 150538
A70: Fertilizantes | B70: SUL | C70: GRUPO - FERTILIZANTES | D70: 1256096 | E70: 40016 | F70: 26385 | G70: 29764 | H70: 37642 | I70: 94591 | J70: 118747 | K70: 135369 | L70: 148985 | M70: 195932 | N70: 149495 | O70: 157230 | P70: 121940 | Q70: 1098466 | R70: 101564 | S70: 70693 | T70: 52874 | U70: 118539 | V70: 108350 | W70: 77277 | X70: 76747 | Y70: 91299 | Z70: 99471 | AA70: 110258 | AB70: 95177 | AC70: 96217 | AD70: 1070367 | AE70: 101394 | AF70: 79975 | AG70: 58163 | AH70: 71142 | AI70: 71164 | AJ70: 95393 | AK70: 100794 | AL70: 106234 | AM70: 95497 | AN70: 82171 | AO70: 113350 | AP70: 95090 | AQ70: 1035610 | AR70: 125196 | AS70: 61608 | AT70: 44469 | AU70: 57654 | AV70: 103751 | AW70: 100104 | AX70: 103701 | AY70: 99857 | AZ70: 112086 | BA70: 81550 | BB70: 81575 | BC70: 64059 | BD70: 807251 | BE70: 89926 | BF70: 60615 | BG70: 29429 | BH70: 68716 | BI70: 77739 | BJ70: 68548 | BK70: 77062 | BL70: 69523 | BM70: 69953 | BN70: 67774 | BO70: 66355 | BP70: 61611 | BQ70: 900631 | BR70: 70167 | BS70: 59651 | BT70: 9908 | BU70: 38555 | BV70: 65984 | BW70: 90382 | BX70: 92822 | BY70: 135933 | BZ70: 109888 | CA70: 88383 | CB70: 76008 | CC70: 62950 | CD70: 325780 | CE70: 76475 | CF70: 76888 | CG70: 53955 | CH70: 45807 | CI70: 72655
B71: SUL | C71: GRUPO - GRÃOS | D71: 7244647 | E71: 532856 | F71: 800077 | G71: 976593 | H71: 929239 | I71: 812523 | J71: 705453 | K71: 628645 | L71: 621306 | M71: 423315 | N71: 321703 | O71: 260639 | P71: 232298 | Q71: 10270719 | R71: 315538 | S71: 745546 | T71: 1049328 | U71: 924770 | V71: 868462 | W71: 873179 | X71: 1002860 | Y71: 1030719 | Z71: 1020621 | AA71: 871887 | AB71: 777822 | AC71: 789987 | AD71: 12520499 | AE71: 705890 | AF71: 802504 | AG71: 1252163 | AH71: 1211062 | AI71: 1105768 | AJ71: 1090643 | AK71: 1149967 | AL71: 1178488 | AM71: 1080411 | AN71: 1077213 | AO71: 1040932 | AP71: 825458 | AQ71: 12662623 | AR71: 767438 | AS71: 1114296 | AT71: 1274865 | AU71: 964719 | AV71: 856340 | AW71: 1031380 | AX71: 1215421 | AY71: 1251106 | AZ71: 1101923 | BA71: 1240911 | BB71: 1103982 | BC71: 740242 | BD71: 11341693 | BE71: 397051 | BF71: 772237 | BG71: 1067940 | BH71: 1137512 | BI71: 1234851 | BJ71: 1080516 | BK71: 1159688 | BL71: 1167990 | BM71: 962569 | BN71: 899875 | BO71: 868143 | BP71: 593321 | BQ71: 10345210 | BR71: 204237 | BS71: 401225 | BT71: 1322817 | BU71: 1323704 | BV71: 1190592 | BW71: 884151 | BX71: 1119975 | BY71: 797948 | BZ71: 755652 | CA71: 732547 | CB71: 725543 | CC71: 886819 | CD71: 3782628 | CE71: 619007 | CF71: 860228 | CG71: 1169119 | CH71: 702905 | CI71: 431369
B72: SUL | C72: ARROZ (GRANEL) | AQ72: 0 | AR72: 0 | AS72: 0 | AT72: 0 | AU72: 0 | AV72: 0 | AW72: 0 | AX72: 0 | AY72: 0 | AZ72: 0 | BA72: 0 | BB72: 0 | BC72: 0 | BD72: 0 | BE72: 0 | BF72: 0 | BG72: 0 | BH72: 0 | BI72: 0 | BJ72: 0 | BK72: 0 | BL72: 0 | BM72: 0 | BN72: 0 | BO72: 0 | BP72: 0 | BQ72: 0 | BR72: - | BS72: - | BT72: 0 | BU72: 0 | BV72: 0 | BW72: 0 | BX72: 0 | BY72: 0 | BZ72: 0 | CA72: 0 | CB72: 0 | CC72: 0 | CD72: 0 | CE72: 0 | CF72: 0 | CG72: 0 | CH72: 0 | CI72: 0
A73: Farelo de Soja | B73: SUL | C73: FARELO | D73: 940781 | E73: 62401 | F73: 61787 | G73: 76549 | H73: 89967 | I73: 73580 | J73: 82801 | K73: 72113 | L73: 50133 | M73: 71795 | N73: 102308 | O73: 115725 | P73: 81622 | Q73: 860689 | R73: 68027 | S73: 67001 | T73: 78918 | U73: 90025 | V73: 81841 | W73: 69541 | X73: 74534 | Y73: 56314 | Z73: 54330 | AA73: 65063 | AB73: 77427 | AC73: 77668 | AD73: 1161587 | AE73: 94981 | AF73: 74006 | AG73: 85496 | AH73: 99559 | AI73: 108132 | AJ73: 102307 | AK73: 112255 | AL73: 101806 | AM73: 96344 | AN73: 65421 | AO73: 104868 | AP73: 116412 | AQ73: 1484028 | AR73: 92340 | AS73: 104965 | AT73: 122080 | AU73: 126530 | AV73: 115428 | AW73: 167861 | AX73: 152628 | AY73: 89268 | AZ73: 131424 | BA73: 136445 | BB73: 126275 | BC73: 118784 | BD73: 1469140 | BE73: 103603 | BF73: 96617 | BG73: 140016 | BH73: 97505 | BI73: 150426 | BJ73: 125005 | BK73: 154096 | BL73: 132008 | BM73: 150450 | BN73: 138525 | BO73: 96316 | BP73: 84573 | BQ73: 1608812 | BR73: 70548 | BS73: 55125 | BT73: 126075 | BU73: 152464 | BV73: 155456 | BW73: 160861 | BX73: 148112 | BY73: 158641 | BZ73: 167698 | CA73: 171048 | CB73: 125679 | CC73: 117105 | CD73: 688418 | CE73: 98071 | CF73: 98891 | CG73: 167726 | CH73: 166733 | CI73: 156997
A74: Farelo de Milho | B74: SUL | C74: FARELO DE MILHO | BP74: 0 | BQ74: 0 | BR74: - | BS74: - | BT74: 0 | BU74: 0 | BV74: 0 | BW74: 0 | BX74: 0 | BY74: 0 | BZ74: 0 | CA74: 0 | CB74: 0 | CC74: 0 | CD74: 0 | CE74: 0 | CF74: 0 | CG74: 0 | CH74: 0 | CI74: 0
A75: Malte | B75: SUL | C75: MALTE | D75: 2311 | E75: 0 | F75: 0 | G75: 0 | H75: 0 | I75: 0 | J75: 0 | K75: 0 | L75: 0 | M75: 0 | N75: 2311 | O75: 0 | P75: 0 | Q75: 0 | R75: 0 | S75: 0 | T75: 0 | U75: 0 | V75: 0 | W75: 0 | X75: 0 | Y75: 0 | Z75: 0 | AA75: 0 | AB75: 0 | AC75: 0 | AD75: 0 | AE75: 0 | AF75: 0 | AG75: 0 | AH75: 0 | AI75: 0 | AJ75: 0 | AK75: 0 | AL75: 0 | AM75: 0 | AN75: 0 | AO75: 0 | AP75: 0 | AQ75: 0 | AR75: 0 | AS75: 0 | AT75: 0 | AU75: 0 | AV75: 0 | AW75: 0 | AX75: 0 | AY75: 0 | AZ75: 0 | BA75: 0 | BB75: 0 | BC75: 0 | BD75: 0 | BE75: 0 | BF75: 0 | BG75: 0 | BH75: 0 | BI75: 0 | BJ75: 0 | BK75: 0 | BL75: 0 | BM75: 0 | BN75: 0 | BO75: 0 | BP75: 0 | BQ75: 0 | BR75: - | BS75: - | BT75: 0 | BU75: 0 | BV75: 0 | BW75: 0 | BX75: 0 | BY75: 0 | BZ75: 0 | CA75: 0 | CB75: 0 | CC75: 0 | CD75: 0 | CE75: 0 | CF75: 0 | CG75: 0 | CH75: 0 | CI75: 0
A76: Milho | B76: SUL | C76: MILHO | D76: 1212639 | E76: 344583 | F76: 89580 | G76: 1551 | H76: 0 | I76: 0 | J76: 404 | K76: 112248 | L76: 312159 | M76: 173169 | N76: 85093 | O76: 45048 | P76: 48804 | Q76: 2371118 | R76: 21544 | S76: 8612 | T76: 0 | U76: 0 | V76: 53 | W76: 18690 | X76: 259533 | Y76: 515989 | Z76: 717840 | AA76: 499493 | AB76: 174444 | AC76: 154920 | AD76: 885016 | AE76: 217802 | AF76: 17540 | AG76: 0 | AH76: 0 | AI76: 624 | AJ76: 0 | AK76: 4999 | AL76: 103865 | AM76: 145152 | AN76: 17889 | AO76: 131057 | AP76: 246088 | AQ76: 3478077 | AR76: 154017 | AS76: 106889 | AT76: 21357 | AU76: 59186 | AV76: 60676 | AW76: 258078 | AX76: 577224 | AY76: 705643 | AZ76: 519975 | BA76: 384135 | BB76: 391882 | BC76: 239015 | BD76: 2634375 | BE76: 87357 | BF76: 102557 | BG76: 20269 | BH76: 0 | BI76: 41 | BJ76: 0 | BK76: 77057 | BL76: 381982 | BM76: 462347 | BN76: 542339 | BO76: 602896 | BP76: 357530 | BQ76: 558519 | BR76: 110394 | BS76: 104185 | BT76: 9765 | BU76: 0 | BV76: 0 | BW76: 326 | BX76: 0 | BY76: 43196 | BZ76: 23906 | CA76: 36201 | CB76: 55796 | CC76: 174750 | CD76: 364311 | CE76: 92965 | CF76: 251 | CG76: 65640 | CH76: 152436 | CI76: 53019
A77: Soja | B77: SUL | C77: SOJA | D77: 4963825 | E77: 69211 | F77: 644895 | G77: 891596 | H77: 834846 | I77: 735541 | J77: 618828 | K77: 440401 | L77: 255206 | M77: 176779 | N77: 130487 | O77: 88538 | P77: 77497 | Q77: 6808766 | R77: 159656 | S77: 583312 | T77: 947591 | U77: 829699 | V77: 781503 | W77: 779987 | X77: 663182 | Y77: 455518 | Z77: 247404 | AA77: 303428 | AB77: 517462 | AC77: 540024 | AD77: 10249964 | AE77: 362692 | AF77: 700611 | AG77: 1164301 | AH77: 1108625 | AI77: 992526 | AJ77: 984615 | AK77: 1027826 | AL77: 968731 | AM77: 831844 | AN77: 987780 | AO77: 747275 | AP77: 373138 | AQ77: 7573979 | AR77: 469055 | AS77: 897022 | AT77: 1130167 | AU77: 777775 | AV77: 680236 | AW77: 605441 | AX77: 485569 | AY77: 456195 | AZ77: 448417 | BA77: 718686 | BB77: 577370 | BC77: 328046 | BD77: 6978779 | BE77: 165151 | BF77: 570790 | BG77: 907655 | BH77: 1040007 | BI77: 1084384 | BJ77: 955511 | BK77: 928535 | BL77: 654000 | BM77: 349772 | BN77: 201998 | BO77: 62343 | BP77: 58633 | BQ77: 7908152 | BR77: 18342 | BS77: 241915 | BT77: 1186977 | BU77: 1171240 | BV77: 1035136 | BW77: 722964 | BX77: 971863 | BY77: 596111 | BZ77: 564048 | CA77: 523914 | CB77: 432763 | CC77: 442879 | CD77: 2346872 | CE77: 289933 | CF77: 588521 | CG77: 872587 | CH77: 375733 | CI77: 220098
A78: Trigo | B78: SUL | C78: TRIGO | D78: 92438 | E78: 56140 | F78: 1934 | G78: 2974 | H78: 0 | I78: 0 | J78: 0 | K78: 0 | L78: 0 | M78: 0 | N78: 0 | O78: 9121 | P78: 22269 | Q78: 183475 | R78: 62998 | S78: 82959 | T78: 18082 | U78: 0 | V78: 0 | W78: 0 | X78: 0 | Y78: 0 | Z78: 0 | AA78: 0 | AB78: 6040 | AC78: 13396 | AD78: 178882 | AE78: 27410 | AF78: 6784 | AG78: 0 | AH78: 0 | AI78: 0 | AJ78: 0 | AK78: 0 | AL78: 0 | AM78: 0 | AN78: 0 | AO78: 57524 | AP78: 87164 | AQ78: 113925 | AR78: 46885 | AS78: 5420 | AT78: 0 | AU78: 0 | AV78: 0 | AW78: 0 | AX78: 0 | AY78: 0 | AZ78: 0 | BA78: 0 | BB78: 7839 | BC78: 53781 | BD78: 259399 | BE78: 40940 | BF78: 2273 | BG78: 0 | BH78: 0 | BI78: 0 | BJ78: 0 | BK78: 0 | BL78: 0 | BM78: 0 | BN78: 17013 | BO78: 106588 | BP78: 92585 | BQ78: 269727 | BR78: 4953 | BS78: - | BT78: 0 | BU78: 0 | BV78: 0 | BW78: 0 | BX78: 0 | BY78: 0 | BZ78: 0 | CA78: 1384 | CB78: 111305 | CC78: 152085 | CD78: 383027 | CE78: 138038 | CF78: 172565 | CG78: 63166 | CH78: 8003 | CI78: 1255
A79: Soja | B79: SUL | C79: ÓLEO VEGETAL | D79: 32653 | E79: 521 | F79: 1881 | G79: 3923 | H79: 4426 | I79: 3402 | J79: 3420 | K79: 3883 | L79: 3808 | M79: 1572 | N79: 1504 | O79: 2207 | P79: 2106 | Q79: 46671 | R79: 3313 | S79: 3662 | T79: 4737 | U79: 5046 | V79: 5065 | W79: 4961 | X79: 5611 | Y79: 2898 | Z79: 1047 | AA79: 3903 | AB79: 2449 | AC79: 3979 | AD79: 45050 | AE79: 3005 | AF79: 3563 | AG79: 2366 | AH79: 2878 | AI79: 4486 | AJ79: 3721 | AK79: 4887 | AL79: 4086 | AM79: 7071 | AN79: 6123 | AO79: 208 | AP79: 2656 | AQ79: 12614 | AR79: 5141 | AS79: 0 | AT79: 1261 | AU79: 1228 | AV79: 0 | AW79: 0 | AX79: 0 | AY79: 0 | AZ79: 2107 | BA79: 1645 | BB79: 616 | BC79: 616 | BD79: 0 | BE79: 0 | BF79: 0 | BG79: 0 | BH79: 0 | BI79: 0 | BJ79: 0 | BK79: 0 | BL79: 0 | BM79: 0 | BN79: 0 | BO79: 0 | BP79: 0 | BQ79: =SUM(BR79:CC79) -> 0 | BR79: - | BS79: - | BT79: 0 | BU79: 0 | BV79: 0 | BW79: 0 | BX79: 0 | BY79: 0 | BZ79: 0 | CA79: 0 | CB79: 0 | CC79: 0 | CD79: =SUM(CE79:CP79) -> 0 | CE79: 0 | CF79: 0 | CG79: 0 | CH79: 0 | CI79: 0
B80: SUL | C80: GRUPO - INDUSTRIAL | D80: 5038387 | E80: 321120 | F80: 276015 | G80: 342801 | H80: 357030 | I80: 421952 | J80: 446109 | K80: 518004 | L80: 541290 | M80: 477514 | N80: 468696 | O80: 447294 | P80: 420562 | Q80: 6047622 | R80: 468193 | S80: 420698 | T80: 459860 | U80: 464072 | V80: 533317 | W80: 533300 | X80: 539131 | Y80: 540725 | Z80: 534650 | AA80: 535101 | AB80: 499594 | AC80: 518981 | AD80: 6241709 | AE80: 510097 | AF80: 471369 | AG80: 453060 | AH80: 491395 | AI80: 524066 | AJ80: 530801 | AK80: 524860 | AL80: 568009 | AM80: 540930 | AN80: 571590 | AO80: 533701 | AP80: 521831 | AQ80: 5448310 | AR80: 415839 | AS80: 343514 | AT80: 394867 | AU80: 435209 | AV80: 457606 | AW80: 510391 | AX80: 531446 | AY80: 564077 | AZ80: 525476 | BA80: 512319 | BB80: 461091 | BC80: 296475 | BD80: 4364333 | BE80: 343219 | BF80: 367009 | BG80: 307076 | BH80: 424126 | BI80: 388600 | BJ80: 356887 | BK80: 460005 | BL80: 498410 | BM80: 487469 | BN80: 267695 | BO80: 219376 | BP80: 244461 | BQ80: 4890793 | BR80: 315083 | BS80: 380170 | BT80: 452863 | BU80: 479672 | BV80: 503934 | BW80: 448960 | BX80: 459146 | BY80: 465796 | BZ80: 365210 | CA80: 377334 | CB80: 327193 | CC80: 315432 | CD80: 1739652 | CE80: 316277 | CF80: 254782 | CG80: 370876 | CH80: 356802 | CI80: 440915
A81: Madeira, Papel e Celulose | B81: SUL | C81: ARROZ (ENSACADO) | D81: 1665 | E81: 1623 | F81: 42 | G81: 0 | H81: 0 | I81: 0 | J81: 0 | K81: 0 | L81: 0 | M81: 0 | N81: 0 | O81: 0 | P81: 0 | Q81: 0 | R81: 0 | S81: 0 | T81: 0 | U81: 0 | V81: 0 | W81: 0 | X81: 0 | Y81: 0 | Z81: 0 | AA81: 0 | AB81: 0 | AC81: 0 | AD81: 0 | AE81: 0 | AF81: 0 | AG81: 0 | AH81: 0 | AI81: 0 | AJ81: 0 | AK81: 0 | AL81: 0 | AM81: 0 | AN81: 0 | AO81: 0 | AP81: 0 | AQ81: 0 | AR81: 0 | AS81: 0 | AT81: 0 | AU81: 0 | AV81: 0 | AW81: 0 | AX81: 0 | AY81: 0 | AZ81: 0 | BA81: 0 | BB81: 0 | BC81: 0 | BD81: 0 | BE81: 0 | BF81: 0 | BG81: 0 | BH81: 0 | BI81: 0 | BJ81: 0 | BK81: 0 | BL81: 0 | BM81: 0 | BN81: 0 | BO81: 0 | BP81: 0 | BQ81: 0 | BR81: - | BS81: - | BT81: 0 | BU81: 0 | BV81: 0 | BW81: 0 | BX81: 0 | BY81: 0 | BZ81: 0 | CA81: 0 | CB81: 0 | CC81: 0 | CD81: 0 | CE81: 0 | CF81: 0 | CG81: 0 | CH81: 0 | CI81: 0
A82: Madeira, Papel e Celulose | B82: SUL | C82: CALCÁREO (IND) | D82: 46068 | E82: 3740 | F82: 2992 | G82: 5720 | H82: 2904 | I82: 2816 | J82: 1408 | K82: 5060 | L82: 2904 | M82: 7480 | N82: 7392 | O82: 3652 | P82: 0 | Q82: 24728 | R82: 3696 | S82: 3608 | T82: 4708 | U82: 3784 | V82: 3652 | W82: 1320 | X82: 1320 | Y82: 2640 | Z82: 0 | AA82: 0 | AB82: 0 | AC82: 0 | AD82: 0 | AE82: 0 | AF82: 0 | AG82: 0 | AH82: 0 | AI82: 0 | AJ82: 0 | AK82: 0 | AL82: 0 | AM82: 0 | AN82: 0 | AO82: 0 | AP82: 0 | AQ82: 0 | AR82: 0 | AS82: 0 | AT82: 0 | AU82: 0 | AV82: 0 | AW82: 0 | AX82: 0 | AY82: 0 | AZ82: 0 | BA82: 0 | BB82: 0 | BC82: 0 | BD82: 0 | BE82: 0 | BF82: 0 | BG82: 0 | BH82: 0 | BI82: 0 | BJ82: 0 | BK82: 0 | BL82: 0 | BM82: 0 | BN82: 0 | BO82: 0 | BP82: 0 | BQ82: 0 | BR82: - | BS82: - | BT82: 0 | BU82: 0 | BV82: 0 | BW82: 0 | BX82: 0 | BY82: 0 | BZ82: 0 | CA82: 0 | CB82: 0 | CC82: 0 | CD82: 0 | CE82: 0 | CF82: 0 | CG82: 0 | CH82: 0 | CI82: 0
A83: Madeira, Papel e Celulose | B83: SUL | C83: CELULOSE | D83: 1100528 | E83: 39876 | F83: 43952 | G83: 58716 | H83: 60020 | I83: 80060 | J83: 89400 | K83: 124684 | L83: 128588 | M83: 116056 | N83: 127276 | O83: 115520 | P83: 116380 | Q83: 1547716 | R83: 117576 | S83: 74704 | T83: 105112 | U83: 119472 | V83: 139980 | W83: 135608 | X83: 136868 | Y83: 136836 | Z83: 147088 | AA83: 147356 | AB83: 134036 | AC83: 153080 | AD83: 1595547 | AE83: 143551 | AF83: 127376 | AG83: 76132 | AH83: 101592 | AI83: 97188 | AJ83: 154344 | AK83: 131164 | AL83: 171316 | AM83: 142016 | AN83: 159968 | AO83: 140540 | AP83: 150360 | AQ83: 1536316 | AR83: 132720 | AS83: 123280 | AT83: 135744 | AU83: 109916 | AV83: 119644 | AW83: 124280 | AX83: 101368 | AY83: 138308 | AZ83: 132744 | BA83: 140720 | BB83: 142204 | BC83: 135388 | BD83: 1154624 | BE83: 125132 | BF83: 68468 | BG83: 78962 | BH83: 36430 | BI83: 80000 | BJ83: 77248 | BK83: 125480 | BL83: 134766 | BM83: 130940 | BN83: 118888 | BO83: 113648 | BP83: 64662 | BQ83: 1265988 | BR83: 125504 | BS83: 120100 | BT83: 115428 | BU83: 124348 | BV83: 126728 | BW83: 114708 | BX83: 95508 | BY83: 122348 | BZ83: 85388 | CA83: 82488 | CB83: 78056 | CC83: 75384 | CD83: 303592 | CE83: 67498 | CF83: 16960 | CG83: 77054 | CH83: 72832 | CI83: 69248
A84: Construção Civil | B84: SUL | C84: CIMENTO | D84: 796450 | E84: 51960 | F84: 59887 | G84: 59205 | H84: 61661 | I84: 57595 | J84: 68650 | K84: 76161 | L84: 78110 | M84: 74915 | N84: 73999 | O84: 68651 | P84: 65656 | Q84: 770394 | R84: 70778 | S84: 61523 | T84: 67337 | U84: 65785 | V84: 64955 | W84: 60826 | X84: 71753 | Y84: 74683 | Z84: 64073 | AA84: 69366 | AB84: 41493 | AC84: 57822 | AD84: 719827 | AE84: 46667 | AF84: 54405 | AG84: 66526 | AH84: 52833 | AI84: 58136 | AJ84: 57165 | AK84: 65630 | AL84: 69407 | AM84: 66327 | AN84: 61833 | AO84: 67113 | AP84: 53785 | AQ84: =SUM(AR84:BC84) -> 797494 | AR84: 58843 | AS84: 59373 | AT84: 55397 | AU84: 64214 | AV84: 65604 | AW84: 67011 | AX84: 69113 | AY84: 76419 | AZ84: 75952 | BA84: 76399 | BB84: 71587 | BC84: 57582 | BD84: =SUM(BE84:BP84) -> 818429 | BE84: 66430 | BF84: 66962 | BG84: 40409 | BH84: 71088 | BI84: 75191 | BJ84: 71841 | BK84: 69218 | BL84: 73803 | BM84: 69638 | BN84: 82218 | BO84: 73881 | BP84: 57750 | BQ84: 913949 | BR84: 70642 | BS84: 60876 | BT84: 79515 | BU84: 80601 | BV84: 82658 | BW84: 71946 | BX84: 81896 | BY84: 82180 | BZ84: 79629 | CA84: 72821 | CB84: 77334 | CC84: 73851 | CD84: 376524 | CE84: 71602 | CF84: 67550 | CG84: 79139 | CH84: 71224 | CI84: 87009
A85: Construção Civil | B85: SUL | C85: CLINQUER | D85: 298325 | E85: 12038 | F85: 15421 | G85: 24830 | H85: 24206 | I85: 21349 | J85: 28373 | K85: 26642 | L85: 33287 | M85: 30294 | N85: 26831 | O85: 28417 | P85: 26637 | Q85: 348772 | R85: 30634 | S85: 25904 | T85: 26945 | U85: 26618 | V85: 36199 | W85: 21453 | X85: 30095 | Y85: 27898 | Z85: 29843 | AA85: 30939 | AB85: 33564 | AC85: 28680 | AD85: 287754 | AE85: 33068 | AF85: 23767 | AG85: 24856 | AH85: 25351 | AI85: 24161 | AJ85: 24791 | AK85: 17865 | AL85: 13160 | AM85: 22895 | AN85: 33504 | AO85: 28274 | AP85: 16062 | AQ85: 270799 | AR85: 27361 | AS85: 22733 | AT85: 27247 | AU85: 11840 | AV85: 21917 | AW85: 23499 | AX85: 25201 | AY85: 27534 | AZ85: 21762 | BA85: 24160 | BB85: 15869 | BC85: 21676 | BD85: 294483 | BE85: 22840 | BF85: 25849 | BG85: 20395 | BH85: 19331 | BI85: 27277 | BJ85: 20682 | BK85: 20155 | BL85: 24846 | BM85: 24973 | BN85: 31701 | BO85: 28081 | BP85: 28353 | BQ85: 352156 | BR85: 24694 | BS85: 27343 | BT85: 30499 | BU85: 30285 | BV85: 28615 | BW85: 29766 | BX85: 28110 | BY85: 32045 | BZ85: 32800 | CA85: 32245 | CB85: 30506 | CC85: 25248 | CD85: 134447 | CE85: 26049 | CF85: 31834 | CG85: 26522 | CH85: 24437 | CI85: 25605
A86: Madeira, Papel e Celulose | B86: SUL | C86: MADEIRA | AQ86: 0 | AR86: 0 | AS86: 0 | AT86: 0 | AU86: 0 | AV86: 0 | AW86: 0 | AX86: 0 | AY86: 0 | AZ86: 0 | BA86: 0 | BB86: 0 | BC86: 0 | BD86: 0 | BE86: 0 | BF86: 0 | BG86: 0 | BH86: 0 | BI86: 0 | BJ86: 0 | BK86: 0 | BL86: 0 | BM86: 0 | BN86: 0 | BO86: 0 | BP86: 0 | BQ86: 0 | BR86: - | BS86: - | BT86: 0 | BU86: 0 | BV86: 0 | BW86: 0 | BX86: 0 | BY86: 0 | BZ86: 0 | CA86: 0 | CB86: 0 | CC86: 0 | CD86: 0 | CE86: 0 | CF86: 0 | CG86: 0 | CH86: 0 | CI86: 0
A87: Siderúrgicos e Mineração | B87: SUL | C87: MINÉRIO | D87: 2757822 | E87: 209188 | F87: 147870 | G87: 191456 | H87: 203174 | I87: 258974 | J87: 257114 | K87: 281418 | L87: 294934 | M87: 246450 | N87: 228532 | O87: 228966 | P87: 209746 | Q87: 3279366 | R87: 244466 | S87: 252650 | T87: 251534 | U87: 242730 | V87: 281232 | W87: 306652 | X87: 291462 | Y87: 289664 | Z87: 284766 | AA87: 278690 | AB87: 283092 | AC87: 272428 | AD87: 3549661 | AE87: 279372 | AF87: 261268 | AG87: 278814 | AH87: 305288 | AI87: 335296 | AJ87: 285350 | AK87: 299150 | AL87: 303986 | AM87: 303986 | AN87: 311426 | AO87: 291648 | AP87: 294077 | AQ87: 2762082 | AR87: 189968 | AS87: 130270 | AT87: 173444 | AU87: 243135 | AV87: 243091 | AW87: 285587 | AX87: 328064 | AY87: 312884 | AZ87: 287451 | BA87: 261085 | BB87: 226460 | BC87: 80643 | BD87: 2054142 | BE87: 122000 | BF87: 204748 | BG87: 159442 | BH87: 290720 | BI87: 204549 | BJ87: 184435 | BK87: 240952 | BL87: 263498 | BM87: 259990 | BN87: 34888 | BO87: 0 | BP87: 88920 | BQ87: 2299471 | BR87: 90674 | BS87: 170686 | BT87: 220860 | BU87: 239173 | BV87: 257041 | BW87: 225485 | BX87: 246496 | BY87: 228983 | BZ87: 167393 | CA87: 184491 | CB87: 134080 | CC87: 134109 | CD87: 910340 | CE87: 145254 | CF87: 138438 | CG87: 181178 | CH87: 186417 | CI87: 259053
A88: Madeira, Papel e Celulose | B88: SUL | C88: OUTROS (IND) | D88: 2504 | E88: 83 | F88: 842 | G88: 0 | H88: 1579 | I88: 0 | J88: 0 | K88: 0 | L88: 0 | M88: 0 | N88: 0 | O88: 0 | P88: 0 | Q88: 0 | R88: 0 | S88: 0 | T88: 0 | U88: 0 | V88: 0 | W88: 0 | X88: 0 | Y88: 0 | Z88: 0 | AA88: 0 | AB88: 0 | AC88: 0 | AD88: 22 | AE88: 0 | AF88: 0 | AG88: 0 | AH88: 0 | AI88: 0 | AJ88: 0 | AK88: 0 | AL88: 22 | AM88: 0 | AN88: 0 | AO88: 0 | AP88: 0 | AQ88: 0 | AR88: 0 | AS88: 0 | AT88: 0 | AU88: 0 | AV88: 0 | AW88: 0 | AX88: 0 | AY88: 0 | AZ88: 0 | BA88: 0 | BB88: 0 | BC88: 0 | BD88: 164 | BE88: 0 | BF88: 0 | BG88: 0 | BH88: 0 | BI88: 0 | BJ88: 0 | BK88: 0 | BL88: 0 | BM88: 0 | BN88: 0 | BO88: 164 | BP88: 0 | BQ88: 0 | BR88: - | BS88: - | BT88: 0 | BU88: 0 | BV88: 0 | BW88: 0 | BX88: 0 | BY88: 0 | BZ88: 0 | CA88: 0 | CB88: 0 | CC88: 0 | CD88: 0 | CE88: 0 | CF88: 0 | CG88: 0 | CH88: 0 | CI88: 0
A89: Madeira, Papel e Celulose | B89: SUL | C89: PAPEL | AQ89: 0 | AR89: 0 | AS89: 0 | AT89: 0 | AU89: 0 | AV89: 0 | AW89: 0 | AX89: 0 | AY89: 0 | AZ89: 0 | BA89: 0 | BB89: 0 | BC89: 0 | BD89: 0 | BE89: 0 | BF89: 0 | BG89: 0 | BH89: 0 | BI89: 0 | BJ89: 0 | BK89: 0 | BL89: 0 | BM89: 0 | BN89: 0 | BO89: 0 | BP89: 0 | BQ89: 0 | BR89: - | BS89: - | BT89: 0 | BU89: 0 | BV89: 0 | BW89: 0 | BX89: 0 | BY89: 0 | BZ89: 0 | CA89: 0 | CB89: 0 | CC89: 0 | CD89: 0 | CE89: 0 | CF89: 0 | CG89: 0 | CH89: 0 | CI89: 0
A90: Siderúrgicos e Mineração | B90: SUL | C90: SIDERÚRGICOS (IND) | D90: 35025 | E90: 2612 | F90: 5009 | G90: 2874 | H90: 3486 | I90: 1158 | J90: 1164 | K90: 4039 | L90: 3467 | M90: 2319 | N90: 4666 | O90: 2088 | P90: 2143 | Q90: 76646 | R90: 1043 | S90: 2309 | T90: 4224 | U90: 5683 | V90: 7299 | W90: 7441 | X90: 7633 | Y90: 9004 | Z90: 8880 | AA90: 8750 | AB90: 7409 | AC90: 6971 | AD90: 88898 | AE90: 7439 | AF90: 4553 | AG90: 6732 | AH90: 6331 | AI90: 9285 | AJ90: 9151 | AK90: 11051 | AL90: 10118 | AM90: 5706 | AN90: 4859 | AO90: 6126 | AP90: 7547 | AQ90: 81619 | AR90: 6947 | AS90: 7858 | AT90: 3035 | AU90: 6104 | AV90: 7350 | AW90: 10014 | AX90: 7700 | AY90: 8932 | AZ90: 7567 | BA90: 9955 | BB90: 4971 | BC90: 1186 | BD90: 42491 | BE90: 6817 | BF90: 982 | BG90: 7868 | BH90: 6557 | BI90: 1583 | BJ90: 2681 | BK90: 4200 | BL90: 1497 | BM90: 1928 | BN90: 0 | BO90: 3602 | BP90: 4776 | BQ90: 59229 | BR90: 3569 | BS90: 1165 | BT90: 6561 | BU90: 5265 | BV90: 8892 | BW90: 7055 | BX90: 7136 | BY90: 240 | BZ90: 0 | CA90: 5289 | CB90: 7217 | CC90: 6840 | CD90: 14749 | CE90: 5874 | CF90: 0 | CG90: 6983 | CH90: 1892 | CI90: 0
A91: Combustível | B91: SUL | C91: GRUPO - LÍQUIDOS | D91: 3330407 | E91: 245291 | F91: 280882 | G91: 294064 | H91: 269532 | I91: 271717 | J91: 292237 | K91: 300248 | L91: 301858 | M91: 283621 | N91: 288648 | O91: 269579 | P91: 232730 | Q91: 3418571 | R91: 247354 | S91: 229652 | T91: 254237 | U91: 241363 | V91: 273906 | W91: 261336 | X91: 328932 | Y91: 334532 | Z91: 329464 | AA91: 351464 | AB91: 290241 | AC91: 276090 | AD91: 3315739 | AE91: 263429 | AF91: 286309 | AG91: 305231 | AH91: 256039 | AI91: 245282 | AJ91: 276261 | AK91: 295019 | AL91: 290274 | AM91: 282039 | AN91: 280039 | AO91: 265962 | AP91: 269855 | AQ91: 3593531 | AR91: 271747 | AS91: 272492 | AT91: 287422 | AU91: 305569 | AV91: 301968 | AW91: 302250 | AX91: 321621 | AY91: 330035 | AZ91: 305886 | BA91: 325286 | BB91: 288994 | BC91: 280261 | BD91: 2968324 | BE91: 280787 | BF91: 276657 | BG91: 172076 | BH91: 200985 | BI91: 225547 | BJ91: 246580 | BK91: 259773 | BL91: 256766 | BM91: 262115 | BN91: 276702 | BO91: 268245 | BP91: 242091 | BQ91: 3170801 | BR91: 259873 | BS91: 266788 | BT91: 272177 | BU91: 247654 | BV91: 281951 | BW91: 257296 | BX91: 267469 | BY91: 279860 | BZ91: 262996 | CA91: 260048 | CB91: 261729 | CC91: 252960 | CD91: 1278255 | CE91: 240562 | CF91: 228878 | CG91: 271088 | CH91: 262084 | CI91: 275643
B92: SUL | C92: GRUPO - OUTROS | AR92: 0 | AS92: 0 | AT92: 0 | AU92: 0 | AV92: 0 | AW92: 0 | AX92: 0 | AY92: 0 | AZ92: 0 | BA92: 0 | BB92: 0 | BC92: 0 | BD92: 0 | BE92: 0 | BF92: 0 | BG92: 0 | BH92: 0 | BI92: 0 | BJ92: 0 | BK92: 0 | BL92: 0 | BM92: 0 | BN92: 0 | BO92: 0 | BP92: 0 | BQ92: 0 | BR92: - | BS92: - | BT92: 0 | BU92: 0 | BV92: 0 | BW92: 0 | BX92: 0 | BY92: 0 | BZ92: 0 | CA92: 0 | CB92: 0 | CC92: 0 | CD92: 0 | CE92: 0 | CF92: 0 | CG92: 0 | CH92: 0 | CI92: 0
AW93: 0 | AX93: 0 | BE93: 0 | BF93: 0 | BG93: 0 | BH93: 0 | BI93: 0 | BJ93: 0 | BK93: 0 | BL93: 0 | BM93: 0 | BN93: 0 | BO93: 0

Sheet UT Base (hidden)
B1: CUBE: | C1: Cosan_Logistica:CLOG.ACO.116.VOLUMETRIA.FLUXO
B2: CLOG.D.ACO.VERSAO | C2: R
B3: ALL.D.TEMPO.ANO
B4: CLOG.M.ACO.VOLUMETRIA.FLUXO | C4: Toneladas Úteis
B5: CLOG.D.ACO.MODAL | C5: Total Modal
B6: CLOG.D.ALL.CORREDOR | C6: Total Corredor
B7: CLOG.D.ACO.GERENCIA | C7: Total Gerencia
B8: CLOG.D.ALL.EMPRESA | C8: Total Empresa
B9: CLOG.D.ACO.ORIGEM | C9: Total Origem
B10: CLOG.D.ACO.DESTINO | C10: Total Destino | AQ10: =SUM(AQ21:AQ27) -> 34986351
B11: CLOG.D.ALL.CLIENTE.HIERARQUIA | C11: Total Clientes | D11: =D15/1000 -> 42839.827 | AQ11: =AQ10-AQ19 -> 0
D13: 2016 | E13: 2016 | F13: 2016 | G13: 2016 | H13: 2016 | I13: 2016 | J13: 2016 | K13: 2016 | L13: 2016 | M13: 2016 | N13: 2016 | O13: 2016 | P13: 2016 | Q13: 2017 | R13: 2017 | S13: 2017 | T13: 2017 | U13: 2017 | V13: 2017 | W13: 2017 | X13: 2017 | Y13: 2017 | Z13: 2017 | AA13: 2017 | AB13: 2017 | AC13: 2017 | AD13: 2018 | AE13: 2018 | AF13: 2018 | AG13: 2018 | AH13: 2018 | AI13: 2018 | AJ13: 2018 | AK13: 2018 | AL13: 2018 | AM13: 2018 | AN13: 2018 | AO13: 2018 | AP13: 2018 | AQ13: 2019 | AR13: 2019 | AS13: 2019 | AT13: 2019 | AU13: 2019 | AV13: 2019 | AW13: 2019 | AX13: 2019 | AY13: 2019 | AZ13: 2019 | BA13: 2019 | BB13: 2019 | BC13: 2019 | BD13: 2020 | BE13: 2020 | BF13: 2020 | BG13: 2020 | BH13: 2020 | BI13: 2020 | BJ13: 2020 | BK13: 2020 | BL13: 2020 | BM13: 2020 | BN13: 2020 | BO13: 2020 | BP13: 2020 | BQ13: 2021 | BR13: 2021 | BS13: 2021 | BT13: 2021 | BU13: 2021 | BV13: 2021 | BW13: 2021 | BX13: 2021 | BY13: 2021 | BZ13: 2021 | CA13: 2021 | CB13: 2021 | CC13: 2021 | CD13: 2022 | CE13: 2022 | CF13: 2022 | CG13: 2022 | CH13: 2022 | CI13: 2022 | CJ13: 2022 | CK13: 2022 | CL13: 2022 | CM13: 2022 | CN13: 2022 | CO13: 2022 | CP13: 2022
A14: RI Classification | B14: Operation | C14: Product (PTBR) | D14: Full Year | E14: January | F14: February | G14: March | H14: April | I14: May | J14: June | K14: July | L14: August | M14: September | N14: October | O14: November | P14: December | Q14: Full Year | R14: January | S14: February | T14: March | U14: April | V14: May | W14: June | X14: July | Y14: August | Z14: September | AA14: October | AB14: November | AC14: December | AD14: Full Year | AE14: January | AF14: February | AG14: March | AH14: April | AI14: May | AJ14: June | AK14: July | AL14: August | AM14: September | AN14: October | AO14: November | AP14: December | AQ14: Full Year | AR14: January | AS14: February | AT14: March | AU14: April | AV14: May | AW14: June | AX14: July | AY14: August | AZ14: September | BA14: October | BB14: November | BC14: December | BD14: Full Year | BE14: January | BF14: February | BG14: March | BH14: April | BI14: May | BJ14: June | BK14: July | BL14: August | BM14: September | BN14: October | BO14: November | BP14: December | BQ14: Full Year | BR14: January | BS14: February | BT14: March | BU14: April | BV14: May | BW14: June | BX14: July | BY14: August | BZ14: September | CA14: October | CB14: November | CC14: December | CD14: Full Year 2022 | CE14: January | CF14: February | CG14: March | CH14: April | CI14: May | CJ14: June | CK14: July | CL14: August | CM14: September | CN14: October | CO14: November | CP14: December
B15: Consolidated | C15: Total Produto | D15: =SUM(D16:D19,D28,D39) -> 42839827 | E15: 2909195 | F15: 3118678 | G15: 3786354 | H15: 3852707 | I15: 3858808 | J15: 3662245 | K15: 4102771 | L15: 4293940 | M15: 3969024 | N15: 3362126 | O15: 2991012 | P15: 2932967 | Q15: 49916667 | R15: 2665303 | S15: 3365751 | T15: 4003834 | U15: 3976033 | V15: 4472596 | W15: 4244218 | X15: 4614947 | Y15: 4804302 | Z15: 4628689 | AA15: 4713498 | AB15: 4318150 | AC15: 4109346 | AD15: 55947062.87 | AE15: 3411579 | AF15: 3955592 | AG15: 4605648 | AH15: 4521491 | AI15: 4470570 | AJ15: =SUM(AJ16:AJ19,AJ28,AJ39) -> 4918535 | AK15: 5150157 | AL15: 5334012 | AM15: 5105982 | AN15: 4939817 | AO15: 4954209 | AP15: 4579470.87 | AQ15: 57674040 | AR15: 3939472 | AS15: 3916737 | AT15: 4849313 | AU15: 4535711 | AV15: 4343282 | AW15: 5204070 | AX15: 5792147 | AY15: 5571448 | AZ15: 5121817 | BA15: 5346719 | BB15: 5206275 | BC15: 3847049 | BD15: 58971506 | BE15: 3427970 | BF15: 4438827 | BG15: 3727259 | BH15: 4924017 | BI15: 5475921 | BJ15: 5076795 | BK15: 5666912 | BL15: 5622310 | BM15: 5569597 | BN15: 5452470 | BO15: 5057380 | BP15: 4545044 | BQ15: =SUM(BR15:CC15) -> 60415813 | BR15: 2801243 | BS15: 4187892 | BT15: 5588569 | BU15: 5690662 | BV15: 6090703 | BW15: 5617700 | BX15: 5803075 | BY15: 5127593 | BZ15: 4722700 | CA15: 4897105 | CB15: 4953457 | CC15: 4935114 | CD15: =SUM(CE15:CP15) -> 26432703 | CE15: 4532798 | CF15: 5227983 | CG15: 5999865 | CH15: 5173067 | CI15: 5498990
A16: Sugar | B16: Consolidated | C16: GRUPO - AÇÚCAR | D16: 8072442 | E16: 343242 | F16: 222585 | G16: 259319 | H16: 317087 | I16: 643207 | J16: 906712 | K16: 757607 | L16: 841564 | M16: 869160 | N16: 1096123 | O16: 960168 | P16: 855668 | Q16: 5963968 | R16: 426322 | S16: 173794 | T16: 156527 | U16: 329557 | V16: 818796 | W16: 636714 | X16: 584453 | Y16: 613090 | Z16: 630287 | AA16: 583240 | AB16: 567451 | AC16: 443737 | AD16: 5421906 | AE16: 502699 | AF16: 297032 | AG16: 221357 | AH16: 254703 | AI16: 640705 | AJ16: 692891 | AK16: 483193 | AL16: 488120 | AM16: 525604 | AN16: 601848 | AO16: 340061 | AP16: 373693 | AQ16: =SUM(AR16:BC16) -> 4330901 | AR16: 214299 | AS16: 124412 | AT16: 226788 | AU16: 394368 | AV16: 479400 | AW16: 380569 | AX16: 437485 | AY16: 351409 | AZ16: 381160 | BA16: 350455 | BB16: 398869 | BC16: 591687 | BD16: =SUM(BE16:BP16) -> 7905803 | BE16: 400380 | BF16: 266399 | BG16: 217003 | BH16: 360523 | BI16: 650204 | BJ16: 535263 | BK16: 496440 | BL16: 772580 | BM16: 1080281 | BN16: 1204582 | BO16: 1090213 | BP16: 831935 | BQ16: 7409506 | BR16: 611047 | BS16: 150060 | BT16: 236763 | BU16: 359128 | BV16: 856177 | BW16: 988539 | BX16: 512902 | BY16: 618459 | BZ16: 995621 | CA16: 883475 | CB16: 754712 | CC16: 442623 | CD16: 1402777 | CE16: 338615 | CF16: 99457 | CG16: 209496 | CH16: 170348 | CI16: 584861
A17: Containers | B17: Consolidated | C17: GRUPO - BRADO | D17: 1890030 | E17: 140195 | F17: 164418 | G17: 177748 | H17: 166389 | I17: 169424 | J17: 172846 | K17: 165297 | L17: 157873 | M17: 147810 | N17: 153987 | O17: 147326 | P17: 126717 | Q17: 1874401 | R17: 150226 | S17: 132312 | T17: 147850 | U17: 156883 | V17: 180308 | W17: 166727 | X17: 165137 | Y17: 183179 | Z17: 159231 | AA17: 163311 | AB17: 137260 | AC17: 131977 | AD17: 2215465 | AE17: 89718 | AF17: 182692 | AG17: 178786 | AH17: 190065 | AI17: 156919 | AJ17: 175007 | AK17: 211278 | AL17: 223106 | AM17: 208607 | AN17: 207629 | AO17: 195324 | AP17: 196334 | AQ17: 2760212 | AR17: 187554 | AS17: 180199 | AT17: 228287 | AU17: 224428 | AV17: 229675 | AW17: 214065 | AX17: 245958 | AY17: 259337 | AZ17: 259730 | BA17: 246879 | BB17: 248910 | BC17: 235190 | BD17: =SUM(BE17:BP17) -> 2815422 | BE17: 230731 | BF17: 220654 | BG17: 205364 | BH17: 198601 | BI17: 191265 | BJ17: 247279 | BK17: 259381 | BL17: 249148 | BM17: 257894 | BN17: 251529 | BO17: 262504 | BP17: 241072 | BQ17: 2938110 | BR17: 226125 | BS17: 230441 | BT17: 224831 | BU17: 262335 | BV17: 248245 | BW17: 254400 | BX17: 258294 | BY17: 269739 | BZ17: 238696 | CA17: 236397 | CB17: 236833 | CC17: 251774 | CD17: 1407593 | CE17: 252933 | CF17: 272303 | CG17: 291513 | CH17: 287886 | CI17: 302958
A18: Fertilizers | B18: Consolidated | C18: GRUPO - FERTILIZANTES | D18: 1256096 | E18: 40016 | F18: 26385 | G18: 29764 | H18: 37642 | I18: 94591 | J18: 118747 | K18: 135369 | L18: 148985 | M18: 195932 | N18: 149495 | O18: 157230 | P18: 121940 | Q18: 1098466 | R18: 101564 | S18: 70693 | T18: 52874 | U18: 118539 | V18: 108350 | W18: 77277 | X18: 76747 | Y18: 91299 | Z18: 99471 | AA18: 110258 | AB18: 95177 | AC18: 96217 | AD18: 1771057 | AE18: 101394 | AF18: 79975 | AG18: 58163 | AH18: 72632 | AI18: 110302 | AJ18: 142225 | AK18: 211946 | AL18: 215261 | AM18: 148045 | AN18: 152613 | AO18: 217358 | AP18: 261143 | AQ18: 2767790 | AR18: 232575 | AS18: 136288 | AT18: 143889 | AU18: 188620 | AV18: 288450 | AW18: 275754 | AX18: 306307 | AY18: 261451 | AZ18: 176593 | BA18: 218018 | BB18: 247828 | BC18: 292017 | BD18: =SUM(BE18:BP18) -> 3175245 | BE18: 272865 | BF18: 211188 | BG18: 101229 | BH18: 247228 | BI18: 315437 | BJ18: 290390 | BK18: 314708 | BL18: 229656 | BM18: 247761 | BN18: 322071 | BO18: 313087 | BP18: 309625 | BQ18: 3577849 | BR18: 329630 | BS18: 282826 | BT18: 157013 | BU18: 189655 | BV18: 225313 | BW18: 246636 | BX18: 419222 | BY18: 452011 | BZ18: 347360 | CA18: 349707 | CB18: 294137 | CC18: 284339 | CD18: 1319863 | CE18: 256330 | CF18: 305630 | CG18: 267940 | CH18: 141700 | CI18: 348263
B19: Consolidated | C19: GRUPO - GRÃOS | D19: 20990429 | E19: 1645675 | F19: 1981565 | G19: 2502887 | H19: 2532228 | I19: 2081208 | J19: 1532509 | K19: 2040724 | L19: 2099254 | M19: 1772006 | N19: 983658 | O19: 827441 | P19: 991274 | Q19: 29107599 | R19: 1080575 | S19: 2165245 | T19: 2744400 | U19: 2497583 | V19: 2370027 | W19: 2370213 | X19: 2729234 | Y19: 2841030 | Z19: 2700502 | AA19: 2722367 | AB19: 2494072 | AC19: 2392351 | AD19: 33455967.87 | AE19: 1699704 | AF19: 2394888 | AG19: 3107593 | AH19: 3028088 | AI19: 2525771 | AJ19: 2772315 | AK19: 3099422 | AL19: 3221459 | AM19: 3082493 | AN19: 2808385 | AO19: 3079691 | AP19: 2636158.87 | AQ19: 34986351 | AR19: =SUM(AR20:AR27) -> 2302664 | AS19: 2599055 | AT19: 3268939 | AU19: 2694942 | AV19: 2270283 | AW19: 3203427 | AX19: 3620506 | AY19: 3481111 | AZ19: 3138609 | BA19: 3341317 | BB19: 3234230 | BC19: 1831268 | BD19: 33484800 | BE19: 1566751 | BF19: 2762641 | BG19: 2434815 | BH19: 3243566 | BI19: 3338502 | BJ19: 3057626 | BK19: 3504679 | BL19: 3235460 | BM19: 2827259 | BN19: 2702586 | BO19: 2488686 | BP19: 2335225 | BQ19: 33559900 | BR19: 695966 | BS19: 2511706 | BT19: 3860998 | BU19: 3769070 | BV19: 3574512 | BW19: 3023267 | BX19: 3462505 | BY19: 2588804 | BZ19: 2084343 | CA19: 2338400 | CB19: 2675211 | CC19: 2975118 | CD19: 16990747 | CE19: 2705288 | CF19: 3616369 | CG19: 4100734 | CH19: 3506611 | CI19: 3061745
B20: Consolidated | C20: ARROZ (GRANEL) | AQ20: 0 | AR20: 0 | AS20: 0 | AT20: 0 | AU20: 0 | AV20: 0 | AW20: 0 | AX20: 0 | AY20: 0 | AZ20: 0 | BA20: 0 | BB20: 0 | BC20: 0 | BD20: =SUM(BE20:BP20) -> 0 | BE20: 0 | BF20: 0 | BG20: 0 | BH20: 0 | BI20: 0 | BJ20: 0 | BK20: 0 | BL20: 0 | BM20: 0 | BN20: 0 | BO20: 0 | BP20: 0 | BQ20: 0 | BR20: - | BS20: - | BT20: 0 | BU20: 0 | BV20: 0 | BW20: 0 | BX20: 0 | BY20: 0 | BZ20: 0 | CA20: 0 | CB20: 0 | CC20: 0 | CD20: 0 | CE20: 0 | CF20: 0 | CG20: 0 | CH20: 0 | CI20: 0
A21: Soybean meal | B21: Consolidated | C21: FARELO | D21: 3969992 | E21: 201066 | F21: 310159 | G21: 390723 | H21: 434669 | I21: 400653 | J21: 377341 | K21: 297404 | L21: 251399 | M21: 277005 | N21: 338686 | O21: 367552 | P21: 323335 | Q21: 4686011 | R21: 322857 | S21: 338253 | T21: 416847 | U21: 466624 | V21: 421607 | W21: 358040 | X21: 416762 | Y21: 337641 | Z21: 342962 | AA21: 421263 | AB21: 414328 | AC21: 428827 | AD21: 5226408.87 | AE21: 371792 | AF21: 412188 | AG21: 466139 | AH21: 510473 | AI21: 422164 | AJ21: 464212 | AK21: 426054 | AL21: 411507 | AM21: 435918 | AN21: 374367 | AO21: 432493 | AP21: 499101.87 | AQ21: 5754347 | AR21: 393573 | AS21: 393024 | AT21: 521646 | AU21: 521301 | AV21: 488445 | AW21: 550633 | AX21: 519305 | AY21: 401116 | AZ21: 463474 | BA21: 492409 | BB21: 536874 | BC21: 472547 | BD21: =SUM(BE21:BP21) -> 6022027 | BE21: 362151 | BF21: 453770 | BG21: 477683 | BH21: 539117 | BI21: 540876 | BJ21: 536495 | BK21: 571586 | BL21: 534123 | BM21: 518579 | BN21: 548966 | BO21: 450418 | BP21: 488263 | BQ21: 6560650 | BR21: 334876 | BS21: 419029 | BT21: 529527 | BU21: 603179 | BV21: 582252 | BW21: 628711 | BX21: 646094 | BY21: 587620 | BZ21: 560413 | CA21: 503838 | CB21: 586561 | CC21: 578550 | CD21: 3143469 | CE21: 483861 | CF21: 530605 | CG21: 705742 | CH21: 737503 | CI21: 685758
A22: Corn meal | B22: Consolidated | C22: FARELO DE MILHO | AQ22: 14886 | AR22: 0 | AS22: 0 | AT22: 0 | AU22: 0 | AV22: 0 | AW22: 0 | AX22: 0 | AY22: 0 | AZ22: 0 | BB22: 0 | BC22: 14886 | BE22: 12996 | BF22: 0 | BG22: 0 | BH22: 0 | BI22: 0 | BJ22: 0 | BK22: 0 | BL22: 0 | BM22: 0 | BN22: 0 | BO22: 0 | BP22: 0 | BQ22: 0 | BR22: - | BS22: - | BT22: 0 | BU22: 0 | BV22: 0 | BW22: 0 | BX22: 0 | BY22: 0 | BZ22: 0 | CA22: 0 | CB22: 0 | CC22: 0 | CD22: 0 | CE22: 0 | CF22: 0 | CG22: 0 | CH22: 0 | CI22: 0
A23: Malt | B23: Consolidated | C23: MALTE | D23: 2311 | E23: 0 | F23: 0 | G23: 0 | H23: 0 | I23: 0 | J23: 0 | K23: 0 | L23: 0 | M23: 0 | N23: 2311 | O23: 0 | P23: 0 | Q23: 0 | R23: 0 | S23: 0 | T23: 0 | U23: 0 | V23: 0 | W23: 0 | X23: 0 | Y23: 0 | Z23: 0 | AA23: 0 | AB23: 0 | AC23: 0 | AD23: 0 | AE23: 0 | AF23: 0 | AG23: 0 | AH23: 0 | AI23: 0 | AJ23: 0 | AK23: 0 | AL23: 0 | AM23: 0 | AN23: 0 | AO23: 0 | AP23: 0 | AQ23: 0 | AR23: 0 | AS23: 0 | AT23: 0 | AU23: 0 | AV23: 0 | AW23: 0 | AX23: 0 | AY23: 0 | AZ23: 0 | BA23: 0 | BB23: 0 | BC23: 0 | BD23: =SUM(BE23:BP23) -> 0 | BE23: 0 | BF23: 0 | BG23: 0 | BH23: 0 | BI23: 0 | BJ23: 0 | BK23: 0 | BL23: 0 | BM23: 0 | BN23: 0 | BO23: 0 | BP23: 0 | BQ23: 0 | BR23: - | BS23: - | BT23: 0 | BU23: 0 | BV23: 0 | BW23: 0 | BX23: 0 | BY23: 0 | BZ23: 0 | CA23: 0 | CB23: 0 | CC23: 0 | CD23: 0 | CE23: 0 | CF23: 0 | CG23: 0 | CH23: 0 | CI23: 0
A24: Corn | B24: Consolidated | C24: MILHO | D24: 7114355 | E24: 1245723 | F24: 140909 | G24: 1682 | H24: 0 | I24: 0 | J24: 213883 | K24: 1271999 | L24: 1588841 | M24: 1316650 | N24: 510670 | O24: 344112 | P24: 479886 | Q24: 11458575 | R24: 85296 | S24: 8797 | T24: 0 | U24: 0 | V24: 7293 | W24: 780246 | X24: 1542625 | Y24: 1971538 | Z24: 2109089 | AA24: 1993773 | AB24: 1553793 | AC24: 1406125 | AD24: 10759302 | AE24: 511871 | AF24: 58203 | AG24: 0 | AH24: 0 | AI24: 22684 | AJ24: 227177 | AK24: 1437771 | AL24: 1791480 | AM24: 1790353 | AN24: 1424964 | AO24: 1820700 | AP24: 1674099 | AQ24: 14257220 | AR24: 388763 | AS24: 106889 | AT24: 21357 | AU24: 59186 | AV24: 105342 | AW24: 1738048 | AX24: 2489866 | AY24: 2524502 | AZ24: 2139600 | BA24: 1938564 | BB24: 1831686 | BC24: 913417 | BD24: 12264145 | BE24: 88580 | BF24: 102557 | BG24: 20269 | BH24: 0 | BI24: 41 | BJ24: 869988 | BK24: 1771947 | BL24: 1999554 | BM24: 1911519 | BN24: 1934609 | BO24: 1869337 | BP24: 1695744 | BQ24: 8391260 | BR24: 141408 | BS24: 101243 | BT24: 9765 | BU24: 0 | BV24: 0 | BW24: 319694 | BX24: 1776466 | BY24: 1342011 | BZ24: 861572 | CA24: 1088342 | CB24: 1144566 | CC24: 1606193 | CD24: 1200620 | CE24: 693464 | CF24: 46286 | CG24: 65640 | CH24: 293175 | CI24: 102055
A25: Soybean | B25: Consolidated | C25: SOJA | D25: 9778680 | E25: 142225 | F25: 1526682 | G25: 2103585 | H25: 2093133 | I25: 1677153 | J25: 937865 | K25: 467438 | L25: 255206 | M25: 176779 | N25: 130487 | O25: 104449 | P25: 163678 | Q25: 12732867 | R25: 606111 | S25: 1731574 | T25: 2304734 | U25: 2025913 | V25: 1936062 | W25: 1226966 | X25: 764236 | Y25: 528953 | Z25: 247404 | AA25: 303428 | AB25: 517462 | AC25: 540024 | AD25: 17246325 | AE25: 785626 | AF25: 1914150 | AG25: 2639088 | AH25: 2514737 | AI25: 2076437 | AJ25: 2077205 | AK25: 1230710 | AL25: 1014386 | AM25: 849151 | AN25: 1002931 | AO25: 768766 | AP25: 373138 | AQ25: 14833359 | AR25: 1468302 | AS25: 2093722 | AT25: 2724675 | AU25: 2113227 | AV25: 1676496 | AW25: 914746 | AX25: 611335 | AY25: 555493 | AZ25: 533428 | BA25: 908699 | BB25: 857215 | BC25: 376021 | BD25: 14939229 | BE25: 1062084 | BF25: 2204041 | BG25: 1936863 | BH25: 2704449 | BI25: 2797585 | BJ25: 1651143 | BK25: 1161146 | BL25: 701783 | BM25: 397161 | BN25: 201998 | BO25: 62343 | BP25: 58633 | BQ25: 18338263 | BR25: 214729 | BS25: 1991434 | BT25: 3321706 | BU25: 3165891 | BV25: 2992260 | BW25: 2074862 | BX25: 1039945 | BY25: 659173 | BZ25: 662358 | CA25: 744836 | CB25: 832779 | CC25: 638290 | CD25: 12263631 | CE25: 1389925 | CF25: 2866913 | CG25: 3266186 | CH25: 2467930 | CI25: 2272677
A26: Wheat | B26: Consolidated | C26: TRIGO | D26: 92438 | E26: 56140 | F26: 1934 | G26: 2974 | H26: 0 | I26: 0 | J26: 0 | K26: 0 | L26: 0 | M26: 0 | N26: 0 | O26: 9121 | P26: 22269 | Q26: 183475 | R26: 62998 | S26: 82959 | T26: 18082 | U26: 0 | V26: 0 | W26: 0 | X26: 0 | Y26: 0 | Z26: 0 | AA26: 0 | AB26: 6040 | AC26: 13396 | AD26: 178882 | AE26: 27410 | AF26: 6784 | AG26: 0 | AH26: 0 | AI26: 0 | AJ26: 0 | AK26: 0 | AL26: 0 | AM26: 0 | AN26: 0 | AO26: 57524 | AP26: 87164 | AQ26: 113925 | AR26: 46885 | AS26: 5420 | AT26: 0 | AU26: 0 | AV26: 0 | AW26: 0 | AX26: 0 | AY26: 0 | AZ26: 0 | BA26: 0 | BB26: 7839 | BC26: 53781 | BD26: 259399 | BE26: 40940 | BF26: 2273 | BG26: 0 | BH26: 0 | BI26: 0 | BJ26: 0 | BK26: 0 | BL26: 0 | BM26: 0 | BN26: 17013 | BO26: 106588 | BP26: 92585 | BQ26: 269727 | BR26: 4953 | BS26: - | BT26: 0 | BU26: 0 | BV26: 0 | BW26: 0 | BX26: 0 | BY26: 0 | BZ26: 0 | CA26: 1384 | CB26: 111305 | CC26: 152085 | CD26: 383027 | CE26: 138038 | CF26: 172565 | CG26: 63166 | CH26: 8003 | CI26: 1255
A27: Soybean | B27: Consolidated | C27: ÓLEO VEGETAL | D27: 32653 | E27: 521 | F27: 1881 | G27: 3923 | H27: 4426 | I27: 3402 | J27: 3420 | K27: 3883 | L27: 3808 | M27: 1572 | N27: 1504 | O27: 2207 | P27: 2106 | Q27: 46671 | R27: 3313 | S27: 3662 | T27: 4737 | U27: 5046 | V27: 5065 | W27: 4961 | X27: 5611 | Y27: 2898 | Z27: 1047 | AA27: 3903 | AB27: 2449 | AC27: 3979 | AD27: 45050 | AE27: 3005 | AF27: 3563 | AG27: 2366 | AH27: 2878 | AI27: 4486 | AJ27: 3721 | AK27: 4887 | AL27: 4086 | AM27: 7071 | AN27: 6123 | AO27: 208 | AP27: 2656 | AQ27: 12614 | AR27: 5141 | AS27: 0 | AT27: 1261 | AU27: 1228 | AV27: 0 | AW27: 0 | AX27: 0 | AY27: 0 | AZ27: 2107 | BA27: 1645 | BB27: 616 | BC27: 616 | BD27: 0 | BE27: 0 | BF27: 0 | BG27: 0 | BH27: 0 | BI27: 0 | BJ27: 0 | BK27: 0 | BL27: 0 | BM27: 0 | BN27: 0 | BO27: 0 | BP27: 0 | BQ27: 0 | BR27: - | BS27: - | BT27: 0 | BU27: 0 | BV27: 0 | BW27: 0 | BX27: 0 | BY27: 0 | BZ27: 0 | CA27: 0 | CB27: 0 | CC27: 0 | CD27: 0 | CE27: 0 | CF27: 0 | CG27: 0 | CH27: 0 | CI27: 0
B28: Consolidated | C28: GRUPO - INDUSTRIAL | D28: 5071902 | E28: 336172 | F28: 292087 | G28: 344432 | H28: 357790 | I28: 421952 | J28: 446109 | K28: 518004 | L28: 541290 | M28: 477514 | N28: 468696 | O28: 447294 | P28: 420562 | Q28: 6233038 | R28: 468193 | S28: 420698 | T28: 459860 | U28: 464072 | V28: 533317 | W28: 533300 | X28: 539131 | Y28: 540725 | Z28: 534650 | AA28: 566341 | AB28: 568850 | AC28: 603901 | AD28: 7510581 | AE28: 585337 | AF28: 546257 | AG28: 557252 | AH28: 561091 | AI28: 616026 | AJ28: 634201 | AK28: 628436 | AL28: 697369 | AM28: 658850 | AN28: 703942 | AO28: 666053 | AP28: 655767 | AQ28: 7036358 | AR28: 544671 | AS28: 439346 | AT28: 526163 | AU28: 574601 | AV28: 592158 | AW28: 631919 | AX28: 659398 | AY28: 685781 | AZ28: 664252 | BA28: 664911 | BB28: 603827 | BC28: 449331 | BD28: 6345257 | BE28: 495547 | BF28: 515993 | BG28: 446390 | BH28: 587356 | BI28: 570430 | BJ28: 536935 | BK28: 631911 | BL28: 668288 | BM28: 664319 | BN28: 451123 | BO28: 408596 | BP28: 368369 | BQ28: 6988375 | BR28: 466725 | BS28: 532534 | BT28: 632507 | BU28: 643636 | BV28: 675712 | BW28: 607852 | BX28: 635314 | BY28: 664834 | BZ28: 549104 | CA28: 575232 | CB28: 511805 | CC28: 493120 | CD28: 2765338 | CE28: 494213 | CF28: 449164 | CG28: 603824 | CH28: 561200 | CI28: 656937
A29: Wood, pulp and paper | B29: Consolidated | C29: ARROZ (ENSACADO) | D29: 1665 | E29: 1623 | F29: 42 | G29: 0 | H29: 0 | I29: 0 | J29: 0 | K29: 0 | L29: 0 | M29: 0 | N29: 0 | O29: 0 | P29: 0 | Q29: 0 | R29: 0 | S29: 0 | T29: 0 | U29: 0 | V29: 0 | W29: 0 | X29: 0 | Y29: 0 | Z29: 0 | AA29: 0 | AB29: 0 | AC29: 0 | AD29: 0 | AE29: 0 | AF29: 0 | AG29: 0 | AH29: 0 | AI29: 0 | AJ29: 0 | AK29: 0 | AL29: 0 | AM29: 0 | AN29: 0 | AO29: 0 | AP29: 0 | AQ29: 0 | AR29: 0 | AS29: 0 | AT29: 0 | AU29: 0 | AV29: 0 | AW29: 0 | AX29: 0 | AY29: 0 | AZ29: 0 | BA29: 0 | BB29: 0 | BC29: 0 | BD29: 0 | BE29: 0 | BF29: 0 | BG29: 0 | BH29: 0 | BI29: 0 | BJ29: 0 | BK29: 0 | BL29: 0 | BM29: 0 | BN29: 0 | BO29: 0 | BP29: 0 | BQ29: 0 | BR29: - | BS29: - | BT29: 0 | BU29: 0 | BV29: 0 | BW29: 0 | BX29: 0 | BY29: 0 | BZ29: 0 | CA29: 0 | CB29: 0 | CC29: 0 | CD29: 0 | CE29: 0 | CF29: 0 | CG29: 0 | CH29: 0 | CI29: 0
A30: Wood, pulp and paper | B30: Consolidated | C30: CALCÁREO (IND) | D30: 46068 | E30: 3740 | F30: 2992 | G30: 5720 | H30: 2904 | I30: 2816 | J30: 1408 | K30: 5060 | L30: 2904 | M30: 7480 | N30: 7392 | O30: 3652 | P30: 0 | Q30: 24728 | R30: 3696 | S30: 3608 | T30: 4708 | U30: 3784 | V30: 3652 | W30: 1320 | X30: 1320 | Y30: 2640 | Z30: 0 | AA30: 0 | AB30: 0 | AC30: 0 | AD30: 0 | AE30: 0 | AF30: 0 | AG30: 0 | AH30: 0 | AI30: 0 | AJ30: 0 | AK30: 0 | AL30: 0 | AM30: 0 | AN30: 0 | AO30: 0 | AP30: 0 | AQ30: 0 | AR30: 0 | AS30: 0 | AT30: 0 | AU30: 0 | AV30: 0 | AW30: 0 | AX30: 0 | AY30: 0 | AZ30: 0 | BA30: 0 | BB30: 0 | BC30: 0 | BD30: 0 | BE30: 0 | BF30: 0 | BG30: 0 | BH30: 0 | BI30: 0 | BJ30: 0 | BK30: 0 | BL30: 0 | BM30: 0 | BN30: 0 | BO30: 0 | BP30: 0 | BQ30: 0 | BR30: - | BS30: - | BT30: 0 | BU30: 0 | BV30: 0 | BW30: 0 | BX30: 0 | BY30: 0 | BZ30: 0 | CA30: 0 | CB30: 0 | CC30: 0 | CD30: 0 | CE30: 0 | CF30: 0 | CG30: 0 | CH30: 0 | CI30: 0
A31: Wood, pulp and paper | B31: Consolidated | C31: CELULOSE | D31: 1130712 | E31: 54928 | F31: 59084 | G31: 58716 | H31: 60020 | I31: 80060 | J31: 89400 | K31: 124684 | L31: 128588 | M31: 116056 | N31: 127276 | O31: 115520 | P31: 116380 | Q31: 1733132 | R31: 117576 | S31: 74704 | T31: 105112 | U31: 119472 | V31: 139980 | W31: 135608 | X31: 136868 | Y31: 136836 | Z31: 147088 | AA31: 178596 | AB31: 203292 | AC31: 238000 | AD31: 2864419 | AE31: 218791 | AF31: 202264 | AG31: 180324 | AH31: 171288 | AI31: 189148 | AJ31: 257744 | AK31: 234740 | AL31: 300676 | AM31: 259936 | AN31: 292320 | AO31: 272892 | AP31: 284296 | AQ31: 3124364 | AR31: 261552 | AS31: 219112 | AT31: 267040 | AU31: 249308 | AV31: 254196 | AW31: 245808 | AX31: 229320 | AY31: 260012 | AZ31: 271520 | BA31: 293312 | BB31: 284940 | BC31: 288244 | BD31: 3135548 | BE31: 277460 | BF31: 217452 | BG31: 218276 | BH31: 199660 | BI31: 261830 | BJ31: 257296 | BK31: 297386 | BL31: 304644 | BM31: 307790 | BN31: 302316 | BO31: 302868 | BP31: 188570 | BQ31: 3363570 | BR31: 277146 | BS31: 272464 | BT31: 295072 | BU31: 288312 | BV31: 298506 | BW31: 273600 | BX31: 271676 | BY31: 321386 | BZ31: 269282 | CA31: 280386 | CB31: 262668 | CC31: 253072 | CD31: 1329278 | CE31: 245434 | CF31: 211342 | CG31: 310002 | CH31: 277230 | CI31: 285270
A32: Construction | B32: Consolidated | C32: CIMENTO | D32: 796450 | E32: 51960 | F32: 59887 | G32: 59205 | H32: 61661 | I32: 57595 | J32: 68650 | K32: 76161 | L32: 78110 | M32: 74915 | N32: 73999 | O32: 68651 | P32: 65656 | Q32: 770394 | R32: 70778 | S32: 61523 | T32: 67337 | U32: 65785 | V32: 64955 | W32: 60826 | X32: 71753 | Y32: 74683 | Z32: 64073 | AA32: 69366 | AB32: 41493 | AC32: 57822 | AD32: 719827 | AE32: 46667 | AF32: 54405 | AG32: 66526 | AH32: 52833 | AI32: 58136 | AJ32: 57165 | AK32: 65630 | AL32: 69407 | AM32: 66327 | AN32: 61833 | AO32: 67113 | AP32: 53785 | AQ32: 797494 | AR32: 58843 | AS32: 59373 | AT32: 55397 | AU32: 64214 | AV32: 65604 | AW32: 67011 | AX32: 69113 | AY32: 76419 | AZ32: 75952 | BA32: 76399 | BB32: 71587 | BC32: 57582 | BD32: 818429 | BE32: 66430 | BF32: 66962 | BG32: 40409 | BH32: 71088 | BI32: 75191 | BJ32: 71841 | BK32: 69218 | BL32: 73803 | BM32: 69638 | BN32: 82218 | BO32: 73881 | BP32: 57750 | BQ32: 913949 | BR32: 70642 | BS32: 60876 | BT32: 79515 | BU32: 80601 | BV32: 82658 | BW32: 71946 | BX32: 81896 | BY32: 82180 | BZ32: 79629 | CA32: 72821 | CB32: 77334 | CC32: 73851 | CD32: 376524 | CE32: 71602 | CF32: 67550 | CG32: 79139 | CH32: 71224 | CI32: 87009
A33: Construction | B33: Consolidated | C33: CLINQUER | D33: 298325 | E33: 12038 | F33: 15421 | G33: 24830 | H33: 24206 | I33: 21349 | J33: 28373 | K33: 26642 | L33: 33287 | M33: 30294 | N33: 26831 | O33: 28417 | P33: 26637 | Q33: 348772 | R33: 30634 | S33: 25904 | T33: 26945 | U33: 26618 | V33: 36199 | W33: 21453 | X33: 30095 | Y33: 27898 | Z33: 29843 | AA33: 30939 | AB33: 33564 | AC33: 28680 | AD33: 287754 | AE33: 33068 | AF33: 23767 | AG33: 24856 | AH33: 25351 | AI33: 24161 | AJ33: 24791 | AK33: 17865 | AL33: 13160 | AM33: 22895 | AN33: 33504 | AO33: 28274 | AP33: 16062 | AQ33: 270799 | AR33: 27361 | AS33: 22733 | AT33: 27247 | AU33: 11840 | AV33: 21917 | AW33: 23499 | AX33: 25201 | AY33: 27534 | AZ33: 21762 | BA33: 24160 | BB33: 15869 | BC33: 21676 | BD33: 294483 | BE33: 22840 | BF33: 25849 | BG33: 20395 | BH33: 19331 | BI33: 27277 | BJ33: 20682 | BK33: 20155 | BL33: 24846 | BM33: 24973 | BN33: 31701 | BO33: 28081 | BP33: 28353 | BQ33: 352156 | BR33: 24694 | BS33: 27343 | BT33: 30499 | BU33: 30285 | BV33: 28615 | BW33: 29766 | BX33: 28110 | BY33: 32045 | BZ33: 32800 | CA33: 32245 | CB33: 30506 | CC33: 25248 | CD33: 134447 | CE33: 26049 | CF33: 31834 | CG33: 26522 | CH33: 24437 | CI33: 25605
A34: Wood, pulp and paper | B34: Consolidated | C34: MADEIRA | AQ34: 0 | AR34: 0 | AS34: 0 | AT34: 0 | AU34: 0 | AV34: 0 | AW34: 0 | AX34: 0 | AY34: 0 | AZ34: 0 | BA34: 0 | BB34: 0 | BC34: 0 | BD34: 0 | BE34: 0 | BF34: 0 | BG34: 0 | BH34: 0 | BI34: 0 | BJ34: 0 | BK34: 0 | BL34: 0 | BM34: 0 | BN34: 0 | BO34: 0 | BP34: 0 | BQ34: 0 | BR34: - | BS34: - | BT34: 0 | BU34: 0 | BV34: 0 | BW34: 0 | BX34: 0 | BY34: 0 | BZ34: 0 | CA34: 0 | CB34: 0 | CC34: 0 | CD34: 0 | CE34: 0 | CF34: 0 | CG34: 0 | CH34: 0 | CI34: 0
A35: Steel and mining | B35: Consolidated | C35: MINÉRIO | D35: 2757822 | E35: 209188 | F35: 147870 | G35: 191456 | H35: 203174 | I35: 258974 | J35: 257114 | K35: 281418 | L35: 294934 | M35: 246450 | N35: 228532 | O35: 228966 | P35: 209746 | Q35: 3279366 | R35: 244466 | S35: 252650 | T35: 251534 | U35: 242730 | V35: 281232 | W35: 306652 | X35: 291462 | Y35: 289664 | Z35: 284766 | AA35: 278690 | AB35: 283092 | AC35: 272428 | AD35: 3549661 | AE35: 279372 | AF35: 261268 | AG35: 278814 | AH35: 305288 | AI35: 335296 | AJ35: 285350 | AK35: 299150 | AL35: 303986 | AM35: 303986 | AN35: 311426 | AO35: 291648 | AP35: 294077 | AQ35: 2762082 | AR35: 189968 | AS35: 130270 | AT35: 173444 | AU35: 243135 | AV35: 243091 | AW35: 285587 | AX35: 328064 | AY35: 312884 | AZ35: 287451 | BA35: 261085 | BB35: 226460 | BC35: 80643 | BD35: 2054142 | BE35: 122000 | BF35: 204748 | BG35: 159442 | BH35: 290720 | BI35: 204549 | BJ35: 184435 | BK35: 240952 | BL35: 263498 | BM35: 259990 | BN35: 34888 | BO35: 0 | BP35: 88920 | BQ35: 2299471 | BR35: 90674 | BS35: 170686 | BT35: 220860 | BU35: 239173 | BV35: 257041 | BW35: 225485 | BX35: 246496 | BY35: 228983 | BZ35: 167393 | CA35: 184491 | CB35: 134080 | CC35: 134109 | CD35: 910340 | CE35: 145254 | CF35: 138438 | CG35: 181178 | CH35: 186417 | CI35: 259053
A36: Wood, pulp and paper | B36: Consolidated | C36: OUTROS (IND) | D36: 2504 | E36: 83 | F36: 842 | G36: 0 | H36: 1579 | I36: 0 | J36: 0 | K36: 0 | L36: 0 | M36: 0 | N36: 0 | O36: 0 | P36: 0 | Q36: 0 | R36: 0 | S36: 0 | T36: 0 | U36: 0 | V36: 0 | W36: 0 | X36: 0 | Y36: 0 | Z36: 0 | AA36: 0 | AB36: 0 | AC36: 0 | AD36: 22 | AE36: 0 | AF36: 0 | AG36: 0 | AH36: 0 | AI36: 0 | AJ36: 0 | AK36: 0 | AL36: 22 | AM36: 0 | AN36: 0 | AO36: 0 | AP36: 0 | AQ36: 0 | AR36: 0 | AS36: 0 | AT36: 0 | AU36: 0 | AV36: 0 | AW36: 0 | AX36: 0 | AY36: 0 | AZ36: 0 | BA36: 0 | BB36: 0 | BC36: 0 | BD36: 164 | BE36: 0 | BF36: 0 | BG36: 0 | BH36: 0 | BI36: 0 | BJ36: 0 | BK36: 0 | BL36: 0 | BM36: 0 | BN36: 0 | BO36: 164 | BP36: 0 | BQ36: 0 | BR36: - | BS36: - | BT36: 0 | BU36: 0 | BV36: 0 | BW36: 0 | BX36: 0 | BY36: 0 | BZ36: 0 | CA36: 0 | CB36: 0 | CC36: 0 | CD36: 0 | CE36: 0 | CF36: 0 | CG36: 0 | CH36: 0 | CI36: 0
A37: Wood, pulp and paper | B37: Consolidated | C37: PAPEL | AQ37: 0 | AR37: 0 | AS37: 0 | AT37: 0 | AU37: 0 | AV37: 0 | AW37: 0 | AX37: 0 | AY37: 0 | AZ37: 0 | BA37: 0 | BB37: 0 | BC37: 0 | BD37: 0 | BE37: 0 | BF37: 0 | BG37: 0 | BH37: 0 | BI37: 0 | BJ37: 0 | BK37: 0 | BL37: 0 | BM37: 0 | BN37: 0 | BO37: 0 | BP37: 0 | BQ37: 0 | BR37: - | BS37: - | BT37: 0 | BU37: 0 | BV37: 0 | BW37: 0 | BX37: 0 | BY37: 0 | BZ37: 0 | CA37: 0 | CB37: 0 | CC37: 0 | CD37: 0 | CE37: 0 | CF37: 0 | CG37: 0 | CH37: 0 | CI37: 0
A38: Steel and mining | B38: Consolidated | C38: SIDERÚRGICOS (IND) | D38: 38356 | E38: 2612 | F38: 5949 | G38: 4505 | H38: 4246 | I38: 1158 | J38: 1164 | K38: 4039 | L38: 3467 | M38: 2319 | N38: 4666 | O38: 2088 | P38: 2143 | Q38: 76646 | R38: 1043 | S38: 2309 | T38: 4224 | U38: 5683 | V38: 7299 | W38: 7441 | X38: 7633 | Y38: 9004 | Z38: 8880 | AA38: 8750 | AB38: 7409 | AC38: 6971 | AD38: 88898 | AE38: 7439 | AF38: 4553 | AG38: 6732 | AH38: 6331 | AI38: 9285 | AJ38: 9151 | AK38: 11051 | AL38: 10118 | AM38: 5706 | AN38: 4859 | AO38: 6126 | AP38: 7547 | AQ38: 81619 | AR38: 6947 | AS38: 7858 | AT38: 3035 | AU38: 6104 | AV38: 7350 | AW38: 10014 | AX38: 7700 | AY38: 8932 | AZ38: 7567 | BA38: 9955 | BB38: 4971 | BC38: 1186 | BD38: 42491 | BE38: 6817 | BF38: 982 | BG38: 7868 | BH38: 6557 | BI38: 1583 | BJ38: 2681 | BK38: 4200 | BL38: 1497 | BM38: 1928 | BN38: 0 | BO38: 3602 | BP38: 4776 | BQ38: 59229 | BR38: 3569 | BS38: 1165 | BT38: 6561 | BU38: 5265 | BV38: 8892 | BW38: 7055 | BX38: 7136 | BY38: 240 | BZ38: 0 | CA38: 5289 | CB38: 7217 | CC38: 6840 | CD38: 14749 | CE38: 5874 | CF38: 0 | CG38: 6983 | CH38: 1892 | CI38: 0
A39: Fuels | B39: Consolidated | C39: GRUPO - LÍQUIDOS | D39: 5558928 | E39: 403895 | F39: 431638 | G39: 472204 | H39: 441571 | I39: 448426 | J39: 485322 | K39: 485770 | L39: 504974 | M39: 506602 | N39: 510167 | O39: 451553 | P39: 416806 | Q39: 5639195 | R39: 438423 | S39: 403009 | T39: 442323 | U39: 409399 | V39: 461798 | W39: 459987 | X39: 520245 | Y39: 534979 | Z39: 504548 | AA39: 567981 | AB39: 455340 | AC39: 441163 | AD39: 5572086 | AE39: 432727 | AF39: 454748 | AG39: 482497 | AH39: 414912 | AI39: 420847 | AJ39: 501896 | AK39: 515882 | AL39: 488697 | AM39: 482383 | AN39: 465400 | AO39: 455722 | AP39: 456375 | AQ39: 5792428 | AR39: 457709 | AS39: 437437 | AT39: 455247 | AU39: 458752 | AV39: 483316 | AW39: 498336 | AX39: 522493 | AY39: 532359 | AZ39: 501473 | BA39: 525139 | BB39: 472611 | BC39: 447556 | BD39: 5244979 | BE39: 461696 | BF39: 461952 | BG39: 322458 | BH39: 286743 | BI39: 410083 | BJ39: 409302 | BK39: 459793 | BL39: 467178 | BM39: 492083 | BN39: 520579 | BO39: 494294 | BP39: 458818 | BQ39: 5942069 | BR39: 471748 | BS39: 480324 | BT39: 476456 | BU39: 466838 | BV39: 510744 | BW39: 497006 | BX39: 514838 | BY39: 533746 | BZ39: 507576 | CA39: 513894 | CB39: 480759 | CC39: 488140 | CD39: 2546385 | CE39: 485419 | CF39: 485060 | CG39: 526358 | CH39: 505322 | CI39: 544226
B40: Consolidated | C40: GRUPO - OUTROS | AQ40: 2 | AR40: 0 | AS40: 0 | AT40: 0 | AU40: 0 | AV40: 0 | AW40: 0 | AX40: 0 | AY40: 0 | AZ40: 0 | BA40: 1 | BB40: 0 | BC40: 1 | BD40: 0 | BE40: 0 | BF40: 0 | BG40: 0 | BH40: 0 | BI40: 0 | BJ40: 0 | BK40: 0 | BL40: 0 | BM40: 0 | BN40: 0 | BO40: 0 | BP40: 0 | BQ40: 4 | BR40: 2 | BS40: 1 | BT40: 1 | BU40: 0 | BV40: 0 | BW40: 0 | BX40: 0 | BY40: 0 | BZ40: 0 | CA40: 0 | CB40: 0 | CC40: 0 | CD40: 0 | CE40: 0 | CF40: 0 | CG40: 0 | CH40: 0 | CI40: 0
B41: North | C41: Total Produto | D41: =SUM(D42:D45,D54,D65) -> 20941482 | E41: 1512500 | F41: 1600153 | G41: 1923435 | H41: 1972200 | I41: 1864269 | J41: 1649962 | K41: 1977554 | L41: 2075853 | M41: 1982434 | N41: 1606930 | O41: 1394598 | P41: 1381594 | Q41: 24437526 | R41: 1297573 | S41: 1752734 | T41: 2010546 | U41: 1959879 | V41: 2217895 | W41: 2029491 | X41: 2121596 | Y41: 2257428 | Z41: 2105506 | AA41: 2353317 | AB41: 2194943 | AC41: 2136618 | AD41: 28967342.87 | AE41: 1680391 | AF41: 2143021 | AG41: 2398665 | AH41: 2264991 | AI41: 2158864 | AJ41: 2509516 | AK41: 2662230 | AL41: 2743605 | AM41: 2685469 | AN41: 2491933 | AO41: 2711889 | AP41: 2516768.87 | AQ41: 31460951 | AR41: 2219067 | AS41: 1984367 | AT41: 2702593 | AU41: 2539708 | AV41: 2303032 | AW41: 2913556 | AX41: 3182551 | AY41: 2954193 | AZ41: 2724510 | BA41: 2850985 | BB41: 2856615 | BC41: 2229774 | BD41: 34398967 | BE41: 2066801 | BF41: 2777616 | BG41: 1960457 | BH41: 2787580 | BI41: 3057496 | BJ41: 2866446 | BK41: 3251457 | BL41: 3138455 | BM41: 3167355 | BN41: 3329751 | BO41: 3056197 | BP41: 2939356 | BQ41: 35998726 | BR41: 1643093 | BS41: 2851096 | BT41: 3255749 | BU41: 3292235 | BV41: 3518270 | BW41: 3270011 | BX41: 3389291 | BY41: 3020256 | BZ41: 2628704 | CA41: 2903942 | CB41: 3122264 | CC41: 3103815 | CD41: 17859788 | CE41: 3010359 | CF41: 3607552 | CG41: 3936526 | CH41: 3552443 | CI41: 3752908
A42: Sugar | B42: North | C42: GRUPO - AÇÚCAR | D42: 4031626 | E42: 159114 | F42: 180609 | G42: 139265 | H42: 127612 | I42: 342175 | J42: 550508 | K42: 294642 | L42: 315576 | M42: 339512 | N42: 643579 | O42: 566026 | P42: 373008 | Q42: 2163443 | R42: 264261 | S42: 97177 | T42: 57243 | U42: 132363 | V42: 426989 | W42: 242806 | X42: 113385 | Y42: 144136 | Z42: 155928 | AA42: 155838 | AB42: 158893 | AC42: 214424 | AD42: 2629478 | AE42: 406983 | AF42: 196291 | AG42: 160306 | AH42: 113837 | AI42: 346881 | AJ42: 363892 | AK42: 159520 | AL42: 139393 | AM42: 202911 | AN42: 269314 | AO42: 150131 | AP42: 120019 | AQ42: 2140095 | AR42: 164754 | AS42: 74714 | AT42: 182717 | AU42: 263268 | AV42: 265242 | AW42: 138801 | AX42: 114189 | AY42: 98405 | AZ42: 154178 | BA42: 129019 | BB42: 95748 | BC42: 459060 | BD42: 4229508 | BE42: 263838 | BF42: 194414 | BG42: 122806 | BH42: 173784 | BI42: 278256 | BJ42: 207346 | BK42: 171830 | BL42: 406858 | BM42: 587317 | BN42: 717885 | BO42: 631247 | BP42: 473927 | BQ42: 3589307 | BR42: 412830 | BS42: 45569 | BT42: 77192 | BU42: 175534 | BV42: 444666 | BW42: 430415 | BX42: 149171 | BY42: 290171 | BZ42: 482624 | CA42: 440941 | CB42: 412324 | CC42: 227870 | CD42: 636930 | CE42: 194028 | CF42: 29097 | CG42: 146150 | CH42: 57756 | CI42: 209899
A43: Containers | B43: North | C43: GRUPO - BRADO | D43: 902038 | E43: 66911 | F43: 71228 | G43: 78105 | H43: 68800 | I43: 76700 | J43: 79313 | K43: 85311 | L43: 79213 | M43: 71250 | N43: 79877 | O43: 79796 | P43: 65534 | Q43: 1031163 | R43: 77206 | S43: 62501 | T43: 70145 | U43: 86667 | V43: 101449 | W43: 91000 | X43: 90524 | Y43: 102534 | Z43: 94613 | AA43: 99242 | AB43: 85445 | AC43: 69837 | AD43: 1176487 | AE43: 35056 | AF43: 111019 | AG43: 101471 | AH43: 104069 | AI43: 85317 | AJ43: 88085 | AK43: 117664 | AL43: 124431 | AM43: 109664 | AN43: 103292 | AO43: 96879 | AP43: 99540 | AQ43: 1478003 | AR43: 96914 | AS43: 89437 | AT43: 127261 | AU43: 122676 | AV43: 123248 | AW43: 109444 | AX43: 131847 | AY43: 140161 | AZ43: 134776 | BA43: 132647 | BB43: 138013 | BC43: 131579 | BD43: 1387783 | BE43: 117087 | BF43: 107946 | BG43: 109280 | BH43: 80242 | BI43: 71525 | BJ43: 117378 | BK43: 125064 | BL43: 123704 | BM43: 130722 | BN43: 127553 | BO43: 142406 | BP43: 134876 | BQ43: 1648657 | BR43: 115552 | BS43: 105970 | BT43: 109347 | BU43: 137087 | BV43: 129784 | BW43: 145624 | BX43: 147653 | BY43: 170227 | BZ43: 151443 | CA43: 144080 | CB43: 138501 | CC43: 153389 | CD43: 726840 | CE43: 127402 | CF43: 143008 | CG43: 156558 | CH43: 147452 | CI43: 152420
A44: Fertilizers | B44: North | C44: GRUPO - FERTILIZANTES | D44: 0 | E44: 0 | F44: 0 | G44: 0 | H44: 0 | I44: 0 | J44: 0 | K44: 0 | L44: 0 | M44: 0 | N44: 0 | O44: 0 | P44: 0 | Q44: 0 | R44: 0 | S44: 0 | T44: 0 | U44: 0 | V44: 0 | W44: 0 | X44: 0 | Y44: 0 | Z44: 0 | AA44: 0 | AB44: 0 | AC44: 0 | AD44: 700690 | AE44: 0 | AF44: 0 | AG44: 0 | AH44: 1490 | AI44: 39138 | AJ44: 46832 | AK44: 111152 | AL44: 109027 | AM44: 52548 | AN44: 70442 | AO44: 104008 | AP44: 166053 | AQ44: 1732180 | AR44: 107379 | AS44: 74680 | AT44: 99420 | AU44: 130966 | AV44: 184699 | AW44: 175650 | AX44: 202606 | AY44: 161594 | AZ44: 64507 | BA44: 136468 | BB44: 166253 | BC44: 227958 | BD44: 2367994 | BE44: 182939 | BF44: 150573 | BG44: 71800 | BH44: 178512 | BI44: 237698 | BJ44: 221842 | BK44: 237646 | BL44: 160133 | BM44: 177808 | BN44: 254297 | BO44: 246732 | BP44: 248014 | BQ44: 2677218 | BR44: 259463 | BS44: 223175 | BT44: 147105 | BU44: 151100 | BV44: 159329 | BW44: 156254 | BX44: 326400 | BY44: 316078 | BZ44: 237472 | CA44: 261324 | CB44: 218129 | CC44: 221389 | CD44: 994083 | CE44: 179855 | CF44: 228742 | CG44: 213985 | CH44: 95893 | CI44: 275608
B45: North | C45: GRUPO - GRÃOS | D45: 13745782 | E45: 1112819 | F45: 1181488 | G45: 1526294 | H45: 1602989 | I45: 1268685 | J45: 827056 | K45: 1412079 | L45: 1477948 | M45: 1348691 | N45: 661955 | O45: 566802 | P45: 758976 | Q45: 18836880 | R45: 765037 | S45: 1419699 | T45: 1695072 | U45: 1572813 | V45: 1501565 | W45: 1497034 | X45: 1726374 | Y45: 1810311 | Z45: 1679881 | AA45: 1850480 | AB45: 1716250 | AC45: 1602364 | AD45: 20935468.87 | AE45: 993814 | AF45: 1592384 | AG45: 1855430 | AH45: 1817026 | AI45: 1420003 | AJ45: 1681672 | AK45: 1949455 | AL45: 2042971 | AM45: 2002082 | AN45: 1731172 | AO45: 2038759 | AP45: 1810700.87 | AQ45: 22323728 | AR45: 1535226 | AS45: 1484759 | AT45: 1994074 | AU45: 1730223 | AV45: 1413943 | AW45: 2172047 | AX45: 2405085 | AY45: 2230005 | AZ45: 2036686 | BA45: 2100406 | BB45: 2130248 | BC45: 1091026 | BD45: =SUM(BD46:BD53) -> 22156103 | BE45: 1169700 | BF45: 1990404 | BG45: 1366875 | BH45: 2106054 | BI45: 2103651 | BJ45: 1977110 | BK45: 2344991 | BL45: 2067470 | BM45: 1864690 | BN45: 1802711 | BO45: 1620543 | BP45: 1741904 | BQ45: 23214690 | BR45: 491729 | BS45: 2110481 | BT45: 2538181 | BU45: 2445366 | BV45: 2383920 | BW45: 2139116 | BX45: 2342530 | BY45: 1790856 | BZ45: 1328691 | CA45: 1605853 | CB45: 1949668 | CC45: 2088299 | CD45: 13208119 | CE45: 2086281 | CF45: 2756141 | CG45: 2931615 | CH45: 2803706 | CI45: 2630376
B46: North | C46: ARROZ (GRANEL) | AQ46: 0 | AR46: 0 | AS46: 0 | AT46: 0 | AU46: 0 | AV46: 0 | AW46: 0 | AX46: 0 | AY46: 0 | AZ46: 0 | BA46: 0 | BB46: 0 | BC46: 0 | BD46: =SUM(BE46:BP46) -> 0 | BE46: 0 | BF46: 0 | BG46: 0 | BH46: 0 | BI46: 0 | BJ46: 0 | BK46: 0 | BL46: 0 | BM46: 0 | BN46: 0 | BO46: 0 | BP46: 0 | BQ46: 0 | BR46: - | BS46: - | BT46: 0 | BU46: 0 | BV46: 0 | BW46: 0 | BX46: 0 | BY46: 0 | BZ46: 0 | CA46: 0 | CB46: 0 | CC46: 0 | CD46: 0 | CE46: 0 | CF46: 0 | CG46: 0 | CH46: 0 | CI46: 0
A47: Soybean meal | B47: North | C47: FARELO | D47: 3029211 | E47: 138665 | F47: 248372 | G47: 314174 | H47: 344702 | I47: 327073 | J47: 294540 | K47: 225291 | L47: 201266 | M47: 205210 | N47: 236378 | O47: 251827 | P47: 241713 | Q47: 3825322 | R47: 254830 | S47: 271252 | T47: 337929 | U47: 376599 | V47: 339766 | W47: 288499 | X47: 342228 | Y47: 281327 | Z47: 288632 | AA47: 356200 | AB47: 336901 | AC47: 351159 | AD47: 4064821.87 | AE47: 276811 | AF47: 338182 | AG47: 380643 | AH47: 410914 | AI47: 314032 | AJ47: 361905 | AK47: 313799 | AL47: 309701 | AM47: 339574 | AN47: 308946 | AO47: 327625 | AP47: 382689.87 | AQ47: 4270319 | AR47: 301233 | AS47: 288059 | AT47: 399566 | AU47: 394771 | AV47: 373017 | AW47: 382772 | AX47: 366677 | AY47: 311848 | AZ47: 332050 | BA47: 355964 | BB47: 410599 | BC47: 353763 | BD47: 4552887 | BE47: 258548 | BF47: 357153 | BG47: 337667 | BH47: 441612 | BI47: 390450 | BJ47: 411490 | BK47: 417490 | BL47: 402115 | BM47: 368129 | BN47: 410441 | BO47: 354102 | BP47: 403690 | BQ47: =SUM(BR47:CC47) -> 4951838 | BR47: 264328 | BS47: 363904 | BT47: 403452 | BU47: 450715 | BV47: 426796 | BW47: 467850 | BX47: 497982 | BY47: 428979 | BZ47: 392715 | CA47: 332790 | CB47: 460882 | CC47: 461445 | CD47: 2455051 | CE47: 385790 | CF47: 431714 | CG47: 538016 | CH47: 570770 | CI47: 528761
